Workbook

Sheet INTRO
B2: Formulaire de Rapport Commun v.4.2
B4: Le but de ce formulaire de rapport commun - disponible sous forme de fichier Excel - est de mettre à disposition des autorités sanitaires nationales et des gestionnaires de données un outil standardisé qui réponde aux défis, facilite l'intégration et par conséquent contribue à améliorer la gestion de programme. Ce formulaire tend à standardiser le rapport de résultats des programmes nationaux, améliore la disponibilité et la coordination des données de chimioprévention à travers les Bureaux des Régions de l'Organisation mondiale de la Santé. Les autorités nationales sont priées de compléter ce formulaire de rapport commun et de le soumettre à l'Organisation mondiale de la Santé dans les 3 mois suivant la mise en œuvre du dernier cycle et au plus tard le 31 mars de l'année de mise en œuvre suivante.
B6: Structure de l'application (feuilles de travail) :
B8: INTRO | C8: Cette feuille contient des instructions pour compléter le formulaire de rapport commun et des informations sur le statut de la chimioprévention pour les maladies d'endémie du pays. En fonction de la co-endémicité de la maladie dans un pays, l’outil générera les feuilles de calcul à remplir.
B9: COUNTRY_INFO | C9: Cette feuille contient des informations sur la structure administrative du pays, la population par groupe d'âge, le statut d'endémicité pour chaque maladie, la population devant être traitée par chimioprévention, les interventions prévues et les interventions mises en oeuvre.
B10: MDA1, MDA2, MDA3, MDA5, T1, T2 et T3 | C10: Ces feuilles contiennent des informations sur l'endémicité des districts ciblés pour le traitement aux médicaments spécifiques pour la chimioprévention, les plans de traitement, et le nombre de personnes traitées par groupe d'âge.
B11: DISTRICT | C11: Cette feuille contient un résumé sur les personnes traitées, par maladie, au niveau de mise en oeuvre. Si les données par genre (sexe) sont disponibles, merci de les saisir.
B12: SUMMARY | C12: Cette feuille contient un résumé sur les personnes traitées, par maladie et par type d'intervention de chimioprévention. Avant de générer le rapport (exécuter macro), veuillez sélectionner la maladie pour laquelle vous souhaitez un rapport. Veuillez suivre le même processus pour générer les divers rapports. Cette feuille doit être imprimée et soumise comme formulaire de rapport commun (voir les instructions pour la soumission du formulaire sous la feuille SUMMARY).
B14: Instructions pour la saisie des données
B16: La plupart des cellules des feuilles de travail mentionnées ci-dessus contiennent des formules calculées automatiquement en fonction du protocole de traitement recommandé par l'OMS pour chaque maladie. Voir : https://www.who.int/publications/i/item/9789241599993
B18: Veuillez entrer vos données dans les cellules en fonction de leur code de couleur :
C20: Blanc - la cellule n'est pas protégée. Veuillez entrer la valeur de l'indicateur demandé.
C22: Jaune - la cellule est protégée et inclut le nom de l'indicateur. Aucune entrée de données requise.
C24: Orange - la cellule n'est pas protégée et contient un menu déroulant. Veuillez sélectionner la valeur dans le menu déroulant.
C27: Vert - la cellule n'est pas protégée et contient des formules. Veuillez changer la valeur indiquée uniquement si vos données sont différentes de celles calculées automatiquement.
C30: Bleu - la cellule est protégée et contient des formules. Aucune entrée de données requise.
B32: Données pays
B34: PAYS | E34: Togo
B36: Année de rapport des données | E36: 2022
B38: Le pays est-il endémique à la filariose lymphatique (FL) ? | E38: Non endémique
B40: Le pays est-il endémique à l'onchocercose (ONCHO) ? | E40: Endémique
B42: Le pays est-il endémique aux géohelminthiases (STH) ? | E42: Endémique
B44: Le pays est-il endémique à la schistosomiase (SCH) ? | E44: Endémique
B46: Combien d'unités administratives compte le pays ? | E46: 39
B47: Si les données démographiques par groupe d'âge ne sont pas disponibles au second niveau administratif, veuillez entrer la proportion (%) de population, par groupe d'âge, du pays. Si les données sont disponibles, veuillez laisser les cellules vierges.
B48: 1-4 ans | C48: Enfants d'âge pré-scolaire (EAPréS) | E48: 0.16
B49: 5-14 ans | C49: Enfants d'âge scolaire (EAS) | E49: 0.3
B50: 15 ans et plus | C50: Adultes | E50: 0.5
B51: 15-49 ans | C51: Femmes en âge de procréer (FAP) | E51: 0.2418

Sheet COUNTRY_INFO
A1: INFORMATIONS PAYS
A2: Struture administrative, population par groupe d'âge, statut d'endémicité et interventions planifiées
A4: TOTAL | D4: =SUBTOTAL(9,D$10:D$1010) -> 8159174.824 | E4: =SUBTOTAL(9,E$10:E$1010) -> 1305467 | F4: 2447751 | G4: 4079589 | L4: =SUBTOTAL(9,L$10:L$1010) -> 0 | M4: 4018551.216 | N4: 884895 | O4: 1659179 | P4: 0 | Q4: 2544074 | R4: 0 | S4: 0 | T4: 0 | U4: 4196913
A6: Structure administrative du pays | D6: Population | H6: Endémicité | L6: Population nécessitant la CP | V6: Nombre de tournées de traitement réalisées | Z6: Mise en oeuvre de la chimioprévention
A7: Pays | B7: Région/Département | C7: District | D7: Total | E7: EAPréS | F7: EAS | G7: Adultes | H7: FL | I7: Oncho | J7: STH | K7: SCH | L7: FL | M7: ONCHO | N7: STH | R7: SCH | V7: FL | W7: Oncho | X7: STH | Y7: SCH | Z7: TOURNEE 1 | AA7: TOURNEE 2 | AB7: TOURNEE 3 | AK7: SCH | AL7: AK10=K10 | AN7: AO10=AK10 | AP7: AO10=K10 | AS7: sth | AT7: AS10=J10
N8: EAPréS | O8: EAS | P8: FAP | Q8: TOTAL | R8: EAPréS | S8: EAS | T8: Adultes | U8: TOTAL | AH8: IU_ID | AI8: IU_Name
AH9: x | AI9: x | AJ9: x | AK9: x | AL9: x | AM9: x | AN9: x | AO9: x | AP9: x | AQ9: x | AR9: x | AS9: x | AT9: x | AU9: x | AV9: x | AW9: x | AX9: x | AY9: x | AZ9: x | BA9: x | BB9: x | BC9: x | BD9: x | BE9: x
A10: =IF(INTRO!$E$34<>0,INTRO!$E$34,"") -> Togo | B10: CENTRALE | C10: BLITTA | D10: 171343.7808 | E10: =IF(INTRO!$E$48="","",ROUND($D10*INTRO!$E$48,0)) -> 27415 | F10: =IF(INTRO!$E$49="","",ROUND($D10*INTRO!$E$49,0)) -> 51403 | G10: =IF(INTRO!$E$50="","",ROUND($D10*INTRO!$E$50,0)) -> 85672 | I10: 1 | J10: 3 | K10: 2 | L10: =IF(INTRO!$E$38="Endémique", IF($H10>0, IF($H10=4,"Inconnu", IF($H10=99,"Interrompu", $D10)), 0),"Non requis") -> Non requis | M10: 116301.8909 | N10: =IF(INTRO!$E$42="Endémique", IF($J10>1, IF($J10=4, "Inconnu", IF($J10=99, "Surveillance", E10)), 0),"Non requis") -> 27415 | O10: =IF(INTRO!$E$42="Endémique", IF($J10>1, IF($J10=4, "Inconnu", IF($J10=99, "Surveillance", F10)), 0),"Non requis") -> 51403 | Q10: =IF(INTRO!$E$42="Endémique", IF($J10>1, IF($J10=4, "Inconnu", IF($J10=99, "Surveillance", SUM($N10:$P10))), 0),"Non requis") -> 78818 | U10: 122604 | W10: 1 | X10: 1 | Y10: 2 | Z10: MDA3 (IVM) | AA10: T2 (PZQ) | AH10: 48666 | AI10: BLITA | AK10: 2 | AL10: =AK10=K10 -> TRUE | AN10: =AO10=AK10 -> TRUE | AO10: 2 | AP10: =AO10=K10 -> TRUE | AS10: 3 | AT10: =AS10=J10 -> TRUE
A11: =IF(INTRO!$E$34<>0,INTRO!$E$34,"") -> Togo | B11: CENTRALE | C11: MÔ | D11: 47989.2576 | E11: =IF(INTRO!$E$48="","",ROUND($D11*INTRO!$E$48,0)) -> 7678 | F11: =IF(INTRO!$E$49="","",ROUND($D11*INTRO!$E$49,0)) -> 14397 | G11: =IF(INTRO!$E$50="","",ROUND($D11*INTRO!$E$50,0)) -> 23995 | I11: 1 | J11: 2 | K11: 1 | L11: =IF(INTRO!$E$38="Endémique", IF($H11>0, IF($H11=4,"Inconnu", IF($H11=99,"Interrompu", $D11)), 0),"Non requis") -> Non requis | M11: 47989 | N11: =IF(INTRO!$E$42="Endémique", IF($J11>1, IF($J11=4, "Inconnu", IF($J11=99, "Surveillance", E11)), 0),"Non requis") -> 7678 | O11: =IF(INTRO!$E$42="Endémique", IF($J11>1, IF($J11=4, "Inconnu", IF($J11=99, "Surveillance", F11)), 0),"Non requis") -> 14397 | Q11: =IF(INTRO!$E$42="Endémique", IF($J11>1, IF($J11=4, "Inconnu", IF($J11=99, "Surveillance", SUM($N11:$P11))), 0),"Non requis") -> 22075 | U11: 36004 | W11: 2 | X11: 1 | Y11: 1 | Z11: MDA3 (IVM) | AA11: T2 (PZQ) | AH11: 48706 | AI11: MÔ | AK11: 1 | AL11: =AK11=K11 -> TRUE | AN11: =AO11=AK11 -> TRUE | AO11: 1 | AP11: =AO11=K11 -> TRUE | AS11: 2 | AT11: =AS11=J11 -> TRUE
A12: =IF(INTRO!$E$34<>0,INTRO!$E$34,"") -> Togo | B12: CENTRALE | C12: SOTOUBOUA | D12: 144341.082 | E12: =IF(INTRO!$E$48="","",ROUND($D12*INTRO!$E$48,0)) -> 23095 | F12: =IF(INTRO!$E$49="","",ROUND($D12*INTRO!$E$49,0)) -> 43302 | G12: =IF(INTRO!$E$50="","",ROUND($D12*INTRO!$E$50,0)) -> 72171 | I12: 1 | J12: 3 | K12: 2 | L12: =IF(INTRO!$E$38="Endémique", IF($H12>0, IF($H12=4,"Inconnu", IF($H12=99,"Interrompu", $D12)), 0),"Non requis") -> Non requis | M12: 72290.53827 | N12: =IF(INTRO!$E$42="Endémique", IF($J12>1, IF($J12=4, "Inconnu", IF($J12=99, "Surveillance", E12)), 0),"Non requis") -> 23095 | O12: =IF(INTRO!$E$42="Endémique", IF($J12>1, IF($J12=4, "Inconnu", IF($J12=99, "Surveillance", F12)), 0),"Non requis") -> 43302 | Q12: =IF(INTRO!$E$42="Endémique", IF($J12>1, IF($J12=4, "Inconnu", IF($J12=99, "Surveillance", SUM($N12:$P12))), 0),"Non requis") -> 66397 | U12: 64690 | W12: 1 | X12: 1 | Y12: 1 | Z12: MDA3 (IVM) | AA12: T2 (PZQ) | AH12: 48707 | AI12: SOTOUBOUA | AK12: 2 | AL12: TRUE | AN12: TRUE | AO12: 2 | AP12: TRUE | AS12: 3 | AT12: TRUE
A13: =IF(INTRO!$E$34<>0,INTRO!$E$34,"") -> Togo | B13: CENTRALE | C13: TCHAMBA | D13: 183017.1492 | E13: =IF(INTRO!$E$48="","",ROUND($D13*INTRO!$E$48,0)) -> 29283 | F13: =IF(INTRO!$E$49="","",ROUND($D13*INTRO!$E$49,0)) -> 54905 | G13: =IF(INTRO!$E$50="","",ROUND($D13*INTRO!$E$50,0)) -> 91509 | I13: 1 | J13: 3 | K13: 1 | L13: =IF(INTRO!$E$38="Endémique", IF($H13>0, IF($H13=4,"Inconnu", IF($H13=99,"Interrompu", $D13)), 0),"Non requis") -> Non requis | M13: 129738.9246 | N13: =IF(INTRO!$E$42="Endémique", IF($J13>1, IF($J13=4, "Inconnu", IF($J13=99, "Surveillance", E13)), 0),"Non requis") -> 29283 | O13: =IF(INTRO!$E$42="Endémique", IF($J13>1, IF($J13=4, "Inconnu", IF($J13=99, "Surveillance", F13)), 0),"Non requis") -> 54905 | Q13: =IF(INTRO!$E$42="Endémique", IF($J13>1, IF($J13=4, "Inconnu", IF($J13=99, "Surveillance", SUM($N13:$P13))), 0),"Non requis") -> 84188 | U13: 135684 | W13: 1 | X13: 1 | Y13: 1 | Z13: MDA3 (IVM) | AA13: T2 (PZQ) | AH13: 48668 | AI13: TCHAMBA | AK13: 1 | AL13: TRUE | AN13: TRUE | AO13: 1 | AP13: TRUE | AS13: 3 | AT13: TRUE
A14: =IF(INTRO!$E$34<>0,INTRO!$E$34,"") -> Togo | B14: CENTRALE | C14: TCHAOUDJO | D14: 233984.6532 | E14: =IF(INTRO!$E$48="","",ROUND($D14*INTRO!$E$48,0)) -> 37438 | F14: =IF(INTRO!$E$49="","",ROUND($D14*INTRO!$E$49,0)) -> 70195 | G14: =IF(INTRO!$E$50="","",ROUND($D14*INTRO!$E$50,0)) -> 116992 | I14: 1 | J14: 3 | K14: 2 | L14: =IF(INTRO!$E$38="Endémique", IF($H14>0, IF($H14=4,"Inconnu", IF($H14=99,"Interrompu", $D14)), 0),"Non requis") -> Non requis | M14: 123411.1176 | N14: =IF(INTRO!$E$42="Endémique", IF($J14>1, IF($J14=4, "Inconnu", IF($J14=99, "Surveillance", E14)), 0),"Non requis") -> 37438 | O14: =IF(INTRO!$E$42="Endémique", IF($J14>1, IF($J14=4, "Inconnu", IF($J14=99, "Surveillance", F14)), 0),"Non requis") -> 70195 | Q14: =IF(INTRO!$E$42="Endémique", IF($J14>1, IF($J14=4, "Inconnu", IF($J14=99, "Surveillance", SUM($N14:$P14))), 0),"Non requis") -> 107633 | U14: 158059 | W14: 2 | X14: 1 | Y14: 2 | Z14: MDA3 (IVM) | AA14: T2 (PZQ) | AH14: 48669 | AI14: TCHAOUDJO | AK14: 2 | AL14: TRUE | AN14: TRUE | AO14: 2 | AP14: TRUE | AS14: 3 | AT14: TRUE
A15: =IF(INTRO!$E$34<>0,INTRO!$E$34,"") -> Togo | B15: GRAND-LOME | C15: AGOE NYIVE | D15: 793622 | E15: =IF(INTRO!$E$48="","",ROUND($D15*INTRO!$E$48,0)) -> 126980 | F15: =IF(INTRO!$E$49="","",ROUND($D15*INTRO!$E$49,0)) -> 238087 | G15: =IF(INTRO!$E$50="","",ROUND($D15*INTRO!$E$50,0)) -> 396811 | I15: 1 | J15: 1 | K15: 2 | L15: =IF(INTRO!$E$38="Endémique", IF($H15>0, IF($H15=4,"Inconnu", IF($H15=99,"Interrompu", $D15)), 0),"Non requis") -> Non requis | M15: 8331 | N15: =IF(INTRO!$E$42="Endémique", IF($J15>1, IF($J15=4, "Inconnu", IF($J15=99, "Surveillance", E15)), 0),"Non requis") -> 0 | O15: =IF(INTRO!$E$42="Endémique", IF($J15>1, IF($J15=4, "Inconnu", IF($J15=99, "Surveillance", F15)), 0),"Non requis") -> 0 | Q15: =IF(INTRO!$E$42="Endémique", IF($J15>1, IF($J15=4, "Inconnu", IF($J15=99, "Surveillance", SUM($N15:$P15))), 0),"Non requis") -> 0 | U15: 117098 | W15: 1 | X15: 1 | Y15: 2 | Z15: MDA3 (IVM) | AA15: T2 (PZQ) | AH15: 48713 | AI15: AGOE-NYIVE | AK15: 2 | AL15: TRUE | AN15: TRUE | AO15: 2 | AP15: TRUE | AS15: 1 | AT15: TRUE
A16: =IF(INTRO!$E$34<>0,INTRO!$E$34,"") -> Togo | B16: GRAND-LOME | C16: GOLFE | D16: 1308247 | E16: =IF(INTRO!$E$48="","",ROUND($D16*INTRO!$E$48,0)) -> 209320 | F16: =IF(INTRO!$E$49="","",ROUND($D16*INTRO!$E$49,0)) -> 392474 | G16: =IF(INTRO!$E$50="","",ROUND($D16*INTRO!$E$50,0)) -> 654124 | I16: 0 | J16: 1 | K16: 2 | L16: =IF(INTRO!$E$38="Endémique", IF($H16>0, IF($H16=4,"Inconnu", IF($H16=99,"Interrompu", $D16)), 0),"Non requis") -> Non requis | M16: 0 | N16: =IF(INTRO!$E$42="Endémique", IF($J16>1, IF($J16=4, "Inconnu", IF($J16=99, "Surveillance", E16)), 0),"Non requis") -> 0 | O16: =IF(INTRO!$E$42="Endémique", IF($J16>1, IF($J16=4, "Inconnu", IF($J16=99, "Surveillance", F16)), 0),"Non requis") -> 0 | Q16: =IF(INTRO!$E$42="Endémique", IF($J16>1, IF($J16=4, "Inconnu", IF($J16=99, "Surveillance", SUM($N16:$P16))), 0),"Non requis") -> 0 | U16: 333609 | W16: 0 | X16: 1 | Y16: 1 | AA16: T2 (PZQ) | AH16: 48713 | AI16: AGOE-NYIVE | AK16: 2 | AL16: TRUE | AN16: TRUE | AO16: 2 | AP16: TRUE | AS16: 1 | AT16: TRUE
A17: =IF(INTRO!$E$34<>0,INTRO!$E$34,"") -> Togo | B17: KARA | C17: ASSOLI | D17: 65619.1188 | E17: =IF(INTRO!$E$48="","",ROUND($D17*INTRO!$E$48,0)) -> 10499 | F17: =IF(INTRO!$E$49="","",ROUND($D17*INTRO!$E$49,0)) -> 19686 | G17: =IF(INTRO!$E$50="","",ROUND($D17*INTRO!$E$50,0)) -> 32810 | I17: 1 | J17: 0 | K17: 1 | L17: =IF(INTRO!$E$38="Endémique", IF($H17>0, IF($H17=4,"Inconnu", IF($H17=99,"Interrompu", $D17)), 0),"Non requis") -> Non requis | M17: 47459.95044 | N17: =IF(INTRO!$E$42="Endémique", IF($J17>1, IF($J17=4, "Inconnu", IF($J17=99, "Surveillance", E17)), 0),"Non requis") -> 0 | O17: =IF(INTRO!$E$42="Endémique", IF($J17>1, IF($J17=4, "Inconnu", IF($J17=99, "Surveillance", F17)), 0),"Non requis") -> 0 | Q17: =IF(INTRO!$E$42="Endémique", IF($J17>1, IF($J17=4, "Inconnu", IF($J17=99, "Surveillance", SUM($N17:$P17))), 0),"Non requis") -> 0 | U17: 32047 | W17: 2 | X17: 1 | Y17: 2 | Z17: MDA3 (IVM) | AA17: T2 (PZQ) | AH17: 48684 | AI17: GOLFE (District 1, 2, 3,4 and most of 5) | AK17: 1 | AL17: TRUE | AN17: FALSE | AO17: 0 | AP17: FALSE | AS17: 0 | AT17: TRUE
A18: =IF(INTRO!$E$34<>0,INTRO!$E$34,"") -> Togo | B18: KARA | C18: BASSAR | D18: 158345.8332 | E18: =IF(INTRO!$E$48="","",ROUND($D18*INTRO!$E$48,0)) -> 25335 | F18: =IF(INTRO!$E$49="","",ROUND($D18*INTRO!$E$49,0)) -> 47504 | G18: =IF(INTRO!$E$50="","",ROUND($D18*INTRO!$E$50,0)) -> 79173 | I18: 1 | J18: 2 | K18: 3 | L18: =IF(INTRO!$E$38="Endémique", IF($H18>0, IF($H18=4,"Inconnu", IF($H18=99,"Interrompu", $D18)), 0),"Non requis") -> Non requis | M18: 110286.2159 | N18: =IF(INTRO!$E$42="Endémique", IF($J18>1, IF($J18=4, "Inconnu", IF($J18=99, "Surveillance", E18)), 0),"Non requis") -> 25335 | O18: =IF(INTRO!$E$42="Endémique", IF($J18>1, IF($J18=4, "Inconnu", IF($J18=99, "Surveillance", F18)), 0),"Non requis") -> 47504 | Q18: =IF(INTRO!$E$42="Endémique", IF($J18>1, IF($J18=4, "Inconnu", IF($J18=99, "Surveillance", SUM($N18:$P18))), 0),"Non requis") -> 72839 | U18: 91719 | W18: 2 | X18: 1 | Y18: 2 | Z18: MDA3 (IVM) | AA18: T2 (PZQ) | AH18: 48671 | AI18: BASSAR | AK18: 3 | AL18: TRUE | AN18: TRUE | AO18: 3 | AP18: TRUE | AS18: 2 | AT18: TRUE
A19: =IF(INTRO!$E$34<>0,INTRO!$E$34,"") -> Togo | B19: KARA | C19: BINAH | D19: 79824.408 | E19: =IF(INTRO!$E$48="","",ROUND($D19*INTRO!$E$48,0)) -> 12772 | F19: =IF(INTRO!$E$49="","",ROUND($D19*INTRO!$E$49,0)) -> 23947 | G19: =IF(INTRO!$E$50="","",ROUND($D19*INTRO!$E$50,0)) -> 39912 | I19: 1 | J19: 3 | K19: 2 | L19: =IF(INTRO!$E$38="Endémique", IF($H19>0, IF($H19=4,"Inconnu", IF($H19=99,"Interrompu", $D19)), 0),"Non requis") -> Non requis | M19: 53663.01553 | N19: =IF(INTRO!$E$42="Endémique", IF($J19>1, IF($J19=4, "Inconnu", IF($J19=99, "Surveillance", E19)), 0),"Non requis") -> 12772 | O19: =IF(INTRO!$E$42="Endémique", IF($J19>1, IF($J19=4, "Inconnu", IF($J19=99, "Surveillance", F19)), 0),"Non requis") -> 23947 | Q19: =IF(INTRO!$E$42="Endémique", IF($J19>1, IF($J19=4, "Inconnu", IF($J19=99, "Surveillance", SUM($N19:$P19))), 0),"Non requis") -> 36719 | U19: 52728 | W19: 2 | X19: 1 | Y19: 1 | Z19: MDA3 (IVM) | AA19: T2 (PZQ) | AH19: 48672 | AI19: BINAH | AK19: 2 | AL19: TRUE | AN19: TRUE | AO19: 2 | AP19: TRUE | AS19: 3 | AT19: TRUE
A20: =IF(INTRO!$E$34<>0,INTRO!$E$34,"") -> Togo | B20: KARA | C20: DANKPEN | D20: 170729.826 | E20: =IF(INTRO!$E$48="","",ROUND($D20*INTRO!$E$48,0)) -> 27317 | F20: =IF(INTRO!$E$49="","",ROUND($D20*INTRO!$E$49,0)) -> 51219 | G20: =IF(INTRO!$E$50="","",ROUND($D20*INTRO!$E$50,0)) -> 85365 | I20: 1 | J20: 2 | K20: 1 | L20: =IF(INTRO!$E$38="Endémique", IF($H20>0, IF($H20=4,"Inconnu", IF($H20=99,"Interrompu", $D20)), 0),"Non requis") -> Non requis | M20: 159768.5815 | N20: =IF(INTRO!$E$42="Endémique", IF($J20>1, IF($J20=4, "Inconnu", IF($J20=99, "Surveillance", E20)), 0),"Non requis") -> 27317 | O20: =IF(INTRO!$E$42="Endémique", IF($J20>1, IF($J20=4, "Inconnu", IF($J20=99, "Surveillance", F20)), 0),"Non requis") -> 51219 | Q20: =IF(INTRO!$E$42="Endémique", IF($J20>1, IF($J20=4, "Inconnu", IF($J20=99, "Surveillance", SUM($N20:$P20))), 0),"Non requis") -> 78536 | U20: 44606 | W20: 2 | X20: 1 | Y20: 1 | Z20: MDA3 (IVM) | AA20: T2 (PZQ) | AH20: 48673 | AI20: DANKPEN | AK20: 1 | AL20: TRUE | AN20: TRUE | AO20: 1 | AP20: TRUE | AS20: 2 | AT20: TRUE
A21: =IF(INTRO!$E$34<>0,INTRO!$E$34,"") -> Togo | B21: KARA | C21: DOUFELGOU | D21: 97875.9132 | E21: =IF(INTRO!$E$48="","",ROUND($D21*INTRO!$E$48,0)) -> 15660 | F21: =IF(INTRO!$E$49="","",ROUND($D21*INTRO!$E$49,0)) -> 29363 | G21: =IF(INTRO!$E$50="","",ROUND($D21*INTRO!$E$50,0)) -> 48938 | I21: 1 | J21: 3 | K21: 2 | L21: =IF(INTRO!$E$38="Endémique", IF($H21>0, IF($H21=4,"Inconnu", IF($H21=99,"Interrompu", $D21)), 0),"Non requis") -> Non requis | M21: 78155.9082 | N21: =IF(INTRO!$E$42="Endémique", IF($J21>1, IF($J21=4, "Inconnu", IF($J21=99, "Surveillance", E21)), 0),"Non requis") -> 15660 | O21: =IF(INTRO!$E$42="Endémique", IF($J21>1, IF($J21=4, "Inconnu", IF($J21=99, "Surveillance", F21)), 0),"Non requis") -> 29363 | Q21: =IF(INTRO!$E$42="Endémique", IF($J21>1, IF($J21=4, "Inconnu", IF($J21=99, "Surveillance", SUM($N21:$P21))), 0),"Non requis") -> 45023 | U21: 60287 | W21: 2 | X21: 1 | Y21: 2 | Z21: MDA3 (IVM) | AA21: T2 (PZQ) | AH21: 48674 | AI21: DOULFELGOU | AK21: 2 | AL21: TRUE | AN21: TRUE | AO21: 2 | AP21: TRUE | AS21: 3 | AT21: TRUE
A22: =IF(INTRO!$E$34<>0,INTRO!$E$34,"") -> Togo | B22: KARA | C22: KERAN | D22: 129837.5568 | E22: =IF(INTRO!$E$48="","",ROUND($D22*INTRO!$E$48,0)) -> 20774 | F22: =IF(INTRO!$E$49="","",ROUND($D22*INTRO!$E$49,0)) -> 38951 | G22: =IF(INTRO!$E$50="","",ROUND($D22*INTRO!$E$50,0)) -> 64919 | I22: 1 | J22: 2 | K22: 2 | L22: =IF(INTRO!$E$38="Endémique", IF($H22>0, IF($H22=4,"Inconnu", IF($H22=99,"Interrompu", $D22)), 0),"Non requis") -> Non requis | M22: 120413.6004 | N22: =IF(INTRO!$E$42="Endémique", IF($J22>1, IF($J22=4, "Inconnu", IF($J22=99, "Surveillance", E22)), 0),"Non requis") -> 20774 | O22: =IF(INTRO!$E$42="Endémique", IF($J22>1, IF($J22=4, "Inconnu", IF($J22=99, "Surveillance", F22)), 0),"Non requis") -> 38951 | Q22: =IF(INTRO!$E$42="Endémique", IF($J22>1, IF($J22=4, "Inconnu", IF($J22=99, "Surveillance", SUM($N22:$P22))), 0),"Non requis") -> 59725 | U22: 92879 | W22: 2 | X22: 1 | Y22: 1 | Z22: MDA3 (IVM) | AA22: T2 (PZQ) | AH22: 48675 | AI22: KERAN | AK22: 2 | AL22: TRUE | AN22: TRUE | AO22: 2 | AP22: TRUE | AS22: 2 | AT22: TRUE
A23: =IF(INTRO!$E$34<>0,INTRO!$E$34,"") -> Togo | B23: KARA | C23: KOZAH | D23: 295636.2048 | E23: =IF(INTRO!$E$48="","",ROUND($D23*INTRO!$E$48,0)) -> 47302 | F23: =IF(INTRO!$E$49="","",ROUND($D23*INTRO!$E$49,0)) -> 88691 | G23: =IF(INTRO!$E$50="","",ROUND($D23*INTRO!$E$50,0)) -> 147818 | I23: 1 | J23: 2 | K23: 2 | L23: =IF(INTRO!$E$38="Endémique", IF($H23>0, IF($H23=4,"Inconnu", IF($H23=99,"Interrompu", $D23)), 0),"Non requis") -> Non requis | M23: 167045.8203 | N23: =IF(INTRO!$E$42="Endémique", IF($J23>1, IF($J23=4, "Inconnu", IF($J23=99, "Surveillance", E23)), 0),"Non requis") -> 47302 | O23: =IF(INTRO!$E$42="Endémique", IF($J23>1, IF($J23=4, "Inconnu", IF($J23=99, "Surveillance", F23)), 0),"Non requis") -> 88691 | Q23: =IF(INTRO!$E$42="Endémique", IF($J23>1, IF($J23=4, "Inconnu", IF($J23=99, "Surveillance", SUM($N23:$P23))), 0),"Non requis") -> 135993 | U23: 199417 | W23: 2 | X23: 1 | Y23: 2 | Z23: MDA3 (IVM) | AA23: T2 (PZQ) | AH23: 48676 | AI23: KOZAH | AK23: 2 | AL23: TRUE | AN23: TRUE | AO23: 2 | AP23: TRUE | AS23: 2 | AT23: TRUE
A24: =IF(INTRO!$E$34<>0,INTRO!$E$34,"") -> Togo | B24: MARITIME | C24: AVE | D24: 146074.9644 | E24: =IF(INTRO!$E$48="","",ROUND($D24*INTRO!$E$48,0)) -> 23372 | F24: =IF(INTRO!$E$49="","",ROUND($D24*INTRO!$E$49,0)) -> 43822 | G24: =IF(INTRO!$E$50="","",ROUND($D24*INTRO!$E$50,0)) -> 73037 | I24: 1 | J24: 1 | K24: 2 | L24: =IF(INTRO!$E$38="Endémique", IF($H24>0, IF($H24=4,"Inconnu", IF($H24=99,"Interrompu", $D24)), 0),"Non requis") -> Non requis | M24: 101976.8868 | N24: =IF(INTRO!$E$42="Endémique", IF($J24>1, IF($J24=4, "Inconnu", IF($J24=99, "Surveillance", E24)), 0),"Non requis") -> 0 | O24: =IF(INTRO!$E$42="Endémique", IF($J24>1, IF($J24=4, "Inconnu", IF($J24=99, "Surveillance", F24)), 0),"Non requis") -> 0 | Q24: =IF(INTRO!$E$42="Endémique", IF($J24>1, IF($J24=4, "Inconnu", IF($J24=99, "Surveillance", SUM($N24:$P24))), 0),"Non requis") -> 0 | U24: 84947 | W24: 1 | X24: 1 | Y24: 1 | Z24: MDA3 (IVM) | AA24: T2 (PZQ) | AH24: 48677 | AI24: AVE | AK24: 2 | AL24: TRUE | AN24: TRUE | AO24: 2 | AP24: TRUE | AS24: 1 | AT24: TRUE
A25: =IF(INTRO!$E$34<>0,INTRO!$E$34,"") -> Togo | B25: MARITIME | C25: BAS-MONO | D25: 113475.7128 | E25: =IF(INTRO!$E$48="","",ROUND($D25*INTRO!$E$48,0)) -> 18156 | F25: =IF(INTRO!$E$49="","",ROUND($D25*INTRO!$E$49,0)) -> 34043 | G25: =IF(INTRO!$E$50="","",ROUND($D25*INTRO!$E$50,0)) -> 56738 | I25: 1 | J25: 3 | K25: 1 | L25: =IF(INTRO!$E$38="Endémique", IF($H25>0, IF($H25=4,"Inconnu", IF($H25=99,"Interrompu", $D25)), 0),"Non requis") -> Non requis | M25: 29893.27685 | N25: =IF(INTRO!$E$42="Endémique", IF($J25>1, IF($J25=4, "Inconnu", IF($J25=99, "Surveillance", E25)), 0),"Non requis") -> 18156 | O25: =IF(INTRO!$E$42="Endémique", IF($J25>1, IF($J25=4, "Inconnu", IF($J25=99, "Surveillance", F25)), 0),"Non requis") -> 34043 | Q25: =IF(INTRO!$E$42="Endémique", IF($J25>1, IF($J25=4, "Inconnu", IF($J25=99, "Surveillance", SUM($N25:$P25))), 0),"Non requis") -> 52199 | U25: 48831 | W25: 1 | X25: 1 | Y25: 1 | Z25: MDA3 (IVM) | AA25: T2 (PZQ) | AH25: 48678 | AI25: BAS MONO | AK25: 1 | AL25: TRUE | AN25: TRUE | AO25: 1 | AP25: TRUE | AS25: 3 | AT25: TRUE
A26: =IF(INTRO!$E$34<>0,INTRO!$E$34,"") -> Togo | B26: MARITIME | C26: LACS | D26: 209784.3444 | E26: =IF(INTRO!$E$48="","",ROUND($D26*INTRO!$E$48,0)) -> 33565 | F26: =IF(INTRO!$E$49="","",ROUND($D26*INTRO!$E$49,0)) -> 62935 | G26: =IF(INTRO!$E$50="","",ROUND($D26*INTRO!$E$50,0)) -> 104892 | I26: 0 | J26: 2 | K26: 2 | L26: =IF(INTRO!$E$38="Endémique", IF($H26>0, IF($H26=4,"Inconnu", IF($H26=99,"Interrompu", $D26)), 0),"Non requis") -> Non requis | M26: 0 | N26: =IF(INTRO!$E$42="Endémique", IF($J26>1, IF($J26=4, "Inconnu", IF($J26=99, "Surveillance", E26)), 0),"Non requis") -> 33565 | O26: =IF(INTRO!$E$42="Endémique", IF($J26>1, IF($J26=4, "Inconnu", IF($J26=99, "Surveillance", F26)), 0),"Non requis") -> 62935 | Q26: =IF(INTRO!$E$42="Endémique", IF($J26>1, IF($J26=4, "Inconnu", IF($J26=99, "Surveillance", SUM($N26:$P26))), 0),"Non requis") -> 96500 | U26: 106951 | W26: 0 | X26: 1 | Y26: 2 | AA26: T2 (PZQ) | AH26: 48680 | AI26: LACS | AK26: 2 | AL26: TRUE | AN26: TRUE | AO26: 2 | AP26: TRUE | AS26: 2 | AT26: TRUE
A27: =IF(INTRO!$E$34<>0,INTRO!$E$34,"") -> Togo | B27: MARITIME | C27: VO | D27: 233764.5756 | E27: =IF(INTRO!$E$48="","",ROUND($D27*INTRO!$E$48,0)) -> 37402 | F27: =IF(INTRO!$E$49="","",ROUND($D27*INTRO!$E$49,0)) -> 70129 | G27: =IF(INTRO!$E$50="","",ROUND($D27*INTRO!$E$50,0)) -> 116882 | I27: 0 | J27: 3 | K27: 2 | L27: =IF(INTRO!$E$38="Endémique", IF($H27>0, IF($H27=4,"Inconnu", IF($H27=99,"Interrompu", $D27)), 0),"Non requis") -> Non requis | M27: 0 | N27: =IF(INTRO!$E$42="Endémique", IF($J27>1, IF($J27=4, "Inconnu", IF($J27=99, "Surveillance", E27)), 0),"Non requis") -> 37402 | O27: =IF(INTRO!$E$42="Endémique", IF($J27>1, IF($J27=4, "Inconnu", IF($J27=99, "Surveillance", F27)), 0),"Non requis") -> 70129 | Q27: =IF(INTRO!$E$42="Endémique", IF($J27>1, IF($J27=4, "Inconnu", IF($J27=99, "Surveillance", SUM($N27:$P27))), 0),"Non requis") -> 107531 | U27: 115398 | W27: 0 | X27: 1 | Y27: 2 | AA27: T2 (PZQ) | AH27: 48681 | AI27: VO | AK27: 2 | AL27: TRUE | AN27: TRUE | AO27: 2 | AP27: TRUE | AS27: 3 | AT27: TRUE
A28: =IF(INTRO!$E$34<>0,INTRO!$E$34,"") -> Togo | B28: MARITIME | C28: YOTO | D28: 280183.4664 | E28: =IF(INTRO!$E$48="","",ROUND($D28*INTRO!$E$48,0)) -> 44829 | F28: =IF(INTRO!$E$49="","",ROUND($D28*INTRO!$E$49,0)) -> 84055 | G28: =IF(INTRO!$E$50="","",ROUND($D28*INTRO!$E$50,0)) -> 140092 | I28: 1 | J28: 2 | K28: 2 | L28: =IF(INTRO!$E$38="Endémique", IF($H28>0, IF($H28=4,"Inconnu", IF($H28=99,"Interrompu", $D28)), 0),"Non requis") -> Non requis | M28: 171786.7377 | N28: =IF(INTRO!$E$42="Endémique", IF($J28>1, IF($J28=4, "Inconnu", IF($J28=99, "Surveillance", E28)), 0),"Non requis") -> 44829 | O28: =IF(INTRO!$E$42="Endémique", IF($J28>1, IF($J28=4, "Inconnu", IF($J28=99, "Surveillance", F28)), 0),"Non requis") -> 84055 | Q28: =IF(INTRO!$E$42="Endémique", IF($J28>1, IF($J28=4, "Inconnu", IF($J28=99, "Surveillance", SUM($N28:$P28))), 0),"Non requis") -> 128884 | U28: 156246 | W28: 1 | X28: 2 | Y28: 1 | Z28: MDA3 (IVM) | AA28: T2 (PZQ) | AH28: 48682 | AI28: YOTO | AK28: 2 | AL28: TRUE | AN28: TRUE | AO28: 2 | AP28: TRUE | AS28: 2 | AT28: TRUE
A29: =IF(INTRO!$E$34<>0,INTRO!$E$34,"") -> Togo | B29: MARITIME | C29: ZIO | D29: 483042.5652 | E29: =IF(INTRO!$E$48="","",ROUND($D29*INTRO!$E$48,0)) -> 77287 | F29: =IF(INTRO!$E$49="","",ROUND($D29*INTRO!$E$49,0)) -> 144913 | G29: =IF(INTRO!$E$50="","",ROUND($D29*INTRO!$E$50,0)) -> 241521 | I29: 1 | J29: 3 | K29: 2 | L29: =IF(INTRO!$E$38="Endémique", IF($H29>0, IF($H29=4,"Inconnu", IF($H29=99,"Interrompu", $D29)), 0),"Non requis") -> Non requis | M29: 281365.894 | N29: =IF(INTRO!$E$42="Endémique", IF($J29>1, IF($J29=4, "Inconnu", IF($J29=99, "Surveillance", E29)), 0),"Non requis") -> 77287 | O29: =IF(INTRO!$E$42="Endémique", IF($J29>1, IF($J29=4, "Inconnu", IF($J29=99, "Surveillance", F29)), 0),"Non requis") -> 144913 | Q29: =IF(INTRO!$E$42="Endémique", IF($J29>1, IF($J29=4, "Inconnu", IF($J29=99, "Surveillance", SUM($N29:$P29))), 0),"Non requis") -> 222200 | U29: 266419 | W29: 1 | X29: 1 | Y29: 2 | Z29: MDA3 (IVM) | AA29: T2 (PZQ) | AH29: 48683 | AI29: ZIO | AK29: 2 | AL29: TRUE | AN29: TRUE | AO29: 2 | AP29: TRUE | AS29: 3 | AT29: TRUE
A30: =IF(INTRO!$E$34<>0,INTRO!$E$34,"") -> Togo | B30: PLATEAUX | C30: AGOU | D30: 116873.5464 | E30: =IF(INTRO!$E$48="","",ROUND($D30*INTRO!$E$48,0)) -> 18700 | F30: =IF(INTRO!$E$49="","",ROUND($D30*INTRO!$E$49,0)) -> 35062 | G30: =IF(INTRO!$E$50="","",ROUND($D30*INTRO!$E$50,0)) -> 58437 | I30: 1 | J30: 2 | K30: 3 | L30: =IF(INTRO!$E$38="Endémique", IF($H30>0, IF($H30=4,"Inconnu", IF($H30=99,"Interrompu", $D30)), 0),"Non requis") -> Non requis | M30: 84659.30025 | N30: =IF(INTRO!$E$42="Endémique", IF($J30>1, IF($J30=4, "Inconnu", IF($J30=99, "Surveillance", E30)), 0),"Non requis") -> 18700 | O30: =IF(INTRO!$E$42="Endémique", IF($J30>1, IF($J30=4, "Inconnu", IF($J30=99, "Surveillance", F30)), 0),"Non requis") -> 35062 | Q30: =IF(INTRO!$E$42="Endémique", IF($J30>1, IF($J30=4, "Inconnu", IF($J30=99, "Surveillance", SUM($N30:$P30))), 0),"Non requis") -> 53762 | U30: 65435 | W30: 1 | X30: 1 | Y30: 2 | Z30: MDA3 (IVM) | AA30: T2 (PZQ) | AH30: 48689 | AI30: AGOU | AK30: 3 | AL30: TRUE | AN30: TRUE | AO30: 3 | AP30: TRUE | AS30: 2 | AT30: TRUE
A31: =IF(INTRO!$E$34<>0,INTRO!$E$34,"") -> Togo | B31: PLATEAUX | C31: AKEBOU | D31: 74712.2316 | E31: =IF(INTRO!$E$48="","",ROUND($D31*INTRO!$E$48,0)) -> 11954 | F31: =IF(INTRO!$E$49="","",ROUND($D31*INTRO!$E$49,0)) -> 22414 | G31: =IF(INTRO!$E$50="","",ROUND($D31*INTRO!$E$50,0)) -> 37356 | I31: 1 | J31: 1 | K31: 2 | L31: =IF(INTRO!$E$38="Endémique", IF($H31>0, IF($H31=4,"Inconnu", IF($H31=99,"Interrompu", $D31)), 0),"Non requis") -> Non requis | M31: 72662.37221 | N31: =IF(INTRO!$E$42="Endémique", IF($J31>1, IF($J31=4, "Inconnu", IF($J31=99, "Surveillance", E31)), 0),"Non requis") -> 0 | O31: =IF(INTRO!$E$42="Endémique", IF($J31>1, IF($J31=4, "Inconnu", IF($J31=99, "Surveillance", F31)), 0),"Non requis") -> 0 | Q31: =IF(INTRO!$E$42="Endémique", IF($J31>1, IF($J31=4, "Inconnu", IF($J31=99, "Surveillance", SUM($N31:$P31))), 0),"Non requis") -> 0 | U31: 46053 | W31: 1 | X31: 1 | Y31: 1 | Z31: MDA3 (IVM) | AA31: T2 (PZQ) | AH31: 48691 | AI31: AKEBOU | AK31: 2 | AL31: TRUE | AN31: TRUE | AO31: 2 | AP31: TRUE | AS31: 1 | AT31: TRUE
A32: =IF(INTRO!$E$34<>0,INTRO!$E$34,"") -> Togo | B32: PLATEAUX | C32: AMOU | D32: 133055.4204 | E32: =IF(INTRO!$E$48="","",ROUND($D32*INTRO!$E$48,0)) -> 21289 | F32: =IF(INTRO!$E$49="","",ROUND($D32*INTRO!$E$49,0)) -> 39917 | G32: =IF(INTRO!$E$50="","",ROUND($D32*INTRO!$E$50,0)) -> 66528 | I32: 1 | J32: 3 | K32: 2 | L32: =IF(INTRO!$E$38="Endémique", IF($H32>0, IF($H32=4,"Inconnu", IF($H32=99,"Interrompu", $D32)), 0),"Non requis") -> Non requis | M32: 126415.3643 | N32: =IF(INTRO!$E$42="Endémique", IF($J32>1, IF($J32=4, "Inconnu", IF($J32=99, "Surveillance", E32)), 0),"Non requis") -> 21289 | O32: =IF(INTRO!$E$42="Endémique", IF($J32>1, IF($J32=4, "Inconnu", IF($J32=99, "Surveillance", F32)), 0),"Non requis") -> 39917 | Q32: =IF(INTRO!$E$42="Endémique", IF($J32>1, IF($J32=4, "Inconnu", IF($J32=99, "Surveillance", SUM($N32:$P32))), 0),"Non requis") -> 61206 | U32: 91095 | W32: 2 | X32: 1 | Y32: 2 | Z32: MDA3 (IVM) | AA32: T2 (PZQ) | AH32: 48690 | AI32: AMOU | AK32: 2 | AL32: TRUE | AN32: TRUE | AO32: 2 | AP32: TRUE | AS32: 3 | AT32: TRUE
A33: =IF(INTRO!$E$34<>0,INTRO!$E$34,"") -> Togo | B33: PLATEAUX | C33: ANIE | D33: 175255.8144 | E33: =IF(INTRO!$E$48="","",ROUND($D33*INTRO!$E$48,0)) -> 28041 | F33: =IF(INTRO!$E$49="","",ROUND($D33*INTRO!$E$49,0)) -> 52577 | G33: =IF(INTRO!$E$50="","",ROUND($D33*INTRO!$E$50,0)) -> 87628 | I33: 1 | J33: 3 | K33: 3 | L33: =IF(INTRO!$E$38="Endémique", IF($H33>0, IF($H33=4,"Inconnu", IF($H33=99,"Interrompu", $D33)), 0),"Non requis") -> Non requis | M33: 124448.5759 | N33: =IF(INTRO!$E$42="Endémique", IF($J33>1, IF($J33=4, "Inconnu", IF($J33=99, "Surveillance", E33)), 0),"Non requis") -> 28041 | O33: =IF(INTRO!$E$42="Endémique", IF($J33>1, IF($J33=4, "Inconnu", IF($J33=99, "Surveillance", F33)), 0),"Non requis") -> 52577 | Q33: =IF(INTRO!$E$42="Endémique", IF($J33>1, IF($J33=4, "Inconnu", IF($J33=99, "Surveillance", SUM($N33:$P33))), 0),"Non requis") -> 80618 | U33: 119617 | W33: 1 | X33: 1 | Y33: 2 | Z33: MDA3 (IVM) | AA33: T2 (PZQ) | AH33: 48692 | AI33: ANIE | AK33: 3 | AL33: TRUE | AN33: TRUE | AO33: 3 | AP33: TRUE | AS33: 3 | AT33: TRUE
A34: =IF(INTRO!$E$34<>0,INTRO!$E$34,"") -> Togo | B34: PLATEAUX | C34: DANYI | D34: 46718.1552 | E34: =IF(INTRO!$E$48="","",ROUND($D34*INTRO!$E$48,0)) -> 7475 | F34: =IF(INTRO!$E$49="","",ROUND($D34*INTRO!$E$49,0)) -> 14015 | G34: =IF(INTRO!$E$50="","",ROUND($D34*INTRO!$E$50,0)) -> 23359 | I34: 1 | J34: 2 | K34: 1 | L34: =IF(INTRO!$E$38="Endémique", IF($H34>0, IF($H34=4,"Inconnu", IF($H34=99,"Interrompu", $D34)), 0),"Non requis") -> Non requis | M34: 38400.92052 | N34: =IF(INTRO!$E$42="Endémique", IF($J34>1, IF($J34=4, "Inconnu", IF($J34=99, "Surveillance", E34)), 0),"Non requis") -> 7475 | O34: =IF(INTRO!$E$42="Endémique", IF($J34>1, IF($J34=4, "Inconnu", IF($J34=99, "Surveillance", F34)), 0),"Non requis") -> 14015 | Q34: =IF(INTRO!$E$42="Endémique", IF($J34>1, IF($J34=4, "Inconnu", IF($J34=99, "Surveillance", SUM($N34:$P34))), 0),"Non requis") -> 21490 | U34: 32380 | W34: 2 | X34: 1 | Y34: 1 | Z34: MDA3 (IVM) | AA34: T2 (PZQ) | AH34: 48693 | AI34: DANYI | AK34: 0 | AL34: FALSE | AN34: FALSE | AO34: 2 | AP34: FALSE | AS34: 2 | AT34: TRUE
A35: =IF(INTRO!$E$34<>0,INTRO!$E$34,"") -> Togo | B35: PLATEAUX | C35: EST-MONO | D35: 161145.138 | E35: =IF(INTRO!$E$48="","",ROUND($D35*INTRO!$E$48,0)) -> 25783 | F35: =IF(INTRO!$E$49="","",ROUND($D35*INTRO!$E$49,0)) -> 48344 | G35: =IF(INTRO!$E$50="","",ROUND($D35*INTRO!$E$50,0)) -> 80573 | I35: 1 | J35: 3 | K35: 3 | L35: =IF(INTRO!$E$38="Endémique", IF($H35>0, IF($H35=4,"Inconnu", IF($H35=99,"Interrompu", $D35)), 0),"Non requis") -> Non requis | M35: 137972.8973 | N35: =IF(INTRO!$E$42="Endémique", IF($J35>1, IF($J35=4, "Inconnu", IF($J35=99, "Surveillance", E35)), 0),"Non requis") -> 25783 | O35: =IF(INTRO!$E$42="Endémique", IF($J35>1, IF($J35=4, "Inconnu", IF($J35=99, "Surveillance", F35)), 0),"Non requis") -> 48344 | Q35: =IF(INTRO!$E$42="Endémique", IF($J35>1, IF($J35=4, "Inconnu", IF($J35=99, "Surveillance", SUM($N35:$P35))), 0),"Non requis") -> 74127 | U35: 109213 | W35: 1 | X35: 2 | Y35: 2 | Z35: MDA3 (IVM) | AA35: T2 (PZQ) | AH35: 48694 | AI35: EST MONO | AK35: 3 | AL35: TRUE | AN35: TRUE | AO35: 3 | AP35: TRUE | AS35: 3 | AT35: TRUE
A36: =IF(INTRO!$E$34<>0,INTRO!$E$34,"") -> Togo | B36: PLATEAUX | C36: HAHO | D36: 311913.72 | E36: =IF(INTRO!$E$48="","",ROUND($D36*INTRO!$E$48,0)) -> 49906 | F36: =IF(INTRO!$E$49="","",ROUND($D36*INTRO!$E$49,0)) -> 93574 | G36: =IF(INTRO!$E$50="","",ROUND($D36*INTRO!$E$50,0)) -> 155957 | I36: 1 | J36: 3 | K36: 3 | L36: =IF(INTRO!$E$38="Endémique", IF($H36>0, IF($H36=4,"Inconnu", IF($H36=99,"Interrompu", $D36)), 0),"Non requis") -> Non requis | M36: 248377.1381 | N36: =IF(INTRO!$E$42="Endémique", IF($J36>1, IF($J36=4, "Inconnu", IF($J36=99, "Surveillance", E36)), 0),"Non requis") -> 49906 | O36: =IF(INTRO!$E$42="Endémique", IF($J36>1, IF($J36=4, "Inconnu", IF($J36=99, "Surveillance", F36)), 0),"Non requis") -> 93574 | Q36: =IF(INTRO!$E$42="Endémique", IF($J36>1, IF($J36=4, "Inconnu", IF($J36=99, "Surveillance", SUM($N36:$P36))), 0),"Non requis") -> 143480 | U36: 216650 | W36: 2 | X36: 2 | Y36: 2 | Z36: MDA3 (IVM) | AA36: T2 (PZQ) | AH36: 48695 | AI36: HAHO | AK36: 3 | AL36: TRUE | AN36: TRUE | AO36: 3 | AP36: TRUE | AS36: 3 | AT36: TRUE
A37: =IF(INTRO!$E$34<>0,INTRO!$E$34,"") -> Togo | B37: PLATEAUX | C37: KLOTO | D37: 144877.9068 | E37: =IF(INTRO!$E$48="","",ROUND($D37*INTRO!$E$48,0)) -> 23180 | F37: =IF(INTRO!$E$49="","",ROUND($D37*INTRO!$E$49,0)) -> 43463 | G37: =IF(INTRO!$E$50="","",ROUND($D37*INTRO!$E$50,0)) -> 72439 | I37: 1 | J37: 1 | K37: 2 | L37: =IF(INTRO!$E$38="Endémique", IF($H37>0, IF($H37=4,"Inconnu", IF($H37=99,"Interrompu", $D37)), 0),"Non requis") -> Non requis | M37: 60114.21171 | N37: =IF(INTRO!$E$42="Endémique", IF($J37>1, IF($J37=4, "Inconnu", IF($J37=99, "Surveillance", E37)), 0),"Non requis") -> 0 | O37: =IF(INTRO!$E$42="Endémique", IF($J37>1, IF($J37=4, "Inconnu", IF($J37=99, "Surveillance", F37)), 0),"Non requis") -> 0 | Q37: =IF(INTRO!$E$42="Endémique", IF($J37>1, IF($J37=4, "Inconnu", IF($J37=99, "Surveillance", SUM($N37:$P37))), 0),"Non requis") -> 0 | U37: 89268 | W37: 1 | X37: 1 | Y37: 1 | Z37: MDA3 (IVM) | AA37: T2 (PZQ) | AH37: 48696 | AI37: KLOTO | AK37: 3 | AL37: FALSE | AN37: TRUE | AO37: 3 | AP37: FALSE | AS37: 1 | AT37: TRUE
A38: =IF(INTRO!$E$34<>0,INTRO!$E$34,"") -> Togo | B38: PLATEAUX | C38: KPELE | D38: 84387.4188 | E38: =IF(INTRO!$E$48="","",ROUND($D38*INTRO!$E$48,0)) -> 13502 | F38: =IF(INTRO!$E$49="","",ROUND($D38*INTRO!$E$49,0)) -> 25316 | G38: =IF(INTRO!$E$50="","",ROUND($D38*INTRO!$E$50,0)) -> 42194 | I38: 1 | J38: 3 | K38: 2 | L38: =IF(INTRO!$E$38="Endémique", IF($H38>0, IF($H38=4,"Inconnu", IF($H38=99,"Interrompu", $D38)), 0),"Non requis") -> Non requis | M38: 67833.43727 | N38: =IF(INTRO!$E$42="Endémique", IF($J38>1, IF($J38=4, "Inconnu", IF($J38=99, "Surveillance", E38)), 0),"Non requis") -> 13502 | O38: =IF(INTRO!$E$42="Endémique", IF($J38>1, IF($J38=4, "Inconnu", IF($J38=99, "Surveillance", F38)), 0),"Non requis") -> 25316 | Q38: =IF(INTRO!$E$42="Endémique", IF($J38>1, IF($J38=4, "Inconnu", IF($J38=99, "Surveillance", SUM($N38:$P38))), 0),"Non requis") -> 38818 | U38: 55660 | W38: 1 | X38: 1 | Y38: 2 | Z38: MDA3 (IVM) | AA38: T2 (PZQ) | AH38: 48697 | AI38: KPELE | AK38: 2 | AL38: TRUE | AN38: TRUE | AO38: 2 | AP38: TRUE | AS38: 3 | AT38: TRUE
A39: =IF(INTRO!$E$34<>0,INTRO!$E$34,"") -> Togo | B39: PLATEAUX | C39: MOYEN-MONO | D39: 102645.6324 | E39: =IF(INTRO!$E$48="","",ROUND($D39*INTRO!$E$48,0)) -> 16423 | F39: =IF(INTRO!$E$49="","",ROUND($D39*INTRO!$E$49,0)) -> 30794 | G39: =IF(INTRO!$E$50="","",ROUND($D39*INTRO!$E$50,0)) -> 51323 | I39: 1 | J39: 2 | K39: 2 | L39: =IF(INTRO!$E$38="Endémique", IF($H39>0, IF($H39=4,"Inconnu", IF($H39=99,"Interrompu", $D39)), 0),"Non requis") -> Non requis | M39: 60664.30952 | N39: =IF(INTRO!$E$42="Endémique", IF($J39>1, IF($J39=4, "Inconnu", IF($J39=99, "Surveillance", E39)), 0),"Non requis") -> 16423 | O39: =IF(INTRO!$E$42="Endémique", IF($J39>1, IF($J39=4, "Inconnu", IF($J39=99, "Surveillance", F39)), 0),"Non requis") -> 30794 | Q39: =IF(INTRO!$E$42="Endémique", IF($J39>1, IF($J39=4, "Inconnu", IF($J39=99, "Surveillance", SUM($N39:$P39))), 0),"Non requis") -> 47217 | U39: 71052 | W39: 1 | X39: 1 | Y39: 2 | Z39: MDA3 (IVM) | AA39: T2 (PZQ) | AH39: 48698 | AI39: MOYEN MONO | AK39: 2 | AL39: TRUE | AN39: TRUE | AO39: 2 | AP39: TRUE | AS39: 2 | AT39: TRUE
A40: =IF(INTRO!$E$34<>0,INTRO!$E$34,"") -> Togo | B40: PLATEAUX | C40: OGOU | D40: 249236.8536 | E40: =IF(INTRO!$E$48="","",ROUND($D40*INTRO!$E$48,0)) -> 39878 | F40: =IF(INTRO!$E$49="","",ROUND($D40*INTRO!$E$49,0)) -> 74771 | G40: =IF(INTRO!$E$50="","",ROUND($D40*INTRO!$E$50,0)) -> 124618 | I40: 1 | J40: 3 | K40: 3 | L40: =IF(INTRO!$E$38="Endémique", IF($H40>0, IF($H40=4,"Inconnu", IF($H40=99,"Interrompu", $D40)), 0),"Non requis") -> Non requis | M40: 133874.1579 | N40: =IF(INTRO!$E$42="Endémique", IF($J40>1, IF($J40=4, "Inconnu", IF($J40=99, "Surveillance", E40)), 0),"Non requis") -> 39878 | O40: =IF(INTRO!$E$42="Endémique", IF($J40>1, IF($J40=4, "Inconnu", IF($J40=99, "Surveillance", F40)), 0),"Non requis") -> 74771 | Q40: =IF(INTRO!$E$42="Endémique", IF($J40>1, IF($J40=4, "Inconnu", IF($J40=99, "Surveillance", SUM($N40:$P40))), 0),"Non requis") -> 114649 | U40: 167252 | W40: 2 | X40: 2 | Y40: 2 | Z40: MDA3 (IVM) | AA40: T2 (PZQ) | AH40: 48699 | AI40: OGOU | AK40: 3 | AL40: TRUE | AN40: TRUE | AO40: 3 | AP40: TRUE | AS40: 3 | AT40: TRUE
A41: =IF(INTRO!$E$34<>0,INTRO!$E$34,"") -> Togo | B41: PLATEAUX | C41: WAWA | D41: 128518.1196 | E41: =IF(INTRO!$E$48="","",ROUND($D41*INTRO!$E$48,0)) -> 20563 | F41: =IF(INTRO!$E$49="","",ROUND($D41*INTRO!$E$49,0)) -> 38555 | G41: =IF(INTRO!$E$50="","",ROUND($D41*INTRO!$E$50,0)) -> 64259 | I41: 1 | J41: 2 | K41: 3 | L41: =IF(INTRO!$E$38="Endémique", IF($H41>0, IF($H41=4,"Inconnu", IF($H41=99,"Interrompu", $D41)), 0),"Non requis") -> Non requis | M41: 103920.2314 | N41: =IF(INTRO!$E$42="Endémique", IF($J41>1, IF($J41=4, "Inconnu", IF($J41=99, "Surveillance", E41)), 0),"Non requis") -> 20563 | O41: =IF(INTRO!$E$42="Endémique", IF($J41>1, IF($J41=4, "Inconnu", IF($J41=99, "Surveillance", F41)), 0),"Non requis") -> 38555 | Q41: =IF(INTRO!$E$42="Endémique", IF($J41>1, IF($J41=4, "Inconnu", IF($J41=99, "Surveillance", SUM($N41:$P41))), 0),"Non requis") -> 59118 | U41: 79346 | W41: 1 | X41: 1 | Y41: 2 | Z41: MDA3 (IVM) | AA41: T2 (PZQ) | AH41: 48700 | AI41: WAWA | AK41: 3 | AL41: TRUE | AN41: TRUE | AO41: 3 | AP41: TRUE | AS41: 2 | AT41: TRUE
A42: =IF(INTRO!$E$34<>0,INTRO!$E$34,"") -> Togo | B42: SAVANES | C42: CINKASSE | D42: 95421.1224 | E42: =IF(INTRO!$E$48="","",ROUND($D42*INTRO!$E$48,0)) -> 15267 | F42: =IF(INTRO!$E$49="","",ROUND($D42*INTRO!$E$49,0)) -> 28626 | G42: =IF(INTRO!$E$50="","",ROUND($D42*INTRO!$E$50,0)) -> 47711 | I42: 1 | J42: 1 | K42: 3 | L42: =IF(INTRO!$E$38="Endémique", IF($H42>0, IF($H42=4,"Inconnu", IF($H42=99,"Interrompu", $D42)), 0),"Non requis") -> Non requis | M42: 71293.94652 | N42: =IF(INTRO!$E$42="Endémique", IF($J42>1, IF($J42=4, "Inconnu", IF($J42=99, "Surveillance", E42)), 0),"Non requis") -> 0 | O42: =IF(INTRO!$E$42="Endémique", IF($J42>1, IF($J42=4, "Inconnu", IF($J42=99, "Surveillance", F42)), 0),"Non requis") -> 0 | Q42: =IF(INTRO!$E$42="Endémique", IF($J42>1, IF($J42=4, "Inconnu", IF($J42=99, "Surveillance", SUM($N42:$P42))), 0),"Non requis") -> 0 | U42: 65111 | W42: 1 | X42: 1 | Y42: 2 | Z42: MDA3 (IVM) | AA42: T2 (PZQ) | AH42: 48701 | AI42: CINKASSE | AK42: 3 | AL42: TRUE | AN42: TRUE | AO42: 3 | AP42: TRUE | AS42: 1 | AT42: TRUE
A43: =IF(INTRO!$E$34<>0,INTRO!$E$34,"") -> Togo | B43: SAVANES | C43: KPENDJAL | D43: 83376.5016 | E43: =IF(INTRO!$E$48="","",ROUND($D43*INTRO!$E$48,0)) -> 13340 | F43: =IF(INTRO!$E$49="","",ROUND($D43*INTRO!$E$49,0)) -> 25013 | G43: =IF(INTRO!$E$50="","",ROUND($D43*INTRO!$E$50,0)) -> 41688 | I43: 1 | J43: 2 | K43: 3 | L43: =IF(INTRO!$E$38="Endémique", IF($H43>0, IF($H43=4,"Inconnu", IF($H43=99,"Interrompu", $D43)), 0),"Non requis") -> Non requis | M43: 83377 | N43: =IF(INTRO!$E$42="Endémique", IF($J43>1, IF($J43=4, "Inconnu", IF($J43=99, "Surveillance", E43)), 0),"Non requis") -> 13340 | O43: =IF(INTRO!$E$42="Endémique", IF($J43>1, IF($J43=4, "Inconnu", IF($J43=99, "Surveillance", F43)), 0),"Non requis") -> 25013 | Q43: =IF(INTRO!$E$42="Endémique", IF($J43>1, IF($J43=4, "Inconnu", IF($J43=99, "Surveillance", SUM($N43:$P43))), 0),"Non requis") -> 38353 | U43: 61438 | W43: 2 | X43: 1 | Y43: 2 | Z43: MDA3 (IVM) | AA43: T2 (PZQ) | AH43: 48708 | AI43: KPENDJAL | AK43: 3 | AL43: TRUE | AN43: TRUE | AO43: 3 | AP43: TRUE | AS43: 2 | AT43: TRUE
A44: =IF(INTRO!$E$34<>0,INTRO!$E$34,"") -> Togo | B44: SAVANES | C44: KPENDJAL-OUEST | D44: 127894.9092 | E44: =IF(INTRO!$E$48="","",ROUND($D44*INTRO!$E$48,0)) -> 20463 | F44: =IF(INTRO!$E$49="","",ROUND($D44*INTRO!$E$49,0)) -> 38368 | G44: =IF(INTRO!$E$50="","",ROUND($D44*INTRO!$E$50,0)) -> 63947 | I44: 1 | J44: 2 | K44: 3 | L44: =IF(INTRO!$E$38="Endémique", IF($H44>0, IF($H44=4,"Inconnu", IF($H44=99,"Interrompu", $D44)), 0),"Non requis") -> Non requis | M44: 127895 | N44: =IF(INTRO!$E$42="Endémique", IF($J44>1, IF($J44=4, "Inconnu", IF($J44=99, "Surveillance", E44)), 0),"Non requis") -> 20463 | O44: =IF(INTRO!$E$42="Endémique", IF($J44>1, IF($J44=4, "Inconnu", IF($J44=99, "Surveillance", F44)), 0),"Non requis") -> 38368 | Q44: =IF(INTRO!$E$42="Endémique", IF($J44>1, IF($J44=4, "Inconnu", IF($J44=99, "Surveillance", SUM($N44:$P44))), 0),"Non requis") -> 58831 | U44: 90242 | W44: 2 | X44: 1 | Y44: 2 | Z44: MDA3 (IVM) | AA44: T2 (PZQ) | AH44: 48709 | AI44: KPENDJAL-OUEST | AK44: 2 | AL44: FALSE | AN44: FALSE | AO44: 3 | AP44: TRUE | AS44: 2 | AT44: TRUE
A45: =IF(INTRO!$E$34<>0,INTRO!$E$34,"") -> Togo | B45: SAVANES | C45: OTI | D45: 123763.8264 | E45: =IF(INTRO!$E$48="","",ROUND($D45*INTRO!$E$48,0)) -> 19802 | F45: =IF(INTRO!$E$49="","",ROUND($D45*INTRO!$E$49,0)) -> 37129 | G45: =IF(INTRO!$E$50="","",ROUND($D45*INTRO!$E$50,0)) -> 61882 | I45: 1 | J45: 2 | K45: 2 | L45: =IF(INTRO!$E$38="Endémique", IF($H45>0, IF($H45=4,"Inconnu", IF($H45=99,"Interrompu", $D45)), 0),"Non requis") -> Non requis | M45: 81780.84152 | N45: =IF(INTRO!$E$42="Endémique", IF($J45>1, IF($J45=4, "Inconnu", IF($J45=99, "Surveillance", E45)), 0),"Non requis") -> 19802 | O45: =IF(INTRO!$E$42="Endémique", IF($J45>1, IF($J45=4, "Inconnu", IF($J45=99, "Surveillance", F45)), 0),"Non requis") -> 37129 | Q45: =IF(INTRO!$E$42="Endémique", IF($J45>1, IF($J45=4, "Inconnu", IF($J45=99, "Surveillance", SUM($N45:$P45))), 0),"Non requis") -> 56931 | U45: 84145 | W45: 2 | X45: 2 | Y45: 1 | Z45: MDA3 (IVM) | AA45: T2 (PZQ) | AH45: 48710 | AI45: OTI | AK45: 2 | AL45: TRUE | AN45: TRUE | AO45: 2 | AP45: TRUE | AS45: 2 | AT45: TRUE
A46: =IF(INTRO!$E$34<>0,INTRO!$E$34,"") -> Togo | B46: SAVANES | C46: OTI-SUD | D46: 132914.5296 | E46: =IF(INTRO!$E$48="","",ROUND($D46*INTRO!$E$48,0)) -> 21266 | F46: =IF(INTRO!$E$49="","",ROUND($D46*INTRO!$E$49,0)) -> 39874 | G46: =IF(INTRO!$E$50="","",ROUND($D46*INTRO!$E$50,0)) -> 66457 | I46: 1 | J46: 2 | K46: 2 | L46: =IF(INTRO!$E$38="Endémique", IF($H46>0, IF($H46=4,"Inconnu", IF($H46=99,"Interrompu", $D46)), 0),"Non requis") -> Non requis | M46: 123070.7762 | N46: =IF(INTRO!$E$42="Endémique", IF($J46>1, IF($J46=4, "Inconnu", IF($J46=99, "Surveillance", E46)), 0),"Non requis") -> 21266 | O46: =IF(INTRO!$E$42="Endémique", IF($J46>1, IF($J46=4, "Inconnu", IF($J46=99, "Surveillance", F46)), 0),"Non requis") -> 39874 | Q46: =IF(INTRO!$E$42="Endémique", IF($J46>1, IF($J46=4, "Inconnu", IF($J46=99, "Surveillance", SUM($N46:$P46))), 0),"Non requis") -> 61140 | U46: 108949 | W46: 2 | X46: 2 | Y46: 1 | Z46: MDA3 (IVM) | AA46: T2 (PZQ) | AH46: 48711 | AI46: OTI-SUD | AK46: 2 | AL46: TRUE | AN46: TRUE | AO46: 2 | AP46: TRUE | AS46: 2 | AT46: TRUE
A47: =IF(INTRO!$E$34<>0,INTRO!$E$34,"") -> Togo | B47: SAVANES | C47: TANDJOUARE | D47: 160932.2592 | E47: =IF(INTRO!$E$48="","",ROUND($D47*INTRO!$E$48,0)) -> 25749 | F47: =IF(INTRO!$E$49="","",ROUND($D47*INTRO!$E$49,0)) -> 48280 | G47: =IF(INTRO!$E$50="","",ROUND($D47*INTRO!$E$50,0)) -> 80466 | I47: 1 | J47: 2 | K47: 1 | L47: =IF(INTRO!$E$38="Endémique", IF($H47>0, IF($H47=4,"Inconnu", IF($H47=99,"Interrompu", $D47)), 0),"Non requis") -> Non requis | M47: 160709.9023 | N47: =IF(INTRO!$E$42="Endémique", IF($J47>1, IF($J47=4, "Inconnu", IF($J47=99, "Surveillance", E47)), 0),"Non requis") -> 25749 | O47: =IF(INTRO!$E$42="Endémique", IF($J47>1, IF($J47=4, "Inconnu", IF($J47=99, "Surveillance", F47)), 0),"Non requis") -> 48280 | Q47: =IF(INTRO!$E$42="Endémique", IF($J47>1, IF($J47=4, "Inconnu", IF($J47=99, "Surveillance", SUM($N47:$P47))), 0),"Non requis") -> 74029 | U47: 223360 | W47: 1 | X47: 2 | Y47: 1 | Z47: MDA3 (IVM) | AA47: T2 (PZQ) | AH47: 48704 | AI47: TANDJOARE | AK47: 1 | AL47: TRUE | AN47: TRUE | AO47: 1 | AP47: TRUE | AS47: 2 | AT47: TRUE
A48: =IF(INTRO!$E$34<>0,INTRO!$E$34,"") -> Togo | B48: SAVANES | C48: TONE | D48: 358792.3056 | E48: =IF(INTRO!$E$48="","",ROUND($D48*INTRO!$E$48,0)) -> 57407 | F48: =IF(INTRO!$E$49="","",ROUND($D48*INTRO!$E$49,0)) -> 107638 | G48: =IF(INTRO!$E$50="","",ROUND($D48*INTRO!$E$50,0)) -> 179396 | I48: 1 | J48: 2 | K48: 2 | L48: =IF(INTRO!$E$38="Endémique", IF($H48>0, IF($H48=4,"Inconnu", IF($H48=99,"Interrompu", $D48)), 0),"Non requis") -> Non requis | M48: 291202.4739 | N48: =IF(INTRO!$E$42="Endémique", IF($J48>1, IF($J48=4, "Inconnu", IF($J48=99, "Surveillance", E48)), 0),"Non requis") -> 57407 | O48: =IF(INTRO!$E$42="Endémique", IF($J48>1, IF($J48=4, "Inconnu", IF($J48=99, "Surveillance", F48)), 0),"Non requis") -> 107638 | Q48: =IF(INTRO!$E$42="Endémique", IF($J48>1, IF($J48=4, "Inconnu", IF($J48=99, "Surveillance", SUM($N48:$P48))), 0),"Non requis") -> 165045 | U48: 100424 | W48: 1 | X48: 1 | Y48: 1 | Z48: MDA3 (IVM) | AA48: T2 (PZQ) | AH48: 48705 | AI48: TONE | AK48: 2 | AL48: TRUE | AN48: TRUE | AO48: 2 | AP48: TRUE | AS48: 2 | AT48: TRUE

Sheet MDA1 (hidden)
A1: MDA 1 - Ivermectine (IVM) et Albendazole (ALB)
A2: Structure administrative, population nécessitant une chimioprévention par groupe d'âge, population traitée par groupe d'âge et couverture
A4: TOTAL | G4: =SUBTOTAL(9,G$10:G$1010) -> 0 | H4: 0 | I4: 0 | K4: =SUBTOTAL(9,K$10:K$1010) -> 0 | L4: 0 | M4: 0 | O4: =IF(G4<>0, IF(K4/G4*100=0, "-", K4/G4*100), " ") ->  | P4: =IF(H4<>0, IF(L4/H4*100=0, "-", L4/H4*100), " ") ->  | Q4: =IF(I4<>0, IF(M4/I4*100=0, "-", M4/I4*100), " ") -> 
A6: Structure administrative du pays | D6: Mise en oeuvre de la CP | E6: Date | F6: Population ciblée pour MDA 1 | J6: Population traitée | N6: Couverture du Programme (%)
A7: Pays | B7: Région/Département | C7: District | F7: EAPréS | G7: EAS | H7: Adultes | I7: Total | J7: EAPréS | K7: EAS | L7: Adultes | M7: Total | N7: EAPréS | O7: EAS | P7: Adultes | Q7: Total
A10: =IF(COUNTRY_INFO!A10=0," ",COUNTRY_INFO!A10) -> Togo | B10: =IF(COUNTRY_INFO!B10=0," ",COUNTRY_INFO!B10) -> CENTRALE | C10: =IF(COUNTRY_INFO!C10=0," ",COUNTRY_INFO!C10) -> BLITTA | D10: =IF(COUNTRY_INFO!$Z10="MDA1 (IVM+ALB)", COUNTRY_INFO!$Z10, " ") ->  | I10: =SUM(F10:H10) -> 0 | M10: =SUM(J10:L10) -> 0 | O10: =IF(G10<>0, IF(K10/G10*100=0, "-", K10/G10*100), " ") ->  | P10: =IF(H10<>0, IF(L10/H10*100=0, "-", L10/H10*100), " ") -> 
A11: =IF(COUNTRY_INFO!A11=0," ",COUNTRY_INFO!A11) -> Togo | B11: =IF(COUNTRY_INFO!B11=0," ",COUNTRY_INFO!B11) -> CENTRALE | C11: =IF(COUNTRY_INFO!C11=0," ",COUNTRY_INFO!C11) -> MÔ | D11: =IF(COUNTRY_INFO!$Z11="MDA1 (IVM+ALB)", COUNTRY_INFO!$Z11, " ") ->  | I11: =SUM(F11:H11) -> 0 | M11: =SUM(J11:L11) -> 0 | O11: =IF(G11<>0, IF(K11/G11*100=0, "-", K11/G11*100), " ") ->  | P11: =IF(H11<>0, IF(L11/H11*100=0, "-", L11/H11*100), " ") ->  | Q11: =IF(I11<>0, IF(M11/I11*100=0, "-", M11/I11*100), " ") -> 
A12: =IF(COUNTRY_INFO!A12=0," ",COUNTRY_INFO!A12) -> Togo | B12: =IF(COUNTRY_INFO!B12=0," ",COUNTRY_INFO!B12) -> CENTRALE | C12: =IF(COUNTRY_INFO!C12=0," ",COUNTRY_INFO!C12) -> SOTOUBOUA | D12: =IF(COUNTRY_INFO!$Z12="MDA1 (IVM+ALB)", COUNTRY_INFO!$Z12, " ") ->  | I12: 0 | M12: 0
A13: =IF(COUNTRY_INFO!A13=0," ",COUNTRY_INFO!A13) -> Togo | B13: =IF(COUNTRY_INFO!B13=0," ",COUNTRY_INFO!B13) -> CENTRALE | C13: =IF(COUNTRY_INFO!C13=0," ",COUNTRY_INFO!C13) -> TCHAMBA | D13: =IF(COUNTRY_INFO!$Z13="MDA1 (IVM+ALB)", COUNTRY_INFO!$Z13, " ") ->  | I13: 0 | M13: 0
A14: =IF(COUNTRY_INFO!A14=0," ",COUNTRY_INFO!A14) -> Togo | B14: =IF(COUNTRY_INFO!B14=0," ",COUNTRY_INFO!B14) -> CENTRALE | C14: =IF(COUNTRY_INFO!C14=0," ",COUNTRY_INFO!C14) -> TCHAOUDJO | D14: =IF(COUNTRY_INFO!$Z14="MDA1 (IVM+ALB)", COUNTRY_INFO!$Z14, " ") ->  | I14: 0 | M14: 0
A15: =IF(COUNTRY_INFO!A15=0," ",COUNTRY_INFO!A15) -> Togo | B15: =IF(COUNTRY_INFO!B15=0," ",COUNTRY_INFO!B15) -> GRAND-LOME | C15: =IF(COUNTRY_INFO!C15=0," ",COUNTRY_INFO!C15) -> AGOE NYIVE | D15: =IF(COUNTRY_INFO!$Z15="MDA1 (IVM+ALB)", COUNTRY_INFO!$Z15, " ") ->  | I15: 0 | M15: 0
A16: =IF(COUNTRY_INFO!A16=0," ",COUNTRY_INFO!A16) -> Togo | B16: =IF(COUNTRY_INFO!B16=0," ",COUNTRY_INFO!B16) -> GRAND-LOME | C16: =IF(COUNTRY_INFO!C16=0," ",COUNTRY_INFO!C16) -> GOLFE | D16: =IF(COUNTRY_INFO!$Z16="MDA1 (IVM+ALB)", COUNTRY_INFO!$Z16, " ") ->  | I16: 0 | M16: 0
A17: =IF(COUNTRY_INFO!A17=0," ",COUNTRY_INFO!A17) -> Togo | B17: =IF(COUNTRY_INFO!B17=0," ",COUNTRY_INFO!B17) -> KARA | C17: =IF(COUNTRY_INFO!C17=0," ",COUNTRY_INFO!C17) -> ASSOLI | D17: =IF(COUNTRY_INFO!$Z17="MDA1 (IVM+ALB)", COUNTRY_INFO!$Z17, " ") ->  | I17: 0 | M17: 0
A18: =IF(COUNTRY_INFO!A18=0," ",COUNTRY_INFO!A18) -> Togo | B18: =IF(COUNTRY_INFO!B18=0," ",COUNTRY_INFO!B18) -> KARA | C18: =IF(COUNTRY_INFO!C18=0," ",COUNTRY_INFO!C18) -> BASSAR | D18: =IF(COUNTRY_INFO!$Z18="MDA1 (IVM+ALB)", COUNTRY_INFO!$Z18, " ") ->  | I18: 0 | M18: 0
A19: =IF(COUNTRY_INFO!A19=0," ",COUNTRY_INFO!A19) -> Togo | B19: =IF(COUNTRY_INFO!B19=0," ",COUNTRY_INFO!B19) -> KARA | C19: =IF(COUNTRY_INFO!C19=0," ",COUNTRY_INFO!C19) -> BINAH | D19: =IF(COUNTRY_INFO!$Z19="MDA1 (IVM+ALB)", COUNTRY_INFO!$Z19, " ") ->  | I19: 0 | M19: 0
A20: =IF(COUNTRY_INFO!A20=0," ",COUNTRY_INFO!A20) -> Togo | B20: =IF(COUNTRY_INFO!B20=0," ",COUNTRY_INFO!B20) -> KARA | C20: =IF(COUNTRY_INFO!C20=0," ",COUNTRY_INFO!C20) -> DANKPEN | D20: =IF(COUNTRY_INFO!$Z20="MDA1 (IVM+ALB)", COUNTRY_INFO!$Z20, " ") ->  | I20: 0 | M20: 0
A21: =IF(COUNTRY_INFO!A21=0," ",COUNTRY_INFO!A21) -> Togo | B21: =IF(COUNTRY_INFO!B21=0," ",COUNTRY_INFO!B21) -> KARA | C21: =IF(COUNTRY_INFO!C21=0," ",COUNTRY_INFO!C21) -> DOUFELGOU | D21: =IF(COUNTRY_INFO!$Z21="MDA1 (IVM+ALB)", COUNTRY_INFO!$Z21, " ") ->  | I21: 0 | M21: 0
A22: =IF(COUNTRY_INFO!A22=0," ",COUNTRY_INFO!A22) -> Togo | B22: =IF(COUNTRY_INFO!B22=0," ",COUNTRY_INFO!B22) -> KARA | C22: =IF(COUNTRY_INFO!C22=0," ",COUNTRY_INFO!C22) -> KERAN | D22: =IF(COUNTRY_INFO!$Z22="MDA1 (IVM+ALB)", COUNTRY_INFO!$Z22, " ") ->  | I22: 0 | M22: 0
A23: =IF(COUNTRY_INFO!A23=0," ",COUNTRY_INFO!A23) -> Togo | B23: =IF(COUNTRY_INFO!B23=0," ",COUNTRY_INFO!B23) -> KARA | C23: =IF(COUNTRY_INFO!C23=0," ",COUNTRY_INFO!C23) -> KOZAH | D23: =IF(COUNTRY_INFO!$Z23="MDA1 (IVM+ALB)", COUNTRY_INFO!$Z23, " ") ->  | I23: 0 | M23: 0
A24: =IF(COUNTRY_INFO!A24=0," ",COUNTRY_INFO!A24) -> Togo | B24: =IF(COUNTRY_INFO!B24=0," ",COUNTRY_INFO!B24) -> MARITIME | C24: =IF(COUNTRY_INFO!C24=0," ",COUNTRY_INFO!C24) -> AVE | D24: =IF(COUNTRY_INFO!$Z24="MDA1 (IVM+ALB)", COUNTRY_INFO!$Z24, " ") ->  | I24: 0 | M24: 0
A25: =IF(COUNTRY_INFO!A25=0," ",COUNTRY_INFO!A25) -> Togo | B25: =IF(COUNTRY_INFO!B25=0," ",COUNTRY_INFO!B25) -> MARITIME | C25: =IF(COUNTRY_INFO!C25=0," ",COUNTRY_INFO!C25) -> BAS-MONO | D25: =IF(COUNTRY_INFO!$Z25="MDA1 (IVM+ALB)", COUNTRY_INFO!$Z25, " ") ->  | I25: 0 | M25: 0
A26: =IF(COUNTRY_INFO!A26=0," ",COUNTRY_INFO!A26) -> Togo | B26: =IF(COUNTRY_INFO!B26=0," ",COUNTRY_INFO!B26) -> MARITIME | C26: =IF(COUNTRY_INFO!C26=0," ",COUNTRY_INFO!C26) -> LACS | D26: =IF(COUNTRY_INFO!$Z26="MDA1 (IVM+ALB)", COUNTRY_INFO!$Z26, " ") ->  | I26: 0 | M26: 0
A27: =IF(COUNTRY_INFO!A27=0," ",COUNTRY_INFO!A27) -> Togo | B27: =IF(COUNTRY_INFO!B27=0," ",COUNTRY_INFO!B27) -> MARITIME | C27: =IF(COUNTRY_INFO!C27=0," ",COUNTRY_INFO!C27) -> VO | D27: =IF(COUNTRY_INFO!$Z27="MDA1 (IVM+ALB)", COUNTRY_INFO!$Z27, " ") ->  | I27: 0 | M27: 0
A28: =IF(COUNTRY_INFO!A28=0," ",COUNTRY_INFO!A28) -> Togo | B28: =IF(COUNTRY_INFO!B28=0," ",COUNTRY_INFO!B28) -> MARITIME | C28: =IF(COUNTRY_INFO!C28=0," ",COUNTRY_INFO!C28) -> YOTO | D28: =IF(COUNTRY_INFO!$Z28="MDA1 (IVM+ALB)", COUNTRY_INFO!$Z28, " ") ->  | I28: 0 | M28: 0
A29: =IF(COUNTRY_INFO!A29=0," ",COUNTRY_INFO!A29) -> Togo | B29: =IF(COUNTRY_INFO!B29=0," ",COUNTRY_INFO!B29) -> MARITIME | C29: =IF(COUNTRY_INFO!C29=0," ",COUNTRY_INFO!C29) -> ZIO | D29: =IF(COUNTRY_INFO!$Z29="MDA1 (IVM+ALB)", COUNTRY_INFO!$Z29, " ") ->  | I29: 0 | M29: 0
A30: =IF(COUNTRY_INFO!A30=0," ",COUNTRY_INFO!A30) -> Togo | B30: =IF(COUNTRY_INFO!B30=0," ",COUNTRY_INFO!B30) -> PLATEAUX | C30: =IF(COUNTRY_INFO!C30=0," ",COUNTRY_INFO!C30) -> AGOU | D30: =IF(COUNTRY_INFO!$Z30="MDA1 (IVM+ALB)", COUNTRY_INFO!$Z30, " ") ->  | I30: 0 | M30: 0
A31: =IF(COUNTRY_INFO!A31=0," ",COUNTRY_INFO!A31) -> Togo | B31: =IF(COUNTRY_INFO!B31=0," ",COUNTRY_INFO!B31) -> PLATEAUX | C31: =IF(COUNTRY_INFO!C31=0," ",COUNTRY_INFO!C31) -> AKEBOU | D31: =IF(COUNTRY_INFO!$Z31="MDA1 (IVM+ALB)", COUNTRY_INFO!$Z31, " ") ->  | I31: 0 | M31: 0
A32: =IF(COUNTRY_INFO!A32=0," ",COUNTRY_INFO!A32) -> Togo | B32: =IF(COUNTRY_INFO!B32=0," ",COUNTRY_INFO!B32) -> PLATEAUX | C32: =IF(COUNTRY_INFO!C32=0," ",COUNTRY_INFO!C32) -> AMOU | D32: =IF(COUNTRY_INFO!$Z32="MDA1 (IVM+ALB)", COUNTRY_INFO!$Z32, " ") ->  | I32: 0 | M32: 0
A33: =IF(COUNTRY_INFO!A33=0," ",COUNTRY_INFO!A33) -> Togo | B33: =IF(COUNTRY_INFO!B33=0," ",COUNTRY_INFO!B33) -> PLATEAUX | C33: =IF(COUNTRY_INFO!C33=0," ",COUNTRY_INFO!C33) -> ANIE | D33: =IF(COUNTRY_INFO!$Z33="MDA1 (IVM+ALB)", COUNTRY_INFO!$Z33, " ") ->  | I33: 0 | M33: 0
A34: =IF(COUNTRY_INFO!A34=0," ",COUNTRY_INFO!A34) -> Togo | B34: =IF(COUNTRY_INFO!B34=0," ",COUNTRY_INFO!B34) -> PLATEAUX | C34: =IF(COUNTRY_INFO!C34=0," ",COUNTRY_INFO!C34) -> DANYI | D34: =IF(COUNTRY_INFO!$Z34="MDA1 (IVM+ALB)", COUNTRY_INFO!$Z34, " ") ->  | I34: 0 | M34: 0
A35: =IF(COUNTRY_INFO!A35=0," ",COUNTRY_INFO!A35) -> Togo | B35: =IF(COUNTRY_INFO!B35=0," ",COUNTRY_INFO!B35) -> PLATEAUX | C35: =IF(COUNTRY_INFO!C35=0," ",COUNTRY_INFO!C35) -> EST-MONO | D35: =IF(COUNTRY_INFO!$Z35="MDA1 (IVM+ALB)", COUNTRY_INFO!$Z35, " ") ->  | I35: 0 | M35: 0
A36: =IF(COUNTRY_INFO!A36=0," ",COUNTRY_INFO!A36) -> Togo | B36: =IF(COUNTRY_INFO!B36=0," ",COUNTRY_INFO!B36) -> PLATEAUX | C36: =IF(COUNTRY_INFO!C36=0," ",COUNTRY_INFO!C36) -> HAHO | D36: =IF(COUNTRY_INFO!$Z36="MDA1 (IVM+ALB)", COUNTRY_INFO!$Z36, " ") ->  | I36: 0 | M36: 0
A37: =IF(COUNTRY_INFO!A37=0," ",COUNTRY_INFO!A37) -> Togo | B37: =IF(COUNTRY_INFO!B37=0," ",COUNTRY_INFO!B37) -> PLATEAUX | C37: =IF(COUNTRY_INFO!C37=0," ",COUNTRY_INFO!C37) -> KLOTO | D37: =IF(COUNTRY_INFO!$Z37="MDA1 (IVM+ALB)", COUNTRY_INFO!$Z37, " ") ->  | I37: 0 | M37: 0
A38: =IF(COUNTRY_INFO!A38=0," ",COUNTRY_INFO!A38) -> Togo | B38: =IF(COUNTRY_INFO!B38=0," ",COUNTRY_INFO!B38) -> PLATEAUX | C38: =IF(COUNTRY_INFO!C38=0," ",COUNTRY_INFO!C38) -> KPELE | D38: =IF(COUNTRY_INFO!$Z38="MDA1 (IVM+ALB)", COUNTRY_INFO!$Z38, " ") ->  | I38: 0 | M38: 0
A39: =IF(COUNTRY_INFO!A39=0," ",COUNTRY_INFO!A39) -> Togo | B39: =IF(COUNTRY_INFO!B39=0," ",COUNTRY_INFO!B39) -> PLATEAUX | C39: =IF(COUNTRY_INFO!C39=0," ",COUNTRY_INFO!C39) -> MOYEN-MONO | D39: =IF(COUNTRY_INFO!$Z39="MDA1 (IVM+ALB)", COUNTRY_INFO!$Z39, " ") ->  | I39: 0 | M39: 0
A40: =IF(COUNTRY_INFO!A40=0," ",COUNTRY_INFO!A40) -> Togo | B40: =IF(COUNTRY_INFO!B40=0," ",COUNTRY_INFO!B40) -> PLATEAUX | C40: =IF(COUNTRY_INFO!C40=0," ",COUNTRY_INFO!C40) -> OGOU | D40: =IF(COUNTRY_INFO!$Z40="MDA1 (IVM+ALB)", COUNTRY_INFO!$Z40, " ") ->  | I40: 0 | M40: 0
A41: =IF(COUNTRY_INFO!A41=0," ",COUNTRY_INFO!A41) -> Togo | B41: =IF(COUNTRY_INFO!B41=0," ",COUNTRY_INFO!B41) -> PLATEAUX | C41: =IF(COUNTRY_INFO!C41=0," ",COUNTRY_INFO!C41) -> WAWA | D41: =IF(COUNTRY_INFO!$Z41="MDA1 (IVM+ALB)", COUNTRY_INFO!$Z41, " ") ->  | I41: 0 | M41: 0
A42: =IF(COUNTRY_INFO!A42=0," ",COUNTRY_INFO!A42) -> Togo | B42: =IF(COUNTRY_INFO!B42=0," ",COUNTRY_INFO!B42) -> SAVANES | C42: =IF(COUNTRY_INFO!C42=0," ",COUNTRY_INFO!C42) -> CINKASSE | D42: =IF(COUNTRY_INFO!$Z42="MDA1 (IVM+ALB)", COUNTRY_INFO!$Z42, " ") ->  | I42: 0 | M42: 0
A43: =IF(COUNTRY_INFO!A43=0," ",COUNTRY_INFO!A43) -> Togo | B43: =IF(COUNTRY_INFO!B43=0," ",COUNTRY_INFO!B43) -> SAVANES | C43: =IF(COUNTRY_INFO!C43=0," ",COUNTRY_INFO!C43) -> KPENDJAL | D43: =IF(COUNTRY_INFO!$Z43="MDA1 (IVM+ALB)", COUNTRY_INFO!$Z43, " ") ->  | I43: 0 | M43: 0
A44: =IF(COUNTRY_INFO!A44=0," ",COUNTRY_INFO!A44) -> Togo | B44: =IF(COUNTRY_INFO!B44=0," ",COUNTRY_INFO!B44) -> SAVANES | C44: =IF(COUNTRY_INFO!C44=0," ",COUNTRY_INFO!C44) -> KPENDJAL-OUEST | D44: =IF(COUNTRY_INFO!$Z44="MDA1 (IVM+ALB)", COUNTRY_INFO!$Z44, " ") ->  | I44: 0 | M44: 0
A45: =IF(COUNTRY_INFO!A45=0," ",COUNTRY_INFO!A45) -> Togo | B45: =IF(COUNTRY_INFO!B45=0," ",COUNTRY_INFO!B45) -> SAVANES | C45: =IF(COUNTRY_INFO!C45=0," ",COUNTRY_INFO!C45) -> OTI | D45: =IF(COUNTRY_INFO!$Z45="MDA1 (IVM+ALB)", COUNTRY_INFO!$Z45, " ") ->  | I45: 0 | M45: 0
A46: =IF(COUNTRY_INFO!A46=0," ",COUNTRY_INFO!A46) -> Togo | B46: =IF(COUNTRY_INFO!B46=0," ",COUNTRY_INFO!B46) -> SAVANES | C46: =IF(COUNTRY_INFO!C46=0," ",COUNTRY_INFO!C46) -> OTI-SUD | D46: =IF(COUNTRY_INFO!$Z46="MDA1 (IVM+ALB)", COUNTRY_INFO!$Z46, " ") ->  | I46: 0 | M46: 0
A47: =IF(COUNTRY_INFO!A47=0," ",COUNTRY_INFO!A47) -> Togo | B47: =IF(COUNTRY_INFO!B47=0," ",COUNTRY_INFO!B47) -> SAVANES | C47: =IF(COUNTRY_INFO!C47=0," ",COUNTRY_INFO!C47) -> TANDJOUARE | D47: =IF(COUNTRY_INFO!$Z47="MDA1 (IVM+ALB)", COUNTRY_INFO!$Z47, " ") ->  | I47: 0 | M47: 0
A48: =IF(COUNTRY_INFO!A48=0," ",COUNTRY_INFO!A48) -> Togo | B48: =IF(COUNTRY_INFO!B48=0," ",COUNTRY_INFO!B48) -> SAVANES | C48: =IF(COUNTRY_INFO!C48=0," ",COUNTRY_INFO!C48) -> TONE | D48: =IF(COUNTRY_INFO!$Z48="MDA1 (IVM+ALB)", COUNTRY_INFO!$Z48, " ") ->  | I48: 0 | M48: 0

Sheet MDA2 (hidden)
A1: MDA 2 - Diethylcarbamazine (DEC) + Albendazole (ALB)
A2: Structure administrative, population nécessitant une chimioprévention par groupe d'âge, population traitée par groupe d'âge et couverture
A4: TOTAL | F4: =SUBTOTAL(9,F$10:F$1010) -> 0 | G4: 0 | H4: 0 | I4: 0 | J4: 0 | K4: 0 | L4: 0 | M4: 0 | N4: =IF(F4<>0, IF(J4/F4*100=0, "-", J4/F4*100), " ") ->  | O4: =IF(G4<>0, IF(K4/G4*100=0, "-", K4/G4*100), " ") ->  | P4: =IF(H4<>0, IF(L4/H4*100=0, "-", L4/H4*100), " ") ->  | Q4: =IF(I4<>0, IF(M4/I4*100=0, "-", M4/I4*100), " ") -> 
A6: Structure administrative du pays | D6: Mise en oeuvre de la CP | E6: Date | F6: Population ciblée pour MDA 2 | J6: Population traitée | N6: Couverture du Programme (%)
A7: Pays | B7: Région/Département | C7: District | F7: EAPréS | G7: EAS | H7: Adultes | I7: Total | J7: EAPréS | K7: EAS | L7: Adultes | M7: Total | N7: EAPréS | O7: EAS | P7: Adultes | Q7: Total
A10: =IF(COUNTRY_INFO!A10=0," ",COUNTRY_INFO!A10) -> Togo | B10: =IF(COUNTRY_INFO!B10=0," ",COUNTRY_INFO!B10) -> CENTRALE | C10: =IF(COUNTRY_INFO!C10=0," ",COUNTRY_INFO!C10) -> BLITTA | D10: =IF(COUNTRY_INFO!$Z10="MDA2 (DEC+ALB)", COUNTRY_INFO!$Z10, " ") ->  | I10: =SUM(F10:H10) -> 0 | M10: =SUM(J10:L10) -> 0 | N10: =IF(F10<>0, IF(J10/F10*100=0, "-", J10/F10*100), " ") ->  | O10: =IF(G10<>0, IF(K10/G10*100=0, "-", K10/G10*100), " ") -> 
A11: =IF(COUNTRY_INFO!A11=0," ",COUNTRY_INFO!A11) -> Togo | B11: =IF(COUNTRY_INFO!B11=0," ",COUNTRY_INFO!B11) -> CENTRALE | C11: =IF(COUNTRY_INFO!C11=0," ",COUNTRY_INFO!C11) -> MÔ | D11: =IF(COUNTRY_INFO!$Z11="MDA2 (DEC+ALB)", COUNTRY_INFO!$Z11, " ") ->  | I11: =SUM(F11:H11) -> 0 | M11: =SUM(J11:L11) -> 0 | N11: =IF(F11<>0, IF(J11/F11*100=0, "-", J11/F11*100), " ") ->  | O11: =IF(G11<>0, IF(K11/G11*100=0, "-", K11/G11*100), " ") ->  | P11: =IF(H11<>0, IF(L11/H11*100=0, "-", L11/H11*100), " ") ->  | Q11: =IF(I11<>0, IF(M11/I11*100=0, "-", M11/I11*100), " ") -> 
A12: =IF(COUNTRY_INFO!A12=0," ",COUNTRY_INFO!A12) -> Togo | B12: =IF(COUNTRY_INFO!B12=0," ",COUNTRY_INFO!B12) -> CENTRALE | C12: =IF(COUNTRY_INFO!C12=0," ",COUNTRY_INFO!C12) -> SOTOUBOUA | D12: =IF(COUNTRY_INFO!$Z12="MDA2 (DEC+ALB)", COUNTRY_INFO!$Z12, " ") ->  | I12: 0 | M12: 0
A13: =IF(COUNTRY_INFO!A13=0," ",COUNTRY_INFO!A13) -> Togo | B13: =IF(COUNTRY_INFO!B13=0," ",COUNTRY_INFO!B13) -> CENTRALE | C13: =IF(COUNTRY_INFO!C13=0," ",COUNTRY_INFO!C13) -> TCHAMBA | D13: =IF(COUNTRY_INFO!$Z13="MDA2 (DEC+ALB)", COUNTRY_INFO!$Z13, " ") ->  | I13: 0 | M13: 0
A14: =IF(COUNTRY_INFO!A14=0," ",COUNTRY_INFO!A14) -> Togo | B14: =IF(COUNTRY_INFO!B14=0," ",COUNTRY_INFO!B14) -> CENTRALE | C14: =IF(COUNTRY_INFO!C14=0," ",COUNTRY_INFO!C14) -> TCHAOUDJO | D14: =IF(COUNTRY_INFO!$Z14="MDA2 (DEC+ALB)", COUNTRY_INFO!$Z14, " ") ->  | I14: 0 | M14: 0
A15: =IF(COUNTRY_INFO!A15=0," ",COUNTRY_INFO!A15) -> Togo | B15: =IF(COUNTRY_INFO!B15=0," ",COUNTRY_INFO!B15) -> GRAND-LOME | C15: =IF(COUNTRY_INFO!C15=0," ",COUNTRY_INFO!C15) -> AGOE NYIVE | D15: =IF(COUNTRY_INFO!$Z15="MDA2 (DEC+ALB)", COUNTRY_INFO!$Z15, " ") ->  | I15: 0 | M15: 0
A16: =IF(COUNTRY_INFO!A16=0," ",COUNTRY_INFO!A16) -> Togo | B16: =IF(COUNTRY_INFO!B16=0," ",COUNTRY_INFO!B16) -> GRAND-LOME | C16: =IF(COUNTRY_INFO!C16=0," ",COUNTRY_INFO!C16) -> GOLFE | D16: =IF(COUNTRY_INFO!$Z16="MDA2 (DEC+ALB)", COUNTRY_INFO!$Z16, " ") ->  | I16: 0 | M16: 0
A17: =IF(COUNTRY_INFO!A17=0," ",COUNTRY_INFO!A17) -> Togo | B17: =IF(COUNTRY_INFO!B17=0," ",COUNTRY_INFO!B17) -> KARA | C17: =IF(COUNTRY_INFO!C17=0," ",COUNTRY_INFO!C17) -> ASSOLI | D17: =IF(COUNTRY_INFO!$Z17="MDA2 (DEC+ALB)", COUNTRY_INFO!$Z17, " ") ->  | I17: 0 | M17: 0
A18: =IF(COUNTRY_INFO!A18=0," ",COUNTRY_INFO!A18) -> Togo | B18: =IF(COUNTRY_INFO!B18=0," ",COUNTRY_INFO!B18) -> KARA | C18: =IF(COUNTRY_INFO!C18=0," ",COUNTRY_INFO!C18) -> BASSAR | D18: =IF(COUNTRY_INFO!$Z18="MDA2 (DEC+ALB)", COUNTRY_INFO!$Z18, " ") ->  | I18: 0 | M18: 0
A19: =IF(COUNTRY_INFO!A19=0," ",COUNTRY_INFO!A19) -> Togo | B19: =IF(COUNTRY_INFO!B19=0," ",COUNTRY_INFO!B19) -> KARA | C19: =IF(COUNTRY_INFO!C19=0," ",COUNTRY_INFO!C19) -> BINAH | D19: =IF(COUNTRY_INFO!$Z19="MDA2 (DEC+ALB)", COUNTRY_INFO!$Z19, " ") ->  | I19: 0 | M19: 0
A20: =IF(COUNTRY_INFO!A20=0," ",COUNTRY_INFO!A20) -> Togo | B20: =IF(COUNTRY_INFO!B20=0," ",COUNTRY_INFO!B20) -> KARA | C20: =IF(COUNTRY_INFO!C20=0," ",COUNTRY_INFO!C20) -> DANKPEN | D20: =IF(COUNTRY_INFO!$Z20="MDA2 (DEC+ALB)", COUNTRY_INFO!$Z20, " ") ->  | I20: 0 | M20: 0
A21: =IF(COUNTRY_INFO!A21=0," ",COUNTRY_INFO!A21) -> Togo | B21: =IF(COUNTRY_INFO!B21=0," ",COUNTRY_INFO!B21) -> KARA | C21: =IF(COUNTRY_INFO!C21=0," ",COUNTRY_INFO!C21) -> DOUFELGOU | D21: =IF(COUNTRY_INFO!$Z21="MDA2 (DEC+ALB)", COUNTRY_INFO!$Z21, " ") ->  | I21: 0 | M21: 0
A22: =IF(COUNTRY_INFO!A22=0," ",COUNTRY_INFO!A22) -> Togo | B22: =IF(COUNTRY_INFO!B22=0," ",COUNTRY_INFO!B22) -> KARA | C22: =IF(COUNTRY_INFO!C22=0," ",COUNTRY_INFO!C22) -> KERAN | D22: =IF(COUNTRY_INFO!$Z22="MDA2 (DEC+ALB)", COUNTRY_INFO!$Z22, " ") ->  | I22: 0 | M22: 0
A23: =IF(COUNTRY_INFO!A23=0," ",COUNTRY_INFO!A23) -> Togo | B23: =IF(COUNTRY_INFO!B23=0," ",COUNTRY_INFO!B23) -> KARA | C23: =IF(COUNTRY_INFO!C23=0," ",COUNTRY_INFO!C23) -> KOZAH | D23: =IF(COUNTRY_INFO!$Z23="MDA2 (DEC+ALB)", COUNTRY_INFO!$Z23, " ") ->  | I23: 0 | M23: 0
A24: =IF(COUNTRY_INFO!A24=0," ",COUNTRY_INFO!A24) -> Togo | B24: =IF(COUNTRY_INFO!B24=0," ",COUNTRY_INFO!B24) -> MARITIME | C24: =IF(COUNTRY_INFO!C24=0," ",COUNTRY_INFO!C24) -> AVE | D24: =IF(COUNTRY_INFO!$Z24="MDA2 (DEC+ALB)", COUNTRY_INFO!$Z24, " ") ->  | I24: 0 | M24: 0
A25: =IF(COUNTRY_INFO!A25=0," ",COUNTRY_INFO!A25) -> Togo | B25: =IF(COUNTRY_INFO!B25=0," ",COUNTRY_INFO!B25) -> MARITIME | C25: =IF(COUNTRY_INFO!C25=0," ",COUNTRY_INFO!C25) -> BAS-MONO | D25: =IF(COUNTRY_INFO!$Z25="MDA2 (DEC+ALB)", COUNTRY_INFO!$Z25, " ") ->  | I25: 0 | M25: 0
A26: =IF(COUNTRY_INFO!A26=0," ",COUNTRY_INFO!A26) -> Togo | B26: =IF(COUNTRY_INFO!B26=0," ",COUNTRY_INFO!B26) -> MARITIME | C26: =IF(COUNTRY_INFO!C26=0," ",COUNTRY_INFO!C26) -> LACS | D26: =IF(COUNTRY_INFO!$Z26="MDA2 (DEC+ALB)", COUNTRY_INFO!$Z26, " ") ->  | I26: 0 | M26: 0
A27: =IF(COUNTRY_INFO!A27=0," ",COUNTRY_INFO!A27) -> Togo | B27: =IF(COUNTRY_INFO!B27=0," ",COUNTRY_INFO!B27) -> MARITIME | C27: =IF(COUNTRY_INFO!C27=0," ",COUNTRY_INFO!C27) -> VO | D27: =IF(COUNTRY_INFO!$Z27="MDA2 (DEC+ALB)", COUNTRY_INFO!$Z27, " ") ->  | I27: 0 | M27: 0
A28: =IF(COUNTRY_INFO!A28=0," ",COUNTRY_INFO!A28) -> Togo | B28: =IF(COUNTRY_INFO!B28=0," ",COUNTRY_INFO!B28) -> MARITIME | C28: =IF(COUNTRY_INFO!C28=0," ",COUNTRY_INFO!C28) -> YOTO | D28: =IF(COUNTRY_INFO!$Z28="MDA2 (DEC+ALB)", COUNTRY_INFO!$Z28, " ") ->  | I28: 0 | M28: 0
A29: =IF(COUNTRY_INFO!A29=0," ",COUNTRY_INFO!A29) -> Togo | B29: =IF(COUNTRY_INFO!B29=0," ",COUNTRY_INFO!B29) -> MARITIME | C29: =IF(COUNTRY_INFO!C29=0," ",COUNTRY_INFO!C29) -> ZIO | D29: =IF(COUNTRY_INFO!$Z29="MDA2 (DEC+ALB)", COUNTRY_INFO!$Z29, " ") ->  | I29: 0 | M29: 0
A30: =IF(COUNTRY_INFO!A30=0," ",COUNTRY_INFO!A30) -> Togo | B30: =IF(COUNTRY_INFO!B30=0," ",COUNTRY_INFO!B30) -> PLATEAUX | C30: =IF(COUNTRY_INFO!C30=0," ",COUNTRY_INFO!C30) -> AGOU | D30: =IF(COUNTRY_INFO!$Z30="MDA2 (DEC+ALB)", COUNTRY_INFO!$Z30, " ") ->  | I30: 0 | M30: 0
A31: =IF(COUNTRY_INFO!A31=0," ",COUNTRY_INFO!A31) -> Togo | B31: =IF(COUNTRY_INFO!B31=0," ",COUNTRY_INFO!B31) -> PLATEAUX | C31: =IF(COUNTRY_INFO!C31=0," ",COUNTRY_INFO!C31) -> AKEBOU | D31: =IF(COUNTRY_INFO!$Z31="MDA2 (DEC+ALB)", COUNTRY_INFO!$Z31, " ") ->  | I31: 0 | M31: 0
A32: =IF(COUNTRY_INFO!A32=0," ",COUNTRY_INFO!A32) -> Togo | B32: =IF(COUNTRY_INFO!B32=0," ",COUNTRY_INFO!B32) -> PLATEAUX | C32: =IF(COUNTRY_INFO!C32=0," ",COUNTRY_INFO!C32) -> AMOU | D32: =IF(COUNTRY_INFO!$Z32="MDA2 (DEC+ALB)", COUNTRY_INFO!$Z32, " ") ->  | I32: 0 | M32: 0
A33: =IF(COUNTRY_INFO!A33=0," ",COUNTRY_INFO!A33) -> Togo | B33: =IF(COUNTRY_INFO!B33=0," ",COUNTRY_INFO!B33) -> PLATEAUX | C33: =IF(COUNTRY_INFO!C33=0," ",COUNTRY_INFO!C33) -> ANIE | D33: =IF(COUNTRY_INFO!$Z33="MDA2 (DEC+ALB)", COUNTRY_INFO!$Z33, " ") ->  | I33: 0 | M33: 0
A34: =IF(COUNTRY_INFO!A34=0," ",COUNTRY_INFO!A34) -> Togo | B34: =IF(COUNTRY_INFO!B34=0," ",COUNTRY_INFO!B34) -> PLATEAUX | C34: =IF(COUNTRY_INFO!C34=0," ",COUNTRY_INFO!C34) -> DANYI | D34: =IF(COUNTRY_INFO!$Z34="MDA2 (DEC+ALB)", COUNTRY_INFO!$Z34, " ") ->  | I34: 0 | M34: 0
A35: =IF(COUNTRY_INFO!A35=0," ",COUNTRY_INFO!A35) -> Togo | B35: =IF(COUNTRY_INFO!B35=0," ",COUNTRY_INFO!B35) -> PLATEAUX | C35: =IF(COUNTRY_INFO!C35=0," ",COUNTRY_INFO!C35) -> EST-MONO | D35: =IF(COUNTRY_INFO!$Z35="MDA2 (DEC+ALB)", COUNTRY_INFO!$Z35, " ") ->  | I35: 0 | M35: 0
A36: =IF(COUNTRY_INFO!A36=0," ",COUNTRY_INFO!A36) -> Togo | B36: =IF(COUNTRY_INFO!B36=0," ",COUNTRY_INFO!B36) -> PLATEAUX | C36: =IF(COUNTRY_INFO!C36=0," ",COUNTRY_INFO!C36) -> HAHO | D36: =IF(COUNTRY_INFO!$Z36="MDA2 (DEC+ALB)", COUNTRY_INFO!$Z36, " ") ->  | I36: 0 | M36: 0
A37: =IF(COUNTRY_INFO!A37=0," ",COUNTRY_INFO!A37) -> Togo | B37: =IF(COUNTRY_INFO!B37=0," ",COUNTRY_INFO!B37) -> PLATEAUX | C37: =IF(COUNTRY_INFO!C37=0," ",COUNTRY_INFO!C37) -> KLOTO | D37: =IF(COUNTRY_INFO!$Z37="MDA2 (DEC+ALB)", COUNTRY_INFO!$Z37, " ") ->  | I37: 0 | M37: 0
A38: =IF(COUNTRY_INFO!A38=0," ",COUNTRY_INFO!A38) -> Togo | B38: =IF(COUNTRY_INFO!B38=0," ",COUNTRY_INFO!B38) -> PLATEAUX | C38: =IF(COUNTRY_INFO!C38=0," ",COUNTRY_INFO!C38) -> KPELE | D38: =IF(COUNTRY_INFO!$Z38="MDA2 (DEC+ALB)", COUNTRY_INFO!$Z38, " ") ->  | I38: 0 | M38: 0
A39: =IF(COUNTRY_INFO!A39=0," ",COUNTRY_INFO!A39) -> Togo | B39: =IF(COUNTRY_INFO!B39=0," ",COUNTRY_INFO!B39) -> PLATEAUX | C39: =IF(COUNTRY_INFO!C39=0," ",COUNTRY_INFO!C39) -> MOYEN-MONO | D39: =IF(COUNTRY_INFO!$Z39="MDA2 (DEC+ALB)", COUNTRY_INFO!$Z39, " ") ->  | I39: 0 | M39: 0
A40: =IF(COUNTRY_INFO!A40=0," ",COUNTRY_INFO!A40) -> Togo | B40: =IF(COUNTRY_INFO!B40=0," ",COUNTRY_INFO!B40) -> PLATEAUX | C40: =IF(COUNTRY_INFO!C40=0," ",COUNTRY_INFO!C40) -> OGOU | D40: =IF(COUNTRY_INFO!$Z40="MDA2 (DEC+ALB)", COUNTRY_INFO!$Z40, " ") ->  | I40: 0 | M40: 0
A41: =IF(COUNTRY_INFO!A41=0," ",COUNTRY_INFO!A41) -> Togo | B41: =IF(COUNTRY_INFO!B41=0," ",COUNTRY_INFO!B41) -> PLATEAUX | C41: =IF(COUNTRY_INFO!C41=0," ",COUNTRY_INFO!C41) -> WAWA | D41: =IF(COUNTRY_INFO!$Z41="MDA2 (DEC+ALB)", COUNTRY_INFO!$Z41, " ") ->  | I41: 0 | M41: 0
A42: =IF(COUNTRY_INFO!A42=0," ",COUNTRY_INFO!A42) -> Togo | B42: =IF(COUNTRY_INFO!B42=0," ",COUNTRY_INFO!B42) -> SAVANES | C42: =IF(COUNTRY_INFO!C42=0," ",COUNTRY_INFO!C42) -> CINKASSE | D42: =IF(COUNTRY_INFO!$Z42="MDA2 (DEC+ALB)", COUNTRY_INFO!$Z42, " ") ->  | I42: 0 | M42: 0
A43: =IF(COUNTRY_INFO!A43=0," ",COUNTRY_INFO!A43) -> Togo | B43: =IF(COUNTRY_INFO!B43=0," ",COUNTRY_INFO!B43) -> SAVANES | C43: =IF(COUNTRY_INFO!C43=0," ",COUNTRY_INFO!C43) -> KPENDJAL | D43: =IF(COUNTRY_INFO!$Z43="MDA2 (DEC+ALB)", COUNTRY_INFO!$Z43, " ") ->  | I43: 0 | M43: 0
A44: =IF(COUNTRY_INFO!A44=0," ",COUNTRY_INFO!A44) -> Togo | B44: =IF(COUNTRY_INFO!B44=0," ",COUNTRY_INFO!B44) -> SAVANES | C44: =IF(COUNTRY_INFO!C44=0," ",COUNTRY_INFO!C44) -> KPENDJAL-OUEST | D44: =IF(COUNTRY_INFO!$Z44="MDA2 (DEC+ALB)", COUNTRY_INFO!$Z44, " ") ->  | I44: 0 | M44: 0
A45: =IF(COUNTRY_INFO!A45=0," ",COUNTRY_INFO!A45) -> Togo | B45: =IF(COUNTRY_INFO!B45=0," ",COUNTRY_INFO!B45) -> SAVANES | C45: =IF(COUNTRY_INFO!C45=0," ",COUNTRY_INFO!C45) -> OTI | D45: =IF(COUNTRY_INFO!$Z45="MDA2 (DEC+ALB)", COUNTRY_INFO!$Z45, " ") ->  | I45: 0 | M45: 0
A46: =IF(COUNTRY_INFO!A46=0," ",COUNTRY_INFO!A46) -> Togo | B46: =IF(COUNTRY_INFO!B46=0," ",COUNTRY_INFO!B46) -> SAVANES | C46: =IF(COUNTRY_INFO!C46=0," ",COUNTRY_INFO!C46) -> OTI-SUD | D46: =IF(COUNTRY_INFO!$Z46="MDA2 (DEC+ALB)", COUNTRY_INFO!$Z46, " ") ->  | I46: 0 | M46: 0
A47: =IF(COUNTRY_INFO!A47=0," ",COUNTRY_INFO!A47) -> Togo | B47: =IF(COUNTRY_INFO!B47=0," ",COUNTRY_INFO!B47) -> SAVANES | C47: =IF(COUNTRY_INFO!C47=0," ",COUNTRY_INFO!C47) -> TANDJOUARE | D47: =IF(COUNTRY_INFO!$Z47="MDA2 (DEC+ALB)", COUNTRY_INFO!$Z47, " ") ->  | I47: 0 | M47: 0
A48: =IF(COUNTRY_INFO!A48=0," ",COUNTRY_INFO!A48) -> Togo | B48: =IF(COUNTRY_INFO!B48=0," ",COUNTRY_INFO!B48) -> SAVANES | C48: =IF(COUNTRY_INFO!C48=0," ",COUNTRY_INFO!C48) -> TONE | D48: =IF(COUNTRY_INFO!$Z48="MDA2 (DEC+ALB)", COUNTRY_INFO!$Z48, " ") ->  | I48: 0 | M48: 0

Sheet MDA3
A1: MDA 3 - Ivermectine (IVM)
A2: Structure administrative, population nécessitant une chimioprévention par groupe d'âge, population traitée par groupe d'âge et couverture
A4: TOTAL | F4: =SUBTOTAL(9,F$10:F$1010) -> 1343085.496 | G4: 2289742.048 | H4: 3632827.544 | I4: 1247451 | J4: 2101412 | K4: 3348863 | L4: 486911 | M4: 799048 | N4: 1285959 | O4: 1259269 | P4: 2111544 | Q4: 3370813 | R4: =IF(F4<>0, IF(O4/F4*100=0, "-", O4/F4*100), " ") -> 93.75940727 | S4: =IF(G4<>0, IF(P4/G4*100=0, "-", P4/G4*100), " ") -> 92.21754921 | T4: =IF(H4<>0, IF(Q4/H4*100=0, "-", Q4/H4*100), " ") -> 92.78758651
A6: Structure administrative du pays | D6: Mise en oeuvre de la CP | E6: Date | F6: Population ciblée pour MDA 3 | I6: Population traitée - tournée 1 | L6: Population traitée - tournée 2 | O6: Population traitée | R6: Couverture du Programme (%)
A7: Pays | B7: Région/Département | C7: District | F7: EAS | G7: Adultes | H7: Total | I7: EAS | J7: Adultes | K7: Total | L7: EAS | M7: Adultes | N7: Total | O7: EAS | P7: Adultes | Q7: Total | R7: EAS | S7: Adultes | T7: Total
A10: =IF(COUNTRY_INFO!A10=0," ",COUNTRY_INFO!A10) -> Togo | B10: =IF(COUNTRY_INFO!B10=0," ",COUNTRY_INFO!B10) -> CENTRALE | C10: =IF(COUNTRY_INFO!C10=0," ",COUNTRY_INFO!C10) -> BLITTA | D10: =IF(COUNTRY_INFO!$Z10="MDA3 (IVM)", COUNTRY_INFO!$Z10, " ") -> MDA3 (IVM) | E10: Août 2022/Janvier 2023 | F10: 43084 | G10: 76778 | H10: =SUM(F10:G10) -> 119862 | I10: 36921 | J10: 64815 | K10: =SUM(I10:J10) -> 101736 | L10: 0 | M10: 0 | N10: 0 | O10: =MAX(I10,L10) -> 36921 | P10: 64815 | Q10: =SUM(O10:P10) -> 101736 | R10: =IF(F10<>0, IF(MAX(I10,L10)/F10*100=0, "-", MAX(I10,L10)/F10*100), " ") -> 85.69538576 | S10: 84.41871369 | T10: =IF(H10<>0, IF((MAX(I10,L10)+MAX(J10,M10))/H10*100=0, "-",(MAX(I10,L10)+MAX(J10,M10))/H10*100), " ") -> 84.87760925
A11: =IF(COUNTRY_INFO!A11=0," ",COUNTRY_INFO!A11) -> Togo | B11: =IF(COUNTRY_INFO!B11=0," ",COUNTRY_INFO!B11) -> CENTRALE | C11: =IF(COUNTRY_INFO!C11=0," ",COUNTRY_INFO!C11) -> MÔ | D11: =IF(COUNTRY_INFO!$Z11="MDA3 (IVM)", COUNTRY_INFO!$Z11, " ") -> MDA3 (IVM) | E11: Août 2022/Janvier 2023 | F11: 14808 | G11: 27234 | H11: =SUM(F11:G11) -> 42042 | I11: 14768 | J11: 26576 | K11: =SUM(I11:J11) -> 41344 | L11: 14911 | M11: 25768 | N11: 40679 | O11: =MAX(I11,L11) -> 14911 | P11: =MAX(J11,M11) -> 26576 | Q11: =SUM(O11:P11) -> 41487 | R11: =IF(F11<>0, IF(MAX(I11,L11)/F11*100=0, "-", MAX(I11,L11)/F11*100), " ") -> 100.69557 | S11: =IF(G11<>0, IF(MAX(J11,M11)/G11*100=0, "-", MAX(J11,M11)/G11*100), " ") -> 97.58390247 | T11: =IF(H11<>0, IF((MAX(I11,L11)+MAX(J11,M11))/H11*100=0, "-",(MAX(I11,L11)+MAX(J11,M11))/H11*100), " ") -> 98.67989154
A12: =IF(COUNTRY_INFO!A12=0," ",COUNTRY_INFO!A12) -> Togo | B12: =IF(COUNTRY_INFO!B12=0," ",COUNTRY_INFO!B12) -> CENTRALE | C12: =IF(COUNTRY_INFO!C12=0," ",COUNTRY_INFO!C12) -> SOTOUBOUA | D12: =IF(COUNTRY_INFO!$Z12="MDA3 (IVM)", COUNTRY_INFO!$Z12, " ") -> MDA3 (IVM) | E12: Août 2022/Janvier 2023 | F12: 20602 | G12: 40895 | H12: 61497 | I12: 20602 | J12: 40411 | K12: 61013 | L12: 0 | M12: 0 | N12: 0 | O12: 20602 | P12: 40411 | Q12: 61013 | R12: 100 | S12: 98.81648123 | T12: 99.21296974
A13: =IF(COUNTRY_INFO!A13=0," ",COUNTRY_INFO!A13) -> Togo | B13: =IF(COUNTRY_INFO!B13=0," ",COUNTRY_INFO!B13) -> CENTRALE | C13: =IF(COUNTRY_INFO!C13=0," ",COUNTRY_INFO!C13) -> TCHAMBA | D13: =IF(COUNTRY_INFO!$Z13="MDA3 (IVM)", COUNTRY_INFO!$Z13, " ") -> MDA3 (IVM) | E13: Août 2022/Janvier 2023 | F13: 42552 | G13: 71075 | H13: 113627 | I13: 42480 | J13: 69878 | K13: 112358 | L13: 0 | M13: 0 | N13: 0 | O13: 42480 | P13: 69878 | Q13: 112358 | R13: 99.83079526 | S13: 98.31586352 | T13: 98.88318797
A14: =IF(COUNTRY_INFO!A14=0," ",COUNTRY_INFO!A14) -> Togo | B14: =IF(COUNTRY_INFO!B14=0," ",COUNTRY_INFO!B14) -> CENTRALE | C14: =IF(COUNTRY_INFO!C14=0," ",COUNTRY_INFO!C14) -> TCHAOUDJO | D14: =IF(COUNTRY_INFO!$Z14="MDA3 (IVM)", COUNTRY_INFO!$Z14, " ") -> MDA3 (IVM) | E14: Août 2022/Janvier 2023 | F14: 40720 | G14: 70697 | H14: 111417 | I14: 39654 | J14: 67583 | K14: 107237 | L14: 1125 | M14: 1870 | N14: 2995 | O14: 39654 | P14: 67583 | Q14: 107237 | R14: 97.38212181 | S14: 95.59528693 | T14: 96.24832835
A15: =IF(COUNTRY_INFO!A15=0," ",COUNTRY_INFO!A15) -> Togo | B15: =IF(COUNTRY_INFO!B15=0," ",COUNTRY_INFO!B15) -> GRAND-LOME | C15: =IF(COUNTRY_INFO!C15=0," ",COUNTRY_INFO!C15) -> AGOE NYIVE | D15: =IF(COUNTRY_INFO!$Z15="MDA3 (IVM)", COUNTRY_INFO!$Z15, " ") -> MDA3 (IVM) | E15: Août 2022/Janvier 2023 | F15: 3671 | G15: 5765 | H15: 9436 | I15: 3970 | J15: 6473 | K15: 10443 | N15: 0 | O15: 3970 | P15: 6473 | Q15: 10443 | R15: 108.1449196 | S15: 112.2810061 | T15: 110.6718949
A16: =IF(COUNTRY_INFO!A16=0," ",COUNTRY_INFO!A16) -> Togo | B16: =IF(COUNTRY_INFO!B16=0," ",COUNTRY_INFO!B16) -> GRAND-LOME | C16: =IF(COUNTRY_INFO!C16=0," ",COUNTRY_INFO!C16) -> GOLFE | D16: =IF(COUNTRY_INFO!$Z16="MDA3 (IVM)", COUNTRY_INFO!$Z16, " ") ->  | F16: 0 | G16: 0 | H16: 0 | K16: 0 | L16: 0 | M16: 0 | N16: 0 | O16: 0 | P16: 0 | Q16: 0
A17: =IF(COUNTRY_INFO!A17=0," ",COUNTRY_INFO!A17) -> Togo | B17: =IF(COUNTRY_INFO!B17=0," ",COUNTRY_INFO!B17) -> KARA | C17: =IF(COUNTRY_INFO!C17=0," ",COUNTRY_INFO!C17) -> ASSOLI | D17: =IF(COUNTRY_INFO!$Z17="MDA3 (IVM)", COUNTRY_INFO!$Z17, " ") -> MDA3 (IVM) | E17: Août 2022/Janvier 2023 | F17: 14495.796 | G17: 25230.576 | H17: 39726.372 | I17: 14492 | J17: 24873 | K17: 39365 | L17: 14832 | M17: 24716 | N17: 39548 | O17: 14832 | P17: 24873 | Q17: 39705 | R17: 102.3193207 | S17: 98.58276719 | T17: 99.94620198
A18: =IF(COUNTRY_INFO!A18=0," ",COUNTRY_INFO!A18) -> Togo | B18: =IF(COUNTRY_INFO!B18=0," ",COUNTRY_INFO!B18) -> KARA | C18: =IF(COUNTRY_INFO!C18=0," ",COUNTRY_INFO!C18) -> BASSAR | D18: =IF(COUNTRY_INFO!$Z18="MDA3 (IVM)", COUNTRY_INFO!$Z18, " ") -> MDA3 (IVM) | E18: Août 2022/Janvier 2023 | F18: 33586.7952 | G18: 56469.5544 | H18: 90056.3496 | I18: 33206 | J18: 55742 | K18: 88948 | L18: 30414 | M18: 53087 | N18: 83501 | O18: 33206 | P18: 55742 | Q18: 88948 | R18: 98.86623538 | S18: 98.71159883 | T18: 98.76927101
A19: =IF(COUNTRY_INFO!A19=0," ",COUNTRY_INFO!A19) -> Togo | B19: =IF(COUNTRY_INFO!B19=0," ",COUNTRY_INFO!B19) -> KARA | C19: =IF(COUNTRY_INFO!C19=0," ",COUNTRY_INFO!C19) -> BINAH | D19: =IF(COUNTRY_INFO!$Z19="MDA3 (IVM)", COUNTRY_INFO!$Z19, " ") -> MDA3 (IVM) | E19: Août 2022/Janvier 2023 | F19: 15571 | G19: 32868 | H19: 48439 | I19: 15406 | J19: 27068 | K19: 42474 | L19: 3930 | M19: 6817 | N19: 10747 | O19: 15406 | P19: 27068 | Q19: 42474 | R19: 98.94033781 | S19: 82.35365705 | T19: 87.68554264
A20: =IF(COUNTRY_INFO!A20=0," ",COUNTRY_INFO!A20) -> Togo | B20: =IF(COUNTRY_INFO!B20=0," ",COUNTRY_INFO!B20) -> KARA | C20: =IF(COUNTRY_INFO!C20=0," ",COUNTRY_INFO!C20) -> DANKPEN | D20: =IF(COUNTRY_INFO!$Z20="MDA3 (IVM)", COUNTRY_INFO!$Z20, " ") -> MDA3 (IVM) | E20: Août 2022/Janvier 2023 | F20: 54982.5696 | G20: 85328.9472 | H20: 140311.5168 | I20: 53253 | J20: 81118 | K20: 134371 | L20: 58722 | M20: 89371 | N20: 148093 | O20: 58722 | P20: 89371 | Q20: 148093 | R20: 106.8011197 | S20: 104.7370241 | T20: 105.5458621
A21: =IF(COUNTRY_INFO!A21=0," ",COUNTRY_INFO!A21) -> Togo | B21: =IF(COUNTRY_INFO!B21=0," ",COUNTRY_INFO!B21) -> KARA | C21: =IF(COUNTRY_INFO!C21=0," ",COUNTRY_INFO!C21) -> DOUFELGOU | D21: =IF(COUNTRY_INFO!$Z21="MDA3 (IVM)", COUNTRY_INFO!$Z21, " ") -> MDA3 (IVM) | E21: Août 2022/Janvier 2023 | F21: 25443.6032 | G21: 48623.2208 | H21: 74066.824 | I21: 25720 | J21: 48080 | K21: 73800 | L21: 13576 | M21: 22148 | N21: 35724 | O21: 25720 | P21: 48080 | Q21: 73800 | R21: 101.0863115 | S21: 98.88279552 | T21: 99.63975234
A22: =IF(COUNTRY_INFO!A22=0," ",COUNTRY_INFO!A22) -> Togo | B22: =IF(COUNTRY_INFO!B22=0," ",COUNTRY_INFO!B22) -> KARA | C22: =IF(COUNTRY_INFO!C22=0," ",COUNTRY_INFO!C22) -> KERAN | D22: =IF(COUNTRY_INFO!$Z22="MDA3 (IVM)", COUNTRY_INFO!$Z22, " ") -> MDA3 (IVM) | E22: Août 2022/Janvier 2023 | F22: 37831.1682 | G22: 58703.2472 | H22: 96534.4154 | I22: 38067 | J22: 59556 | K22: 97623 | L22: 37386 | M22: 57563 | N22: 94949 | O22: 38067 | P22: 59556 | Q22: 97623 | R22: 100.6233796 | S22: 101.4526501 | T22: 101.1276648
A23: =IF(COUNTRY_INFO!A23=0," ",COUNTRY_INFO!A23) -> Togo | B23: =IF(COUNTRY_INFO!B23=0," ",COUNTRY_INFO!B23) -> KARA | C23: =IF(COUNTRY_INFO!C23=0," ",COUNTRY_INFO!C23) -> KOZAH | D23: =IF(COUNTRY_INFO!$Z23="MDA3 (IVM)", COUNTRY_INFO!$Z23, " ") -> MDA3 (IVM) | E23: Août 2022/Janvier 2023 | F23: 49066.3992 | G23: 99658.7256 | H23: 148725.1248 | I23: 48496 | J23: 96315 | K23: 144811 | L23: 46937 | M23: 93969 | N23: 140906 | O23: 48496 | P23: 96315 | Q23: 144811 | R23: 98.83749529 | S23: 96.64482404 | T23: 97.36821549
A24: =IF(COUNTRY_INFO!A24=0," ",COUNTRY_INFO!A24) -> Togo | B24: =IF(COUNTRY_INFO!B24=0," ",COUNTRY_INFO!B24) -> MARITIME | C24: =IF(COUNTRY_INFO!C24=0," ",COUNTRY_INFO!C24) -> AVE | D24: =IF(COUNTRY_INFO!$Z24="MDA3 (IVM)", COUNTRY_INFO!$Z24, " ") -> MDA3 (IVM) | E24: Août 2022/Janvier 2023 | F24: 29903.664 | G24: 51172.3632 | H24: 81076.0272 | I24: 29473 | J24: 49986 | K24: 79459 | L24: 0 | M24: 0 | N24: 0 | O24: 29473 | P24: 49986 | Q24: 79459 | R24: 98.55982866 | S24: 97.68163296 | T24: 98.00554214
A25: =IF(COUNTRY_INFO!A25=0," ",COUNTRY_INFO!A25) -> Togo | B25: =IF(COUNTRY_INFO!B25=0," ",COUNTRY_INFO!B25) -> MARITIME | C25: =IF(COUNTRY_INFO!C25=0," ",COUNTRY_INFO!C25) -> BAS-MONO | D25: =IF(COUNTRY_INFO!$Z25="MDA3 (IVM)", COUNTRY_INFO!$Z25, " ") -> MDA3 (IVM) | E25: Août 2022/Janvier 2023 | F25: 9397 | G25: 15905 | H25: 25302 | I25: 8444 | J25: 14275 | K25: 22719 | L25: 0 | M25: 0 | N25: 0 | O25: 8444 | P25: 14275 | Q25: 22719 | R25: 89.85846547 | S25: 89.75165042 | T25: 89.79132084
A26: =IF(COUNTRY_INFO!A26=0," ",COUNTRY_INFO!A26) -> Togo | B26: =IF(COUNTRY_INFO!B26=0," ",COUNTRY_INFO!B26) -> MARITIME | C26: =IF(COUNTRY_INFO!C26=0," ",COUNTRY_INFO!C26) -> LACS | D26: =IF(COUNTRY_INFO!$Z26="MDA3 (IVM)", COUNTRY_INFO!$Z26, " ") ->  | F26: 0 | G26: 0 | H26: 0 | K26: 0 | L26: 0 | M26: 0 | N26: 0 | O26: 0 | P26: 0 | Q26: 0
A27: =IF(COUNTRY_INFO!A27=0," ",COUNTRY_INFO!A27) -> Togo | B27: =IF(COUNTRY_INFO!B27=0," ",COUNTRY_INFO!B27) -> MARITIME | C27: =IF(COUNTRY_INFO!C27=0," ",COUNTRY_INFO!C27) -> VO | D27: =IF(COUNTRY_INFO!$Z27="MDA3 (IVM)", COUNTRY_INFO!$Z27, " ") ->  | F27: 0 | G27: 0 | H27: 0 | K27: 0 | L27: 0 | M27: 0 | N27: 0 | O27: 0 | P27: 0 | Q27: 0
A28: =IF(COUNTRY_INFO!A28=0," ",COUNTRY_INFO!A28) -> Togo | B28: =IF(COUNTRY_INFO!B28=0," ",COUNTRY_INFO!B28) -> MARITIME | C28: =IF(COUNTRY_INFO!C28=0," ",COUNTRY_INFO!C28) -> YOTO | D28: =IF(COUNTRY_INFO!$Z28="MDA3 (IVM)", COUNTRY_INFO!$Z28, " ") -> MDA3 (IVM) | E28: Août 2022/Janvier 2023 | F28: 56169 | G28: 84271 | H28: 140440 | I28: 55310 | J28: 84183 | K28: 139493 | L28: 0 | M28: 0 | N28: 0 | O28: 55310 | P28: 84183 | Q28: 139493 | R28: 98.47068668 | S28: 99.89557499 | T28: 99.32569069
A29: =IF(COUNTRY_INFO!A29=0," ",COUNTRY_INFO!A29) -> Togo | B29: =IF(COUNTRY_INFO!B29=0," ",COUNTRY_INFO!B29) -> MARITIME | C29: =IF(COUNTRY_INFO!C29=0," ",COUNTRY_INFO!C29) -> ZIO | D29: =IF(COUNTRY_INFO!$Z29="MDA3 (IVM)", COUNTRY_INFO!$Z29, " ") -> MDA3 (IVM) | E29: Août 2022/Janvier 2023 | F29: 105219.942 | G29: 191026.7892 | H29: 296246.7312 | I29: 89758 | J29: 156544 | K29: 246302 | L29: 0 | M29: 0 | N29: 0 | O29: 89758 | P29: 156544 | Q29: 246302 | R29: 85.3051221 | S29: 81.94871549 | T29: 83.14083298
A30: =IF(COUNTRY_INFO!A30=0," ",COUNTRY_INFO!A30) -> Togo | B30: =IF(COUNTRY_INFO!B30=0," ",COUNTRY_INFO!B30) -> PLATEAUX | C30: =IF(COUNTRY_INFO!C30=0," ",COUNTRY_INFO!C30) -> AGOU | D30: =IF(COUNTRY_INFO!$Z30="MDA3 (IVM)", COUNTRY_INFO!$Z30, " ") -> MDA3 (IVM) | E30: Août 2022/Janvier 2023 | F30: 28943.732 | G30: 50412.3944 | H30: 79356.1264 | I30: 27135 | J30: 47014 | K30: 74149 | L30: 0 | M30: 0 | N30: 0 | O30: 27135 | P30: 47014 | Q30: 74149 | R30: 93.75086806 | S30: 93.25881177 | T30: 93.43828053
A31: =IF(COUNTRY_INFO!A31=0," ",COUNTRY_INFO!A31) -> Togo | B31: =IF(COUNTRY_INFO!B31=0," ",COUNTRY_INFO!B31) -> PLATEAUX | C31: =IF(COUNTRY_INFO!C31=0," ",COUNTRY_INFO!C31) -> AKEBOU | D31: =IF(COUNTRY_INFO!$Z31="MDA3 (IVM)", COUNTRY_INFO!$Z31, " ") -> MDA3 (IVM) | E31: Août 2022/Janvier 2023 | F31: 22442.0952 | G31: 39244.716 | H31: 61686.8112 | I31: 22635 | J31: 38659 | K31: 61294 | L31: 0 | M31: 0 | N31: 0 | O31: 22635 | P31: 38659 | Q31: 61294 | R31: 100.8595668 | S31: 98.50752901 | T31: 99.36321688
A32: =IF(COUNTRY_INFO!A32=0," ",COUNTRY_INFO!A32) -> Togo | B32: =IF(COUNTRY_INFO!B32=0," ",COUNTRY_INFO!B32) -> PLATEAUX | C32: =IF(COUNTRY_INFO!C32=0," ",COUNTRY_INFO!C32) -> AMOU | D32: =IF(COUNTRY_INFO!$Z32="MDA3 (IVM)", COUNTRY_INFO!$Z32, " ") -> MDA3 (IVM) | E32: Août 2022/Janvier 2023 | F32: 37722.888 | G32: 70108.6176 | H32: 107831.5056 | I32: 37221 | J32: 68388 | K32: 105609 | L32: 34290 | M32: 62420 | N32: 96710 | O32: 37221 | P32: 68388 | Q32: 105609 | R32: 98.66953983 | S32: 97.54578302 | T32: 97.93890887
A33: =IF(COUNTRY_INFO!A33=0," ",COUNTRY_INFO!A33) -> Togo | B33: =IF(COUNTRY_INFO!B33=0," ",COUNTRY_INFO!B33) -> PLATEAUX | C33: =IF(COUNTRY_INFO!C33=0," ",COUNTRY_INFO!C33) -> ANIE | D33: =IF(COUNTRY_INFO!$Z33="MDA3 (IVM)", COUNTRY_INFO!$Z33, " ") -> MDA3 (IVM) | E33: Août 2022/Janvier 2023 | F33: 48823.08217 | G33: 87615.02308 | H33: 136438.1052 | I33: 39614 | J33: 67370 | K33: 106984 | L33: 0 | M33: 0 | N33: 0 | O33: 39614 | P33: 67370 | Q33: 106984 | R33: 81.13785169 | S33: 76.89320579 | T33: 78.41211208
A34: =IF(COUNTRY_INFO!A34=0," ",COUNTRY_INFO!A34) -> Togo | B34: =IF(COUNTRY_INFO!B34=0," ",COUNTRY_INFO!B34) -> PLATEAUX | C34: =IF(COUNTRY_INFO!C34=0," ",COUNTRY_INFO!C34) -> DANYI | D34: =IF(COUNTRY_INFO!$Z34="MDA3 (IVM)", COUNTRY_INFO!$Z34, " ") -> MDA3 (IVM) | E34: Août 2022/Janvier 2023 | F34: 11099.7648 | G34: 20881.4784 | H34: 31981.2432 | I34: 10962 | J34: 20384 | K34: 31346 | L34: 9246 | M34: 17555 | N34: 26801 | O34: 10962 | P34: 20384 | Q34: 31346 | R34: 98.75884938 | S34: 97.6176093 | T34: 98.01370073
A35: =IF(COUNTRY_INFO!A35=0," ",COUNTRY_INFO!A35) -> Togo | B35: =IF(COUNTRY_INFO!B35=0," ",COUNTRY_INFO!B35) -> PLATEAUX | C35: =IF(COUNTRY_INFO!C35=0," ",COUNTRY_INFO!C35) -> EST-MONO | D35: =IF(COUNTRY_INFO!$Z35="MDA3 (IVM)", COUNTRY_INFO!$Z35, " ") -> MDA3 (IVM) | E35: Août 2022/Janvier 2023 | F35: 42853.1904 | G35: 69201.296 | H35: 112054.4864 | I35: 40774 | J35: 69268 | K35: 110042 | L35: 0 | M35: 0 | N35: 0 | O35: 40774 | P35: 69268 | Q35: 110042 | R35: 95.14810827 | S35: 100.0963913 | T35: 98.20401087
A36: =IF(COUNTRY_INFO!A36=0," ",COUNTRY_INFO!A36) -> Togo | B36: =IF(COUNTRY_INFO!B36=0," ",COUNTRY_INFO!B36) -> PLATEAUX | C36: =IF(COUNTRY_INFO!C36=0," ",COUNTRY_INFO!C36) -> HAHO | D36: =IF(COUNTRY_INFO!$Z36="MDA3 (IVM)", COUNTRY_INFO!$Z36, " ") -> MDA3 (IVM) | E36: Août 2022/Janvier 2023 | F36: 82162.296 | G36: 133028.0652 | H36: 215190.3612 | I36: 69491 | J36: 112652 | K36: 182143 | L36: 75251 | M36: 112569 | N36: 187820 | O36: 75251 | P36: 112652 | Q36: 187903 | R36: 91.58823897 | S36: 84.68288239 | T36: 87.31943148
A37: =IF(COUNTRY_INFO!A37=0," ",COUNTRY_INFO!A37) -> Togo | B37: =IF(COUNTRY_INFO!B37=0," ",COUNTRY_INFO!B37) -> PLATEAUX | C37: =IF(COUNTRY_INFO!C37=0," ",COUNTRY_INFO!C37) -> KLOTO | D37: =IF(COUNTRY_INFO!$Z37="MDA3 (IVM)", COUNTRY_INFO!$Z37, " ") -> MDA3 (IVM) | E37: Août 2022/Janvier 2023 | F37: 16341.4608 | G37: 32670.624 | H37: 49012.0848 | I37: 16449 | J37: 33110 | K37: 49559 | L37: 0 | M37: 0 | N37: 0 | O37: 16449 | P37: 33110 | Q37: 49559 | R37: 100.6580758 | S37: 101.3448657 | T37: 101.1158783
A38: =IF(COUNTRY_INFO!A38=0," ",COUNTRY_INFO!A38) -> Togo | B38: =IF(COUNTRY_INFO!B38=0," ",COUNTRY_INFO!B38) -> PLATEAUX | C38: =IF(COUNTRY_INFO!C38=0," ",COUNTRY_INFO!C38) -> KPELE | D38: =IF(COUNTRY_INFO!$Z38="MDA3 (IVM)", COUNTRY_INFO!$Z38, " ") -> MDA3 (IVM) | E38: Août 2022/Janvier 2023 | F38: 20313 | G38: 36216 | H38: 56529 | I38: 19763 | J38: 34594 | K38: 54357 | L38: 0 | M38: 0 | N38: 0 | O38: 19763 | P38: 34594 | Q38: 54357 | R38: 97.29237434 | S38: 95.52131655 | T38: 96.15772435
A39: =IF(COUNTRY_INFO!A39=0," ",COUNTRY_INFO!A39) -> Togo | B39: =IF(COUNTRY_INFO!B39=0," ",COUNTRY_INFO!B39) -> PLATEAUX | C39: =IF(COUNTRY_INFO!C39=0," ",COUNTRY_INFO!C39) -> MOYEN-MONO | D39: =IF(COUNTRY_INFO!$Z39="MDA3 (IVM)", COUNTRY_INFO!$Z39, " ") -> MDA3 (IVM) | E39: Août 2022/Janvier 2023 | F39: 19454.8032 | G39: 32485.1352 | H39: 51939.9384 | I39: 19204 | J39: 31704 | K39: 50908 | L39: 0 | M39: 0 | N39: 0 | O39: 19204 | P39: 31704 | Q39: 50908 | R39: 98.71084175 | S39: 97.59540727 | T39: 98.01320827
A40: =IF(COUNTRY_INFO!A40=0," ",COUNTRY_INFO!A40) -> Togo | B40: =IF(COUNTRY_INFO!B40=0," ",COUNTRY_INFO!B40) -> PLATEAUX | C40: =IF(COUNTRY_INFO!C40=0," ",COUNTRY_INFO!C40) -> OGOU | D40: =IF(COUNTRY_INFO!$Z40="MDA3 (IVM)", COUNTRY_INFO!$Z40, " ") -> MDA3 (IVM) | E40: Août 2022/Janvier 2023 | F40: 71442.9072 | G40: 118892.172 | H40: 190335.0792 | I40: 42832 | J40: 70418 | K40: 113250 | L40: 40411 | M40: 69858 | N40: 110269 | O40: 42832 | P40: 70418 | Q40: 113250 | R40: 59.95276743 | S40: 59.22845787 | T40: 59.50032988
A41: =IF(COUNTRY_INFO!A41=0," ",COUNTRY_INFO!A41) -> Togo | B41: =IF(COUNTRY_INFO!B41=0," ",COUNTRY_INFO!B41) -> PLATEAUX | C41: =IF(COUNTRY_INFO!C41=0," ",COUNTRY_INFO!C41) -> WAWA | D41: =IF(COUNTRY_INFO!$Z41="MDA3 (IVM)", COUNTRY_INFO!$Z41, " ") -> MDA3 (IVM) | E41: Août 2022/Janvier 2023 | F41: 30708.4476 | G41: 55702.2544 | H41: 86410.702 | I41: 30473 | J41: 53613 | K41: 84086 | L41: 0 | M41: 0 | N41: 0 | O41: 30473 | P41: 53613 | Q41: 84086 | R41: 99.23328068 | S41: 96.24924624 | T41: 97.30970592
A42: =IF(COUNTRY_INFO!A42=0," ",COUNTRY_INFO!A42) -> Togo | B42: =IF(COUNTRY_INFO!B42=0," ",COUNTRY_INFO!B42) -> SAVANES | C42: =IF(COUNTRY_INFO!C42=0," ",COUNTRY_INFO!C42) -> CINKASSE | D42: =IF(COUNTRY_INFO!$Z42="MDA3 (IVM)", COUNTRY_INFO!$Z42, " ") -> MDA3 (IVM) | E42: Août 2022/Janvier 2023 | F42: 21823 | G42: 36489 | H42: 58312 | I42: 22219 | J42: 37030 | K42: 59249 | L42: 0 | M42: 0 | N42: 0 | O42: 22219 | P42: 37030 | Q42: 59249 | R42: 101.8145993 | S42: 101.4826386 | T42: 101.6068734
A43: =IF(COUNTRY_INFO!A43=0," ",COUNTRY_INFO!A43) -> Togo | B43: =IF(COUNTRY_INFO!B43=0," ",COUNTRY_INFO!B43) -> SAVANES | C43: =IF(COUNTRY_INFO!C43=0," ",COUNTRY_INFO!C43) -> KPENDJAL | D43: =IF(COUNTRY_INFO!$Z43="MDA3 (IVM)", COUNTRY_INFO!$Z43, " ") -> MDA3 (IVM) | E43: Août 2022/Janvier 2023 | F43: 28060 | G43: 44013 | H43: 72073 | I43: 28221 | J43: 40325 | K43: 68546 | L43: 18642 | M43: 27324 | N43: 45966 | O43: 28221 | P43: 40325 | Q43: 68546 | R43: 100.5737705 | S43: 91.62065753 | T43: 95.10635051
A44: =IF(COUNTRY_INFO!A44=0," ",COUNTRY_INFO!A44) -> Togo | B44: =IF(COUNTRY_INFO!B44=0," ",COUNTRY_INFO!B44) -> SAVANES | C44: =IF(COUNTRY_INFO!C44=0," ",COUNTRY_INFO!C44) -> KPENDJAL-OUEST | D44: =IF(COUNTRY_INFO!$Z44="MDA3 (IVM)", COUNTRY_INFO!$Z44, " ") -> MDA3 (IVM) | E44: Août 2022/Janvier 2023 | F44: 42375.5696 | G44: 65885.064 | H44: 108260.6336 | I44: 42135 | J44: 64544 | K44: 106679 | L44: 18548 | M44: 26196 | N44: 44744 | O44: 42135 | P44: 64544 | Q44: 106679 | R44: 99.43229176 | S44: 97.96454019 | T44: 98.53905012
A45: =IF(COUNTRY_INFO!A45=0," ",COUNTRY_INFO!A45) -> Togo | B45: =IF(COUNTRY_INFO!B45=0," ",COUNTRY_INFO!B45) -> SAVANES | C45: =IF(COUNTRY_INFO!C45=0," ",COUNTRY_INFO!C45) -> OTI | D45: =IF(COUNTRY_INFO!$Z45="MDA3 (IVM)", COUNTRY_INFO!$Z45, " ") -> MDA3 (IVM) | E45: Août 2022/Janvier 2023 | F45: 39229.1168 | G45: 62965.3 | H45: 102194.4168 | I45: 27385 | J45: 43819 | K45: 71204 | L45: 26936 | M45: 44091 | N45: 71027 | O45: 27385 | P45: 44091 | Q45: 71476 | R45: 69.80784232 | S45: 70.02428322 | T45: 69.94119859
A46: =IF(COUNTRY_INFO!A46=0," ",COUNTRY_INFO!A46) -> Togo | B46: =IF(COUNTRY_INFO!B46=0," ",COUNTRY_INFO!B46) -> SAVANES | C46: =IF(COUNTRY_INFO!C46=0," ",COUNTRY_INFO!C46) -> OTI-SUD | D46: =IF(COUNTRY_INFO!$Z46="MDA3 (IVM)", COUNTRY_INFO!$Z46, " ") -> MDA3 (IVM) | E46: Août 2022/Janvier 2023 | F46: 40408.8888 | G46: 60589.2504 | H46: 100998.1392 | I46: 41648 | J46: 62119 | K46: 103767 | L46: 41754 | M46: 63726 | N46: 105480 | O46: 41754 | P46: 63726 | Q46: 105480 | R46: 103.3287508 | S46: 105.1770728 | T46: 104.4375677
A47: =IF(COUNTRY_INFO!A47=0," ",COUNTRY_INFO!A47) -> Togo | B47: =IF(COUNTRY_INFO!B47=0," ",COUNTRY_INFO!B47) -> SAVANES | C47: =IF(COUNTRY_INFO!C47=0," ",COUNTRY_INFO!C47) -> TANDJOUARE | D47: =IF(COUNTRY_INFO!$Z47="MDA3 (IVM)", COUNTRY_INFO!$Z47, " ") -> MDA3 (IVM) | E47: Août 2022/Janvier 2023 | F47: 47887.3159 | G47: 84518.2338 | H47: 132405.5497 | I47: 47026 | J47: 85831 | K47: 132857 | L47: 0 | M47: 0 | N47: 0 | O47: 47026 | P47: 85831 | Q47: 132857 | R47: 98.20136944 | S47: 101.5532343 | T47: 100.3409603
A48: =IF(COUNTRY_INFO!A48=0," ",COUNTRY_INFO!A48) -> Togo | B48: =IF(COUNTRY_INFO!B48=0," ",COUNTRY_INFO!B48) -> SAVANES | C48: =IF(COUNTRY_INFO!C48=0," ",COUNTRY_INFO!C48) -> TONE | D48: =IF(COUNTRY_INFO!$Z48="MDA3 (IVM)", COUNTRY_INFO!$Z48, " ") -> MDA3 (IVM) | E48: Août 2022/Janvier 2023 | F48: 93890 | G48: 147123 | H48: 241013 | I48: 92244 | J48: 147094 | K48: 239338 | L48: 0 | M48: 0 | N48: 0 | O48: 92244 | P48: 147094 | Q48: 239338 | R48: 98.24688465 | S48: 99.9802886 | T48: 99.30501674

Sheet MDA5 (hidden)
A1: MDA 5 - Ivermectine (IVM) + Diethylcarbamazine (DEC) + Albendazole (ALB)
A2: Structure administrative, population nécessitant une chimioprévention par groupe d'âge, population traitée par groupe d'âge et couverture
A4: TOTAL | F4: =SUBTOTAL(9,F$10:F$1010) -> 0 | G4: 0 | H4: 0 | I4: 0 | J4: 0 | K4: 0 | L4: 0 | M4: 0 | N4: =IF(F4<>0, IF(J4/F4*100=0, "-", J4/F4*100), " ") ->  | O4: =IF(G4<>0, IF(K4/G4*100=0, "-", K4/G4*100), " ") ->  | P4: =IF(H4<>0, IF(L4/H4*100=0, "-", L4/H4*100), " ") ->  | Q4: =IF(I4<>0, IF(M4/I4*100=0, "-", M4/I4*100), " ") -> 
A6: Structure administrative du pays | D6: Mise en oeuvre de la CP | E6: Date | F6: Population ciblée pour MDA 2 | J6: Population traitée | N6: Couverture du Programme (%)
A7: Pays | B7: Région/Département | C7: District | F7: EAPréS | G7: EAS | H7: Adultes | I7: Total | J7: EAPréS | K7: EAS | L7: Adultes | M7: Total | N7: EAPréS | O7: EAS | P7: Adultes | Q7: Total
A10: =IF(COUNTRY_INFO!A10=0," ",COUNTRY_INFO!A10) -> Togo | B10: =IF(COUNTRY_INFO!B10=0," ",COUNTRY_INFO!B10) -> CENTRALE | C10: =IF(COUNTRY_INFO!C10=0," ",COUNTRY_INFO!C10) -> BLITTA | D10: =IF(COUNTRY_INFO!$Z10="MDA5 (IDA)", COUNTRY_INFO!$Z10, " ") ->  | I10: =SUM(F10:H10) -> 0 | M10: =SUM(J10:L10) -> 0 | N10: =IF(F10<>0, IF(J10/F10*100=0, "-", J10/F10*100), " ") ->  | O10: =IF(G10<>0, IF(K10/G10*100=0, "-", K10/G10*100), " ") -> 
A11: =IF(COUNTRY_INFO!A11=0," ",COUNTRY_INFO!A11) -> Togo | B11: =IF(COUNTRY_INFO!B11=0," ",COUNTRY_INFO!B11) -> CENTRALE | C11: =IF(COUNTRY_INFO!C11=0," ",COUNTRY_INFO!C11) -> MÔ | D11: =IF(COUNTRY_INFO!$Z11="MDA5 (IDA)", COUNTRY_INFO!$Z11, " ") ->  | I11: =SUM(F11:H11) -> 0 | M11: =SUM(J11:L11) -> 0 | N11: =IF(F11<>0, IF(J11/F11*100=0, "-", J11/F11*100), " ") ->  | O11: =IF(G11<>0, IF(K11/G11*100=0, "-", K11/G11*100), " ") ->  | P11: =IF(H11<>0, IF(L11/H11*100=0, "-", L11/H11*100), " ") ->  | Q11: =IF(I11<>0, IF(M11/I11*100=0, "-", M11/I11*100), " ") -> 
A12: =IF(COUNTRY_INFO!A12=0," ",COUNTRY_INFO!A12) -> Togo | B12: =IF(COUNTRY_INFO!B12=0," ",COUNTRY_INFO!B12) -> CENTRALE | C12: =IF(COUNTRY_INFO!C12=0," ",COUNTRY_INFO!C12) -> SOTOUBOUA | D12: =IF(COUNTRY_INFO!$Z12="MDA5 (IDA)", COUNTRY_INFO!$Z12, " ") ->  | I12: 0 | M12: 0
A13: =IF(COUNTRY_INFO!A13=0," ",COUNTRY_INFO!A13) -> Togo | B13: =IF(COUNTRY_INFO!B13=0," ",COUNTRY_INFO!B13) -> CENTRALE | C13: =IF(COUNTRY_INFO!C13=0," ",COUNTRY_INFO!C13) -> TCHAMBA | D13: =IF(COUNTRY_INFO!$Z13="MDA5 (IDA)", COUNTRY_INFO!$Z13, " ") ->  | I13: 0 | M13: 0
A14: =IF(COUNTRY_INFO!A14=0," ",COUNTRY_INFO!A14) -> Togo | B14: =IF(COUNTRY_INFO!B14=0," ",COUNTRY_INFO!B14) -> CENTRALE | C14: =IF(COUNTRY_INFO!C14=0," ",COUNTRY_INFO!C14) -> TCHAOUDJO | D14: =IF(COUNTRY_INFO!$Z14="MDA5 (IDA)", COUNTRY_INFO!$Z14, " ") ->  | I14: 0 | M14: 0
A15: =IF(COUNTRY_INFO!A15=0," ",COUNTRY_INFO!A15) -> Togo | B15: =IF(COUNTRY_INFO!B15=0," ",COUNTRY_INFO!B15) -> GRAND-LOME | C15: =IF(COUNTRY_INFO!C15=0," ",COUNTRY_INFO!C15) -> AGOE NYIVE | D15: =IF(COUNTRY_INFO!$Z15="MDA5 (IDA)", COUNTRY_INFO!$Z15, " ") ->  | I15: 0 | M15: 0
A16: =IF(COUNTRY_INFO!A16=0," ",COUNTRY_INFO!A16) -> Togo | B16: =IF(COUNTRY_INFO!B16=0," ",COUNTRY_INFO!B16) -> GRAND-LOME | C16: =IF(COUNTRY_INFO!C16=0," ",COUNTRY_INFO!C16) -> GOLFE | D16: =IF(COUNTRY_INFO!$Z16="MDA5 (IDA)", COUNTRY_INFO!$Z16, " ") ->  | I16: 0 | M16: 0
A17: =IF(COUNTRY_INFO!A17=0," ",COUNTRY_INFO!A17) -> Togo | B17: =IF(COUNTRY_INFO!B17=0," ",COUNTRY_INFO!B17) -> KARA | C17: =IF(COUNTRY_INFO!C17=0," ",COUNTRY_INFO!C17) -> ASSOLI | D17: =IF(COUNTRY_INFO!$Z17="MDA5 (IDA)", COUNTRY_INFO!$Z17, " ") ->  | I17: 0 | M17: 0
A18: =IF(COUNTRY_INFO!A18=0," ",COUNTRY_INFO!A18) -> Togo | B18: =IF(COUNTRY_INFO!B18=0," ",COUNTRY_INFO!B18) -> KARA | C18: =IF(COUNTRY_INFO!C18=0," ",COUNTRY_INFO!C18) -> BASSAR | D18: =IF(COUNTRY_INFO!$Z18="MDA5 (IDA)", COUNTRY_INFO!$Z18, " ") ->  | I18: 0 | M18: 0
A19: =IF(COUNTRY_INFO!A19=0," ",COUNTRY_INFO!A19) -> Togo | B19: =IF(COUNTRY_INFO!B19=0," ",COUNTRY_INFO!B19) -> KARA | C19: =IF(COUNTRY_INFO!C19=0," ",COUNTRY_INFO!C19) -> BINAH | D19: =IF(COUNTRY_INFO!$Z19="MDA5 (IDA)", COUNTRY_INFO!$Z19, " ") ->  | I19: 0 | M19: 0
A20: =IF(COUNTRY_INFO!A20=0," ",COUNTRY_INFO!A20) -> Togo | B20: =IF(COUNTRY_INFO!B20=0," ",COUNTRY_INFO!B20) -> KARA | C20: =IF(COUNTRY_INFO!C20=0," ",COUNTRY_INFO!C20) -> DANKPEN | D20: =IF(COUNTRY_INFO!$Z20="MDA5 (IDA)", COUNTRY_INFO!$Z20, " ") ->  | I20: 0 | M20: 0
A21: =IF(COUNTRY_INFO!A21=0," ",COUNTRY_INFO!A21) -> Togo | B21: =IF(COUNTRY_INFO!B21=0," ",COUNTRY_INFO!B21) -> KARA | C21: =IF(COUNTRY_INFO!C21=0," ",COUNTRY_INFO!C21) -> DOUFELGOU | D21: =IF(COUNTRY_INFO!$Z21="MDA5 (IDA)", COUNTRY_INFO!$Z21, " ") ->  | I21: 0 | M21: 0
A22: =IF(COUNTRY_INFO!A22=0," ",COUNTRY_INFO!A22) -> Togo | B22: =IF(COUNTRY_INFO!B22=0," ",COUNTRY_INFO!B22) -> KARA | C22: =IF(COUNTRY_INFO!C22=0," ",COUNTRY_INFO!C22) -> KERAN | D22: =IF(COUNTRY_INFO!$Z22="MDA5 (IDA)", COUNTRY_INFO!$Z22, " ") ->  | I22: 0 | M22: 0
A23: =IF(COUNTRY_INFO!A23=0," ",COUNTRY_INFO!A23) -> Togo | B23: =IF(COUNTRY_INFO!B23=0," ",COUNTRY_INFO!B23) -> KARA | C23: =IF(COUNTRY_INFO!C23=0," ",COUNTRY_INFO!C23) -> KOZAH | D23: =IF(COUNTRY_INFO!$Z23="MDA5 (IDA)", COUNTRY_INFO!$Z23, " ") ->  | I23: 0 | M23: 0
A24: =IF(COUNTRY_INFO!A24=0," ",COUNTRY_INFO!A24) -> Togo | B24: =IF(COUNTRY_INFO!B24=0," ",COUNTRY_INFO!B24) -> MARITIME | C24: =IF(COUNTRY_INFO!C24=0," ",COUNTRY_INFO!C24) -> AVE | D24: =IF(COUNTRY_INFO!$Z24="MDA5 (IDA)", COUNTRY_INFO!$Z24, " ") ->  | I24: 0 | M24: 0
A25: =IF(COUNTRY_INFO!A25=0," ",COUNTRY_INFO!A25) -> Togo | B25: =IF(COUNTRY_INFO!B25=0," ",COUNTRY_INFO!B25) -> MARITIME | C25: =IF(COUNTRY_INFO!C25=0," ",COUNTRY_INFO!C25) -> BAS-MONO | D25: =IF(COUNTRY_INFO!$Z25="MDA5 (IDA)", COUNTRY_INFO!$Z25, " ") ->  | I25: 0 | M25: 0
A26: =IF(COUNTRY_INFO!A26=0," ",COUNTRY_INFO!A26) -> Togo | B26: =IF(COUNTRY_INFO!B26=0," ",COUNTRY_INFO!B26) -> MARITIME | C26: =IF(COUNTRY_INFO!C26=0," ",COUNTRY_INFO!C26) -> LACS | D26: =IF(COUNTRY_INFO!$Z26="MDA5 (IDA)", COUNTRY_INFO!$Z26, " ") ->  | I26: 0 | M26: 0
A27: =IF(COUNTRY_INFO!A27=0," ",COUNTRY_INFO!A27) -> Togo | B27: =IF(COUNTRY_INFO!B27=0," ",COUNTRY_INFO!B27) -> MARITIME | C27: =IF(COUNTRY_INFO!C27=0," ",COUNTRY_INFO!C27) -> VO | D27: =IF(COUNTRY_INFO!$Z27="MDA5 (IDA)", COUNTRY_INFO!$Z27, " ") ->  | I27: 0 | M27: 0
A28: =IF(COUNTRY_INFO!A28=0," ",COUNTRY_INFO!A28) -> Togo | B28: =IF(COUNTRY_INFO!B28=0," ",COUNTRY_INFO!B28) -> MARITIME | C28: =IF(COUNTRY_INFO!C28=0," ",COUNTRY_INFO!C28) -> YOTO | D28: =IF(COUNTRY_INFO!$Z28="MDA5 (IDA)", COUNTRY_INFO!$Z28, " ") ->  | I28: 0 | M28: 0
A29: =IF(COUNTRY_INFO!A29=0," ",COUNTRY_INFO!A29) -> Togo | B29: =IF(COUNTRY_INFO!B29=0," ",COUNTRY_INFO!B29) -> MARITIME | C29: =IF(COUNTRY_INFO!C29=0," ",COUNTRY_INFO!C29) -> ZIO | D29: =IF(COUNTRY_INFO!$Z29="MDA5 (IDA)", COUNTRY_INFO!$Z29, " ") ->  | I29: 0 | M29: 0
A30: =IF(COUNTRY_INFO!A30=0," ",COUNTRY_INFO!A30) -> Togo | B30: =IF(COUNTRY_INFO!B30=0," ",COUNTRY_INFO!B30) -> PLATEAUX | C30: =IF(COUNTRY_INFO!C30=0," ",COUNTRY_INFO!C30) -> AGOU | D30: =IF(COUNTRY_INFO!$Z30="MDA5 (IDA)", COUNTRY_INFO!$Z30, " ") ->  | I30: 0 | M30: 0
A31: =IF(COUNTRY_INFO!A31=0," ",COUNTRY_INFO!A31) -> Togo | B31: =IF(COUNTRY_INFO!B31=0," ",COUNTRY_INFO!B31) -> PLATEAUX | C31: =IF(COUNTRY_INFO!C31=0," ",COUNTRY_INFO!C31) -> AKEBOU | D31: =IF(COUNTRY_INFO!$Z31="MDA5 (IDA)", COUNTRY_INFO!$Z31, " ") ->  | I31: 0 | M31: 0
A32: =IF(COUNTRY_INFO!A32=0," ",COUNTRY_INFO!A32) -> Togo | B32: =IF(COUNTRY_INFO!B32=0," ",COUNTRY_INFO!B32) -> PLATEAUX | C32: =IF(COUNTRY_INFO!C32=0," ",COUNTRY_INFO!C32) -> AMOU | D32: =IF(COUNTRY_INFO!$Z32="MDA5 (IDA)", COUNTRY_INFO!$Z32, " ") ->  | I32: 0 | M32: 0
A33: =IF(COUNTRY_INFO!A33=0," ",COUNTRY_INFO!A33) -> Togo | B33: =IF(COUNTRY_INFO!B33=0," ",COUNTRY_INFO!B33) -> PLATEAUX | C33: =IF(COUNTRY_INFO!C33=0," ",COUNTRY_INFO!C33) -> ANIE | D33: =IF(COUNTRY_INFO!$Z33="MDA5 (IDA)", COUNTRY_INFO!$Z33, " ") ->  | I33: 0 | M33: 0
A34: =IF(COUNTRY_INFO!A34=0," ",COUNTRY_INFO!A34) -> Togo | B34: =IF(COUNTRY_INFO!B34=0," ",COUNTRY_INFO!B34) -> PLATEAUX | C34: =IF(COUNTRY_INFO!C34=0," ",COUNTRY_INFO!C34) -> DANYI | D34: =IF(COUNTRY_INFO!$Z34="MDA5 (IDA)", COUNTRY_INFO!$Z34, " ") ->  | I34: 0 | M34: 0
A35: =IF(COUNTRY_INFO!A35=0," ",COUNTRY_INFO!A35) -> Togo | B35: =IF(COUNTRY_INFO!B35=0," ",COUNTRY_INFO!B35) -> PLATEAUX | C35: =IF(COUNTRY_INFO!C35=0," ",COUNTRY_INFO!C35) -> EST-MONO | D35: =IF(COUNTRY_INFO!$Z35="MDA5 (IDA)", COUNTRY_INFO!$Z35, " ") ->  | I35: 0 | M35: 0
A36: =IF(COUNTRY_INFO!A36=0," ",COUNTRY_INFO!A36) -> Togo | B36: =IF(COUNTRY_INFO!B36=0," ",COUNTRY_INFO!B36) -> PLATEAUX | C36: =IF(COUNTRY_INFO!C36=0," ",COUNTRY_INFO!C36) -> HAHO | D36: =IF(COUNTRY_INFO!$Z36="MDA5 (IDA)", COUNTRY_INFO!$Z36, " ") ->  | I36: 0 | M36: 0
A37: =IF(COUNTRY_INFO!A37=0," ",COUNTRY_INFO!A37) -> Togo | B37: =IF(COUNTRY_INFO!B37=0," ",COUNTRY_INFO!B37) -> PLATEAUX | C37: =IF(COUNTRY_INFO!C37=0," ",COUNTRY_INFO!C37) -> KLOTO | D37: =IF(COUNTRY_INFO!$Z37="MDA5 (IDA)", COUNTRY_INFO!$Z37, " ") ->  | I37: 0 | M37: 0
A38: =IF(COUNTRY_INFO!A38=0," ",COUNTRY_INFO!A38) -> Togo | B38: =IF(COUNTRY_INFO!B38=0," ",COUNTRY_INFO!B38) -> PLATEAUX | C38: =IF(COUNTRY_INFO!C38=0," ",COUNTRY_INFO!C38) -> KPELE | D38: =IF(COUNTRY_INFO!$Z38="MDA5 (IDA)", COUNTRY_INFO!$Z38, " ") ->  | I38: 0 | M38: 0
A39: =IF(COUNTRY_INFO!A39=0," ",COUNTRY_INFO!A39) -> Togo | B39: =IF(COUNTRY_INFO!B39=0," ",COUNTRY_INFO!B39) -> PLATEAUX | C39: =IF(COUNTRY_INFO!C39=0," ",COUNTRY_INFO!C39) -> MOYEN-MONO | D39: =IF(COUNTRY_INFO!$Z39="MDA5 (IDA)", COUNTRY_INFO!$Z39, " ") ->  | I39: 0 | M39: 0
A40: =IF(COUNTRY_INFO!A40=0," ",COUNTRY_INFO!A40) -> Togo | B40: =IF(COUNTRY_INFO!B40=0," ",COUNTRY_INFO!B40) -> PLATEAUX | C40: =IF(COUNTRY_INFO!C40=0," ",COUNTRY_INFO!C40) -> OGOU | D40: =IF(COUNTRY_INFO!$Z40="MDA5 (IDA)", COUNTRY_INFO!$Z40, " ") ->  | I40: 0 | M40: 0
A41: =IF(COUNTRY_INFO!A41=0," ",COUNTRY_INFO!A41) -> Togo | B41: =IF(COUNTRY_INFO!B41=0," ",COUNTRY_INFO!B41) -> PLATEAUX | C41: =IF(COUNTRY_INFO!C41=0," ",COUNTRY_INFO!C41) -> WAWA | D41: =IF(COUNTRY_INFO!$Z41="MDA5 (IDA)", COUNTRY_INFO!$Z41, " ") ->  | I41: 0 | M41: 0
A42: =IF(COUNTRY_INFO!A42=0," ",COUNTRY_INFO!A42) -> Togo | B42: =IF(COUNTRY_INFO!B42=0," ",COUNTRY_INFO!B42) -> SAVANES | C42: =IF(COUNTRY_INFO!C42=0," ",COUNTRY_INFO!C42) -> CINKASSE | D42: =IF(COUNTRY_INFO!$Z42="MDA5 (IDA)", COUNTRY_INFO!$Z42, " ") ->  | I42: 0 | M42: 0
A43: =IF(COUNTRY_INFO!A43=0," ",COUNTRY_INFO!A43) -> Togo | B43: =IF(COUNTRY_INFO!B43=0," ",COUNTRY_INFO!B43) -> SAVANES | C43: =IF(COUNTRY_INFO!C43=0," ",COUNTRY_INFO!C43) -> KPENDJAL | D43: =IF(COUNTRY_INFO!$Z43="MDA5 (IDA)", COUNTRY_INFO!$Z43, " ") ->  | I43: 0 | M43: 0
A44: =IF(COUNTRY_INFO!A44=0," ",COUNTRY_INFO!A44) -> Togo | B44: =IF(COUNTRY_INFO!B44=0," ",COUNTRY_INFO!B44) -> SAVANES | C44: =IF(COUNTRY_INFO!C44=0," ",COUNTRY_INFO!C44) -> KPENDJAL-OUEST | D44: =IF(COUNTRY_INFO!$Z44="MDA5 (IDA)", COUNTRY_INFO!$Z44, " ") ->  | I44: 0 | M44: 0
A45: =IF(COUNTRY_INFO!A45=0," ",COUNTRY_INFO!A45) -> Togo | B45: =IF(COUNTRY_INFO!B45=0," ",COUNTRY_INFO!B45) -> SAVANES | C45: =IF(COUNTRY_INFO!C45=0," ",COUNTRY_INFO!C45) -> OTI | D45: =IF(COUNTRY_INFO!$Z45="MDA5 (IDA)", COUNTRY_INFO!$Z45, " ") ->  | I45: 0 | M45: 0
A46: =IF(COUNTRY_INFO!A46=0," ",COUNTRY_INFO!A46) -> Togo | B46: =IF(COUNTRY_INFO!B46=0," ",COUNTRY_INFO!B46) -> SAVANES | C46: =IF(COUNTRY_INFO!C46=0," ",COUNTRY_INFO!C46) -> OTI-SUD | D46: =IF(COUNTRY_INFO!$Z46="MDA5 (IDA)", COUNTRY_INFO!$Z46, " ") ->  | I46: 0 | M46: 0
A47: =IF(COUNTRY_INFO!A47=0," ",COUNTRY_INFO!A47) -> Togo | B47: =IF(COUNTRY_INFO!B47=0," ",COUNTRY_INFO!B47) -> SAVANES | C47: =IF(COUNTRY_INFO!C47=0," ",COUNTRY_INFO!C47) -> TANDJOUARE | D47: =IF(COUNTRY_INFO!$Z47="MDA5 (IDA)", COUNTRY_INFO!$Z47, " ") ->  | I47: 0 | M47: 0
A48: =IF(COUNTRY_INFO!A48=0," ",COUNTRY_INFO!A48) -> Togo | B48: =IF(COUNTRY_INFO!B48=0," ",COUNTRY_INFO!B48) -> SAVANES | C48: =IF(COUNTRY_INFO!C48=0," ",COUNTRY_INFO!C48) -> TONE | D48: =IF(COUNTRY_INFO!$Z48="MDA5 (IDA)", COUNTRY_INFO!$Z48, " ") ->  | I48: 0 | M48: 0

Sheet T1
A1: T 1 - Praziquantel (PZQ) et Albendazole (ALB) ou Mebendazole (MBD)
A2: Structure administrative, population nécessitant une chimioprévention par groupe d'âge, population traitée par groupe d'âge et couverture
A4: TOTAL | G4: =SUBTOTAL(9,G$10:G$1010) -> 0 | H4: 0 | I4: 0 | J4: 0 | K4: 0 | L4: 0 | M4: 0 | N4: 0 | O4: =IF(G4<>0, IF(K4/G4*100=0, "-", K4/G4*100), " ") ->  | P4: =IF(H4<>0, IF(L4/H4*100=0, "-", L4/H4*100), " ") ->  | Q4: =IF(I4<>0, IF(M4/I4*100=0, "-", M4/I4*100), " ") ->  | R4: =IF(J4<>0, IF(N4/J4*100=0, "-", N4/J4*100), " ") -> 
A6: Structure administrative du pays | D6: Mise en oeuvre de la CP | E6: Médica-ment | F6: Date | G6: Population ciblée pour T1 | K6: Population traitée | O6: Couverture du Programme (%)
A7: Pays | B7: Région/Département | C7: District | G7: EAPréS | H7: EAS | I7: Adultes | J7: Total | K7: EAPréS | L7: EAS | M7: Adultes | N7: Total | O7: EAPréS | P7: EAS | Q7: Adultes | R7: Total
A10: =IF(COUNTRY_INFO!A10=0," ",COUNTRY_INFO!A10) -> Togo | B10: =IF(COUNTRY_INFO!B10=0," ",COUNTRY_INFO!B10) -> CENTRALE | C10: =IF(COUNTRY_INFO!C10=0," ",COUNTRY_INFO!C10) -> BLITTA | D10: =IF(OR(COUNTRY_INFO!$Z10="T1 (PZQ+ALB/MBD)",COUNTRY_INFO!$AA10="T1 (PZQ+ALB/MBD)"), "T1 (PZQ+ALB/MBD)", " ") ->  | J10: =SUM(G10:I10) -> 0 | N10: =SUM(K10:M10) -> 0 | O10: =IF(G10<>0, IF(K10/G10*100=0, "-", K10/G10*100), " ") ->  | P10: =IF(H10<>0, IF(L10/H10*100=0, "-", L10/H10*100), " ") ->  | Q10: =IF(I10<>0, IF(M10/I10*100=0, "-", M10/I10*100), " ") -> 
A11: =IF(COUNTRY_INFO!A11=0," ",COUNTRY_INFO!A11) -> Togo | B11: =IF(COUNTRY_INFO!B11=0," ",COUNTRY_INFO!B11) -> CENTRALE | C11: =IF(COUNTRY_INFO!C11=0," ",COUNTRY_INFO!C11) -> MÔ | D11: =IF(OR(COUNTRY_INFO!$Z11="T1 (PZQ+ALB/MBD)",COUNTRY_INFO!$AA11="T1 (PZQ+ALB/MBD)"), "T1 (PZQ+ALB/MBD)", " ") ->  | J11: =SUM(G11:I11) -> 0 | N11: =SUM(K11:M11) -> 0 | O11: =IF(G11<>0, IF(K11/G11*100=0, "-", K11/G11*100), " ") ->  | P11: =IF(H11<>0, IF(L11/H11*100=0, "-", L11/H11*100), " ") ->  | Q11: =IF(I11<>0, IF(M11/I11*100=0, "-", M11/I11*100), " ") ->  | R11: =IF(J11<>0, IF(N11/J11*100=0, "-", N11/J11*100), " ") -> 
A12: =IF(COUNTRY_INFO!A12=0," ",COUNTRY_INFO!A12) -> Togo | B12: =IF(COUNTRY_INFO!B12=0," ",COUNTRY_INFO!B12) -> CENTRALE | C12: =IF(COUNTRY_INFO!C12=0," ",COUNTRY_INFO!C12) -> SOTOUBOUA | D12: =IF(OR(COUNTRY_INFO!$Z12="T1 (PZQ+ALB/MBD)",COUNTRY_INFO!$AA12="T1 (PZQ+ALB/MBD)"), "T1 (PZQ+ALB/MBD)", " ") ->  | J12: 0 | N12: 0
A13: =IF(COUNTRY_INFO!A13=0," ",COUNTRY_INFO!A13) -> Togo | B13: =IF(COUNTRY_INFO!B13=0," ",COUNTRY_INFO!B13) -> CENTRALE | C13: =IF(COUNTRY_INFO!C13=0," ",COUNTRY_INFO!C13) -> TCHAMBA | D13: =IF(OR(COUNTRY_INFO!$Z13="T1 (PZQ+ALB/MBD)",COUNTRY_INFO!$AA13="T1 (PZQ+ALB/MBD)"), "T1 (PZQ+ALB/MBD)", " ") ->  | J13: 0 | N13: 0
A14: =IF(COUNTRY_INFO!A14=0," ",COUNTRY_INFO!A14) -> Togo | B14: =IF(COUNTRY_INFO!B14=0," ",COUNTRY_INFO!B14) -> CENTRALE | C14: =IF(COUNTRY_INFO!C14=0," ",COUNTRY_INFO!C14) -> TCHAOUDJO | D14: =IF(OR(COUNTRY_INFO!$Z14="T1 (PZQ+ALB/MBD)",COUNTRY_INFO!$AA14="T1 (PZQ+ALB/MBD)"), "T1 (PZQ+ALB/MBD)", " ") ->  | J14: 0 | N14: 0
A15: =IF(COUNTRY_INFO!A15=0," ",COUNTRY_INFO!A15) -> Togo | B15: =IF(COUNTRY_INFO!B15=0," ",COUNTRY_INFO!B15) -> GRAND-LOME | C15: =IF(COUNTRY_INFO!C15=0," ",COUNTRY_INFO!C15) -> AGOE NYIVE | D15: =IF(OR(COUNTRY_INFO!$Z15="T1 (PZQ+ALB/MBD)",COUNTRY_INFO!$AA15="T1 (PZQ+ALB/MBD)"), "T1 (PZQ+ALB/MBD)", " ") ->  | J15: 0 | N15: 0
A16: =IF(COUNTRY_INFO!A16=0," ",COUNTRY_INFO!A16) -> Togo | B16: =IF(COUNTRY_INFO!B16=0," ",COUNTRY_INFO!B16) -> GRAND-LOME | C16: =IF(COUNTRY_INFO!C16=0," ",COUNTRY_INFO!C16) -> GOLFE | D16: =IF(OR(COUNTRY_INFO!$Z16="T1 (PZQ+ALB/MBD)",COUNTRY_INFO!$AA16="T1 (PZQ+ALB/MBD)"), "T1 (PZQ+ALB/MBD)", " ") ->  | J16: 0 | N16: 0
A17: =IF(COUNTRY_INFO!A17=0," ",COUNTRY_INFO!A17) -> Togo | B17: =IF(COUNTRY_INFO!B17=0," ",COUNTRY_INFO!B17) -> KARA | C17: =IF(COUNTRY_INFO!C17=0," ",COUNTRY_INFO!C17) -> ASSOLI | D17: =IF(OR(COUNTRY_INFO!$Z17="T1 (PZQ+ALB/MBD)",COUNTRY_INFO!$AA17="T1 (PZQ+ALB/MBD)"), "T1 (PZQ+ALB/MBD)", " ") ->  | J17: 0 | N17: 0
A18: =IF(COUNTRY_INFO!A18=0," ",COUNTRY_INFO!A18) -> Togo | B18: =IF(COUNTRY_INFO!B18=0," ",COUNTRY_INFO!B18) -> KARA | C18: =IF(COUNTRY_INFO!C18=0," ",COUNTRY_INFO!C18) -> BASSAR | D18: =IF(OR(COUNTRY_INFO!$Z18="T1 (PZQ+ALB/MBD)",COUNTRY_INFO!$AA18="T1 (PZQ+ALB/MBD)"), "T1 (PZQ+ALB/MBD)", " ") ->  | J18: 0 | N18: 0
A19: =IF(COUNTRY_INFO!A19=0," ",COUNTRY_INFO!A19) -> Togo | B19: =IF(COUNTRY_INFO!B19=0," ",COUNTRY_INFO!B19) -> KARA | C19: =IF(COUNTRY_INFO!C19=0," ",COUNTRY_INFO!C19) -> BINAH | D19: =IF(OR(COUNTRY_INFO!$Z19="T1 (PZQ+ALB/MBD)",COUNTRY_INFO!$AA19="T1 (PZQ+ALB/MBD)"), "T1 (PZQ+ALB/MBD)", " ") ->  | J19: 0 | N19: 0
A20: =IF(COUNTRY_INFO!A20=0," ",COUNTRY_INFO!A20) -> Togo | B20: =IF(COUNTRY_INFO!B20=0," ",COUNTRY_INFO!B20) -> KARA | C20: =IF(COUNTRY_INFO!C20=0," ",COUNTRY_INFO!C20) -> DANKPEN | D20: =IF(OR(COUNTRY_INFO!$Z20="T1 (PZQ+ALB/MBD)",COUNTRY_INFO!$AA20="T1 (PZQ+ALB/MBD)"), "T1 (PZQ+ALB/MBD)", " ") ->  | J20: 0 | N20: 0
A21: =IF(COUNTRY_INFO!A21=0," ",COUNTRY_INFO!A21) -> Togo | B21: =IF(COUNTRY_INFO!B21=0," ",COUNTRY_INFO!B21) -> KARA | C21: =IF(COUNTRY_INFO!C21=0," ",COUNTRY_INFO!C21) -> DOUFELGOU | D21: =IF(OR(COUNTRY_INFO!$Z21="T1 (PZQ+ALB/MBD)",COUNTRY_INFO!$AA21="T1 (PZQ+ALB/MBD)"), "T1 (PZQ+ALB/MBD)", " ") ->  | J21: 0 | N21: 0
A22: =IF(COUNTRY_INFO!A22=0," ",COUNTRY_INFO!A22) -> Togo | B22: =IF(COUNTRY_INFO!B22=0," ",COUNTRY_INFO!B22) -> KARA | C22: =IF(COUNTRY_INFO!C22=0," ",COUNTRY_INFO!C22) -> KERAN | D22: =IF(OR(COUNTRY_INFO!$Z22="T1 (PZQ+ALB/MBD)",COUNTRY_INFO!$AA22="T1 (PZQ+ALB/MBD)"), "T1 (PZQ+ALB/MBD)", " ") ->  | J22: 0 | N22: 0
A23: =IF(COUNTRY_INFO!A23=0," ",COUNTRY_INFO!A23) -> Togo | B23: =IF(COUNTRY_INFO!B23=0," ",COUNTRY_INFO!B23) -> KARA | C23: =IF(COUNTRY_INFO!C23=0," ",COUNTRY_INFO!C23) -> KOZAH | D23: =IF(OR(COUNTRY_INFO!$Z23="T1 (PZQ+ALB/MBD)",COUNTRY_INFO!$AA23="T1 (PZQ+ALB/MBD)"), "T1 (PZQ+ALB/MBD)", " ") ->  | J23: 0 | N23: 0
A24: =IF(COUNTRY_INFO!A24=0," ",COUNTRY_INFO!A24) -> Togo | B24: =IF(COUNTRY_INFO!B24=0," ",COUNTRY_INFO!B24) -> MARITIME | C24: =IF(COUNTRY_INFO!C24=0," ",COUNTRY_INFO!C24) -> AVE | D24: =IF(OR(COUNTRY_INFO!$Z24="T1 (PZQ+ALB/MBD)",COUNTRY_INFO!$AA24="T1 (PZQ+ALB/MBD)"), "T1 (PZQ+ALB/MBD)", " ") ->  | J24: 0 | N24: 0
A25: =IF(COUNTRY_INFO!A25=0," ",COUNTRY_INFO!A25) -> Togo | B25: =IF(COUNTRY_INFO!B25=0," ",COUNTRY_INFO!B25) -> MARITIME | C25: =IF(COUNTRY_INFO!C25=0," ",COUNTRY_INFO!C25) -> BAS-MONO | D25: =IF(OR(COUNTRY_INFO!$Z25="T1 (PZQ+ALB/MBD)",COUNTRY_INFO!$AA25="T1 (PZQ+ALB/MBD)"), "T1 (PZQ+ALB/MBD)", " ") ->  | J25: 0 | N25: 0
A26: =IF(COUNTRY_INFO!A26=0," ",COUNTRY_INFO!A26) -> Togo | B26: =IF(COUNTRY_INFO!B26=0," ",COUNTRY_INFO!B26) -> MARITIME | C26: =IF(COUNTRY_INFO!C26=0," ",COUNTRY_INFO!C26) -> LACS | D26: =IF(OR(COUNTRY_INFO!$Z26="T1 (PZQ+ALB/MBD)",COUNTRY_INFO!$AA26="T1 (PZQ+ALB/MBD)"), "T1 (PZQ+ALB/MBD)", " ") ->  | J26: 0 | N26: 0
A27: =IF(COUNTRY_INFO!A27=0," ",COUNTRY_INFO!A27) -> Togo | B27: =IF(COUNTRY_INFO!B27=0," ",COUNTRY_INFO!B27) -> MARITIME | C27: =IF(COUNTRY_INFO!C27=0," ",COUNTRY_INFO!C27) -> VO | D27: =IF(OR(COUNTRY_INFO!$Z27="T1 (PZQ+ALB/MBD)",COUNTRY_INFO!$AA27="T1 (PZQ+ALB/MBD)"), "T1 (PZQ+ALB/MBD)", " ") ->  | J27: 0 | N27: 0
A28: =IF(COUNTRY_INFO!A28=0," ",COUNTRY_INFO!A28) -> Togo | B28: =IF(COUNTRY_INFO!B28=0," ",COUNTRY_INFO!B28) -> MARITIME | C28: =IF(COUNTRY_INFO!C28=0," ",COUNTRY_INFO!C28) -> YOTO | D28: =IF(OR(COUNTRY_INFO!$Z28="T1 (PZQ+ALB/MBD)",COUNTRY_INFO!$AA28="T1 (PZQ+ALB/MBD)"), "T1 (PZQ+ALB/MBD)", " ") ->  | J28: 0 | N28: 0
A29: =IF(COUNTRY_INFO!A29=0," ",COUNTRY_INFO!A29) -> Togo | B29: =IF(COUNTRY_INFO!B29=0," ",COUNTRY_INFO!B29) -> MARITIME | C29: =IF(COUNTRY_INFO!C29=0," ",COUNTRY_INFO!C29) -> ZIO | D29: =IF(OR(COUNTRY_INFO!$Z29="T1 (PZQ+ALB/MBD)",COUNTRY_INFO!$AA29="T1 (PZQ+ALB/MBD)"), "T1 (PZQ+ALB/MBD)", " ") ->  | J29: 0 | N29: 0
A30: =IF(COUNTRY_INFO!A30=0," ",COUNTRY_INFO!A30) -> Togo | B30: =IF(COUNTRY_INFO!B30=0," ",COUNTRY_INFO!B30) -> PLATEAUX | C30: =IF(COUNTRY_INFO!C30=0," ",COUNTRY_INFO!C30) -> AGOU | D30: =IF(OR(COUNTRY_INFO!$Z30="T1 (PZQ+ALB/MBD)",COUNTRY_INFO!$AA30="T1 (PZQ+ALB/MBD)"), "T1 (PZQ+ALB/MBD)", " ") ->  | J30: 0 | N30: 0
A31: =IF(COUNTRY_INFO!A31=0," ",COUNTRY_INFO!A31) -> Togo | B31: =IF(COUNTRY_INFO!B31=0," ",COUNTRY_INFO!B31) -> PLATEAUX | C31: =IF(COUNTRY_INFO!C31=0," ",COUNTRY_INFO!C31) -> AKEBOU | D31: =IF(OR(COUNTRY_INFO!$Z31="T1 (PZQ+ALB/MBD)",COUNTRY_INFO!$AA31="T1 (PZQ+ALB/MBD)"), "T1 (PZQ+ALB/MBD)", " ") ->  | J31: 0 | N31: 0
A32: =IF(COUNTRY_INFO!A32=0," ",COUNTRY_INFO!A32) -> Togo | B32: =IF(COUNTRY_INFO!B32=0," ",COUNTRY_INFO!B32) -> PLATEAUX | C32: =IF(COUNTRY_INFO!C32=0," ",COUNTRY_INFO!C32) -> AMOU | D32: =IF(OR(COUNTRY_INFO!$Z32="T1 (PZQ+ALB/MBD)",COUNTRY_INFO!$AA32="T1 (PZQ+ALB/MBD)"), "T1 (PZQ+ALB/MBD)", " ") ->  | J32: 0 | N32: 0
A33: =IF(COUNTRY_INFO!A33=0," ",COUNTRY_INFO!A33) -> Togo | B33: =IF(COUNTRY_INFO!B33=0," ",COUNTRY_INFO!B33) -> PLATEAUX | C33: =IF(COUNTRY_INFO!C33=0," ",COUNTRY_INFO!C33) -> ANIE | D33: =IF(OR(COUNTRY_INFO!$Z33="T1 (PZQ+ALB/MBD)",COUNTRY_INFO!$AA33="T1 (PZQ+ALB/MBD)"), "T1 (PZQ+ALB/MBD)", " ") ->  | J33: 0 | N33: 0
A34: =IF(COUNTRY_INFO!A34=0," ",COUNTRY_INFO!A34) -> Togo | B34: =IF(COUNTRY_INFO!B34=0," ",COUNTRY_INFO!B34) -> PLATEAUX | C34: =IF(COUNTRY_INFO!C34=0," ",COUNTRY_INFO!C34) -> DANYI | D34: =IF(OR(COUNTRY_INFO!$Z34="T1 (PZQ+ALB/MBD)",COUNTRY_INFO!$AA34="T1 (PZQ+ALB/MBD)"), "T1 (PZQ+ALB/MBD)", " ") ->  | J34: 0 | N34: 0
A35: =IF(COUNTRY_INFO!A35=0," ",COUNTRY_INFO!A35) -> Togo | B35: =IF(COUNTRY_INFO!B35=0," ",COUNTRY_INFO!B35) -> PLATEAUX | C35: =IF(COUNTRY_INFO!C35=0," ",COUNTRY_INFO!C35) -> EST-MONO | D35: =IF(OR(COUNTRY_INFO!$Z35="T1 (PZQ+ALB/MBD)",COUNTRY_INFO!$AA35="T1 (PZQ+ALB/MBD)"), "T1 (PZQ+ALB/MBD)", " ") ->  | J35: 0 | N35: 0
A36: =IF(COUNTRY_INFO!A36=0," ",COUNTRY_INFO!A36) -> Togo | B36: =IF(COUNTRY_INFO!B36=0," ",COUNTRY_INFO!B36) -> PLATEAUX | C36: =IF(COUNTRY_INFO!C36=0," ",COUNTRY_INFO!C36) -> HAHO | D36: =IF(OR(COUNTRY_INFO!$Z36="T1 (PZQ+ALB/MBD)",COUNTRY_INFO!$AA36="T1 (PZQ+ALB/MBD)"), "T1 (PZQ+ALB/MBD)", " ") ->  | J36: 0 | N36: 0
A37: =IF(COUNTRY_INFO!A37=0," ",COUNTRY_INFO!A37) -> Togo | B37: =IF(COUNTRY_INFO!B37=0," ",COUNTRY_INFO!B37) -> PLATEAUX | C37: =IF(COUNTRY_INFO!C37=0," ",COUNTRY_INFO!C37) -> KLOTO | D37: =IF(OR(COUNTRY_INFO!$Z37="T1 (PZQ+ALB/MBD)",COUNTRY_INFO!$AA37="T1 (PZQ+ALB/MBD)"), "T1 (PZQ+ALB/MBD)", " ") ->  | J37: 0 | N37: 0
A38: =IF(COUNTRY_INFO!A38=0," ",COUNTRY_INFO!A38) -> Togo | B38: =IF(COUNTRY_INFO!B38=0," ",COUNTRY_INFO!B38) -> PLATEAUX | C38: =IF(COUNTRY_INFO!C38=0," ",COUNTRY_INFO!C38) -> KPELE | D38: =IF(OR(COUNTRY_INFO!$Z38="T1 (PZQ+ALB/MBD)",COUNTRY_INFO!$AA38="T1 (PZQ+ALB/MBD)"), "T1 (PZQ+ALB/MBD)", " ") ->  | J38: 0 | N38: 0
A39: =IF(COUNTRY_INFO!A39=0," ",COUNTRY_INFO!A39) -> Togo | B39: =IF(COUNTRY_INFO!B39=0," ",COUNTRY_INFO!B39) -> PLATEAUX | C39: =IF(COUNTRY_INFO!C39=0," ",COUNTRY_INFO!C39) -> MOYEN-MONO | D39: =IF(OR(COUNTRY_INFO!$Z39="T1 (PZQ+ALB/MBD)",COUNTRY_INFO!$AA39="T1 (PZQ+ALB/MBD)"), "T1 (PZQ+ALB/MBD)", " ") ->  | J39: 0 | N39: 0
A40: =IF(COUNTRY_INFO!A40=0," ",COUNTRY_INFO!A40) -> Togo | B40: =IF(COUNTRY_INFO!B40=0," ",COUNTRY_INFO!B40) -> PLATEAUX | C40: =IF(COUNTRY_INFO!C40=0," ",COUNTRY_INFO!C40) -> OGOU | D40: =IF(OR(COUNTRY_INFO!$Z40="T1 (PZQ+ALB/MBD)",COUNTRY_INFO!$AA40="T1 (PZQ+ALB/MBD)"), "T1 (PZQ+ALB/MBD)", " ") ->  | J40: 0 | N40: 0
A41: =IF(COUNTRY_INFO!A41=0," ",COUNTRY_INFO!A41) -> Togo | B41: =IF(COUNTRY_INFO!B41=0," ",COUNTRY_INFO!B41) -> PLATEAUX | C41: =IF(COUNTRY_INFO!C41=0," ",COUNTRY_INFO!C41) -> WAWA | D41: =IF(OR(COUNTRY_INFO!$Z41="T1 (PZQ+ALB/MBD)",COUNTRY_INFO!$AA41="T1 (PZQ+ALB/MBD)"), "T1 (PZQ+ALB/MBD)", " ") ->  | J41: 0 | N41: 0
A42: =IF(COUNTRY_INFO!A42=0," ",COUNTRY_INFO!A42) -> Togo | B42: =IF(COUNTRY_INFO!B42=0," ",COUNTRY_INFO!B42) -> SAVANES | C42: =IF(COUNTRY_INFO!C42=0," ",COUNTRY_INFO!C42) -> CINKASSE | D42: =IF(OR(COUNTRY_INFO!$Z42="T1 (PZQ+ALB/MBD)",COUNTRY_INFO!$AA42="T1 (PZQ+ALB/MBD)"), "T1 (PZQ+ALB/MBD)", " ") ->  | J42: 0 | N42: 0
A43: =IF(COUNTRY_INFO!A43=0," ",COUNTRY_INFO!A43) -> Togo | B43: =IF(COUNTRY_INFO!B43=0," ",COUNTRY_INFO!B43) -> SAVANES | C43: =IF(COUNTRY_INFO!C43=0," ",COUNTRY_INFO!C43) -> KPENDJAL | D43: =IF(OR(COUNTRY_INFO!$Z43="T1 (PZQ+ALB/MBD)",COUNTRY_INFO!$AA43="T1 (PZQ+ALB/MBD)"), "T1 (PZQ+ALB/MBD)", " ") ->  | J43: 0 | N43: 0
A44: =IF(COUNTRY_INFO!A44=0," ",COUNTRY_INFO!A44) -> Togo | B44: =IF(COUNTRY_INFO!B44=0," ",COUNTRY_INFO!B44) -> SAVANES | C44: =IF(COUNTRY_INFO!C44=0," ",COUNTRY_INFO!C44) -> KPENDJAL-OUEST | D44: =IF(OR(COUNTRY_INFO!$Z44="T1 (PZQ+ALB/MBD)",COUNTRY_INFO!$AA44="T1 (PZQ+ALB/MBD)"), "T1 (PZQ+ALB/MBD)", " ") ->  | J44: 0 | N44: 0
A45: =IF(COUNTRY_INFO!A45=0," ",COUNTRY_INFO!A45) -> Togo | B45: =IF(COUNTRY_INFO!B45=0," ",COUNTRY_INFO!B45) -> SAVANES | C45: =IF(COUNTRY_INFO!C45=0," ",COUNTRY_INFO!C45) -> OTI | D45: =IF(OR(COUNTRY_INFO!$Z45="T1 (PZQ+ALB/MBD)",COUNTRY_INFO!$AA45="T1 (PZQ+ALB/MBD)"), "T1 (PZQ+ALB/MBD)", " ") ->  | J45: 0 | N45: 0
A46: =IF(COUNTRY_INFO!A46=0," ",COUNTRY_INFO!A46) -> Togo | B46: =IF(COUNTRY_INFO!B46=0," ",COUNTRY_INFO!B46) -> SAVANES | C46: =IF(COUNTRY_INFO!C46=0," ",COUNTRY_INFO!C46) -> OTI-SUD | D46: =IF(OR(COUNTRY_INFO!$Z46="T1 (PZQ+ALB/MBD)",COUNTRY_INFO!$AA46="T1 (PZQ+ALB/MBD)"), "T1 (PZQ+ALB/MBD)", " ") ->  | J46: 0 | N46: 0
A47: =IF(COUNTRY_INFO!A47=0," ",COUNTRY_INFO!A47) -> Togo | B47: =IF(COUNTRY_INFO!B47=0," ",COUNTRY_INFO!B47) -> SAVANES | C47: =IF(COUNTRY_INFO!C47=0," ",COUNTRY_INFO!C47) -> TANDJOUARE | D47: =IF(OR(COUNTRY_INFO!$Z47="T1 (PZQ+ALB/MBD)",COUNTRY_INFO!$AA47="T1 (PZQ+ALB/MBD)"), "T1 (PZQ+ALB/MBD)", " ") ->  | J47: 0 | N47: 0
A48: =IF(COUNTRY_INFO!A48=0," ",COUNTRY_INFO!A48) -> Togo | B48: =IF(COUNTRY_INFO!B48=0," ",COUNTRY_INFO!B48) -> SAVANES | C48: =IF(COUNTRY_INFO!C48=0," ",COUNTRY_INFO!C48) -> TONE | D48: =IF(OR(COUNTRY_INFO!$Z48="T1 (PZQ+ALB/MBD)",COUNTRY_INFO!$AA48="T1 (PZQ+ALB/MBD)"), "T1 (PZQ+ALB/MBD)", " ") ->  | J48: 0 | N48: 0

Sheet T2
A1: T 2 - Praziquantel (PZQ)
A2: Structure administrative, population nécessitant une chimioprévention par groupe d'âge, population traitée par groupe d'âge et couverture
A4: TOTAL | F4: =SUBTOTAL(9,F$10:F$1010) -> 0 | G4: =SUBTOTAL(9,G$10:G$1010) -> 1843025.59 | H4: 954582.4215 | I4: 2797608.011 | J4: =SUBTOTAL(9,J$10:J$1010) -> 0 | K4: 1811333 | L4: 941945.48 | M4: 2753278.48 | N4: 0 | O4: 305217 | P4: 458336 | Q4: 763553 | R4: 0 | S4: 1811333 | T4: 942535.48 | U4: 2753868.48 | V4: =IF(F4<>0, IF(R4/F4*100=0, "-", R4/F4*100), " ") ->  | W4: =IF(G4<>0, IF(S4/G4*100=0, "-", S4/G4*100), " ") -> 98.28040424 | X4: =IF(H4<>0, IF(T4/H4*100=0, "-", T4/H4*100), " ") -> 98.73798834 | Y4: =IF(I4<>0, IF(U4/I4*100=0, "-", U4/I4*100), " ") -> 98.43653824
A6: Structure administrative du pays | D6: Mise en oeuvre de la CP | E6: Date | F6: Population ciblée pour T2 | J6: Population traitée | N6: Population traitée dans les HOTSPOTS | R6: Population totale traitée | V6: Couverture du Programme (%)
A7: Pays | B7: Région/Département | C7: District | F7: EAPréS | G7: EAS | H7: Adultes | I7: Total | J7: EAPréS | K7: EAS | L7: Adultes | M7: Total | N7: PreSAC | O7: SAC | P7: Adults | Q7: Total | R7: EAPréS | S7: EAS | T7: Adultes | U7: Total | V7: EAPréS | W7: EAS | X7: Adultes | Y7: Total
A10: =IF(COUNTRY_INFO!A10=0," ",COUNTRY_INFO!A10) -> Togo | B10: =IF(COUNTRY_INFO!B10=0," ",COUNTRY_INFO!B10) -> CENTRALE | C10: =IF(COUNTRY_INFO!C10=0," ",COUNTRY_INFO!C10) -> BLITTA | D10: =IF(OR(COUNTRY_INFO!$Z10="T2 (PZQ)",COUNTRY_INFO!$AA10="T2 (PZQ)"), "T2 (PZQ)", " ") -> T2 (PZQ) | E10: Août 2022 | G10: 52091 | H10: 54190 | I10: =SUM(F10:H10) -> 106281 | K10: 52598 | L10: 53505 | M10: =SUM(J10:L10) -> 106103 | O10: 0 | P10: 0 | Q10: =SUM(N10:P10) -> 0 | R10: =MAX(J10,N10) -> 0 | S10: =MAX(K10,O10) -> 52598 | T10: =MAX(L10,P10) -> 53505 | U10: =SUM(R10:T10) -> 106103 | V10: =IF(F10<>0, IF(R10/F10*100=0, "-", R10/F10*100), " ") ->  | W10: =IF(G10<>0, IF(S10/G10*100=0, "-", S10/G10*100), " ") -> 100.9732967 | X10: =IF(H10<>0, IF(T10/H10*100=0, "-",T10/H10*100), " ") -> 98.73592914 | Y10: =IF(I10<>0, IF(U10/I10*100=0, "-", U10/I10*100), " ") -> 99.83251945
A11: =IF(COUNTRY_INFO!A11=0," ",COUNTRY_INFO!A11) -> Togo | B11: =IF(COUNTRY_INFO!B11=0," ",COUNTRY_INFO!B11) -> CENTRALE | C11: =IF(COUNTRY_INFO!C11=0," ",COUNTRY_INFO!C11) -> MÔ | D11: =IF(OR(COUNTRY_INFO!$Z11="T2 (PZQ)",COUNTRY_INFO!$AA11="T2 (PZQ)"), "T2 (PZQ)", " ") -> T2 (PZQ) | E11: Août 2022 | G11: 9211 | H11: 0 | I11: =SUM(F11:H11) -> 9211 | K11: 8649 | L11: 0 | M11: =SUM(J11:L11) -> 8649 | O11: 0 | P11: 0 | Q11: =SUM(N11:P11) -> 0 | R11: =MAX(J11,N11) -> 0 | S11: =MAX(K11,O11) -> 8649 | T11: =MAX(L11,P11) -> 0 | U11: =SUM(R11:T11) -> 8649 | V11: =IF(F11<>0, IF(R11/F11*100=0, "-", R11/F11*100), " ") ->  | W11: =IF(G11<>0, IF(S11/G11*100=0, "-", S11/G11*100), " ") -> 93.8985995 | X11: =IF(H11<>0, IF(T11/H11*100=0, "-",T11/H11*100), " ") ->  | Y11: =IF(I11<>0, IF(U11/I11*100=0, "-", U11/I11*100), " ") -> 93.8985995
A12: =IF(COUNTRY_INFO!A12=0," ",COUNTRY_INFO!A12) -> Togo | B12: =IF(COUNTRY_INFO!B12=0," ",COUNTRY_INFO!B12) -> CENTRALE | C12: =IF(COUNTRY_INFO!C12=0," ",COUNTRY_INFO!C12) -> SOTOUBOUA | D12: =IF(OR(COUNTRY_INFO!$Z12="T2 (PZQ)",COUNTRY_INFO!$AA12="T2 (PZQ)"), "T2 (PZQ)", " ") -> T2 (PZQ) | E12: Août 2022 | G12: 27052.6704 | H12: 1497.2328 | I12: 28549.9032 | K12: 26990 | L12: 1420 | M12: 28410 | O12: 0 | P12: 0 | Q12: 0 | R12: 0 | S12: 26990 | T12: 1420 | U12: 28410 | W12: 99.76833932 | X12: 94.84163051 | Y12: 99.50996962
A13: =IF(COUNTRY_INFO!A13=0," ",COUNTRY_INFO!A13) -> Togo | B13: =IF(COUNTRY_INFO!B13=0," ",COUNTRY_INFO!B13) -> CENTRALE | C13: =IF(COUNTRY_INFO!C13=0," ",COUNTRY_INFO!C13) -> TCHAMBA | D13: =IF(OR(COUNTRY_INFO!$Z13="T2 (PZQ)",COUNTRY_INFO!$AA13="T2 (PZQ)"), "T2 (PZQ)", " ") -> T2 (PZQ) | E13: Août 2022 | G13: 58050 | H13: 0 | I13: 58050 | K13: 59603 | L13: 0 | M13: 59603 | O13: 0 | P13: 0 | Q13: 0 | R13: 0 | S13: 59603 | T13: 0 | U13: 59603 | W13: 102.6752799 | Y13: 102.6752799
A14: =IF(COUNTRY_INFO!A14=0," ",COUNTRY_INFO!A14) -> Togo | B14: =IF(COUNTRY_INFO!B14=0," ",COUNTRY_INFO!B14) -> CENTRALE | C14: =IF(COUNTRY_INFO!C14=0," ",COUNTRY_INFO!C14) -> TCHAOUDJO | D14: =IF(OR(COUNTRY_INFO!$Z14="T2 (PZQ)",COUNTRY_INFO!$AA14="T2 (PZQ)"), "T2 (PZQ)", " ") -> T2 (PZQ) | E14: Août 2022 et Janvier 2023 | G14: 71765.4864 | H14: 26230.3904 | I14: 97995.8768 | K14: 71308 | L14: 27669 | M14: 98977 | O14: 7913 | P14: 15346 | Q14: 23259 | R14: 0 | S14: 71308 | T14: 27669 | U14: 98977 | W14: 99.36252588 | X14: 105.4845146 | Y14: 101.0011882
A15: =IF(COUNTRY_INFO!A15=0," ",COUNTRY_INFO!A15) -> Togo | B15: =IF(COUNTRY_INFO!B15=0," ",COUNTRY_INFO!B15) -> GRAND-LOME | C15: =IF(COUNTRY_INFO!C15=0," ",COUNTRY_INFO!C15) -> AGOE NYIVE | D15: =IF(OR(COUNTRY_INFO!$Z15="T2 (PZQ)",COUNTRY_INFO!$AA15="T2 (PZQ)"), "T2 (PZQ)", " ") -> T2 (PZQ) | E15: Août 2022 et Janvier 2023 | G15: 137575.4496 | H15: 161756.9248 | I15: 299332.3744 | K15: 140549 | L15: 163095 | M15: 303644 | O15: 97776 | P15: 163685 | Q15: 261461 | R15: 0 | S15: 140549 | T15: 163685 | U15: 304234 | W15: 102.1613961 | X15: 101.1919584 | Y15: 101.6375194
A16: =IF(COUNTRY_INFO!A16=0," ",COUNTRY_INFO!A16) -> Togo | B16: =IF(COUNTRY_INFO!B16=0," ",COUNTRY_INFO!B16) -> GRAND-LOME | C16: =IF(COUNTRY_INFO!C16=0," ",COUNTRY_INFO!C16) -> GOLFE | D16: =IF(OR(COUNTRY_INFO!$Z16="T2 (PZQ)",COUNTRY_INFO!$AA16="T2 (PZQ)"), "T2 (PZQ)", " ") -> T2 (PZQ) | E16: Août 2022 | G16: 46310 | I16: 46310 | K16: 47879 | M16: 47879 | O16: 0 | P16: 0 | Q16: 0 | R16: 0 | S16: 47879 | T16: 0 | U16: 47879 | W16: 103.3880371 | Y16: 103.3880371
A17: =IF(COUNTRY_INFO!A17=0," ",COUNTRY_INFO!A17) -> Togo | B17: =IF(COUNTRY_INFO!B17=0," ",COUNTRY_INFO!B17) -> KARA | C17: =IF(COUNTRY_INFO!C17=0," ",COUNTRY_INFO!C17) -> ASSOLI | D17: =IF(OR(COUNTRY_INFO!$Z17="T2 (PZQ)",COUNTRY_INFO!$AA17="T2 (PZQ)"), "T2 (PZQ)", " ") -> T2 (PZQ) | E17: Août 2022 et Janvier 2023 | G17: 14123.7936 | H17: 4505.0208 | I17: 18628.8144 | K17: 14216 | L17: 4608 | M17: 18824 | O17: 2851 | P17: 4542 | Q17: 7393 | R17: 0 | S17: 14216 | T17: 4608 | U17: 18824 | W17: 100.6528444 | X17: 102.2858762 | Y17: 101.0477618
A18: =IF(COUNTRY_INFO!A18=0," ",COUNTRY_INFO!A18) -> Togo | B18: =IF(COUNTRY_INFO!B18=0," ",COUNTRY_INFO!B18) -> KARA | C18: =IF(COUNTRY_INFO!C18=0," ",COUNTRY_INFO!C18) -> BASSAR | D18: =IF(OR(COUNTRY_INFO!$Z18="T2 (PZQ)",COUNTRY_INFO!$AA18="T2 (PZQ)"), "T2 (PZQ)", " ") -> T2 (PZQ) | E18: Août 2022 et Janvier 2023 | G18: 39299.0304 | H18: 8070.3 | I18: 47369.3304 | K18: 38621 | L18: 7505 | M18: 46126 | O18: 742 | P18: 1346 | Q18: 2088 | R18: 0 | S18: 38621 | T18: 7505 | U18: 46126 | W18: 98.27468924 | X18: 92.99530377 | Y18: 97.37524177
A19: =IF(COUNTRY_INFO!A19=0," ",COUNTRY_INFO!A19) -> Togo | B19: =IF(COUNTRY_INFO!B19=0," ",COUNTRY_INFO!B19) -> KARA | C19: =IF(COUNTRY_INFO!C19=0," ",COUNTRY_INFO!C19) -> BINAH | D19: =IF(OR(COUNTRY_INFO!$Z19="T2 (PZQ)",COUNTRY_INFO!$AA19="T2 (PZQ)"), "T2 (PZQ)", " ") -> T2 (PZQ) | E19: Août 2022 | G19: 24975.6296 | H19: 18651.7216 | I19: 43627.3512 | K19: 23287 | L19: 16045 | M19: 39332 | Q19: 0 | R19: 0 | S19: 23287 | T19: 16045 | U19: 39332 | W19: 93.23889076 | X19: 86.0242306 | Y19: 90.15445338
A20: =IF(COUNTRY_INFO!A20=0," ",COUNTRY_INFO!A20) -> Togo | B20: =IF(COUNTRY_INFO!B20=0," ",COUNTRY_INFO!B20) -> KARA | C20: =IF(COUNTRY_INFO!C20=0," ",COUNTRY_INFO!C20) -> DANKPEN | D20: =IF(OR(COUNTRY_INFO!$Z20="T2 (PZQ)",COUNTRY_INFO!$AA20="T2 (PZQ)"), "T2 (PZQ)", " ") -> T2 (PZQ) | E20: Août 2022 | G20: 19997.9472 | H20: 0 | I20: 19997.9472 | K20: 20080 | L20: 0 | M20: 20080 | O20: 0 | P20: 0 | Q20: 0 | R20: 0 | S20: 20080 | T20: 0 | U20: 20080 | W20: 100.4103061 | Y20: 100.4103061
A21: =IF(COUNTRY_INFO!A21=0," ",COUNTRY_INFO!A21) -> Togo | B21: =IF(COUNTRY_INFO!B21=0," ",COUNTRY_INFO!B21) -> KARA | C21: =IF(COUNTRY_INFO!C21=0," ",COUNTRY_INFO!C21) -> DOUFELGOU | D21: =IF(OR(COUNTRY_INFO!$Z21="T2 (PZQ)",COUNTRY_INFO!$AA21="T2 (PZQ)"), "T2 (PZQ)", " ") -> T2 (PZQ) | E21: Août 2022 et Janvier 2023 | G21: 25158.6032 | H21: 13813.0192 | I21: 38971.6224 | K21: 25457 | L21: 14067 | M21: 39524 | O21: 22798 | P21: 11642 | Q21: 34440 | R21: 0 | S21: 25457 | T21: 14067 | U21: 39524 | W21: 101.1860627 | X21: 101.8387059 | Y21: 101.4173842
A22: =IF(COUNTRY_INFO!A22=0," ",COUNTRY_INFO!A22) -> Togo | B22: =IF(COUNTRY_INFO!B22=0," ",COUNTRY_INFO!B22) -> KARA | C22: =IF(COUNTRY_INFO!C22=0," ",COUNTRY_INFO!C22) -> KERAN | D22: =IF(OR(COUNTRY_INFO!$Z22="T2 (PZQ)",COUNTRY_INFO!$AA22="T2 (PZQ)"), "T2 (PZQ)", " ") -> T2 (PZQ) | E22: Août 2022 | G22: 41213.5758 | H22: 17532.7696 | I22: 58746.3454 | K22: 41615 | L22: 17808 | M22: 59423 | O22: 0 | P22: 0 | Q22: 0 | R22: 0 | S22: 41615 | T22: 17808 | U22: 59423 | W22: 100.9740096 | X22: 101.5698056 | Y22: 101.1518242
A23: =IF(COUNTRY_INFO!A23=0," ",COUNTRY_INFO!A23) -> Togo | B23: =IF(COUNTRY_INFO!B23=0," ",COUNTRY_INFO!B23) -> KARA | C23: =IF(COUNTRY_INFO!C23=0," ",COUNTRY_INFO!C23) -> KOZAH | D23: =IF(OR(COUNTRY_INFO!$Z23="T2 (PZQ)",COUNTRY_INFO!$AA23="T2 (PZQ)"), "T2 (PZQ)", " ") -> T2 (PZQ) | E23: Août 2022 et Janvier 2023 | G23: 87442.0848 | H23: 53271.2682 | I23: 140713.353 | K23: 87470 | L23: 49594 | M23: 137064 | O23: 10329 | P23: 23162 | Q23: 33491 | R23: 0 | S23: 87470 | T23: 49594 | U23: 137064 | W23: 100.0319242 | X23: 93.09708906 | Y23: 97.40653398
A24: =IF(COUNTRY_INFO!A24=0," ",COUNTRY_INFO!A24) -> Togo | B24: =IF(COUNTRY_INFO!B24=0," ",COUNTRY_INFO!B24) -> MARITIME | C24: =IF(COUNTRY_INFO!C24=0," ",COUNTRY_INFO!C24) -> AVE | D24: =IF(OR(COUNTRY_INFO!$Z24="T2 (PZQ)",COUNTRY_INFO!$AA24="T2 (PZQ)"), "T2 (PZQ)", " ") -> T2 (PZQ) | E24: Août 2022 | G24: 38600.1168 | H24: 5915.1456 | I24: 44515.2624 | K24: 37144 | L24: 5160 | M24: 42304 | O24: 0 | P24: 0 | Q24: 0 | R24: 0 | S24: 37144 | T24: 5160 | U24: 42304 | W24: 96.2276881 | X24: 87.23369379 | Y24: 95.03257472
A25: =IF(COUNTRY_INFO!A25=0," ",COUNTRY_INFO!A25) -> Togo | B25: =IF(COUNTRY_INFO!B25=0," ",COUNTRY_INFO!B25) -> MARITIME | C25: =IF(COUNTRY_INFO!C25=0," ",COUNTRY_INFO!C25) -> BAS-MONO | D25: =IF(OR(COUNTRY_INFO!$Z25="T2 (PZQ)",COUNTRY_INFO!$AA25="T2 (PZQ)"), "T2 (PZQ)", " ") -> T2 (PZQ) | E25: Août 2022 | G25: 23360.8456 | H25: 0 | I25: 23360.8456 | K25: 20706 | L25: 0 | M25: 20706 | O25: 0 | P25: 0 | Q25: 0 | R25: 0 | S25: 20706 | T25: 0 | U25: 20706 | W25: 88.63549015 | Y25: 88.63549015
A26: =IF(COUNTRY_INFO!A26=0," ",COUNTRY_INFO!A26) -> Togo | B26: =IF(COUNTRY_INFO!B26=0," ",COUNTRY_INFO!B26) -> MARITIME | C26: =IF(COUNTRY_INFO!C26=0," ",COUNTRY_INFO!C26) -> LACS | D26: =IF(OR(COUNTRY_INFO!$Z26="T2 (PZQ)",COUNTRY_INFO!$AA26="T2 (PZQ)"), "T2 (PZQ)", " ") -> T2 (PZQ) | E26: Août 2022 | G26: 43921 | H26: 31524 | I26: 75445 | K26: 42082 | L26: 29659 | M26: 71741 | O26: 0 | P26: 0 | Q26: 0 | R26: 0 | S26: 42082 | T26: 29659 | U26: 71741 | W26: 95.81293686 | X26: 94.0838726 | Y26: 95.09046325
A27: =IF(COUNTRY_INFO!A27=0," ",COUNTRY_INFO!A27) -> Togo | B27: =IF(COUNTRY_INFO!B27=0," ",COUNTRY_INFO!B27) -> MARITIME | C27: =IF(COUNTRY_INFO!C27=0," ",COUNTRY_INFO!C27) -> VO | D27: =IF(OR(COUNTRY_INFO!$Z27="T2 (PZQ)",COUNTRY_INFO!$AA27="T2 (PZQ)"), "T2 (PZQ)", " ") -> T2 (PZQ) | E27: Août 2022 | G27: 57418.5192 | H27: 30326.9064 | I27: 87745.4256 | K27: 52135 | L27: 28563 | M27: 80698 | O27: 0 | P27: 0 | Q27: 0 | R27: 0 | S27: 52135 | T27: 28563 | U27: 80698 | W27: 90.79823152 | X27: 94.18369161 | Y27: 91.96832706
A28: =IF(COUNTRY_INFO!A28=0," ",COUNTRY_INFO!A28) -> Togo | B28: =IF(COUNTRY_INFO!B28=0," ",COUNTRY_INFO!B28) -> MARITIME | C28: =IF(COUNTRY_INFO!C28=0," ",COUNTRY_INFO!C28) -> YOTO | D28: =IF(OR(COUNTRY_INFO!$Z28="T2 (PZQ)",COUNTRY_INFO!$AA28="T2 (PZQ)"), "T2 (PZQ)", " ") -> T2 (PZQ) | E28: Août 2022 | G28: 67041 | H28: 434 | I28: 67475 | K28: 65911 | L28: 849 | M28: 66760 | O28: 0 | P28: 0 | Q28: 0 | R28: 0 | S28: 65911 | T28: 849 | U28: 66760 | W28: 98.31446428 | X28: 195.6221198 | Y28: 98.94034828
A29: =IF(COUNTRY_INFO!A29=0," ",COUNTRY_INFO!A29) -> Togo | B29: =IF(COUNTRY_INFO!B29=0," ",COUNTRY_INFO!B29) -> MARITIME | C29: =IF(COUNTRY_INFO!C29=0," ",COUNTRY_INFO!C29) -> ZIO | D29: =IF(OR(COUNTRY_INFO!$Z29="T2 (PZQ)",COUNTRY_INFO!$AA29="T2 (PZQ)"), "T2 (PZQ)", " ") -> T2 (PZQ) | E29: Août 2022 et Janvier 2023 | G29: 132055 | H29: 35955 | I29: 168010 | K29: 108631 | L29: 29254 | M29: 137885 | O29: 10616 | P29: 18684 | Q29: 29300 | R29: 0 | S29: 108631 | T29: 29254 | U29: 137885 | W29: 82.26193631 | X29: 81.36281463 | Y29: 82.06951967
A30: =IF(COUNTRY_INFO!A30=0," ",COUNTRY_INFO!A30) -> Togo | B30: =IF(COUNTRY_INFO!B30=0," ",COUNTRY_INFO!B30) -> PLATEAUX | C30: =IF(COUNTRY_INFO!C30=0," ",COUNTRY_INFO!C30) -> AGOU | D30: =IF(OR(COUNTRY_INFO!$Z30="T2 (PZQ)",COUNTRY_INFO!$AA30="T2 (PZQ)"), "T2 (PZQ)", " ") -> T2 (PZQ) | E30: Août 2022 et Janvier 2023 | G30: 27476.1808 | H30: 14777.5904 | I30: 42253.7712 | K30: 27292 | L30: 17967 | M30: 45259 | O30: 6016 | P30: 10862 | Q30: 16878 | R30: 0 | S30: 27292 | T30: 17967 | U30: 45259 | W30: 99.32967103 | X30: 121.5827446 | Y30: 107.1123327
A31: =IF(COUNTRY_INFO!A31=0," ",COUNTRY_INFO!A31) -> Togo | B31: =IF(COUNTRY_INFO!B31=0," ",COUNTRY_INFO!B31) -> PLATEAUX | C31: =IF(COUNTRY_INFO!C31=0," ",COUNTRY_INFO!C31) -> AKEBOU | D31: =IF(OR(COUNTRY_INFO!$Z31="T2 (PZQ)",COUNTRY_INFO!$AA31="T2 (PZQ)"), "T2 (PZQ)", " ") -> T2 (PZQ) | E31: Août 2022 | G31: 20321.784 | H31: 4329.78 | I31: 24651.564 | K31: 20511 | L31: 4202 | M31: 24713 | O31: 0 | P31: 0 | Q31: 0 | R31: 0 | S31: 20511 | T31: 4202 | U31: 24713 | W31: 100.9310994 | X31: 97.04881079 | Y31: 100.2492175
A32: =IF(COUNTRY_INFO!A32=0," ",COUNTRY_INFO!A32) -> Togo | B32: =IF(COUNTRY_INFO!B32=0," ",COUNTRY_INFO!B32) -> PLATEAUX | C32: =IF(COUNTRY_INFO!C32=0," ",COUNTRY_INFO!C32) -> AMOU | D32: =IF(OR(COUNTRY_INFO!$Z32="T2 (PZQ)",COUNTRY_INFO!$AA32="T2 (PZQ)"), "T2 (PZQ)", " ") -> T2 (PZQ) | E32: Août 2022 et Janvier 2023 | G32: 39197.888 | H32: 33693.8032 | I32: 72891.6912 | K32: 39206 | L32: 33538 | M32: 72744 | O32: 266 | P32: 603 | Q32: 869 | R32: 0 | S32: 39206 | T32: 33538 | U32: 72744 | W32: 100.020695 | X32: 99.53759094 | Y32: 99.79738267
A33: =IF(COUNTRY_INFO!A33=0," ",COUNTRY_INFO!A33) -> Togo | B33: =IF(COUNTRY_INFO!B33=0," ",COUNTRY_INFO!B33) -> PLATEAUX | C33: =IF(COUNTRY_INFO!C33=0," ",COUNTRY_INFO!C33) -> ANIE | D33: =IF(OR(COUNTRY_INFO!$Z33="T2 (PZQ)",COUNTRY_INFO!$AA33="T2 (PZQ)"), "T2 (PZQ)", " ") -> T2 (PZQ) | E33: Août 2022 et Janvier 2023 | G33: 52985.62857 | H33: 66843.36768 | I33: 119828.9962 | K33: 52572 | L33: 63898 | M33: 116470 | O33: 30264 | P33: 52000 | Q33: 82264 | R33: 0 | S33: 52572 | T33: 63898 | U33: 116470 | W33: 99.21935707 | X33: 95.59362764 | Y33: 97.19684187
A34: =IF(COUNTRY_INFO!A34=0," ",COUNTRY_INFO!A34) -> Togo | B34: =IF(COUNTRY_INFO!B34=0," ",COUNTRY_INFO!B34) -> PLATEAUX | C34: =IF(COUNTRY_INFO!C34=0," ",COUNTRY_INFO!C34) -> DANYI | D34: =IF(OR(COUNTRY_INFO!$Z34="T2 (PZQ)",COUNTRY_INFO!$AA34="T2 (PZQ)"), "T2 (PZQ)", " ") -> T2 (PZQ) | E34: Août 2022 | G34: 13455.7648 | H34: 0 | I34: 13455.7648 | K34: 13311 | L34: 0 | M34: 13311 | O34: 0 | P34: 0 | Q34: 0 | R34: 0 | S34: 13311 | T34: 0 | U34: 13311 | W34: 98.92414291 | Y34: 98.92414291
A35: =IF(COUNTRY_INFO!A35=0," ",COUNTRY_INFO!A35) -> Togo | B35: =IF(COUNTRY_INFO!B35=0," ",COUNTRY_INFO!B35) -> PLATEAUX | C35: =IF(COUNTRY_INFO!C35=0," ",COUNTRY_INFO!C35) -> EST-MONO | D35: =IF(OR(COUNTRY_INFO!$Z35="T2 (PZQ)",COUNTRY_INFO!$AA35="T2 (PZQ)"), "T2 (PZQ)", " ") -> T2 (PZQ) | E35: Août 2022 et Janvier 2023 | G35: 48902.8024 | H35: 36139.5632 | I35: 85042.3656 | K35: 47332 | L35: 36406 | M35: 83738 | O35: 11993 | P35: 18255 | Q35: 30248 | R35: 0 | S35: 47332 | T35: 36406 | U35: 83738 | W35: 96.78790923 | X35: 100.7372441 | Y35: 98.4662167
A36: =IF(COUNTRY_INFO!A36=0," ",COUNTRY_INFO!A36) -> Togo | B36: =IF(COUNTRY_INFO!B36=0," ",COUNTRY_INFO!B36) -> PLATEAUX | C36: =IF(COUNTRY_INFO!C36=0," ",COUNTRY_INFO!C36) -> HAHO | D36: =IF(OR(COUNTRY_INFO!$Z36="T2 (PZQ)",COUNTRY_INFO!$AA36="T2 (PZQ)"), "T2 (PZQ)", " ") -> T2 (PZQ) | E36: Août 2022 et Janvier 2023 | G36: 98813.086 | H36: 113277.8768 | I36: 212090.9628 | K36: 97208 | L36: 110729 | M36: 207937 | O36: 13373 | P36: 20664 | Q36: 34037 | R36: 0 | S36: 97208 | T36: 110729 | U36: 207937 | W36: 98.37563417 | X36: 97.74989003 | Y36: 98.04142395
A37: =IF(COUNTRY_INFO!A37=0," ",COUNTRY_INFO!A37) -> Togo | B37: =IF(COUNTRY_INFO!B37=0," ",COUNTRY_INFO!B37) -> PLATEAUX | C37: =IF(COUNTRY_INFO!C37=0," ",COUNTRY_INFO!C37) -> KLOTO | D37: =IF(OR(COUNTRY_INFO!$Z37="T2 (PZQ)",COUNTRY_INFO!$AA37="T2 (PZQ)"), "T2 (PZQ)", " ") -> T2 (PZQ) | E37: Août 2022 | G37: 35848.1864 | H37: 2409.3048 | I37: 38257.4912 | K37: 37137 | L37: 2338 | M37: 39475 | O37: 0 | P37: 0 | Q37: 0 | R37: 0 | S37: 37137 | T37: 2338 | U37: 39475 | W37: 103.5951989 | X37: 97.04044088 | Y37: 103.1824063
A38: =IF(COUNTRY_INFO!A38=0," ",COUNTRY_INFO!A38) -> Togo | B38: =IF(COUNTRY_INFO!B38=0," ",COUNTRY_INFO!B38) -> PLATEAUX | C38: =IF(COUNTRY_INFO!C38=0," ",COUNTRY_INFO!C38) -> KPELE | D38: =IF(OR(COUNTRY_INFO!$Z38="T2 (PZQ)",COUNTRY_INFO!$AA38="T2 (PZQ)"), "T2 (PZQ)", " ") -> T2 (PZQ) | E38: Août 2022 | G38: 24576 | H38: 4949 | I38: 29525 | K38: 24563 | L38: 4540 | M38: 29103 | O38: 0 | P38: 0 | Q38: 0 | R38: 0 | S38: 24563 | T38: 4540 | U38: 29103 | W38: 99.94710286 | X38: 91.73570418 | Y38: 98.57070279
A39: =IF(COUNTRY_INFO!A39=0," ",COUNTRY_INFO!A39) -> Togo | B39: =IF(COUNTRY_INFO!B39=0," ",COUNTRY_INFO!B39) -> PLATEAUX | C39: =IF(COUNTRY_INFO!C39=0," ",COUNTRY_INFO!C39) -> MOYEN-MONO | D39: =IF(OR(COUNTRY_INFO!$Z39="T2 (PZQ)",COUNTRY_INFO!$AA39="T2 (PZQ)"), "T2 (PZQ)", " ") -> T2 (PZQ) | E39: Août 2022 | G39: 29833.9776 | H39: 19204.752 | I39: 49038.7296 | K39: 29892 | L39: 18499 | M39: 48391 | O39: 0 | P39: 0 | Q39: 0 | R39: 0 | S39: 29892 | T39: 18499 | U39: 48391 | W39: 100.1944843 | X39: 96.32511787 | Y39: 98.67914686
A40: =IF(COUNTRY_INFO!A40=0," ",COUNTRY_INFO!A40) -> Togo | B40: =IF(COUNTRY_INFO!B40=0," ",COUNTRY_INFO!B40) -> PLATEAUX | C40: =IF(COUNTRY_INFO!C40=0," ",COUNTRY_INFO!C40) -> OGOU | D40: =IF(OR(COUNTRY_INFO!$Z40="T2 (PZQ)",COUNTRY_INFO!$AA40="T2 (PZQ)"), "T2 (PZQ)", " ") -> T2 (PZQ) | E40: Août 2022 et Janvier 2023 | G40: 72815.1144 | H40: 86540.2608 | I40: 159355.3752 | K40: 73500 | L40: 95323 | M40: 168823 | O40: 60907 | P40: 72177 | Q40: 133084 | R40: 0 | S40: 73500 | T40: 95323 | U40: 168823 | W40: 100.9405816 | X40: 110.1487321 | Y40: 105.941202
A41: =IF(COUNTRY_INFO!A41=0," ",COUNTRY_INFO!A41) -> Togo | B41: =IF(COUNTRY_INFO!B41=0," ",COUNTRY_INFO!B41) -> PLATEAUX | C41: =IF(COUNTRY_INFO!C41=0," ",COUNTRY_INFO!C41) -> WAWA | D41: =IF(OR(COUNTRY_INFO!$Z41="T2 (PZQ)",COUNTRY_INFO!$AA41="T2 (PZQ)"), "T2 (PZQ)", " ") -> T2 (PZQ) | E41: Août 2022 et Janvier 2023 | G41: 33604.4476 | H41: 12242 | I41: 45846.4476 | K41: 33178 | L41: 11886 | M41: 45064 | O41: 7557 | P41: 8827 | Q41: 16384 | R41: 0 | S41: 33178 | T41: 11886 | U41: 45064 | W41: 98.73097869 | X41: 97.09197843 | Y41: 98.29332993
A42: =IF(COUNTRY_INFO!A42=0," ",COUNTRY_INFO!A42) -> Togo | B42: =IF(COUNTRY_INFO!B42=0," ",COUNTRY_INFO!B42) -> SAVANES | C42: =IF(COUNTRY_INFO!C42=0," ",COUNTRY_INFO!C42) -> CINKASSE | D42: =IF(OR(COUNTRY_INFO!$Z42="T2 (PZQ)",COUNTRY_INFO!$AA42="T2 (PZQ)"), "T2 (PZQ)", " ") -> T2 (PZQ) | E42: Août 2022 et Janvier 2023 | G42: 28910 | H42: 30984 | I42: 59894 | K42: 29310 | L42: 30770 | M42: 60080 | O42: 14040 | P42: 25480 | Q42: 39520 | R42: 0 | S42: 29310 | T42: 30770 | U42: 60080 | W42: 101.3836043 | X42: 99.30932094 | Y42: 100.3105486
A43: =IF(COUNTRY_INFO!A43=0," ",COUNTRY_INFO!A43) -> Togo | B43: =IF(COUNTRY_INFO!B43=0," ",COUNTRY_INFO!B43) -> SAVANES | C43: =IF(COUNTRY_INFO!C43=0," ",COUNTRY_INFO!C43) -> KPENDJAL | D43: =IF(OR(COUNTRY_INFO!$Z43="T2 (PZQ)",COUNTRY_INFO!$AA43="T2 (PZQ)"), "T2 (PZQ)", " ") -> T2 (PZQ) | E43: Août 2022 et Janvier 2023 | G43: 26459 | H43: 9003 | I43: 35462 | K43: 28221 | L43: 8361 | M43: 36582 | O43: 5918 | P43: 8324 | Q43: 14242 | R43: 0 | S43: 28221 | T43: 8361 | U43: 36582 | W43: 106.6593598 | X43: 92.86904365 | Y43: 103.1583103
A44: =IF(COUNTRY_INFO!A44=0," ",COUNTRY_INFO!A44) -> Togo | B44: =IF(COUNTRY_INFO!B44=0," ",COUNTRY_INFO!B44) -> SAVANES | C44: =IF(COUNTRY_INFO!C44=0," ",COUNTRY_INFO!C44) -> KPENDJAL-OUEST | D44: =IF(OR(COUNTRY_INFO!$Z44="T2 (PZQ)",COUNTRY_INFO!$AA44="T2 (PZQ)"), "T2 (PZQ)", " ") -> T2 (PZQ) | E44: Août 2022 et Janvier 2023 | G44: 42327.8832 | H44: 14800.064 | I44: 57127.9472 | K44: 42473 | L44: 13673 | M44: 56146 | O44: 1858 | P44: 2737 | Q44: 4595 | R44: 0 | S44: 42473 | T44: 13673 | U44: 56146 | W44: 100.3428397 | X44: 92.38473563 | Y44: 98.28114391
A45: =IF(COUNTRY_INFO!A45=0," ",COUNTRY_INFO!A45) -> Togo | B45: =IF(COUNTRY_INFO!B45=0," ",COUNTRY_INFO!B45) -> SAVANES | C45: =IF(COUNTRY_INFO!C45=0," ",COUNTRY_INFO!C45) -> OTI | D45: =IF(OR(COUNTRY_INFO!$Z45="T2 (PZQ)",COUNTRY_INFO!$AA45="T2 (PZQ)"), "T2 (PZQ)", " ") -> T2 (PZQ) | E45: Août 2022 | G45: 40593.292 | H45: 4116 | I45: 44709.292 | K45: 40506 | L45: 4245 | M45: 44751 | O45: 0 | P45: 0 | Q45: 0 | R45: 0 | S45: 40506 | T45: 4245 | U45: 44751 | W45: 99.78495954 | X45: 103.1341108 | Y45: 100.0932871
A46: =IF(COUNTRY_INFO!A46=0," ",COUNTRY_INFO!A46) -> Togo | B46: =IF(COUNTRY_INFO!B46=0," ",COUNTRY_INFO!B46) -> SAVANES | C46: =IF(COUNTRY_INFO!C46=0," ",COUNTRY_INFO!C46) -> OTI-SUD | D46: =IF(OR(COUNTRY_INFO!$Z46="T2 (PZQ)",COUNTRY_INFO!$AA46="T2 (PZQ)"), "T2 (PZQ)", " ") -> T2 (PZQ) | E46: Août 2022 | G46: 41004.2976 | H46: 23468.9448 | I46: 64473.2424 | K46: 42104 | L46: 22576.48 | M46: 64680.48 | O46: 0 | P46: 0 | Q46: 0 | R46: 0 | S46: 42104 | T46: 22576.48 | U46: 64680.48 | W46: 102.6819199 | X46: 96.19725212 | Y46: 100.3214319
A47: =IF(COUNTRY_INFO!A47=0," ",COUNTRY_INFO!A47) -> Togo | B47: =IF(COUNTRY_INFO!B47=0," ",COUNTRY_INFO!B47) -> SAVANES | C47: =IF(COUNTRY_INFO!C47=0," ",COUNTRY_INFO!C47) -> TANDJOUARE | D47: =IF(OR(COUNTRY_INFO!$Z47="T2 (PZQ)",COUNTRY_INFO!$AA47="T2 (PZQ)"), "T2 (PZQ)", " ") -> T2 (PZQ) | E47: Août 2022 | G47: 46780.504 | H47: 0 | I47: 46780.504 | K47: 45474 | L47: 0 | M47: 45474 | O47: 0 | P47: 0 | Q47: 0 | R47: 0 | S47: 45474 | T47: 0 | U47: 45474 | W47: 97.20716134 | Y47: 97.20716134
A48: =IF(COUNTRY_INFO!A48=0," ",COUNTRY_INFO!A48) -> Togo | B48: =IF(COUNTRY_INFO!B48=0," ",COUNTRY_INFO!B48) -> SAVANES | C48: =IF(COUNTRY_INFO!C48=0," ",COUNTRY_INFO!C48) -> TONE | D48: =IF(OR(COUNTRY_INFO!$Z48="T2 (PZQ)",COUNTRY_INFO!$AA48="T2 (PZQ)"), "T2 (PZQ)", " ") -> T2 (PZQ) | E48: Août 2022 | G48: 102457 | H48: 14129.4144 | I48: 116586.4144 | K48: 102612 | L48: 14193 | M48: 116805 | O48: 0 | P48: 0 | Q48: 0 | R48: 0 | S48: 102612 | T48: 14193 | U48: 116805 | W48: 100.151283 | X48: 100.4500229 | Y48: 100.1874881

Sheet T3_R1
A1: T 3 - Albendazole (ALB) ou Mebendazole (MBD) - Tournée 1 | F1: Choisir le médicament utilisé pour le traitement de la STH pour chaque groupe d'âge
A2: Structure administrative, population nécessitant une CP par groupe d'âge, population traitée par groupe d'âge et couverture | J2: Sélectionner la catégorie d’adultes
A4: TOTAL | F4: =SUBTOTAL(9,F$10:F$1010) -> 0 | G4: 2065970 | H4: 0 | I4: 2065970 | J4: 0 | K4: 2050806 | L4: 0 | M4: 2050806 | N4: =IF(F4<>0, IF(J4/F4*100=0, "-", J4/F4*100), " ") ->  | O4: =IF(G4<>0, IF(K4/G4*100=0, "-", K4/G4*100), " ") -> 99.26601064 | P4: =IF(H4<>0, IF(L4/H4*100=0, "-", L4/H4*100), " ") ->  | Q4: =IF(I4<>0, IF(M4/I4*100=0, "-", M4/I4*100), " ") -> 99.26601064
A6: Structure administrative du pays | D6: Mise en oeuvre de la CP | E6: Date | F6: Population ciblée pour T3 | J6: Population traitée | N6: Couverture du Programme (%)
A7: Pays | B7: Région/Département | C7: District | F7: EAPréS | G7: EAS | H7: Adultes | I7: Total | J7: EAPréS | K7: EAS | L7: Adultes | M7: Total | N7: EAPréS | O7: EAS | P7: Adultes | Q7: Total
A10: =IF(COUNTRY_INFO!A10=0," ",COUNTRY_INFO!A10) -> Togo | B10: =IF(COUNTRY_INFO!B10=0," ",COUNTRY_INFO!B10) -> CENTRALE | C10: =IF(COUNTRY_INFO!C10=0," ",COUNTRY_INFO!C10) -> BLITTA | D10: T3 (ALB/MBD) | E10: Août 2022 | G10: 52013 | I10: =SUM(F10:H10) -> 52013 | K10: 52601 | M10: =SUM(J10:L10) -> 52601 | N10: =IF(F10<>0, IF(J10/F10*100=0, "-", J10/F10*100), " ") ->  | O10: 101.1304866 | Q10: 101.1304866
A11: =IF(COUNTRY_INFO!A11=0," ",COUNTRY_INFO!A11) -> Togo | B11: =IF(COUNTRY_INFO!B11=0," ",COUNTRY_INFO!B11) -> CENTRALE | C11: =IF(COUNTRY_INFO!C11=0," ",COUNTRY_INFO!C11) -> MÔ | D11: T3 (ALB/MBD) | E11: Août 2022 | G11: 15323 | I11: =SUM(F11:H11) -> 15323 | K11: 14768 | M11: =SUM(J11:L11) -> 14768 | N11: =IF(F11<>0, IF(J11/F11*100=0, "-", J11/F11*100), " ") ->  | O11: =IF(G11<>0, IF(K11/G11*100=0, "-", K11/G11*100), " ") -> 96.37799387 | P11: =IF(H11<>0, IF(L11/H11*100=0, "-", L11/H11*100), " ") ->  | Q11: =IF(I11<>0, IF(M11/I11*100=0, "-", M11/I11*100), " ") -> 96.37799387
A12: =IF(COUNTRY_INFO!A12=0," ",COUNTRY_INFO!A12) -> Togo | B12: =IF(COUNTRY_INFO!B12=0," ",COUNTRY_INFO!B12) -> CENTRALE | C12: =IF(COUNTRY_INFO!C12=0," ",COUNTRY_INFO!C12) -> SOTOUBOUA | D12: T3 (ALB/MBD) | E12: Août 2022 | G12: 40709 | I12: 40709 | K12: 40605 | M12: 40605 | O12: 99.74452824 | Q12: 99.74452824
A13: =IF(COUNTRY_INFO!A13=0," ",COUNTRY_INFO!A13) -> Togo | B13: =IF(COUNTRY_INFO!B13=0," ",COUNTRY_INFO!B13) -> CENTRALE | C13: =IF(COUNTRY_INFO!C13=0," ",COUNTRY_INFO!C13) -> TCHAMBA | D13: T3 (ALB/MBD) | E13: Août 2022 | G13: 59428 | I13: 59428 | K13: 59603 | M13: 59603 | O13: 100.294474 | Q13: 100.294474
A14: =IF(COUNTRY_INFO!A14=0," ",COUNTRY_INFO!A14) -> Togo | B14: =IF(COUNTRY_INFO!B14=0," ",COUNTRY_INFO!B14) -> CENTRALE | C14: =IF(COUNTRY_INFO!C14=0," ",COUNTRY_INFO!C14) -> TCHAOUDJO | D14: T3 (ALB/MBD) | E14: Août 2022 | G14: 88437 | I14: 88437 | K14: 72029 | M14: 72029 | O14: 81.44667956 | Q14: 81.44667956
A15: =IF(COUNTRY_INFO!A15=0," ",COUNTRY_INFO!A15) -> Togo | B15: =IF(COUNTRY_INFO!B15=0," ",COUNTRY_INFO!B15) -> GRAND-LOME | C15: =IF(COUNTRY_INFO!C15=0," ",COUNTRY_INFO!C15) -> AGOE NYIVE | D15: T3 (ALB/MBD) | E15: Août 2022 | G15: 164012 | I15: 164012 | K15: 167519 | M15: 167519 | O15: 102.1382582 | Q15: 102.1382582
A16: =IF(COUNTRY_INFO!A16=0," ",COUNTRY_INFO!A16) -> Togo | B16: =IF(COUNTRY_INFO!B16=0," ",COUNTRY_INFO!B16) -> GRAND-LOME | C16: =IF(COUNTRY_INFO!C16=0," ",COUNTRY_INFO!C16) -> GOLFE | D16: T3 (ALB/MBD) | E16: Août 2022 | G16: 64799 | I16: 64799 | K16: 68863 | M16: 68863 | O16: 106.2717017 | Q16: 106.2717017
A17: =IF(COUNTRY_INFO!A17=0," ",COUNTRY_INFO!A17) -> Togo | B17: =IF(COUNTRY_INFO!B17=0," ",COUNTRY_INFO!B17) -> KARA | C17: =IF(COUNTRY_INFO!C17=0," ",COUNTRY_INFO!C17) -> ASSOLI | D17: T3 (ALB/MBD) | E17: Août 2022 | G17: 20025 | I17: 20025 | K17: 20246 | M17: 20246 | O17: 101.1036205 | Q17: 101.1036205
A18: =IF(COUNTRY_INFO!A18=0," ",COUNTRY_INFO!A18) -> Togo | B18: =IF(COUNTRY_INFO!B18=0," ",COUNTRY_INFO!B18) -> KARA | C18: =IF(COUNTRY_INFO!C18=0," ",COUNTRY_INFO!C18) -> BASSAR | D18: T3 (ALB/MBD) | E18: Août 2022 | G18: 49146 | I18: 49146 | K18: 48295 | M18: 48295 | O18: 98.26842469 | Q18: 98.26842469
A19: =IF(COUNTRY_INFO!A19=0," ",COUNTRY_INFO!A19) -> Togo | B19: =IF(COUNTRY_INFO!B19=0," ",COUNTRY_INFO!B19) -> KARA | C19: =IF(COUNTRY_INFO!C19=0," ",COUNTRY_INFO!C19) -> BINAH | D19: T3 (ALB/MBD) | E19: Août 2022 | G19: 24009 | I19: 24009 | K19: 23287 | M19: 23287 | O19: 96.99279437 | Q19: 96.99279437
A20: =IF(COUNTRY_INFO!A20=0," ",COUNTRY_INFO!A20) -> Togo | B20: =IF(COUNTRY_INFO!B20=0," ",COUNTRY_INFO!B20) -> KARA | C20: =IF(COUNTRY_INFO!C20=0," ",COUNTRY_INFO!C20) -> DANKPEN | D20: T3 (ALB/MBD) | E20: Août 2022 | G20: 53446 | I20: 53446 | K20: 57143 | M20: 57143 | O20: 106.9172623 | Q20: 106.9172623
A21: =IF(COUNTRY_INFO!A21=0," ",COUNTRY_INFO!A21) -> Togo | B21: =IF(COUNTRY_INFO!B21=0," ",COUNTRY_INFO!B21) -> KARA | C21: =IF(COUNTRY_INFO!C21=0," ",COUNTRY_INFO!C21) -> DOUFELGOU | D21: T3 (ALB/MBD) | E21: Août 2022 | G21: 27822 | I21: 27822 | K21: 28547 | M21: 28547 | O21: 102.6058515 | Q21: 102.6058515
A22: =IF(COUNTRY_INFO!A22=0," ",COUNTRY_INFO!A22) -> Togo | B22: =IF(COUNTRY_INFO!B22=0," ",COUNTRY_INFO!B22) -> KARA | C22: =IF(COUNTRY_INFO!C22=0," ",COUNTRY_INFO!C22) -> KERAN | D22: T3 (ALB/MBD) | E22: Août 2022 | G22: 41213 | I22: 41213 | K22: 41615 | M22: 41615 | O22: 100.9754204 | Q22: 100.9754204
A23: =IF(COUNTRY_INFO!A23=0," ",COUNTRY_INFO!A23) -> Togo | B23: =IF(COUNTRY_INFO!B23=0," ",COUNTRY_INFO!B23) -> KARA | C23: =IF(COUNTRY_INFO!C23=0," ",COUNTRY_INFO!C23) -> KOZAH | D23: T3 (ALB/MBD) | E23: Août 2022 | G23: 88262 | I23: 88262 | K23: 88374 | M23: 88374 | O23: 100.1268949 | Q23: 100.1268949
A24: =IF(COUNTRY_INFO!A24=0," ",COUNTRY_INFO!A24) -> Togo | B24: =IF(COUNTRY_INFO!B24=0," ",COUNTRY_INFO!B24) -> MARITIME | C24: =IF(COUNTRY_INFO!C24=0," ",COUNTRY_INFO!C24) -> AVE | D24: T3 (ALB/MBD) | E24: Août 2022 | G24: 43677 | I24: 43677 | K24: 43017 | M24: 43017 | O24: 98.48890721 | Q24: 98.48890721
A25: =IF(COUNTRY_INFO!A25=0," ",COUNTRY_INFO!A25) -> Togo | B25: =IF(COUNTRY_INFO!B25=0," ",COUNTRY_INFO!B25) -> MARITIME | C25: =IF(COUNTRY_INFO!C25=0," ",COUNTRY_INFO!C25) -> BAS-MONO | D25: T3 (ALB/MBD) | E25: Août 2022 | G25: 34637 | I25: 34637 | K25: 32964 | M25: 32964 | O25: 95.16990501 | Q25: 95.16990501
A26: =IF(COUNTRY_INFO!A26=0," ",COUNTRY_INFO!A26) -> Togo | B26: =IF(COUNTRY_INFO!B26=0," ",COUNTRY_INFO!B26) -> MARITIME | C26: =IF(COUNTRY_INFO!C26=0," ",COUNTRY_INFO!C26) -> LACS | D26: T3 (ALB/MBD) | E26: Août 2022 | G26: 58588 | I26: 58588 | K26: 58588 | M26: 58588 | O26: 100 | Q26: 100
A27: =IF(COUNTRY_INFO!A27=0," ",COUNTRY_INFO!A27) -> Togo | B27: =IF(COUNTRY_INFO!B27=0," ",COUNTRY_INFO!B27) -> MARITIME | C27: =IF(COUNTRY_INFO!C27=0," ",COUNTRY_INFO!C27) -> VO | D27: T3 (ALB/MBD) | E27: Août 2022 | G27: 68656 | I27: 68656 | K27: 64867 | M27: 64867 | O27: 94.48118154 | Q27: 94.48118154
A28: =IF(COUNTRY_INFO!A28=0," ",COUNTRY_INFO!A28) -> Togo | B28: =IF(COUNTRY_INFO!B28=0," ",COUNTRY_INFO!B28) -> MARITIME | C28: =IF(COUNTRY_INFO!C28=0," ",COUNTRY_INFO!C28) -> YOTO | D28: T3 (ALB/MBD) | E28: Août 2022 | G28: 74259 | I28: 74259 | K28: 85314 | M28: 85314 | O28: 114.8870844 | Q28: 114.8870844
A29: =IF(COUNTRY_INFO!A29=0," ",COUNTRY_INFO!A29) -> Togo | B29: =IF(COUNTRY_INFO!B29=0," ",COUNTRY_INFO!B29) -> MARITIME | C29: =IF(COUNTRY_INFO!C29=0," ",COUNTRY_INFO!C29) -> ZIO | D29: T3 (ALB/MBD) | E29: Août 2022 | G29: 159653 | I29: 159653 | K29: 135136 | M29: 135136 | O29: 84.64357074 | Q29: 84.64357074
A30: =IF(COUNTRY_INFO!A30=0," ",COUNTRY_INFO!A30) -> Togo | B30: =IF(COUNTRY_INFO!B30=0," ",COUNTRY_INFO!B30) -> PLATEAUX | C30: =IF(COUNTRY_INFO!C30=0," ",COUNTRY_INFO!C30) -> AGOU | D30: T3 (ALB/MBD) | E30: Août 2022 | G30: 34705 | I30: 34705 | K30: 34497 | M30: 34497 | O30: 99.40066273 | Q30: 99.40066273
A31: =IF(COUNTRY_INFO!A31=0," ",COUNTRY_INFO!A31) -> Togo | B31: =IF(COUNTRY_INFO!B31=0," ",COUNTRY_INFO!B31) -> PLATEAUX | C31: =IF(COUNTRY_INFO!C31=0," ",COUNTRY_INFO!C31) -> AKEBOU | D31: T3 (ALB/MBD) | E31: Août 2022 | G31: 22973 | I31: 22973 | K31: 23159 | M31: 23159 | O31: 100.8096461 | Q31: 100.8096461
A32: =IF(COUNTRY_INFO!A32=0," ",COUNTRY_INFO!A32) -> Togo | B32: =IF(COUNTRY_INFO!B32=0," ",COUNTRY_INFO!B32) -> PLATEAUX | C32: =IF(COUNTRY_INFO!C32=0," ",COUNTRY_INFO!C32) -> AMOU | D32: T3 (ALB/MBD) | E32: Août 2022 | G32: 38961 | I32: 38961 | K32: 39206 | M32: 39206 | O32: 100.628834 | Q32: 100.628834
A33: =IF(COUNTRY_INFO!A33=0," ",COUNTRY_INFO!A33) -> Togo | B33: =IF(COUNTRY_INFO!B33=0," ",COUNTRY_INFO!B33) -> PLATEAUX | C33: =IF(COUNTRY_INFO!C33=0," ",COUNTRY_INFO!C33) -> ANIE | D33: T3 (ALB/MBD) | E33: Août 2022 | G33: 52986 | I33: 52986 | K33: 52572 | M33: 52572 | O33: 99.21866153 | Q33: 99.21866153
A34: =IF(COUNTRY_INFO!A34=0," ",COUNTRY_INFO!A34) -> Togo | B34: =IF(COUNTRY_INFO!B34=0," ",COUNTRY_INFO!B34) -> PLATEAUX | C34: =IF(COUNTRY_INFO!C34=0," ",COUNTRY_INFO!C34) -> DANYI | D34: =IF(OR(COUNTRY_INFO!$Z34="T3 (ALB/MBD)",COUNTRY_INFO!$AA34="T3 (ALB/MBD)"), "T3 (ALB/MBD)", " ") ->  | G34: 0 | I34: 0 | K34: 0 | M34: 0
A35: =IF(COUNTRY_INFO!A35=0," ",COUNTRY_INFO!A35) -> Togo | B35: =IF(COUNTRY_INFO!B35=0," ",COUNTRY_INFO!B35) -> PLATEAUX | C35: =IF(COUNTRY_INFO!C35=0," ",COUNTRY_INFO!C35) -> EST-MONO | D35: T3 (ALB/MBD) | E35: Août 2022 | G35: 48980 | I35: 48980 | K35: 47332 | M35: 47332 | O35: 96.63536137 | Q35: 96.63536137
A36: =IF(COUNTRY_INFO!A36=0," ",COUNTRY_INFO!A36) -> Togo | B36: =IF(COUNTRY_INFO!B36=0," ",COUNTRY_INFO!B36) -> PLATEAUX | C36: =IF(COUNTRY_INFO!C36=0," ",COUNTRY_INFO!C36) -> HAHO | D36: T3 (ALB/MBD) | E36: Août 2022 | G36: 88814 | I36: 88814 | K36: 97208 | M36: 97208 | O36: 109.4512126 | Q36: 109.4512126
A37: =IF(COUNTRY_INFO!A37=0," ",COUNTRY_INFO!A37) -> Togo | B37: =IF(COUNTRY_INFO!B37=0," ",COUNTRY_INFO!B37) -> PLATEAUX | C37: =IF(COUNTRY_INFO!C37=0," ",COUNTRY_INFO!C37) -> KLOTO | D37: T3 (ALB/MBD) | E37: Août 2022 | G37: 38426 | I37: 38426 | K37: 40062 | M37: 40062 | O37: 104.257534 | Q37: 104.257534
A38: =IF(COUNTRY_INFO!A38=0," ",COUNTRY_INFO!A38) -> Togo | B38: =IF(COUNTRY_INFO!B38=0," ",COUNTRY_INFO!B38) -> PLATEAUX | C38: =IF(COUNTRY_INFO!C38=0," ",COUNTRY_INFO!C38) -> KPELE | D38: T3 (ALB/MBD) | E38: Août 2022 | G38: 23284 | I38: 23284 | K38: 24563 | M38: 24563 | O38: 105.4930424 | Q38: 105.4930424
A39: =IF(COUNTRY_INFO!A39=0," ",COUNTRY_INFO!A39) -> Togo | B39: =IF(COUNTRY_INFO!B39=0," ",COUNTRY_INFO!B39) -> PLATEAUX | C39: =IF(COUNTRY_INFO!C39=0," ",COUNTRY_INFO!C39) -> MOYEN-MONO | D39: T3 (ALB/MBD) | E39: Août 2022 | G39: 29834 | I39: 29834 | K39: 29892 | M39: 29892 | O39: 100.1944091 | Q39: 100.1944091
A40: =IF(COUNTRY_INFO!A40=0," ",COUNTRY_INFO!A40) -> Togo | B40: =IF(COUNTRY_INFO!B40=0," ",COUNTRY_INFO!B40) -> PLATEAUX | C40: =IF(COUNTRY_INFO!C40=0," ",COUNTRY_INFO!C40) -> OGOU | D40: T3 (ALB/MBD) | E40: Août 2022 | G40: 72815 | I40: 72815 | K40: 73500 | M40: 73500 | O40: 100.9407402 | Q40: 100.9407402
A41: =IF(COUNTRY_INFO!A41=0," ",COUNTRY_INFO!A41) -> Togo | B41: =IF(COUNTRY_INFO!B41=0," ",COUNTRY_INFO!B41) -> PLATEAUX | C41: =IF(COUNTRY_INFO!C41=0," ",COUNTRY_INFO!C41) -> WAWA | D41: T3 (ALB/MBD) | E41: Août 2022 | G41: 40206 | I41: 40206 | K41: 39384 | M41: 39384 | O41: 97.95552903 | Q41: 97.95552903
A42: =IF(COUNTRY_INFO!A42=0," ",COUNTRY_INFO!A42) -> Togo | B42: =IF(COUNTRY_INFO!B42=0," ",COUNTRY_INFO!B42) -> SAVANES | C42: =IF(COUNTRY_INFO!C42=0," ",COUNTRY_INFO!C42) -> CINKASSE | D42: T3 (ALB/MBD) | E42: Août 2022 | G42: 28910 | I42: 28910 | K42: 29310 | M42: 29310 | O42: 101.3836043 | Q42: 101.3836043
A43: =IF(COUNTRY_INFO!A43=0," ",COUNTRY_INFO!A43) -> Togo | B43: =IF(COUNTRY_INFO!B43=0," ",COUNTRY_INFO!B43) -> SAVANES | C43: =IF(COUNTRY_INFO!C43=0," ",COUNTRY_INFO!C43) -> KPENDJAL | D43: T3 (ALB/MBD) | E43: Août 2022 | G43: 28392 | I43: 28392 | K43: 28221 | M43: 28221 | O43: 99.39771767 | Q43: 99.39771767
A44: =IF(COUNTRY_INFO!A44=0," ",COUNTRY_INFO!A44) -> Togo | B44: =IF(COUNTRY_INFO!B44=0," ",COUNTRY_INFO!B44) -> SAVANES | C44: =IF(COUNTRY_INFO!C44=0," ",COUNTRY_INFO!C44) -> KPENDJAL-OUEST | D44: T3 (ALB/MBD) | E44: Août 2022 | G44: 42015 | I44: 42015 | K44: 42473 | M44: 42473 | O44: 101.0900869 | Q44: 101.0900869
A45: =IF(COUNTRY_INFO!A45=0," ",COUNTRY_INFO!A45) -> Togo | B45: =IF(COUNTRY_INFO!B45=0," ",COUNTRY_INFO!B45) -> SAVANES | C45: =IF(COUNTRY_INFO!C45=0," ",COUNTRY_INFO!C45) -> OTI | D45: T3 (ALB/MBD) | E45: Août 2022 | G45: 41398 | I45: 41398 | K45: 41197 | M45: 41197 | O45: 99.5144693 | Q45: 99.5144693
A46: =IF(COUNTRY_INFO!A46=0," ",COUNTRY_INFO!A46) -> Togo | B46: =IF(COUNTRY_INFO!B46=0," ",COUNTRY_INFO!B46) -> SAVANES | C46: =IF(COUNTRY_INFO!C46=0," ",COUNTRY_INFO!C46) -> OTI-SUD | D46: T3 (ALB/MBD) | E46: Août 2022 | G46: 48805 | I46: 48805 | K46: 45090 | M46: 45090 | O46: 92.38807499 | Q46: 92.38807499
A47: =IF(COUNTRY_INFO!A47=0," ",COUNTRY_INFO!A47) -> Togo | B47: =IF(COUNTRY_INFO!B47=0," ",COUNTRY_INFO!B47) -> SAVANES | C47: =IF(COUNTRY_INFO!C47=0," ",COUNTRY_INFO!C47) -> TANDJOUARE | D47: T3 (ALB/MBD) | E47: Août 2022 | G47: 112509 | I47: 112509 | K47: 47026 | M47: 47026 | O47: 41.79754509 | Q47: 41.79754509
A48: =IF(COUNTRY_INFO!A48=0," ",COUNTRY_INFO!A48) -> Togo | B48: =IF(COUNTRY_INFO!B48=0," ",COUNTRY_INFO!B48) -> SAVANES | C48: =IF(COUNTRY_INFO!C48=0," ",COUNTRY_INFO!C48) -> TONE | D48: T3 (ALB/MBD) | E48: Août 2022 | G48: 43843 | I48: 43843 | K48: 112733 | M48: 112733 | O48: 257.1288461 | Q48: 257.1288461

Sheet T3_R2
A1: T 3 - Albendazole (ALB) ou Mebendazole (MBD) - Tournée 2 | F1: Choisir le médicament utilisé pour le traitement de la STH pour chaque groupe d'âge
A2: Structure administrative, population nécessitant une CP par groupe d'âge, population traitée par groupe d'âge et couverture | G2: ALB | J2: Sélectionner la catégorie d’adultes
A4: TOTAL | F4: =SUBTOTAL(9,F$10:F$1010) -> 0 | G4: 441553 | H4: 0 | I4: 441553 | J4: 0 | K4: 425748 | L4: 0 | M4: 425748 | N4: =IF(F4<>0, IF(J4/F4*100=0, "-", J4/F4*100), " ") ->  | O4: =IF(G4<>0, IF(K4/G4*100=0, "-", K4/G4*100), " ") -> 96.42058824 | P4: =IF(H4<>0, IF(L4/H4*100=0, "-", L4/H4*100), " ") ->  | Q4: =IF(I4<>0, IF(M4/I4*100=0, "-", M4/I4*100), " ") -> 96.42058824
A6: Structure administrative du pays | D6: Mise en oeuvre de la CP | E6: Date | F6: Population ciblée pour T3 | J6: Population traitée | N6: Couverture du Programme (%)
A7: Pays | B7: Région/Département | C7: District | F7: EAPréS | G7: EAS | H7: Adultes | I7: Total | J7: EAPréS | K7: EAS | L7: Adultes | M7: Total | N7: EAPréS | O7: EAS | P7: Adultes | Q7: Total
A10: =IF(COUNTRY_INFO!A10=0," ",COUNTRY_INFO!A10) -> Togo | B10: =IF(COUNTRY_INFO!B10=0," ",COUNTRY_INFO!B10) -> CENTRALE | C10: =IF(COUNTRY_INFO!C10=0," ",COUNTRY_INFO!C10) -> BLITTA | D10: =IF(AND(COUNTRY_INFO!$Z10="T3 (ALB/MBD)",COUNTRY_INFO!$AA10="T3 (ALB/MBD)"), "T3 (ALB/MBD)", " ") ->  | I10: =SUM(F10:H10) -> 0 | M10: =SUM(J10:L10) -> 0 | N10: =IF(F10<>0, IF(J10/F10*100=0, "-", J10/F10*100), " ") -> 
A11: =IF(COUNTRY_INFO!A11=0," ",COUNTRY_INFO!A11) -> Togo | B11: =IF(COUNTRY_INFO!B11=0," ",COUNTRY_INFO!B11) -> CENTRALE | C11: =IF(COUNTRY_INFO!C11=0," ",COUNTRY_INFO!C11) -> MÔ | D11: =IF(AND(COUNTRY_INFO!$Z11="T3 (ALB/MBD)",COUNTRY_INFO!$AA11="T3 (ALB/MBD)"), "T3 (ALB/MBD)", " ") ->  | I11: =SUM(F11:H11) -> 0 | M11: =SUM(J11:L11) -> 0 | N11: =IF(F11<>0, IF(J11/F11*100=0, "-", J11/F11*100), " ") ->  | O11: =IF(G11<>0, IF(K11/G11*100=0, "-", K11/G11*100), " ") ->  | P11: =IF(H11<>0, IF(L11/H11*100=0, "-", L11/H11*100), " ") ->  | Q11: =IF(I11<>0, IF(M11/I11*100=0, "-", M11/I11*100), " ") -> 
A12: =IF(COUNTRY_INFO!A12=0," ",COUNTRY_INFO!A12) -> Togo | B12: =IF(COUNTRY_INFO!B12=0," ",COUNTRY_INFO!B12) -> CENTRALE | C12: =IF(COUNTRY_INFO!C12=0," ",COUNTRY_INFO!C12) -> SOTOUBOUA | D12: =IF(AND(COUNTRY_INFO!$Z12="T3 (ALB/MBD)",COUNTRY_INFO!$AA12="T3 (ALB/MBD)"), "T3 (ALB/MBD)", " ") ->  | I12: 0 | M12: 0
A13: =IF(COUNTRY_INFO!A13=0," ",COUNTRY_INFO!A13) -> Togo | B13: =IF(COUNTRY_INFO!B13=0," ",COUNTRY_INFO!B13) -> CENTRALE | C13: =IF(COUNTRY_INFO!C13=0," ",COUNTRY_INFO!C13) -> TCHAMBA | D13: =IF(AND(COUNTRY_INFO!$Z13="T3 (ALB/MBD)",COUNTRY_INFO!$AA13="T3 (ALB/MBD)"), "T3 (ALB/MBD)", " ") ->  | I13: 0 | M13: 0
A14: =IF(COUNTRY_INFO!A14=0," ",COUNTRY_INFO!A14) -> Togo | B14: =IF(COUNTRY_INFO!B14=0," ",COUNTRY_INFO!B14) -> CENTRALE | C14: =IF(COUNTRY_INFO!C14=0," ",COUNTRY_INFO!C14) -> TCHAOUDJO | D14: =IF(AND(COUNTRY_INFO!$Z14="T3 (ALB/MBD)",COUNTRY_INFO!$AA14="T3 (ALB/MBD)"), "T3 (ALB/MBD)", " ") ->  | I14: 0 | M14: 0
A15: =IF(COUNTRY_INFO!A15=0," ",COUNTRY_INFO!A15) -> Togo | B15: =IF(COUNTRY_INFO!B15=0," ",COUNTRY_INFO!B15) -> GRAND-LOME | C15: =IF(COUNTRY_INFO!C15=0," ",COUNTRY_INFO!C15) -> AGOE NYIVE | D15: =IF(AND(COUNTRY_INFO!$Z15="T3 (ALB/MBD)",COUNTRY_INFO!$AA15="T3 (ALB/MBD)"), "T3 (ALB/MBD)", " ") ->  | I15: 0 | M15: 0
A16: =IF(COUNTRY_INFO!A16=0," ",COUNTRY_INFO!A16) -> Togo | B16: =IF(COUNTRY_INFO!B16=0," ",COUNTRY_INFO!B16) -> GRAND-LOME | C16: =IF(COUNTRY_INFO!C16=0," ",COUNTRY_INFO!C16) -> GOLFE | D16: =IF(AND(COUNTRY_INFO!$Z16="T3 (ALB/MBD)",COUNTRY_INFO!$AA16="T3 (ALB/MBD)"), "T3 (ALB/MBD)", " ") ->  | I16: 0 | M16: 0
A17: =IF(COUNTRY_INFO!A17=0," ",COUNTRY_INFO!A17) -> Togo | B17: =IF(COUNTRY_INFO!B17=0," ",COUNTRY_INFO!B17) -> KARA | C17: =IF(COUNTRY_INFO!C17=0," ",COUNTRY_INFO!C17) -> ASSOLI | D17: =IF(AND(COUNTRY_INFO!$Z17="T3 (ALB/MBD)",COUNTRY_INFO!$AA17="T3 (ALB/MBD)"), "T3 (ALB/MBD)", " ") ->  | I17: 0 | M17: 0
A18: =IF(COUNTRY_INFO!A18=0," ",COUNTRY_INFO!A18) -> Togo | B18: =IF(COUNTRY_INFO!B18=0," ",COUNTRY_INFO!B18) -> KARA | C18: =IF(COUNTRY_INFO!C18=0," ",COUNTRY_INFO!C18) -> BASSAR | D18: =IF(AND(COUNTRY_INFO!$Z18="T3 (ALB/MBD)",COUNTRY_INFO!$AA18="T3 (ALB/MBD)"), "T3 (ALB/MBD)", " ") ->  | I18: 0 | M18: 0
A19: =IF(COUNTRY_INFO!A19=0," ",COUNTRY_INFO!A19) -> Togo | B19: =IF(COUNTRY_INFO!B19=0," ",COUNTRY_INFO!B19) -> KARA | C19: =IF(COUNTRY_INFO!C19=0," ",COUNTRY_INFO!C19) -> BINAH | D19: =IF(AND(COUNTRY_INFO!$Z19="T3 (ALB/MBD)",COUNTRY_INFO!$AA19="T3 (ALB/MBD)"), "T3 (ALB/MBD)", " ") ->  | I19: 0 | M19: 0
A20: =IF(COUNTRY_INFO!A20=0," ",COUNTRY_INFO!A20) -> Togo | B20: =IF(COUNTRY_INFO!B20=0," ",COUNTRY_INFO!B20) -> KARA | C20: =IF(COUNTRY_INFO!C20=0," ",COUNTRY_INFO!C20) -> DANKPEN | D20: =IF(AND(COUNTRY_INFO!$Z20="T3 (ALB/MBD)",COUNTRY_INFO!$AA20="T3 (ALB/MBD)"), "T3 (ALB/MBD)", " ") ->  | I20: 0 | M20: 0
A21: =IF(COUNTRY_INFO!A21=0," ",COUNTRY_INFO!A21) -> Togo | B21: =IF(COUNTRY_INFO!B21=0," ",COUNTRY_INFO!B21) -> KARA | C21: =IF(COUNTRY_INFO!C21=0," ",COUNTRY_INFO!C21) -> DOUFELGOU | D21: =IF(AND(COUNTRY_INFO!$Z21="T3 (ALB/MBD)",COUNTRY_INFO!$AA21="T3 (ALB/MBD)"), "T3 (ALB/MBD)", " ") ->  | I21: 0 | M21: 0
A22: =IF(COUNTRY_INFO!A22=0," ",COUNTRY_INFO!A22) -> Togo | B22: =IF(COUNTRY_INFO!B22=0," ",COUNTRY_INFO!B22) -> KARA | C22: =IF(COUNTRY_INFO!C22=0," ",COUNTRY_INFO!C22) -> KERAN | D22: =IF(AND(COUNTRY_INFO!$Z22="T3 (ALB/MBD)",COUNTRY_INFO!$AA22="T3 (ALB/MBD)"), "T3 (ALB/MBD)", " ") ->  | I22: 0 | M22: 0
A23: =IF(COUNTRY_INFO!A23=0," ",COUNTRY_INFO!A23) -> Togo | B23: =IF(COUNTRY_INFO!B23=0," ",COUNTRY_INFO!B23) -> KARA | C23: =IF(COUNTRY_INFO!C23=0," ",COUNTRY_INFO!C23) -> KOZAH | D23: =IF(AND(COUNTRY_INFO!$Z23="T3 (ALB/MBD)",COUNTRY_INFO!$AA23="T3 (ALB/MBD)"), "T3 (ALB/MBD)", " ") ->  | I23: 0 | M23: 0
A24: =IF(COUNTRY_INFO!A24=0," ",COUNTRY_INFO!A24) -> Togo | B24: =IF(COUNTRY_INFO!B24=0," ",COUNTRY_INFO!B24) -> MARITIME | C24: =IF(COUNTRY_INFO!C24=0," ",COUNTRY_INFO!C24) -> AVE | D24: =IF(AND(COUNTRY_INFO!$Z24="T3 (ALB/MBD)",COUNTRY_INFO!$AA24="T3 (ALB/MBD)"), "T3 (ALB/MBD)", " ") ->  | I24: 0 | M24: 0
A25: =IF(COUNTRY_INFO!A25=0," ",COUNTRY_INFO!A25) -> Togo | B25: =IF(COUNTRY_INFO!B25=0," ",COUNTRY_INFO!B25) -> MARITIME | C25: =IF(COUNTRY_INFO!C25=0," ",COUNTRY_INFO!C25) -> BAS-MONO | D25: =IF(AND(COUNTRY_INFO!$Z25="T3 (ALB/MBD)",COUNTRY_INFO!$AA25="T3 (ALB/MBD)"), "T3 (ALB/MBD)", " ") ->  | I25: 0 | M25: 0
A26: =IF(COUNTRY_INFO!A26=0," ",COUNTRY_INFO!A26) -> Togo | B26: =IF(COUNTRY_INFO!B26=0," ",COUNTRY_INFO!B26) -> MARITIME | C26: =IF(COUNTRY_INFO!C26=0," ",COUNTRY_INFO!C26) -> LACS | D26: =IF(AND(COUNTRY_INFO!$Z26="T3 (ALB/MBD)",COUNTRY_INFO!$AA26="T3 (ALB/MBD)"), "T3 (ALB/MBD)", " ") ->  | I26: 0 | M26: 0
A27: =IF(COUNTRY_INFO!A27=0," ",COUNTRY_INFO!A27) -> Togo | B27: =IF(COUNTRY_INFO!B27=0," ",COUNTRY_INFO!B27) -> MARITIME | C27: =IF(COUNTRY_INFO!C27=0," ",COUNTRY_INFO!C27) -> VO | D27: =IF(AND(COUNTRY_INFO!$Z27="T3 (ALB/MBD)",COUNTRY_INFO!$AA27="T3 (ALB/MBD)"), "T3 (ALB/MBD)", " ") ->  | I27: 0 | M27: 0
A28: =IF(COUNTRY_INFO!A28=0," ",COUNTRY_INFO!A28) -> Togo | B28: =IF(COUNTRY_INFO!B28=0," ",COUNTRY_INFO!B28) -> MARITIME | C28: =IF(COUNTRY_INFO!C28=0," ",COUNTRY_INFO!C28) -> YOTO | D28: T3 (ALB/MBD) | E28: Janvier 2022 | G28: 87134 | I28: 87134 | K28: 85585 | M28: 85585 | O28: 98.22227833 | Q28: 98.22227833
A29: =IF(COUNTRY_INFO!A29=0," ",COUNTRY_INFO!A29) -> Togo | B29: =IF(COUNTRY_INFO!B29=0," ",COUNTRY_INFO!B29) -> MARITIME | C29: =IF(COUNTRY_INFO!C29=0," ",COUNTRY_INFO!C29) -> ZIO | D29: =IF(AND(COUNTRY_INFO!$Z29="T3 (ALB/MBD)",COUNTRY_INFO!$AA29="T3 (ALB/MBD)"), "T3 (ALB/MBD)", " ") ->  | I29: 0 | M29: 0
A30: =IF(COUNTRY_INFO!A30=0," ",COUNTRY_INFO!A30) -> Togo | B30: =IF(COUNTRY_INFO!B30=0," ",COUNTRY_INFO!B30) -> PLATEAUX | C30: =IF(COUNTRY_INFO!C30=0," ",COUNTRY_INFO!C30) -> AGOU | D30: =IF(AND(COUNTRY_INFO!$Z30="T3 (ALB/MBD)",COUNTRY_INFO!$AA30="T3 (ALB/MBD)"), "T3 (ALB/MBD)", " ") ->  | I30: 0 | M30: 0
A31: =IF(COUNTRY_INFO!A31=0," ",COUNTRY_INFO!A31) -> Togo | B31: =IF(COUNTRY_INFO!B31=0," ",COUNTRY_INFO!B31) -> PLATEAUX | C31: =IF(COUNTRY_INFO!C31=0," ",COUNTRY_INFO!C31) -> AKEBOU | D31: =IF(AND(COUNTRY_INFO!$Z31="T3 (ALB/MBD)",COUNTRY_INFO!$AA31="T3 (ALB/MBD)"), "T3 (ALB/MBD)", " ") ->  | I31: 0 | M31: 0
A32: =IF(COUNTRY_INFO!A32=0," ",COUNTRY_INFO!A32) -> Togo | B32: =IF(COUNTRY_INFO!B32=0," ",COUNTRY_INFO!B32) -> PLATEAUX | C32: =IF(COUNTRY_INFO!C32=0," ",COUNTRY_INFO!C32) -> AMOU | D32: =IF(AND(COUNTRY_INFO!$Z32="T3 (ALB/MBD)",COUNTRY_INFO!$AA32="T3 (ALB/MBD)"), "T3 (ALB/MBD)", " ") ->  | I32: 0 | M32: 0
A33: =IF(COUNTRY_INFO!A33=0," ",COUNTRY_INFO!A33) -> Togo | B33: =IF(COUNTRY_INFO!B33=0," ",COUNTRY_INFO!B33) -> PLATEAUX | C33: =IF(COUNTRY_INFO!C33=0," ",COUNTRY_INFO!C33) -> ANIE | D33: =IF(AND(COUNTRY_INFO!$Z33="T3 (ALB/MBD)",COUNTRY_INFO!$AA33="T3 (ALB/MBD)"), "T3 (ALB/MBD)", " ") ->  | I33: 0 | M33: 0
A34: =IF(COUNTRY_INFO!A34=0," ",COUNTRY_INFO!A34) -> Togo | B34: =IF(COUNTRY_INFO!B34=0," ",COUNTRY_INFO!B34) -> PLATEAUX | C34: =IF(COUNTRY_INFO!C34=0," ",COUNTRY_INFO!C34) -> DANYI | D34: =IF(AND(COUNTRY_INFO!$Z34="T3 (ALB/MBD)",COUNTRY_INFO!$AA34="T3 (ALB/MBD)"), "T3 (ALB/MBD)", " ") ->  | I34: 0 | M34: 0
A35: =IF(COUNTRY_INFO!A35=0," ",COUNTRY_INFO!A35) -> Togo | B35: =IF(COUNTRY_INFO!B35=0," ",COUNTRY_INFO!B35) -> PLATEAUX | C35: =IF(COUNTRY_INFO!C35=0," ",COUNTRY_INFO!C35) -> EST-MONO | D35: T3 (ALB/MBD) | E35: Janvier 2022 | G35: 48400 | I35: 48400 | K35: 48187 | M35: 48187 | O35: 99.55991736 | Q35: 99.55991736
A36: =IF(COUNTRY_INFO!A36=0," ",COUNTRY_INFO!A36) -> Togo | B36: =IF(COUNTRY_INFO!B36=0," ",COUNTRY_INFO!B36) -> PLATEAUX | C36: =IF(COUNTRY_INFO!C36=0," ",COUNTRY_INFO!C36) -> HAHO | D36: T3 (ALB/MBD) | E36: Janvier 2022 | G36: 98962 | I36: 98962 | K36: 96559 | M36: 96559 | O36: 97.57179523 | Q36: 97.57179523
A37: =IF(COUNTRY_INFO!A37=0," ",COUNTRY_INFO!A37) -> Togo | B37: =IF(COUNTRY_INFO!B37=0," ",COUNTRY_INFO!B37) -> PLATEAUX | C37: =IF(COUNTRY_INFO!C37=0," ",COUNTRY_INFO!C37) -> KLOTO | D37: =IF(AND(COUNTRY_INFO!$Z37="T3 (ALB/MBD)",COUNTRY_INFO!$AA37="T3 (ALB/MBD)"), "T3 (ALB/MBD)", " ") ->  | I37: 0 | M37: 0
A38: =IF(COUNTRY_INFO!A38=0," ",COUNTRY_INFO!A38) -> Togo | B38: =IF(COUNTRY_INFO!B38=0," ",COUNTRY_INFO!B38) -> PLATEAUX | C38: =IF(COUNTRY_INFO!C38=0," ",COUNTRY_INFO!C38) -> KPELE | D38: =IF(AND(COUNTRY_INFO!$Z38="T3 (ALB/MBD)",COUNTRY_INFO!$AA38="T3 (ALB/MBD)"), "T3 (ALB/MBD)", " ") ->  | I38: 0 | M38: 0
A39: =IF(COUNTRY_INFO!A39=0," ",COUNTRY_INFO!A39) -> Togo | B39: =IF(COUNTRY_INFO!B39=0," ",COUNTRY_INFO!B39) -> PLATEAUX | C39: =IF(COUNTRY_INFO!C39=0," ",COUNTRY_INFO!C39) -> MOYEN-MONO | D39: =IF(AND(COUNTRY_INFO!$Z39="T3 (ALB/MBD)",COUNTRY_INFO!$AA39="T3 (ALB/MBD)"), "T3 (ALB/MBD)", " ") ->  | I39: 0 | M39: 0
A40: =IF(COUNTRY_INFO!A40=0," ",COUNTRY_INFO!A40) -> Togo | B40: =IF(COUNTRY_INFO!B40=0," ",COUNTRY_INFO!B40) -> PLATEAUX | C40: =IF(COUNTRY_INFO!C40=0," ",COUNTRY_INFO!C40) -> OGOU | D40: T3 (ALB/MBD) | E40: Janvier 2022 | G40: 72848 | I40: 72848 | K40: 68641 | M40: 68641 | O40: 94.22496156 | Q40: 94.22496156
A41: =IF(COUNTRY_INFO!A41=0," ",COUNTRY_INFO!A41) -> Togo | B41: =IF(COUNTRY_INFO!B41=0," ",COUNTRY_INFO!B41) -> PLATEAUX | C41: =IF(COUNTRY_INFO!C41=0," ",COUNTRY_INFO!C41) -> WAWA | D41: =IF(AND(COUNTRY_INFO!$Z41="T3 (ALB/MBD)",COUNTRY_INFO!$AA41="T3 (ALB/MBD)"), "T3 (ALB/MBD)", " ") ->  | I41: 0 | M41: 0
A42: =IF(COUNTRY_INFO!A42=0," ",COUNTRY_INFO!A42) -> Togo | B42: =IF(COUNTRY_INFO!B42=0," ",COUNTRY_INFO!B42) -> SAVANES | C42: =IF(COUNTRY_INFO!C42=0," ",COUNTRY_INFO!C42) -> CINKASSE | D42: =IF(AND(COUNTRY_INFO!$Z42="T3 (ALB/MBD)",COUNTRY_INFO!$AA42="T3 (ALB/MBD)"), "T3 (ALB/MBD)", " ") ->  | I42: 0 | M42: 0
A43: =IF(COUNTRY_INFO!A43=0," ",COUNTRY_INFO!A43) -> Togo | B43: =IF(COUNTRY_INFO!B43=0," ",COUNTRY_INFO!B43) -> SAVANES | C43: =IF(COUNTRY_INFO!C43=0," ",COUNTRY_INFO!C43) -> KPENDJAL | D43: =IF(AND(COUNTRY_INFO!$Z43="T3 (ALB/MBD)",COUNTRY_INFO!$AA43="T3 (ALB/MBD)"), "T3 (ALB/MBD)", " ") ->  | I43: 0 | M43: 0
A44: =IF(COUNTRY_INFO!A44=0," ",COUNTRY_INFO!A44) -> Togo | B44: =IF(COUNTRY_INFO!B44=0," ",COUNTRY_INFO!B44) -> SAVANES | C44: =IF(COUNTRY_INFO!C44=0," ",COUNTRY_INFO!C44) -> KPENDJAL-OUEST | D44: =IF(AND(COUNTRY_INFO!$Z44="T3 (ALB/MBD)",COUNTRY_INFO!$AA44="T3 (ALB/MBD)"), "T3 (ALB/MBD)", " ") ->  | I44: 0 | M44: 0
A45: =IF(COUNTRY_INFO!A45=0," ",COUNTRY_INFO!A45) -> Togo | B45: =IF(COUNTRY_INFO!B45=0," ",COUNTRY_INFO!B45) -> SAVANES | C45: =IF(COUNTRY_INFO!C45=0," ",COUNTRY_INFO!C45) -> OTI | D45: T3 (ALB/MBD) | E45: Janvier 2022 | G45: 41561 | I45: 41561 | K45: 35300 | M45: 35300 | O45: 84.93539616 | Q45: 84.93539616
A46: =IF(COUNTRY_INFO!A46=0," ",COUNTRY_INFO!A46) -> Togo | B46: =IF(COUNTRY_INFO!B46=0," ",COUNTRY_INFO!B46) -> SAVANES | C46: =IF(COUNTRY_INFO!C46=0," ",COUNTRY_INFO!C46) -> OTI-SUD | D46: T3 (ALB/MBD) | E46: Janvier 2022 | G46: 43843 | I46: 43843 | K46: 44452 | M46: 44452 | O46: 101.3890473 | Q46: 101.3890473
A47: =IF(COUNTRY_INFO!A47=0," ",COUNTRY_INFO!A47) -> Togo | B47: =IF(COUNTRY_INFO!B47=0," ",COUNTRY_INFO!B47) -> SAVANES | C47: =IF(COUNTRY_INFO!C47=0," ",COUNTRY_INFO!C47) -> TANDJOUARE | D47: T3 (ALB/MBD) | E47: Janvier 2022 | G47: 48805 | I47: 48805 | K47: 47024 | M47: 47024 | O47: 96.35078373 | Q47: 96.35078373
A48: =IF(COUNTRY_INFO!A48=0," ",COUNTRY_INFO!A48) -> Togo | B48: =IF(COUNTRY_INFO!B48=0," ",COUNTRY_INFO!B48) -> SAVANES | C48: =IF(COUNTRY_INFO!C48=0," ",COUNTRY_INFO!C48) -> TONE | D48: =IF(AND(COUNTRY_INFO!$Z48="T3 (ALB/MBD)",COUNTRY_INFO!$AA48="T3 (ALB/MBD)"), "T3 (ALB/MBD)", " ") ->  | I48: 0 | M48: 0

Sheet T3_R3
A1: T 3 - Albendazole (ALB) ou Mebendazole (MBD) - Tournée 3 | F1: Choisir le médicament utilisé pour le traitement de la STH pour chaque groupe d'âge
A2: Structure administrative, population nécessitant une CP par groupe d'âge, population traitée par groupe d'âge et couverture | J2: Sélectionner la catégorie d’adultes
A4: TOTAL | F4: =SUBTOTAL(9,F$10:F$1010) -> 0 | G4: 0 | H4: 0 | I4: 0 | J4: 0 | K4: 0 | L4: 0 | M4: 0 | N4: =IF(F4<>0, IF(J4/F4*100=0, "-", J4/F4*100), " ") ->  | O4: =IF(G4<>0, IF(K4/G4*100=0, "-", K4/G4*100), " ") ->  | P4: =IF(H4<>0, IF(L4/H4*100=0, "-", L4/H4*100), " ") ->  | Q4: =IF(I4<>0, IF(M4/I4*100=0, "-", M4/I4*100), " ") -> 
A6: Structure administrative du pays | D6: Mise en oeuvre de la CP | E6: Date | F6: Population ciblée pour T3 | J6: Population traitée | N6: Couverture du Programme (%)
A7: Pays | B7: Région/Département | C7: District | F7: EAPréS | G7: EAS | H7: Adultes | I7: Total | J7: EAPréS | K7: EAS | L7: Adultes | M7: Total | N7: EAPréS | O7: EAS | P7: Adultes | Q7: Total
A10: =IF(COUNTRY_INFO!A10=0," ",COUNTRY_INFO!A10) -> Togo | B10: =IF(COUNTRY_INFO!B10=0," ",COUNTRY_INFO!B10) -> CENTRALE | C10: =IF(COUNTRY_INFO!C10=0," ",COUNTRY_INFO!C10) -> BLITTA | D10: =IF(COUNTRY_INFO!$AB10="T3 (ALB/MBD)", "T3 (ALB/MBD)", " ") ->  | I10: =SUM(F10:H10) -> 0 | M10: =SUM(J10:L10) -> 0 | N10: =IF(F10<>0, IF(J10/F10*100=0, "-", J10/F10*100), " ") -> 
A11: =IF(COUNTRY_INFO!A11=0," ",COUNTRY_INFO!A11) -> Togo | B11: =IF(COUNTRY_INFO!B11=0," ",COUNTRY_INFO!B11) -> CENTRALE | C11: =IF(COUNTRY_INFO!C11=0," ",COUNTRY_INFO!C11) -> MÔ | D11: =IF(COUNTRY_INFO!$AB11="T3 (ALB/MBD)", "T3 (ALB/MBD)", " ") ->  | I11: =SUM(F11:H11) -> 0 | M11: =SUM(J11:L11) -> 0 | N11: =IF(F11<>0, IF(J11/F11*100=0, "-", J11/F11*100), " ") ->  | O11: =IF(G11<>0, IF(K11/G11*100=0, "-", K11/G11*100), " ") ->  | P11: =IF(H11<>0, IF(L11/H11*100=0, "-", L11/H11*100), " ") ->  | Q11: =IF(I11<>0, IF(M11/I11*100=0, "-", M11/I11*100), " ") -> 
A12: =IF(COUNTRY_INFO!A12=0," ",COUNTRY_INFO!A12) -> Togo | B12: =IF(COUNTRY_INFO!B12=0," ",COUNTRY_INFO!B12) -> CENTRALE | C12: =IF(COUNTRY_INFO!C12=0," ",COUNTRY_INFO!C12) -> SOTOUBOUA | D12: =IF(COUNTRY_INFO!$AB12="T3 (ALB/MBD)", "T3 (ALB/MBD)", " ") ->  | I12: 0 | M12: 0
A13: =IF(COUNTRY_INFO!A13=0," ",COUNTRY_INFO!A13) -> Togo | B13: =IF(COUNTRY_INFO!B13=0," ",COUNTRY_INFO!B13) -> CENTRALE | C13: =IF(COUNTRY_INFO!C13=0," ",COUNTRY_INFO!C13) -> TCHAMBA | D13: =IF(COUNTRY_INFO!$AB13="T3 (ALB/MBD)", "T3 (ALB/MBD)", " ") ->  | I13: 0 | M13: 0
A14: =IF(COUNTRY_INFO!A14=0," ",COUNTRY_INFO!A14) -> Togo | B14: =IF(COUNTRY_INFO!B14=0," ",COUNTRY_INFO!B14) -> CENTRALE | C14: =IF(COUNTRY_INFO!C14=0," ",COUNTRY_INFO!C14) -> TCHAOUDJO | D14: =IF(COUNTRY_INFO!$AB14="T3 (ALB/MBD)", "T3 (ALB/MBD)", " ") ->  | I14: 0 | M14: 0
A15: =IF(COUNTRY_INFO!A15=0," ",COUNTRY_INFO!A15) -> Togo | B15: =IF(COUNTRY_INFO!B15=0," ",COUNTRY_INFO!B15) -> GRAND-LOME | C15: =IF(COUNTRY_INFO!C15=0," ",COUNTRY_INFO!C15) -> AGOE NYIVE | D15: =IF(COUNTRY_INFO!$AB15="T3 (ALB/MBD)", "T3 (ALB/MBD)", " ") ->  | I15: 0 | M15: 0
A16: =IF(COUNTRY_INFO!A16=0," ",COUNTRY_INFO!A16) -> Togo | B16: =IF(COUNTRY_INFO!B16=0," ",COUNTRY_INFO!B16) -> GRAND-LOME | C16: =IF(COUNTRY_INFO!C16=0," ",COUNTRY_INFO!C16) -> GOLFE | D16: =IF(COUNTRY_INFO!$AB16="T3 (ALB/MBD)", "T3 (ALB/MBD)", " ") ->  | I16: 0 | M16: 0
A17: =IF(COUNTRY_INFO!A17=0," ",COUNTRY_INFO!A17) -> Togo | B17: =IF(COUNTRY_INFO!B17=0," ",COUNTRY_INFO!B17) -> KARA | C17: =IF(COUNTRY_INFO!C17=0," ",COUNTRY_INFO!C17) -> ASSOLI | D17: =IF(COUNTRY_INFO!$AB17="T3 (ALB/MBD)", "T3 (ALB/MBD)", " ") ->  | I17: 0 | M17: 0
A18: =IF(COUNTRY_INFO!A18=0," ",COUNTRY_INFO!A18) -> Togo | B18: =IF(COUNTRY_INFO!B18=0," ",COUNTRY_INFO!B18) -> KARA | C18: =IF(COUNTRY_INFO!C18=0," ",COUNTRY_INFO!C18) -> BASSAR | D18: =IF(COUNTRY_INFO!$AB18="T3 (ALB/MBD)", "T3 (ALB/MBD)", " ") ->  | I18: 0 | M18: 0
A19: =IF(COUNTRY_INFO!A19=0," ",COUNTRY_INFO!A19) -> Togo | B19: =IF(COUNTRY_INFO!B19=0," ",COUNTRY_INFO!B19) -> KARA | C19: =IF(COUNTRY_INFO!C19=0," ",COUNTRY_INFO!C19) -> BINAH | D19: =IF(COUNTRY_INFO!$AB19="T3 (ALB/MBD)", "T3 (ALB/MBD)", " ") ->  | I19: 0 | M19: 0
A20: =IF(COUNTRY_INFO!A20=0," ",COUNTRY_INFO!A20) -> Togo | B20: =IF(COUNTRY_INFO!B20=0," ",COUNTRY_INFO!B20) -> KARA | C20: =IF(COUNTRY_INFO!C20=0," ",COUNTRY_INFO!C20) -> DANKPEN | D20: =IF(COUNTRY_INFO!$AB20="T3 (ALB/MBD)", "T3 (ALB/MBD)", " ") ->  | I20: 0 | M20: 0
A21: =IF(COUNTRY_INFO!A21=0," ",COUNTRY_INFO!A21) -> Togo | B21: =IF(COUNTRY_INFO!B21=0," ",COUNTRY_INFO!B21) -> KARA | C21: =IF(COUNTRY_INFO!C21=0," ",COUNTRY_INFO!C21) -> DOUFELGOU | D21: =IF(COUNTRY_INFO!$AB21="T3 (ALB/MBD)", "T3 (ALB/MBD)", " ") ->  | I21: 0 | M21: 0
A22: =IF(COUNTRY_INFO!A22=0," ",COUNTRY_INFO!A22) -> Togo | B22: =IF(COUNTRY_INFO!B22=0," ",COUNTRY_INFO!B22) -> KARA | C22: =IF(COUNTRY_INFO!C22=0," ",COUNTRY_INFO!C22) -> KERAN | D22: =IF(COUNTRY_INFO!$AB22="T3 (ALB/MBD)", "T3 (ALB/MBD)", " ") ->  | I22: 0 | M22: 0
A23: =IF(COUNTRY_INFO!A23=0," ",COUNTRY_INFO!A23) -> Togo | B23: =IF(COUNTRY_INFO!B23=0," ",COUNTRY_INFO!B23) -> KARA | C23: =IF(COUNTRY_INFO!C23=0," ",COUNTRY_INFO!C23) -> KOZAH | D23: =IF(COUNTRY_INFO!$AB23="T3 (ALB/MBD)", "T3 (ALB/MBD)", " ") ->  | I23: 0 | M23: 0
A24: =IF(COUNTRY_INFO!A24=0," ",COUNTRY_INFO!A24) -> Togo | B24: =IF(COUNTRY_INFO!B24=0," ",COUNTRY_INFO!B24) -> MARITIME | C24: =IF(COUNTRY_INFO!C24=0," ",COUNTRY_INFO!C24) -> AVE | D24: =IF(COUNTRY_INFO!$AB24="T3 (ALB/MBD)", "T3 (ALB/MBD)", " ") ->  | I24: 0 | M24: 0
A25: =IF(COUNTRY_INFO!A25=0," ",COUNTRY_INFO!A25) -> Togo | B25: =IF(COUNTRY_INFO!B25=0," ",COUNTRY_INFO!B25) -> MARITIME | C25: =IF(COUNTRY_INFO!C25=0," ",COUNTRY_INFO!C25) -> BAS-MONO | D25: =IF(COUNTRY_INFO!$AB25="T3 (ALB/MBD)", "T3 (ALB/MBD)", " ") ->  | I25: 0 | M25: 0
A26: =IF(COUNTRY_INFO!A26=0," ",COUNTRY_INFO!A26) -> Togo | B26: =IF(COUNTRY_INFO!B26=0," ",COUNTRY_INFO!B26) -> MARITIME | C26: =IF(COUNTRY_INFO!C26=0," ",COUNTRY_INFO!C26) -> LACS | D26: =IF(COUNTRY_INFO!$AB26="T3 (ALB/MBD)", "T3 (ALB/MBD)", " ") ->  | I26: 0 | M26: 0
A27: =IF(COUNTRY_INFO!A27=0," ",COUNTRY_INFO!A27) -> Togo | B27: =IF(COUNTRY_INFO!B27=0," ",COUNTRY_INFO!B27) -> MARITIME | C27: =IF(COUNTRY_INFO!C27=0," ",COUNTRY_INFO!C27) -> VO | D27: =IF(COUNTRY_INFO!$AB27="T3 (ALB/MBD)", "T3 (ALB/MBD)", " ") ->  | I27: 0 | M27: 0
A28: =IF(COUNTRY_INFO!A28=0," ",COUNTRY_INFO!A28) -> Togo | B28: =IF(COUNTRY_INFO!B28=0," ",COUNTRY_INFO!B28) -> MARITIME | C28: =IF(COUNTRY_INFO!C28=0," ",COUNTRY_INFO!C28) -> YOTO | D28: =IF(COUNTRY_INFO!$AB28="T3 (ALB/MBD)", "T3 (ALB/MBD)", " ") ->  | I28: 0 | M28: 0
A29: =IF(COUNTRY_INFO!A29=0," ",COUNTRY_INFO!A29) -> Togo | B29: =IF(COUNTRY_INFO!B29=0," ",COUNTRY_INFO!B29) -> MARITIME | C29: =IF(COUNTRY_INFO!C29=0," ",COUNTRY_INFO!C29) -> ZIO | D29: =IF(COUNTRY_INFO!$AB29="T3 (ALB/MBD)", "T3 (ALB/MBD)", " ") ->  | I29: 0 | M29: 0
A30: =IF(COUNTRY_INFO!A30=0," ",COUNTRY_INFO!A30) -> Togo | B30: =IF(COUNTRY_INFO!B30=0," ",COUNTRY_INFO!B30) -> PLATEAUX | C30: =IF(COUNTRY_INFO!C30=0," ",COUNTRY_INFO!C30) -> AGOU | D30: =IF(COUNTRY_INFO!$AB30="T3 (ALB/MBD)", "T3 (ALB/MBD)", " ") ->  | I30: 0 | M30: 0
A31: =IF(COUNTRY_INFO!A31=0," ",COUNTRY_INFO!A31) -> Togo | B31: =IF(COUNTRY_INFO!B31=0," ",COUNTRY_INFO!B31) -> PLATEAUX | C31: =IF(COUNTRY_INFO!C31=0," ",COUNTRY_INFO!C31) -> AKEBOU | D31: =IF(COUNTRY_INFO!$AB31="T3 (ALB/MBD)", "T3 (ALB/MBD)", " ") ->  | I31: 0 | M31: 0
A32: =IF(COUNTRY_INFO!A32=0," ",COUNTRY_INFO!A32) -> Togo | B32: =IF(COUNTRY_INFO!B32=0," ",COUNTRY_INFO!B32) -> PLATEAUX | C32: =IF(COUNTRY_INFO!C32=0," ",COUNTRY_INFO!C32) -> AMOU | D32: =IF(COUNTRY_INFO!$AB32="T3 (ALB/MBD)", "T3 (ALB/MBD)", " ") ->  | I32: 0 | M32: 0
A33: =IF(COUNTRY_INFO!A33=0," ",COUNTRY_INFO!A33) -> Togo | B33: =IF(COUNTRY_INFO!B33=0," ",COUNTRY_INFO!B33) -> PLATEAUX | C33: =IF(COUNTRY_INFO!C33=0," ",COUNTRY_INFO!C33) -> ANIE | D33: =IF(COUNTRY_INFO!$AB33="T3 (ALB/MBD)", "T3 (ALB/MBD)", " ") ->  | I33: 0 | M33: 0
A34: =IF(COUNTRY_INFO!A34=0," ",COUNTRY_INFO!A34) -> Togo | B34: =IF(COUNTRY_INFO!B34=0," ",COUNTRY_INFO!B34) -> PLATEAUX | C34: =IF(COUNTRY_INFO!C34=0," ",COUNTRY_INFO!C34) -> DANYI | D34: =IF(COUNTRY_INFO!$AB34="T3 (ALB/MBD)", "T3 (ALB/MBD)", " ") ->  | I34: 0 | M34: 0
A35: =IF(COUNTRY_INFO!A35=0," ",COUNTRY_INFO!A35) -> Togo | B35: =IF(COUNTRY_INFO!B35=0," ",COUNTRY_INFO!B35) -> PLATEAUX | C35: =IF(COUNTRY_INFO!C35=0," ",COUNTRY_INFO!C35) -> EST-MONO | D35: =IF(COUNTRY_INFO!$AB35="T3 (ALB/MBD)", "T3 (ALB/MBD)", " ") ->  | I35: 0 | M35: 0
A36: =IF(COUNTRY_INFO!A36=0," ",COUNTRY_INFO!A36) -> Togo | B36: =IF(COUNTRY_INFO!B36=0," ",COUNTRY_INFO!B36) -> PLATEAUX | C36: =IF(COUNTRY_INFO!C36=0," ",COUNTRY_INFO!C36) -> HAHO | D36: =IF(COUNTRY_INFO!$AB36="T3 (ALB/MBD)", "T3 (ALB/MBD)", " ") ->  | I36: 0 | M36: 0
A37: =IF(COUNTRY_INFO!A37=0," ",COUNTRY_INFO!A37) -> Togo | B37: =IF(COUNTRY_INFO!B37=0," ",COUNTRY_INFO!B37) -> PLATEAUX | C37: =IF(COUNTRY_INFO!C37=0," ",COUNTRY_INFO!C37) -> KLOTO | D37: =IF(COUNTRY_INFO!$AB37="T3 (ALB/MBD)", "T3 (ALB/MBD)", " ") ->  | I37: 0 | M37: 0
A38: =IF(COUNTRY_INFO!A38=0," ",COUNTRY_INFO!A38) -> Togo | B38: =IF(COUNTRY_INFO!B38=0," ",COUNTRY_INFO!B38) -> PLATEAUX | C38: =IF(COUNTRY_INFO!C38=0," ",COUNTRY_INFO!C38) -> KPELE | D38: =IF(COUNTRY_INFO!$AB38="T3 (ALB/MBD)", "T3 (ALB/MBD)", " ") ->  | I38: 0 | M38: 0
A39: =IF(COUNTRY_INFO!A39=0," ",COUNTRY_INFO!A39) -> Togo | B39: =IF(COUNTRY_INFO!B39=0," ",COUNTRY_INFO!B39) -> PLATEAUX | C39: =IF(COUNTRY_INFO!C39=0," ",COUNTRY_INFO!C39) -> MOYEN-MONO | D39: =IF(COUNTRY_INFO!$AB39="T3 (ALB/MBD)", "T3 (ALB/MBD)", " ") ->  | I39: 0 | M39: 0
A40: =IF(COUNTRY_INFO!A40=0," ",COUNTRY_INFO!A40) -> Togo | B40: =IF(COUNTRY_INFO!B40=0," ",COUNTRY_INFO!B40) -> PLATEAUX | C40: =IF(COUNTRY_INFO!C40=0," ",COUNTRY_INFO!C40) -> OGOU | D40: =IF(COUNTRY_INFO!$AB40="T3 (ALB/MBD)", "T3 (ALB/MBD)", " ") ->  | I40: 0 | M40: 0
A41: =IF(COUNTRY_INFO!A41=0," ",COUNTRY_INFO!A41) -> Togo | B41: =IF(COUNTRY_INFO!B41=0," ",COUNTRY_INFO!B41) -> PLATEAUX | C41: =IF(COUNTRY_INFO!C41=0," ",COUNTRY_INFO!C41) -> WAWA | D41: =IF(COUNTRY_INFO!$AB41="T3 (ALB/MBD)", "T3 (ALB/MBD)", " ") ->  | I41: 0 | M41: 0
A42: =IF(COUNTRY_INFO!A42=0," ",COUNTRY_INFO!A42) -> Togo | B42: =IF(COUNTRY_INFO!B42=0," ",COUNTRY_INFO!B42) -> SAVANES | C42: =IF(COUNTRY_INFO!C42=0," ",COUNTRY_INFO!C42) -> CINKASSE | D42: =IF(COUNTRY_INFO!$AB42="T3 (ALB/MBD)", "T3 (ALB/MBD)", " ") ->  | I42: 0 | M42: 0
A43: =IF(COUNTRY_INFO!A43=0," ",COUNTRY_INFO!A43) -> Togo | B43: =IF(COUNTRY_INFO!B43=0," ",COUNTRY_INFO!B43) -> SAVANES | C43: =IF(COUNTRY_INFO!C43=0," ",COUNTRY_INFO!C43) -> KPENDJAL | D43: =IF(COUNTRY_INFO!$AB43="T3 (ALB/MBD)", "T3 (ALB/MBD)", " ") ->  | I43: 0 | M43: 0
A44: =IF(COUNTRY_INFO!A44=0," ",COUNTRY_INFO!A44) -> Togo | B44: =IF(COUNTRY_INFO!B44=0," ",COUNTRY_INFO!B44) -> SAVANES | C44: =IF(COUNTRY_INFO!C44=0," ",COUNTRY_INFO!C44) -> KPENDJAL-OUEST | D44: =IF(COUNTRY_INFO!$AB44="T3 (ALB/MBD)", "T3 (ALB/MBD)", " ") ->  | I44: 0 | M44: 0
A45: =IF(COUNTRY_INFO!A45=0," ",COUNTRY_INFO!A45) -> Togo | B45: =IF(COUNTRY_INFO!B45=0," ",COUNTRY_INFO!B45) -> SAVANES | C45: =IF(COUNTRY_INFO!C45=0," ",COUNTRY_INFO!C45) -> OTI | D45: =IF(COUNTRY_INFO!$AB45="T3 (ALB/MBD)", "T3 (ALB/MBD)", " ") ->  | I45: 0 | M45: 0
A46: =IF(COUNTRY_INFO!A46=0," ",COUNTRY_INFO!A46) -> Togo | B46: =IF(COUNTRY_INFO!B46=0," ",COUNTRY_INFO!B46) -> SAVANES | C46: =IF(COUNTRY_INFO!C46=0," ",COUNTRY_INFO!C46) -> OTI-SUD | D46: =IF(COUNTRY_INFO!$AB46="T3 (ALB/MBD)", "T3 (ALB/MBD)", " ") ->  | I46: 0 | M46: 0
A47: =IF(COUNTRY_INFO!A47=0," ",COUNTRY_INFO!A47) -> Togo | B47: =IF(COUNTRY_INFO!B47=0," ",COUNTRY_INFO!B47) -> SAVANES | C47: =IF(COUNTRY_INFO!C47=0," ",COUNTRY_INFO!C47) -> TANDJOUARE | D47: =IF(COUNTRY_INFO!$AB47="T3 (ALB/MBD)", "T3 (ALB/MBD)", " ") ->  | I47: 0 | M47: 0
A48: =IF(COUNTRY_INFO!A48=0," ",COUNTRY_INFO!A48) -> Togo | B48: =IF(COUNTRY_INFO!B48=0," ",COUNTRY_INFO!B48) -> SAVANES | C48: =IF(COUNTRY_INFO!C48=0," ",COUNTRY_INFO!C48) -> TONE | D48: =IF(COUNTRY_INFO!$AB48="T3 (ALB/MBD)", "T3 (ALB/MBD)", " ") ->  | I48: 0 | M48: 0

Sheet DISTRICT
A1: Nombre d'individus traités
A2: Structure administrative, population traitée par groupe d'âge et sexe
A4: TOTAL | D4: =SUBTOTAL(9,D$10:D$1010) -> 0 | E4: =SUBTOTAL(9,E$10:E$1010) -> 0 | F4: 0 | G4: 0 | H4: 0 | I4: =IF(D4>0, IF(H4/D4*100<>0, H4/D4*100, "-"),0) -> 0 | J4: =SUBTOTAL(9,J$10:J$1010) -> 4018551.216 | K4: 1634032 | L4: 1723059 | M4: 3370813 | N4: 3368701 | O4: =IF(J4>0, IF(N4/J4*100<>0, N4/J4*100, "-"),0) -> 83.82874372 | P4: =SUBTOTAL(9,P$10:P$1010) -> 2544074 | Q4: 1018029 | R4: 1032777 | S4: 0 | T4: 0 | U4: =IF(COUNTRY_INFO!N4>0, IF(T4/COUNTRY_INFO!N4*100<>0, T4/COUNTRY_INFO!N4*100, "-"),0) -> - | V4: 2051932 | W4: =SUBTOTAL(9,W$10:W$1010) -> 1614591 | X4: =IF(COUNTRY_INFO!O4>0, IF(W4/COUNTRY_INFO!O4*100<>0,W4/COUNTRY_INFO!O4*100, "-"),0) -> 97.3126468 | Y4: =SUBTOTAL(9,Y$10:Y$1010) -> 0 | Z4: =SUBTOTAL(9,Z$10:Z$1010) -> 0 | AA4: =IF(COUNTRY_INFO!P4>0, IF(Z4/COUNTRY_INFO!P4*100<>0, Z4/COUNTRY_INFO!P4*100, "-"),0) -> 0 | AB4: =SUBTOTAL(9,AB$10:AB$1010) -> 2051932 | AC4: =SUBTOTAL(9,AC$10:AC$1010) -> 1614591 | AD4: =IF(P4>0, IF(AC4/P4*100<>0, AC4/P4*100, "-"),0) -> 63.46478129 | AE4: =SUBTOTAL(9,AE$10:AE$1010) -> 4196913 | AF4: 0 | AG4: 0 | AH4: 0 | AI4: 0 | AJ4: =IF(COUNTRY_INFO!R4>0, IF(AI4/COUNTRY_INFO!R4*100<>0, AI4/COUNTRY_INFO!R4*100, "-"),0) -> 0 | AK4: =SUBTOTAL(9,AK$10:AK$1010) -> 1811333 | AL4: 0 | AM4: =IF(COUNTRY_INFO!S4>0, IF(AL4/COUNTRY_INFO!S4*100<>0, AL4/COUNTRY_INFO!S4*100, "-"),0) -> 0 | AN4: =SUBTOTAL(9,AN$10:AN$1010) -> 942535.48 | AO4: =SUBTOTAL(9,AO$10:AO$1010) -> 0 | AP4: =IF(COUNTRY_INFO!T4>0, IF(AO4/COUNTRY_INFO!T4*100<>0, AO4/COUNTRY_INFO!T4*100, "-"),0) -> 0 | AQ4: =SUBTOTAL(9,AQ$10:AQ$1010) -> 2753868.48 | AR4: =SUBTOTAL(9,AR$10:AR$1010) -> 2753868.48 | AS4: =IF(AE4>0, IF(AR4/AE4*100<>0, AR4/AE4*100, "-"),0) -> 65.61652529
P5: 2544074 | Q5: 1018029 | R5: 1032777 | S5: 0 | T5: 0 | Z5: 0 | AB5: 2051932
A6: Structure administrative du pays | D6: Population nécessitant la CP pour FL | E6: Population traitée pour la filariose lymphatique | J6: Population nécessitant la CP pour ONCHO | K6: Population traitée pour l'onchocercose | P6: Population nécessitant la CP pour STH | Q6: Population traitée pour les géohelminthiases | AE6: Population nécessitant la CP pour SCH | AF6: Population traitée pour la schistosomiase | AY6: =SUBTOTAL(9,AY10:AY1010) -> 160742.4578 | AZ6: =SUBTOTAL(9,AZ10:AZ1010) -> 942789.0957 | BA6: 1767730.446 | BB6: 2009276.39 | BC6: 4880538.39 | BD6: =COUNTIF(BD10:BD1010,"Y") -> 38 | BE6: =SUBTOTAL(9,BE10:BE1010) -> 0 | BF6: 2066965 | BG6: 2351883 | BH6: 4418848 | BI6: 0 | BJ6: 1324569.14 | BK6: 1992340.923 | BL6: 3316910.063 | BM6: =IF(BC6<>0,BL6/BC6,0) -> 0.6796197054
A7: Pays | B7: Région/Département | C7: District | E7: Masculine | F7: Féminine | G7: Total traité | H7: Total traité ayant besoin de CP | I7: (%) | K7: Masculine | L7: Féminine | M7: Total traité | N7: Total traité ayant besoin de CP | O7: (%) | Q7: Masculine | R7: Féminine | S7: Total EAPréS traité | T7: EAPréS traité ayant besoin de CP | U7: EAPréS (%) | V7: Total EAS traité | W7: EAS traité ayant besoin de CP | X7: EAS (%) | Y7: Total Adultes traité | Z7: Adultes traité ayant besoin de CP | AA7: Adultes (%) | AB7: Total traité | AC7: Total traité ayant besoin de CP | AD7: (%) | AF7: Masculine | AG7: Féminine | AH7: Total EAPréS traité | AI7: EAPréS traité ayant besoin de CP | AJ7: EAPréS (%) | AK7: Total EAS traité | AL7: EAS traité ayant besoin de CP | AM7: EAS (%) | AN7: Total Adultes traité | AO7: Adultes traité ayant besoin de CP | AP7: Adultes (%) | AQ7: Total traité | AR7: Total traité ayant besoin de CP | AS7: (%) | AU7: LF | AV7: ONCHO | AW7: STH | AX7: SCH | AY7: <1 | AZ7: PreSAC | BA7: SAC | BB7: Adults | BC7: Total | BD7: Dis | BE7: PreSAC | BF7: SAC | BG7: Adults | BH7: Total | BI7: PreSAC | BJ7: SAC | BK7: Adults | BL7: Total | BM7: Coverage
A10: =IF(COUNTRY_INFO!A10=0," ",COUNTRY_INFO!A10) -> Togo | B10: =IF(COUNTRY_INFO!B10=0," ",COUNTRY_INFO!B10) -> CENTRALE | C10: =IF(COUNTRY_INFO!C10=0," ",COUNTRY_INFO!C10) -> BLITTA | D10: =COUNTRY_INFO!L10 -> Non requis | G10: =MAX('MDA1'!M10,'MDA2'!M10,'MDA5'!M10) -> 0 | H10: =IF(AND(COUNTRY_INFO!H10>0,COUNTRY_INFO!H10<4),IF(D10>G10,G10,D10),0) -> 0 | I10: =IF(AND(COUNTRY_INFO!H10>0,COUNTRY_INFO!H10<4), IF(G10/D10*100<>0, IF(G10/D10*100>100,100,G10/D10*100), "-"),0) -> 0 | J10: =COUNTRY_INFO!M10 -> 116301.8909 | K10: 50929 | L10: 50807 | M10: =MAX('MDA1'!M10,MAX('MDA3'!I10,'MDA3'!L10)+MAX('MDA3'!J10,'MDA3'!M10)) -> 101736 | N10: =IF(AND(COUNTRY_INFO!I10>0,COUNTRY_INFO!I10<4),IF(J10>M10,M10,J10),0) -> 101736 | O10: =IF(AND(COUNTRY_INFO!I10>0,COUNTRY_INFO!I10<4), IF(M10/J10*100<>0, IF(M10/J10*100>100,100,M10/J10*100), "-"),0) -> 87.47579184 | P10: =COUNTRY_INFO!Q10 -> 78818 | Q10: 26069 | R10: 26532 | S10: =MAX('MDA2'!J10,'MDA5'!J10,'T1'!K10, MAX(T3_R1!J10,T3_R2!J10,T3_R3!J10)) -> 0 | T10: =IF(AND(COUNTRY_INFO!J10>1,COUNTRY_INFO!J10<99,COUNTRY_INFO!J10<>4,COUNTRY_INFO!J10<>5),IF(COUNTRY_INFO!N10>S10,S10,COUNTRY_INFO!N10),0) -> 0 | U10: =IF(AND(COUNTRY_INFO!J10>1,COUNTRY_INFO!J10<99,COUNTRY_INFO!J10<>4,COUNTRY_INFO!J10<>5), IF(T10/COUNTRY_INFO!N10*100<>0, IF(T10/COUNTRY_INFO!N10*100>100,100,T10/COUNTRY_INFO!N10*100), "-"),0) -> - | V10: =MAX('MDA1'!K10, 'MDA2'!K10, 'MDA5'!K10,'T1'!L10, MAX(T3_R1!K10,T3_R2!K10,T3_R3!K10)) -> 52601 | W10: =IF(AND(COUNTRY_INFO!J10>1,COUNTRY_INFO!J10<99,COUNTRY_INFO!J10<>4,COUNTRY_INFO!J10<>5),IF(COUNTRY_INFO!O10>V10,V10,COUNTRY_INFO!O10),0) -> 51403 | X10: =IF(AND(COUNTRY_INFO!J10>1,COUNTRY_INFO!J10<99,COUNTRY_INFO!J10<>4,COUNTRY_INFO!J10<>5), IF(W10/COUNTRY_INFO!O10*100<>0, IF(W10/COUNTRY_INFO!O10*100>100,100,W10/COUNTRY_INFO!O10*100), "-"),0) -> 100 | Y10: =MAX('MDA1'!L10, 'MDA2'!L10, 'MDA5'!L10,'T1'!M10, MAX(T3_R1!L10,T3_R2!L10,T3_R3!L10)) -> 0 | Z10: =IF(AND(COUNTRY_INFO!J10>1,COUNTRY_INFO!J10<99,COUNTRY_INFO!J10<>4,COUNTRY_INFO!J10<>5),IF(COUNTRY_INFO!P10>Y10,Y10,COUNTRY_INFO!P10),0) -> 0 | AA10: =IF(AND(COUNTRY_INFO!J10>1,COUNTRY_INFO!J10<99,COUNTRY_INFO!J10<>4,COUNTRY_INFO!J10<>5), IF(Z10/COUNTRY_INFO!P10*100<>0, IF(Z10/COUNTRY_INFO!P10*100>100,100,Z10/COUNTRY_INFO!P10*100), "-"),0) ->  | AB10: =SUM(S10,V10,Y10) -> 52601 | AC10: =SUM(T10,W10,Z10) -> 51403 | AD10: =IF(AND(COUNTRY_INFO!J10>1,COUNTRY_INFO!J10<99,COUNTRY_INFO!J10<>4,COUNTRY_INFO!J10<>5), IF(AC10/P10*100<>0, IF(AC10/P10*100>100,100,AC10/P10*100), "-"),0) -> 65.21733614 | AE10: =COUNTRY_INFO!U10 -> 122604 | AH10: =MAX('T1'!K10,'T2'!R10) -> 0 | AI10: =IF(AND(COUNTRY_INFO!K10>1,COUNTRY_INFO!K10<99,COUNTRY_INFO!K10<>4,COUNTRY_INFO!K10<>5),IF(COUNTRY_INFO!R10>AH10,AH10,COUNTRY_INFO!R10),0) -> 0 | AJ10: =IF(AND(COUNTRY_INFO!K10>1,COUNTRY_INFO!K10<99,COUNTRY_INFO!K10<>4,COUNTRY_INFO!K10<>5), IF(AI10/COUNTRY_INFO!R10*100<>0, IF(AI10/COUNTRY_INFO!R10*100>100,100,AI10/COUNTRY_INFO!R10*100), "-"),0) ->  | AK10: =MAX('T1'!L10,'T2'!S10) -> 52598 | AL10: =IF(AND(COUNTRY_INFO!K10>1,COUNTRY_INFO!K10<99,COUNTRY_INFO!K10<>4,COUNTRY_INFO!K10<>5),IF(COUNTRY_INFO!S10>AK10,AK10,COUNTRY_INFO!S10),0) -> 0 | AM10: =IF(AND(COUNTRY_INFO!K10>1,COUNTRY_INFO!K10<99,COUNTRY_INFO!K10<>4,COUNTRY_INFO!K10<>5), IF(AL10/COUNTRY_INFO!S10*100<>0, IF(AL10/COUNTRY_INFO!S10*100>100,100,AL10/COUNTRY_INFO!S10*100), "-"),0) ->  | AN10: =MAX('T1'!M10,'T2'!T10) -> 53505 | AO10: =IF(AND(COUNTRY_INFO!K10>1,COUNTRY_INFO!K10<99,COUNTRY_INFO!K10<>4,COUNTRY_INFO!K10<>5),IF(COUNTRY_INFO!T10>AN10,AN10,COUNTRY_INFO!T10),0) -> 0 | AP10: =IF(AND(COUNTRY_INFO!K10>1,COUNTRY_INFO!K10<99,COUNTRY_INFO!K10<>4,COUNTRY_INFO!K10<>5), IF(AO10/COUNTRY_INFO!T10*100<>0, IF(AO10/COUNTRY_INFO!T10*100>100,100,AO10/COUNTRY_INFO!T10*100), "-"),0) ->  | AQ10: =SUM(AH10,AK10,AN10) -> 106103 | AR10: 106103 | AS10: =AR10/AE10*100 -> 86.54122215 | AU10: =IF(AND(D10<>0, D10<>"Inconnu",D10<>"Interrompu",D10<>"Non requis"),D10/COUNTRY_INFO!D10, 0) -> 0 | AV10: =IF(AND(J10<>0,J10<>"Inconnu",J10<>"Interrompu",J10<>"Non requis"),J10/COUNTRY_INFO!D10, 0) -> 0.6787634215 | AW10: =IF(AND(P10<>0,P10<>"Inconnu",P10<>"Surveillance",P10<>"Non requis"),P10/COUNTRY_INFO!Q10, 0) -> 1 | AX10: =IF(AND(AE10<>0,AE10<>"Inconnu",AE10<>"Surveillance",AE10<>"Non requis"),AE10/COUNTRY_INFO!U10, 0) -> 1 | AY10: =IF(AU10>0,D10*PROFILE!$G$7,IF(AV10>0,J10*PROFILE!$G$7,0)) -> 4652.087477 | AZ10: =_xlfn.IFS(OR(AU10>0,AW10>0),COUNTRY_INFO!E10, AV10>0,J10*PROFILE!$G$8,AX10>0,COUNTRY_INFO!R10,COUNTIFS(AU10:AX10,">0")=0,0) -> 27415 | BA10: =_xlfn.IFS(OR(AU10>0,AW10>0),COUNTRY_INFO!F10, AV10>0,J10*PROFILE!$G$9,AX10>0,COUNTRY_INFO!S10,COUNTIFS(AU10:AX10,">0")=0,0) -> 51403 | BB10: =_xlfn.IFS(AU10>0,COUNTRY_INFO!G10, AND(AV10>0,AW10=0,AX10=0),J10*PROFILE!$G$10,AND(AV10>0,AW10>0,AX10=0), MAX(J10*PROFILE!$G$10,COUNTRY_INFO!P10),AND(AV10>0,AW10=0,AX10>0), MAX(J10*PROFILE!$G$10,COUNTRY_INFO!T10),AND(AV10=0,AW10>0,AX10>0), MAX(COUNTRY_INFO!P10,COUNTRY_INFO!T10),AND(AV10=0,AW10>0,AX10=0),COUNTRY_INFO!P10,AND(AV10=0,AW10=0,AX10>0),COUNTRY_INFO!T10,AND(AV10>0,AW10>0,AX10>0), MAX(J10*PROFILE!$G$10,COUNTRY_INFO!P10,COUNTRY_INFO!T10),COUNTIFS(AU10:AX10,">0")=0,0) -> 58150.96809 | BC10: =SUM(AY10:BB10) -> 141621.0556 | BD10: =IF(COUNTIFS(AU10:AX10,">0")=0,0, IF(COUNTIFS(AU10:AX10,">0")<=IF(AND(OR(D10>=0,D10="Non requis",D10="Inconnu",D10="Interrompu"),D10>0,H10>0),1,0)+IF(AND(OR(J10>=0,J10="Non requis",J10="Inconnu",J10="Interrompu"),J10>0,N10>0),1,0)+IF(AND(OR(P10>=0,P10="Non requis",P10="Surveillance",P10="Inconnu"),P10>0,AC10>0),1,0)+IF(AND(OR(AE10>=0,AE10="Non requis",AE10="Surveillance",AE10="Inconnu"),AE10>0,AR10>0),1,0),"Y",0)) -> Y | BE10: =MAX('MDA2'!J10,'MDA5'!J10,S10,AH10) -> 0 | BF10: =MAX('MDA1'!K10,'MDA2'!K10,'MDA3'!I10,'MDA3'!L10,'MDA5'!K10,V10,AK10) -> 52601 | BG10: =MAX('MDA1'!L10,'MDA2'!L10,'MDA3'!J10,'MDA3'!M10,'MDA5'!L10,Y10,AN10) -> 64815 | BH10: =SUM(BE10:BG10) -> 117416 | BI10: =_xlfn.IFS(AND(AU10=0,AW10=0,AX10=0),0,AND(AU10=0,AW10=0,AX10>0),AI10,AND(AU10=0,AW10>0,AX10=0),T10,AND(AU10=0,AW10>0,AX10>0),MAX(T10,AI10),AND(AU10>0,AW10=0,AX10=0),MIN(MAX('MDA2'!J10,'MDA5'!J10),AZ10),AND(AU10>0,AW10=0,AX10>0),MIN(MAX('MDA2'!J10,'MDA5'!J10,AI10),AZ10),AND(AU10>0,AW10>0,AX10=0),MIN(MAX('MDA2'!J10,'MDA5'!J10,T10),AZ10),AND(AU10>0,AW10>0,AX10>0),MIN(MAX('MDA2'!J10,'MDA5'!J10,AI10,T10),AZ10)) -> 0 | BJ10: =_xlfn.IFS(AND(AU10=0,AV10=0,AW10=0,AX10=0),0,AND(AU10=0,AV10=0,AW10=0,AX10>0),AL10,AND(AU10=0,AV10=0,AW10>0,AX10=0),W10,AND(AU10=0,AV10=0,AW10>0,AX10>0),MAX(W10,AL10),AND(AU10=0,AV10>0,AW10=0,AX10=0),MIN(J10*PROFILE!$G$9,MAX('MDA3'!I10,'MDA3'!L10)),AND(AU10=0,AV10>0,AW10=0,AX10>0),MIN(J10*PROFILE!$G$9,MAX('MDA3'!I10,'MDA3'!L10,AL10)),AND(AU10=0,AV10>0,AW10>0,AX10=0),MIN(J10*PROFILE!$G$9,MAX('MDA3'!I10,'MDA3'!L10,W10)),AND(AU10=0,AV10>0,AW10>0,AX10>0),MIN(J10*PROFILE!$G$9,MAX('MDA3'!I10,'MDA3'!L10,W10,AL10)),AND(AU10>0,AV10=0,AW10=0,AX10=0), MIN(BA10,MAX('MDA1'!K10,'MDA2'!K10,'MDA5'!K10)),AND(AU10>0,AV10=0,AW10=0,AX10>0), MIN(BA10,MAX('MDA1'!K10,'MDA2'!K10,'MDA5'!K10,AL10)),AND(AU10>0,AV10=0,AW10>0,AX10=0),MIN(BA10,MAX('MDA1'!K10,'MDA2'!KL10,'MDA5'!K10,W10)),AND(AU10>0,AV10=0,AW10>0,AX10>0),MIN(BA10,MAX('MDA1'!K10,'MDA2'!K10,'MDA5'!K10,W10,AL10)),AND(AU10>0,AV10>0,AW10=0,AX10=0),MIN(BA10, MAX('MDA1'!K10,'MDA2'!K10, 'MDA5'!K10,MAX('MDA3'!I10,'MDA3'!L10))), AND(AU10>0,AV10>0,AW10=0,AX10>0),MIN(BA10, MAX('MDA1'!K10,'MDA2'!K10, 'MDA5'!K10,MAX('MDA3'!I10,'MDA3'!L10),AL10)), AND(AU10>0,AV10>0,AW10>0,AX10=0), MIN(BA10, MAX('MDA1'!K10,'MDA2'!K10, 'MDA5'!K10,MAX('MDA3'!I10,'MDA3'!L10),W10)), AND(AU10>0,AV10>0,AW10>0,AX10>0), MIN(BA10, MAX('MDA1'!K10,'MDA2'!K10, 'MDA5'!K10,MAX('MDA3'!I10,'MDA3'!L10),W10,AL10))) -> 34890.54665 | BK10: =_xlfn.IFS(AND(AU10=0,AV10=0,AW10=0,AX10=0),0,AND(AU10=0,AV10=0,AW10=0,AX10>0),AO10,AND(AU10=0,AV10=0,AW10>0,AX10=0),Z10,AND(AU10=0,AV10=0,AW10>0,AX10>0),MAX(Z10,AO10),AND(AU10=0,AV10>0,AW10=0,AX10=0),MIN(J10*PROFILE!$G$10,MAX('MDA3'!J10,'MDA3'!J10)),AND(AU10=0,AV10>0,AW10=0,AX10>0),MIN(J10*PROFILE!$G$10,MAX('MDA3'!J10,'MDA3'!M10,AO10)),AND(AU10=0,AV10>0,AW10>0,AX10=0),MIN(J10*PROFILE!$G$10,MAX('MDA3'!J10,'MDA3'!M10,Z10)),AND(AU10=0,AV10>0,AW10>0,AX10>0),MIN(J10*PROFILE!$G$10,MAX('MDA3'!J10,'MDA3'!M10,Z10,AO10)),AND(AU10>0,AV10=0,AW10=0,AX10=0), MIN(BB10,MAX('MDA1'!L10,'MDA2'!L10,'MDA5'!L10)),AND(AU10>0,AV10=0,AW10=0,AX10>0), MIN(BB10,MAX('MDA1'!L10,'MDA2'!L10,'MDA5'!L10,AO10)),AND(AU10>0,AV10=0,AW10>0,AX10=0),MIN(BB10,MAX('MDA1'!L10,'MDA2'!L10,'MDA5'!L10,Z10)),AND(AU10>0,AV10=0,AW10>0,AX10>0),MIN(BB10,MAX('MDA1'!L10,'MDA2'!L10,'MDA5'!L10,Z10,AO10)),AND(AU10>0,AV10>0,AW10=0,AX10=0),MIN(BB10, MAX('MDA1'!L10,'MDA2'!L10, 'MDA5'!L10,MAX('MDA3'!J10,'MDA3'!M10))), AND(AU10>0,AV10>0,AW10=0,AX10>0),MIN(BB10, MAX('MDA1'!L10,'MDA2'!L10, 'MDA5'!L10,MAX('MDA3'!J10,'MDA3'!M10),AO10)), AND(AU10>0,AV10>0,AW10>0,AX10=0), MIN(BB10, MAX('MDA1'!L10,'MDA2'!L10, 'MDA5'!L10,MAX('MDA3'!J10,'MDA3'!M10),Z10)), AND(AU10>0,AV10>0,AW10>0,AX10>0), MIN(BB10, MAX('MDA1'!L10,'MDA2'!L10, 'MDA5'!L10,MAX('MDA3'!J10,'MDA3'!M10),Z10,AO10))) -> 58150.96809 | BL10: =SUM(BI10:BK10) -> 93041.51474 | BM10: =IF(BC10<>0,BL10/BC10*100,0) -> 65.69751536
A11: =IF(COUNTRY_INFO!A11=0," ",COUNTRY_INFO!A11) -> Togo | B11: =IF(COUNTRY_INFO!B11=0," ",COUNTRY_INFO!B11) -> CENTRALE | C11: =IF(COUNTRY_INFO!C11=0," ",COUNTRY_INFO!C11) -> MÔ | D11: =COUNTRY_INFO!L11 -> Non requis | G11: =MAX('MDA1'!M11,'MDA2'!M11,'MDA5'!M11) -> 0 | H11: =IF(AND(COUNTRY_INFO!H11>0,COUNTRY_INFO!H11<4),IF(D11>G11,G11,D11),0) -> 0 | I11: =IF(AND(COUNTRY_INFO!H11>0,COUNTRY_INFO!H11<4), IF(G11/D11*100<>0, IF(G11/D11*100>100,100,G11/D11*100), "-"),0) -> 0 | J11: =COUNTRY_INFO!M11 -> 47989 | K11: 20406 | L11: 21081 | M11: =MAX('MDA1'!M11,MAX('MDA3'!I11,'MDA3'!L11)+MAX('MDA3'!J11,'MDA3'!M11)) -> 41487 | N11: =IF(AND(COUNTRY_INFO!I11>0,COUNTRY_INFO!I11<4),IF(J11>M11,M11,J11),0) -> 41487 | O11: =IF(AND(COUNTRY_INFO!I11>0,COUNTRY_INFO!I11<4), IF(M11/J11*100<>0, IF(M11/J11*100>100,100,M11/J11*100), "-"),0) -> 86.4510617 | P11: =COUNTRY_INFO!Q11 -> 22075 | Q11: 7328 | R11: 7440 | S11: =MAX('MDA2'!J11,'MDA5'!J11,'T1'!K11, MAX(T3_R1!J11,T3_R2!J11,T3_R3!J11)) -> 0 | T11: =IF(AND(COUNTRY_INFO!J11>1,COUNTRY_INFO!J11<99,COUNTRY_INFO!J11<>4,COUNTRY_INFO!J11<>5),IF(COUNTRY_INFO!N11>S11,S11,COUNTRY_INFO!N11),0) -> 0 | U11: =IF(AND(COUNTRY_INFO!J11>1,COUNTRY_INFO!J11<99,COUNTRY_INFO!J11<>4,COUNTRY_INFO!J11<>5), IF(T11/COUNTRY_INFO!N11*100<>0, IF(T11/COUNTRY_INFO!N11*100>100,100,T11/COUNTRY_INFO!N11*100), "-"),0) -> - | V11: =MAX('MDA1'!K11, 'MDA2'!K11, 'MDA5'!K11,'T1'!L11, MAX(T3_R1!K11,T3_R2!K11,T3_R3!K11)) -> 14768 | W11: =IF(AND(COUNTRY_INFO!J11>1,COUNTRY_INFO!J11<99,COUNTRY_INFO!J11<>4,COUNTRY_INFO!J11<>5),IF(COUNTRY_INFO!O11>V11,V11,COUNTRY_INFO!O11),0) -> 14397 | X11: =IF(AND(COUNTRY_INFO!J11>1,COUNTRY_INFO!J11<99,COUNTRY_INFO!J11<>4,COUNTRY_INFO!J11<>5), IF(W11/COUNTRY_INFO!O11*100<>0, IF(W11/COUNTRY_INFO!O11*100>100,100,W11/COUNTRY_INFO!O11*100), "-"),0) -> 100 | Y11: =MAX('MDA1'!L11, 'MDA2'!L11, 'MDA5'!L11,'T1'!M11, MAX(T3_R1!L11,T3_R2!L11,T3_R3!L11)) -> 0 | Z11: =IF(AND(COUNTRY_INFO!J11>1,COUNTRY_INFO!J11<99,COUNTRY_INFO!J11<>4,COUNTRY_INFO!J11<>5),IF(COUNTRY_INFO!P11>Y11,Y11,COUNTRY_INFO!P11),0) -> 0 | AA11: =IF(AND(COUNTRY_INFO!J11>1,COUNTRY_INFO!J11<99,COUNTRY_INFO!J11<>4,COUNTRY_INFO!J11<>5), IF(Z11/COUNTRY_INFO!P11*100<>0, IF(Z11/COUNTRY_INFO!P11*100>100,100,Z11/COUNTRY_INFO!P11*100), "-"),0) ->  | AB11: =SUM(S11,V11,Y11) -> 14768 | AC11: =SUM(T11,W11,Z11) -> 14397 | AD11: =IF(AND(COUNTRY_INFO!J11>1,COUNTRY_INFO!J11<99,COUNTRY_INFO!J11<>4,COUNTRY_INFO!J11<>5), IF(AC11/P11*100<>0, IF(AC11/P11*100>100,100,AC11/P11*100), "-"),0) -> 65.21857305 | AE11: =COUNTRY_INFO!U11 -> 36004 | AH11: =MAX('T1'!K11,'T2'!R11) -> 0 | AI11: =IF(AND(COUNTRY_INFO!K11>1,COUNTRY_INFO!K11<99,COUNTRY_INFO!K11<>4,COUNTRY_INFO!K11<>5),IF(COUNTRY_INFO!R11>AH11,AH11,COUNTRY_INFO!R11),0) -> 0 | AJ11: =IF(AND(COUNTRY_INFO!K11>1,COUNTRY_INFO!K11<99,COUNTRY_INFO!K11<>4,COUNTRY_INFO!K11<>5), IF(AI11/COUNTRY_INFO!R11*100<>0, IF(AI11/COUNTRY_INFO!R11*100>100,100,AI11/COUNTRY_INFO!R11*100), "-"),0) -> 0 | AK11: =MAX('T1'!L11,'T2'!S11) -> 8649 | AL11: =IF(AND(COUNTRY_INFO!K11>1,COUNTRY_INFO!K11<99,COUNTRY_INFO!K11<>4,COUNTRY_INFO!K11<>5),IF(COUNTRY_INFO!S11>AK11,AK11,COUNTRY_INFO!S11),0) -> 0 | AM11: =IF(AND(COUNTRY_INFO!K11>1,COUNTRY_INFO!K11<99,COUNTRY_INFO!K11<>4,COUNTRY_INFO!K11<>5), IF(AL11/COUNTRY_INFO!S11*100<>0, IF(AL11/COUNTRY_INFO!S11*100>100,100,AL11/COUNTRY_INFO!S11*100), "-"),0) -> 0 | AN11: =MAX('T1'!M11,'T2'!T11) -> 0 | AO11: =IF(AND(COUNTRY_INFO!K11>1,COUNTRY_INFO!K11<99,COUNTRY_INFO!K11<>4,COUNTRY_INFO!K11<>5),IF(COUNTRY_INFO!T11>AN11,AN11,COUNTRY_INFO!T11),0) -> 0 | AP11: =IF(AND(COUNTRY_INFO!K11>1,COUNTRY_INFO!K11<99,COUNTRY_INFO!K11<>4,COUNTRY_INFO!K11<>5), IF(AO11/COUNTRY_INFO!T11*100<>0, IF(AO11/COUNTRY_INFO!T11*100>100,100,AO11/COUNTRY_INFO!T11*100), "-"),0) -> 0 | AQ11: =SUM(AH11,AK11,AN11) -> 8649 | AR11: 8649 | AS11: =AR11/AE11*100 -> 24.02233085 | AU11: =IF(AND(D11<>0, D11<>"Inconnu",D11<>"Interrompu",D11<>"Non requis"),D11/COUNTRY_INFO!D11, 0) -> 0 | AV11: =IF(AND(J11<>0,J11<>"Inconnu",J11<>"Interrompu",J11<>"Non requis"),J11/COUNTRY_INFO!D11, 0) -> 0.9999946321 | AW11: =IF(AND(P11<>0,P11<>"Inconnu",P11<>"Surveillance",P11<>"Non requis"),P11/COUNTRY_INFO!Q11, 0) -> 1 | AX11: =IF(AND(AE11<>0,AE11<>"Inconnu",AE11<>"Surveillance",AE11<>"Non requis"),AE11/COUNTRY_INFO!U11, 0) -> 1 | AY11: =IF(AU11>0,D11*PROFILE!$G$7,IF(AV11>0,J11*PROFILE!$G$7,0)) -> 1919.564886 | AZ11: =_xlfn.IFS(OR(AU11>0,AW11>0),COUNTRY_INFO!E11, AV11>0,J11*PROFILE!$G$8,AX11>0,COUNTRY_INFO!R11,COUNTIFS(AU11:AX11,">0")=0,0) -> 7678 | BA11: =_xlfn.IFS(OR(AU11>0,AW11>0),COUNTRY_INFO!F11, AV11>0,J11*PROFILE!$G$9,AX11>0,COUNTRY_INFO!S11,COUNTIFS(AU11:AX11,">0")=0,0) -> 14397 | BB11: =_xlfn.IFS(AU11>0,COUNTRY_INFO!G11, AND(AV11>0,AW11=0,AX11=0),J11*PROFILE!$G$10,AND(AV11>0,AW11>0,AX11=0), MAX(J11*PROFILE!$G$10,COUNTRY_INFO!P11),AND(AV11>0,AW11=0,AX11>0), MAX(J11*PROFILE!$G$10,COUNTRY_INFO!T11),AND(AV11=0,AW11>0,AX11>0), MAX(COUNTRY_INFO!P11,COUNTRY_INFO!T11),AND(AV11=0,AW11>0,AX11=0),COUNTRY_INFO!P11,AND(AV11=0,AW11=0,AX11>0),COUNTRY_INFO!T11,AND(AV11>0,AW11>0,AX11>0), MAX(J11*PROFILE!$G$10,COUNTRY_INFO!P11,COUNTRY_INFO!T11),COUNTIFS(AU11:AX11,">0")=0,0) -> 23994.50934 | BC11: =SUM(AY11:BB11) -> 47989.07423 | BD11: Y | BE11: =MAX('MDA2'!J11,'MDA5'!J11,S11,AH11) -> 0 | BF11: =MAX('MDA1'!K11,'MDA2'!K11,'MDA3'!I11,'MDA3'!L11,'MDA5'!K11,V11,AK11) -> 14911 | BG11: =MAX('MDA1'!L11,'MDA2'!L11,'MDA3'!J11,'MDA3'!M11,'MDA5'!L11,Y11,AN11) -> 26576 | BH11: =SUM(BE11:BG11) -> 41487 | BI11: =_xlfn.IFS(AND(AU11=0,AW11=0,AX11=0),0,AND(AU11=0,AW11=0,AX11>0),AI11,AND(AU11=0,AW11>0,AX11=0),T11,AND(AU11=0,AW11>0,AX11>0),MAX(T11,AI11),AND(AU11>0,AW11=0,AX11=0),MIN(MAX('MDA2'!J11,'MDA5'!J11),AZ11),AND(AU11>0,AW11=0,AX11>0),MIN(MAX('MDA2'!J11,'MDA5'!J11,AI11),AZ11),AND(AU11>0,AW11>0,AX11=0),MIN(MAX('MDA2'!J11,'MDA5'!J11,T11),AZ11),AND(AU11>0,AW11>0,AX11>0),MIN(MAX('MDA2'!J11,'MDA5'!J11,AI11,T11),AZ11)) -> 0 | BJ11: =_xlfn.IFS(AND(AU11=0,AV11=0,AW11=0,AX11=0),0,AND(AU11=0,AV11=0,AW11=0,AX11>0),AL11,AND(AU11=0,AV11=0,AW11>0,AX11=0),W11,AND(AU11=0,AV11=0,AW11>0,AX11>0),MAX(W11,AL11),AND(AU11=0,AV11>0,AW11=0,AX11=0),MIN(J11*PROFILE!$G$9,MAX('MDA3'!I11,'MDA3'!L11)),AND(AU11=0,AV11>0,AW11=0,AX11>0),MIN(J11*PROFILE!$G$9,MAX('MDA3'!I11,'MDA3'!L11,AL11)),AND(AU11=0,AV11>0,AW11>0,AX11=0),MIN(J11*PROFILE!$G$9,MAX('MDA3'!I11,'MDA3'!L11,W11)),AND(AU11=0,AV11>0,AW11>0,AX11>0),MIN(J11*PROFILE!$G$9,MAX('MDA3'!I11,'MDA3'!L11,W11,AL11)),AND(AU11>0,AV11=0,AW11=0,AX11=0), MIN(BA11,MAX('MDA1'!K11,'MDA2'!K11,'MDA5'!K11)),AND(AU11>0,AV11=0,AW11=0,AX11>0), MIN(BA11,MAX('MDA1'!K11,'MDA2'!K11,'MDA5'!K11,AL11)),AND(AU11>0,AV11=0,AW11>0,AX11=0),MIN(BA11,MAX('MDA1'!K11,'MDA2'!KL11,'MDA5'!K11,W11)),AND(AU11>0,AV11=0,AW11>0,AX11>0),MIN(BA11,MAX('MDA1'!K11,'MDA2'!K11,'MDA5'!K11,W11,AL11)),AND(AU11>0,AV11>0,AW11=0,AX11=0),MIN(BA11, MAX('MDA1'!K11,'MDA2'!K11, 'MDA5'!K11,MAX('MDA3'!I11,'MDA3'!L11))), AND(AU11>0,AV11>0,AW11=0,AX11>0),MIN(BA11, MAX('MDA1'!K11,'MDA2'!K11, 'MDA5'!K11,MAX('MDA3'!I11,'MDA3'!L11),AL11)), AND(AU11>0,AV11>0,AW11>0,AX11=0), MIN(BA11, MAX('MDA1'!K11,'MDA2'!K11, 'MDA5'!K11,MAX('MDA3'!I11,'MDA3'!L11),W11)), AND(AU11>0,AV11>0,AW11>0,AX11>0), MIN(BA11, MAX('MDA1'!K11,'MDA2'!K11, 'MDA5'!K11,MAX('MDA3'!I11,'MDA3'!L11),W11,AL11))) -> 14396.69149 | BK11: =_xlfn.IFS(AND(AU11=0,AV11=0,AW11=0,AX11=0),0,AND(AU11=0,AV11=0,AW11=0,AX11>0),AO11,AND(AU11=0,AV11=0,AW11>0,AX11=0),Z11,AND(AU11=0,AV11=0,AW11>0,AX11>0),MAX(Z11,AO11),AND(AU11=0,AV11>0,AW11=0,AX11=0),MIN(J11*PROFILE!$G$10,MAX('MDA3'!J11,'MDA3'!J11)),AND(AU11=0,AV11>0,AW11=0,AX11>0),MIN(J11*PROFILE!$G$10,MAX('MDA3'!J11,'MDA3'!M11,AO11)),AND(AU11=0,AV11>0,AW11>0,AX11=0),MIN(J11*PROFILE!$G$10,MAX('MDA3'!J11,'MDA3'!M11,Z11)),AND(AU11=0,AV11>0,AW11>0,AX11>0),MIN(J11*PROFILE!$G$10,MAX('MDA3'!J11,'MDA3'!M11,Z11,AO11)),AND(AU11>0,AV11=0,AW11=0,AX11=0), MIN(BB11,MAX('MDA1'!L11,'MDA2'!L11,'MDA5'!L11)),AND(AU11>0,AV11=0,AW11=0,AX11>0), MIN(BB11,MAX('MDA1'!L11,'MDA2'!L11,'MDA5'!L11,AO11)),AND(AU11>0,AV11=0,AW11>0,AX11=0),MIN(BB11,MAX('MDA1'!L11,'MDA2'!L11,'MDA5'!L11,Z11)),AND(AU11>0,AV11=0,AW11>0,AX11>0),MIN(BB11,MAX('MDA1'!L11,'MDA2'!L11,'MDA5'!L11,Z11,AO11)),AND(AU11>0,AV11>0,AW11=0,AX11=0),MIN(BB11, MAX('MDA1'!L11,'MDA2'!L11, 'MDA5'!L11,MAX('MDA3'!J11,'MDA3'!M11))), AND(AU11>0,AV11>0,AW11=0,AX11>0),MIN(BB11, MAX('MDA1'!L11,'MDA2'!L11, 'MDA5'!L11,MAX('MDA3'!J11,'MDA3'!M11),AO11)), AND(AU11>0,AV11>0,AW11>0,AX11=0), MIN(BB11, MAX('MDA1'!L11,'MDA2'!L11, 'MDA5'!L11,MAX('MDA3'!J11,'MDA3'!M11),Z11)), AND(AU11>0,AV11>0,AW11>0,AX11>0), MIN(BB11, MAX('MDA1'!L11,'MDA2'!L11, 'MDA5'!L11,MAX('MDA3'!J11,'MDA3'!M11),Z11,AO11))) -> 23994.50934 | BL11: =SUM(BI11:BK11) -> 38391.20083 | BM11: =IF(BC11<>0,BL11/BC11*100,0) -> 79.99987799
A12: =IF(COUNTRY_INFO!A12=0," ",COUNTRY_INFO!A12) -> Togo | B12: =IF(COUNTRY_INFO!B12=0," ",COUNTRY_INFO!B12) -> CENTRALE | C12: =IF(COUNTRY_INFO!C12=0," ",COUNTRY_INFO!C12) -> SOTOUBOUA | D12: =COUNTRY_INFO!L12 -> Non requis | G12: =MAX('MDA1'!M12,'MDA2'!M12,'MDA5'!M12) -> 0 | H12: =IF(AND(COUNTRY_INFO!H12>0,COUNTRY_INFO!H12<4),IF(D12>G12,G12,D12),0) -> 0 | I12: =IF(AND(COUNTRY_INFO!H12>0,COUNTRY_INFO!H12<4), IF(G12/D12*100<>0, IF(G12/D12*100>100,100,G12/D12*100), "-"),0) -> 0 | J12: =COUNTRY_INFO!M12 -> 72290.53827 | K12: 30946 | L12: 30067 | M12: =MAX('MDA1'!M12,MAX('MDA3'!I12,'MDA3'!L12)+MAX('MDA3'!J12,'MDA3'!M12)) -> 61013 | N12: =IF(AND(COUNTRY_INFO!I12>0,COUNTRY_INFO!I12<4),IF(J12>M12,M12,J12),0) -> 61013 | O12: =IF(AND(COUNTRY_INFO!I12>0,COUNTRY_INFO!I12<4), IF(M12/J12*100<>0, IF(M12/J12*100>100,100,M12/J12*100), "-"),0) -> 84.39970355 | P12: =COUNTRY_INFO!Q12 -> 66397 | Q12: 20581 | R12: 20024 | S12: =MAX('MDA2'!J12,'MDA5'!J12,'T1'!K12, MAX(T3_R1!J12,T3_R2!J12,T3_R3!J12)) -> 0 | T12: =IF(AND(COUNTRY_INFO!J12>1,COUNTRY_INFO!J12<99,COUNTRY_INFO!J12<>4,COUNTRY_INFO!J12<>5),IF(COUNTRY_INFO!N12>S12,S12,COUNTRY_INFO!N12),0) -> 0 | U12: =IF(AND(COUNTRY_INFO!J12>1,COUNTRY_INFO!J12<99,COUNTRY_INFO!J12<>4,COUNTRY_INFO!J12<>5), IF(T12/COUNTRY_INFO!N12*100<>0, IF(T12/COUNTRY_INFO!N12*100>100,100,T12/COUNTRY_INFO!N12*100), "-"),0) -> - | V12: =MAX('MDA1'!K12, 'MDA2'!K12, 'MDA5'!K12,'T1'!L12, MAX(T3_R1!K12,T3_R2!K12,T3_R3!K12)) -> 40605 | W12: =IF(AND(COUNTRY_INFO!J12>1,COUNTRY_INFO!J12<99,COUNTRY_INFO!J12<>4,COUNTRY_INFO!J12<>5),IF(COUNTRY_INFO!O12>V12,V12,COUNTRY_INFO!O12),0) -> 40605 | X12: =IF(AND(COUNTRY_INFO!J12>1,COUNTRY_INFO!J12<99,COUNTRY_INFO!J12<>4,COUNTRY_INFO!J12<>5), IF(W12/COUNTRY_INFO!O12*100<>0, IF(W12/COUNTRY_INFO!O12*100>100,100,W12/COUNTRY_INFO!O12*100), "-"),0) -> 93.77165027 | Y12: =MAX('MDA1'!L12, 'MDA2'!L12, 'MDA5'!L12,'T1'!M12, MAX(T3_R1!L12,T3_R2!L12,T3_R3!L12)) -> 0 | Z12: =IF(AND(COUNTRY_INFO!J12>1,COUNTRY_INFO!J12<99,COUNTRY_INFO!J12<>4,COUNTRY_INFO!J12<>5),IF(COUNTRY_INFO!P12>Y12,Y12,COUNTRY_INFO!P12),0) -> 0 | AA12: =IF(AND(COUNTRY_INFO!J12>1,COUNTRY_INFO!J12<99,COUNTRY_INFO!J12<>4,COUNTRY_INFO!J12<>5), IF(Z12/COUNTRY_INFO!P12*100<>0, IF(Z12/COUNTRY_INFO!P12*100>100,100,Z12/COUNTRY_INFO!P12*100), "-"),0) ->  | AB12: 40605 | AC12: 40605 | AD12: =IF(AND(COUNTRY_INFO!J12>1,COUNTRY_INFO!J12<99,COUNTRY_INFO!J12<>4,COUNTRY_INFO!J12<>5), IF(AC12/P12*100<>0, IF(AC12/P12*100>100,100,AC12/P12*100), "-"),0) -> 61.15487146 | AE12: =COUNTRY_INFO!U12 -> 64690 | AH12: =MAX('T1'!K12,'T2'!R12) -> 0 | AI12: =IF(AND(COUNTRY_INFO!K12>1,COUNTRY_INFO!K12<99,COUNTRY_INFO!K12<>4,COUNTRY_INFO!K12<>5),IF(COUNTRY_INFO!R12>AH12,AH12,COUNTRY_INFO!R12),0) -> 0 | AJ12: =IF(AND(COUNTRY_INFO!K12>1,COUNTRY_INFO!K12<99,COUNTRY_INFO!K12<>4,COUNTRY_INFO!K12<>5), IF(AI12/COUNTRY_INFO!R12*100<>0, IF(AI12/COUNTRY_INFO!R12*100>100,100,AI12/COUNTRY_INFO!R12*100), "-"),0) ->  | AK12: =MAX('T1'!L12,'T2'!S12) -> 26990 | AL12: =IF(AND(COUNTRY_INFO!K12>1,COUNTRY_INFO!K12<99,COUNTRY_INFO!K12<>4,COUNTRY_INFO!K12<>5),IF(COUNTRY_INFO!S12>AK12,AK12,COUNTRY_INFO!S12),0) -> 0 | AM12: =IF(AND(COUNTRY_INFO!K12>1,COUNTRY_INFO!K12<99,COUNTRY_INFO!K12<>4,COUNTRY_INFO!K12<>5), IF(AL12/COUNTRY_INFO!S12*100<>0, IF(AL12/COUNTRY_INFO!S12*100>100,100,AL12/COUNTRY_INFO!S12*100), "-"),0) ->  | AN12: =MAX('T1'!M12,'T2'!T12) -> 1420 | AO12: =IF(AND(COUNTRY_INFO!K12>1,COUNTRY_INFO!K12<99,COUNTRY_INFO!K12<>4,COUNTRY_INFO!K12<>5),IF(COUNTRY_INFO!T12>AN12,AN12,COUNTRY_INFO!T12),0) -> 0 | AP12: =IF(AND(COUNTRY_INFO!K12>1,COUNTRY_INFO!K12<99,COUNTRY_INFO!K12<>4,COUNTRY_INFO!K12<>5), IF(AO12/COUNTRY_INFO!T12*100<>0, IF(AO12/COUNTRY_INFO!T12*100>100,100,AO12/COUNTRY_INFO!T12*100), "-"),0) ->  | AQ12: 28410 | AR12: 28410 | AS12: 43.9171433 | AU12: =IF(AND(D12<>0, D12<>"Inconnu",D12<>"Interrompu",D12<>"Non requis"),D12/COUNTRY_INFO!D12, 0) -> 0 | AV12: =IF(AND(J12<>0,J12<>"Inconnu",J12<>"Interrompu",J12<>"Non requis"),J12/COUNTRY_INFO!D12, 0) -> 0.5008313453 | AW12: =IF(AND(P12<>0,P12<>"Inconnu",P12<>"Surveillance",P12<>"Non requis"),P12/COUNTRY_INFO!Q12, 0) -> 1 | AX12: =IF(AND(AE12<>0,AE12<>"Inconnu",AE12<>"Surveillance",AE12<>"Non requis"),AE12/COUNTRY_INFO!U12, 0) -> 1 | AY12: =IF(AU12>0,D12*PROFILE!$G$7,IF(AV12>0,J12*PROFILE!$G$7,0)) -> 2891.628891 | AZ12: =_xlfn.IFS(OR(AU12>0,AW12>0),COUNTRY_INFO!E12, AV12>0,J12*PROFILE!$G$8,AX12>0,COUNTRY_INFO!R12,COUNTIFS(AU12:AX12,">0")=0,0) -> 23095 | BA12: =_xlfn.IFS(OR(AU12>0,AW12>0),COUNTRY_INFO!F12, AV12>0,J12*PROFILE!$G$9,AX12>0,COUNTRY_INFO!S12,COUNTIFS(AU12:AX12,">0")=0,0) -> 43302 | BB12: =_xlfn.IFS(AU12>0,COUNTRY_INFO!G12, AND(AV12>0,AW12=0,AX12=0),J12*PROFILE!$G$10,AND(AV12>0,AW12>0,AX12=0), MAX(J12*PROFILE!$G$10,COUNTRY_INFO!P12),AND(AV12>0,AW12=0,AX12>0), MAX(J12*PROFILE!$G$10,COUNTRY_INFO!T12),AND(AV12=0,AW12>0,AX12>0), MAX(COUNTRY_INFO!P12,COUNTRY_INFO!T12),AND(AV12=0,AW12>0,AX12=0),COUNTRY_INFO!P12,AND(AV12=0,AW12=0,AX12>0),COUNTRY_INFO!T12,AND(AV12>0,AW12>0,AX12>0), MAX(J12*PROFILE!$G$10,COUNTRY_INFO!P12,COUNTRY_INFO!T12),COUNTIFS(AU12:AX12,">0")=0,0) -> 36145.28321 | BC12: 105433.9121 | BD12: Y | BE12: =MAX('MDA2'!J12,'MDA5'!J12,S12,AH12) -> 0 | BF12: =MAX('MDA1'!K12,'MDA2'!K12,'MDA3'!I12,'MDA3'!L12,'MDA5'!K12,V12,AK12) -> 40605 | BG12: =MAX('MDA1'!L12,'MDA2'!L12,'MDA3'!J12,'MDA3'!M12,'MDA5'!L12,Y12,AN12) -> 40411 | BH12: 81016 | BI12: =_xlfn.IFS(AND(AU12=0,AW12=0,AX12=0),0,AND(AU12=0,AW12=0,AX12>0),AI12,AND(AU12=0,AW12>0,AX12=0),T12,AND(AU12=0,AW12>0,AX12>0),MAX(T12,AI12),AND(AU12>0,AW12=0,AX12=0),MIN(MAX('MDA2'!J12,'MDA5'!J12),AZ12),AND(AU12>0,AW12=0,AX12>0),MIN(MAX('MDA2'!J12,'MDA5'!J12,AI12),AZ12),AND(AU12>0,AW12>0,AX12=0),MIN(MAX('MDA2'!J12,'MDA5'!J12,T12),AZ12),AND(AU12>0,AW12>0,AX12>0),MIN(MAX('MDA2'!J12,'MDA5'!J12,AI12,T12),AZ12)) -> 0 | BJ12: =_xlfn.IFS(AND(AU12=0,AV12=0,AW12=0,AX12=0),0,AND(AU12=0,AV12=0,AW12=0,AX12>0),AL12,AND(AU12=0,AV12=0,AW12>0,AX12=0),W12,AND(AU12=0,AV12=0,AW12>0,AX12>0),MAX(W12,AL12),AND(AU12=0,AV12>0,AW12=0,AX12=0),MIN(J12*PROFILE!$G$9,MAX('MDA3'!I12,'MDA3'!L12)),AND(AU12=0,AV12>0,AW12=0,AX12>0),MIN(J12*PROFILE!$G$9,MAX('MDA3'!I12,'MDA3'!L12,AL12)),AND(AU12=0,AV12>0,AW12>0,AX12=0),MIN(J12*PROFILE!$G$9,MAX('MDA3'!I12,'MDA3'!L12,W12)),AND(AU12=0,AV12>0,AW12>0,AX12>0),MIN(J12*PROFILE!$G$9,MAX('MDA3'!I12,'MDA3'!L12,W12,AL12)),AND(AU12>0,AV12=0,AW12=0,AX12=0), MIN(BA12,MAX('MDA1'!K12,'MDA2'!K12,'MDA5'!K12)),AND(AU12>0,AV12=0,AW12=0,AX12>0), MIN(BA12,MAX('MDA1'!K12,'MDA2'!K12,'MDA5'!K12,AL12)),AND(AU12>0,AV12=0,AW12>0,AX12=0),MIN(BA12,MAX('MDA1'!K12,'MDA2'!KL12,'MDA5'!K12,W12)),AND(AU12>0,AV12=0,AW12>0,AX12>0),MIN(BA12,MAX('MDA1'!K12,'MDA2'!K12,'MDA5'!K12,W12,AL12)),AND(AU12>0,AV12>0,AW12=0,AX12=0),MIN(BA12, MAX('MDA1'!K12,'MDA2'!K12, 'MDA5'!K12,MAX('MDA3'!I12,'MDA3'!L12))), AND(AU12>0,AV12>0,AW12=0,AX12>0),MIN(BA12, MAX('MDA1'!K12,'MDA2'!K12, 'MDA5'!K12,MAX('MDA3'!I12,'MDA3'!L12),AL12)), AND(AU12>0,AV12>0,AW12>0,AX12=0), MIN(BA12, MAX('MDA1'!K12,'MDA2'!K12, 'MDA5'!K12,MAX('MDA3'!I12,'MDA3'!L12),W12)), AND(AU12>0,AV12>0,AW12>0,AX12>0), MIN(BA12, MAX('MDA1'!K12,'MDA2'!K12, 'MDA5'!K12,MAX('MDA3'!I12,'MDA3'!L12),W12,AL12))) -> 21687.14866 | BK12: =_xlfn.IFS(AND(AU12=0,AV12=0,AW12=0,AX12=0),0,AND(AU12=0,AV12=0,AW12=0,AX12>0),AO12,AND(AU12=0,AV12=0,AW12>0,AX12=0),Z12,AND(AU12=0,AV12=0,AW12>0,AX12>0),MAX(Z12,AO12),AND(AU12=0,AV12>0,AW12=0,AX12=0),MIN(J12*PROFILE!$G$10,MAX('MDA3'!J12,'MDA3'!J12)),AND(AU12=0,AV12>0,AW12=0,AX12>0),MIN(J12*PROFILE!$G$10,MAX('MDA3'!J12,'MDA3'!M12,AO12)),AND(AU12=0,AV12>0,AW12>0,AX12=0),MIN(J12*PROFILE!$G$10,MAX('MDA3'!J12,'MDA3'!M12,Z12)),AND(AU12=0,AV12>0,AW12>0,AX12>0),MIN(J12*PROFILE!$G$10,MAX('MDA3'!J12,'MDA3'!M12,Z12,AO12)),AND(AU12>0,AV12=0,AW12=0,AX12=0), MIN(BB12,MAX('MDA1'!L12,'MDA2'!L12,'MDA5'!L12)),AND(AU12>0,AV12=0,AW12=0,AX12>0), MIN(BB12,MAX('MDA1'!L12,'MDA2'!L12,'MDA5'!L12,AO12)),AND(AU12>0,AV12=0,AW12>0,AX12=0),MIN(BB12,MAX('MDA1'!L12,'MDA2'!L12,'MDA5'!L12,Z12)),AND(AU12>0,AV12=0,AW12>0,AX12>0),MIN(BB12,MAX('MDA1'!L12,'MDA2'!L12,'MDA5'!L12,Z12,AO12)),AND(AU12>0,AV12>0,AW12=0,AX12=0),MIN(BB12, MAX('MDA1'!L12,'MDA2'!L12, 'MDA5'!L12,MAX('MDA3'!J12,'MDA3'!M12))), AND(AU12>0,AV12>0,AW12=0,AX12>0),MIN(BB12, MAX('MDA1'!L12,'MDA2'!L12, 'MDA5'!L12,MAX('MDA3'!J12,'MDA3'!M12),AO12)), AND(AU12>0,AV12>0,AW12>0,AX12=0), MIN(BB12, MAX('MDA1'!L12,'MDA2'!L12, 'MDA5'!L12,MAX('MDA3'!J12,'MDA3'!M12),Z12)), AND(AU12>0,AV12>0,AW12>0,AX12>0), MIN(BB12, MAX('MDA1'!L12,'MDA2'!L12, 'MDA5'!L12,MAX('MDA3'!J12,'MDA3'!M12),Z12,AO12))) -> 36145.28321 | BL12: 57832.43187 | BM12: 54.85183156
A13: =IF(COUNTRY_INFO!A13=0," ",COUNTRY_INFO!A13) -> Togo | B13: =IF(COUNTRY_INFO!B13=0," ",COUNTRY_INFO!B13) -> CENTRALE | C13: =IF(COUNTRY_INFO!C13=0," ",COUNTRY_INFO!C13) -> TCHAMBA | D13: =COUNTRY_INFO!L13 -> Non requis | G13: =MAX('MDA1'!M13,'MDA2'!M13,'MDA5'!M13) -> 0 | H13: =IF(AND(COUNTRY_INFO!H13>0,COUNTRY_INFO!H13<4),IF(D13>G13,G13,D13),0) -> 0 | I13: =IF(AND(COUNTRY_INFO!H13>0,COUNTRY_INFO!H13<4), IF(G13/D13*100<>0, IF(G13/D13*100>100,100,G13/D13*100), "-"),0) -> 0 | J13: =COUNTRY_INFO!M13 -> 129738.9246 | K13: 56145 | L13: 56213 | M13: =MAX('MDA1'!M13,MAX('MDA3'!I13,'MDA3'!L13)+MAX('MDA3'!J13,'MDA3'!M13)) -> 112358 | N13: =IF(AND(COUNTRY_INFO!I13>0,COUNTRY_INFO!I13<4),IF(J13>M13,M13,J13),0) -> 112358 | O13: =IF(AND(COUNTRY_INFO!I13>0,COUNTRY_INFO!I13<4), IF(M13/J13*100<>0, IF(M13/J13*100>100,100,M13/J13*100), "-"),0) -> 86.60315348 | P13: =COUNTRY_INFO!Q13 -> 84188 | Q13: 29986 | R13: 29617 | S13: =MAX('MDA2'!J13,'MDA5'!J13,'T1'!K13, MAX(T3_R1!J13,T3_R2!J13,T3_R3!J13)) -> 0 | T13: =IF(AND(COUNTRY_INFO!J13>1,COUNTRY_INFO!J13<99,COUNTRY_INFO!J13<>4,COUNTRY_INFO!J13<>5),IF(COUNTRY_INFO!N13>S13,S13,COUNTRY_INFO!N13),0) -> 0 | U13: =IF(AND(COUNTRY_INFO!J13>1,COUNTRY_INFO!J13<99,COUNTRY_INFO!J13<>4,COUNTRY_INFO!J13<>5), IF(T13/COUNTRY_INFO!N13*100<>0, IF(T13/COUNTRY_INFO!N13*100>100,100,T13/COUNTRY_INFO!N13*100), "-"),0) -> - | V13: =MAX('MDA1'!K13, 'MDA2'!K13, 'MDA5'!K13,'T1'!L13, MAX(T3_R1!K13,T3_R2!K13,T3_R3!K13)) -> 59603 | W13: =IF(AND(COUNTRY_INFO!J13>1,COUNTRY_INFO!J13<99,COUNTRY_INFO!J13<>4,COUNTRY_INFO!J13<>5),IF(COUNTRY_INFO!O13>V13,V13,COUNTRY_INFO!O13),0) -> 54905 | X13: =IF(AND(COUNTRY_INFO!J13>1,COUNTRY_INFO!J13<99,COUNTRY_INFO!J13<>4,COUNTRY_INFO!J13<>5), IF(W13/COUNTRY_INFO!O13*100<>0, IF(W13/COUNTRY_INFO!O13*100>100,100,W13/COUNTRY_INFO!O13*100), "-"),0) -> 100 | Y13: =MAX('MDA1'!L13, 'MDA2'!L13, 'MDA5'!L13,'T1'!M13, MAX(T3_R1!L13,T3_R2!L13,T3_R3!L13)) -> 0 | Z13: =IF(AND(COUNTRY_INFO!J13>1,COUNTRY_INFO!J13<99,COUNTRY_INFO!J13<>4,COUNTRY_INFO!J13<>5),IF(COUNTRY_INFO!P13>Y13,Y13,COUNTRY_INFO!P13),0) -> 0 | AA13: =IF(AND(COUNTRY_INFO!J13>1,COUNTRY_INFO!J13<99,COUNTRY_INFO!J13<>4,COUNTRY_INFO!J13<>5), IF(Z13/COUNTRY_INFO!P13*100<>0, IF(Z13/COUNTRY_INFO!P13*100>100,100,Z13/COUNTRY_INFO!P13*100), "-"),0) ->  | AB13: 59603 | AC13: 54905 | AD13: =IF(AND(COUNTRY_INFO!J13>1,COUNTRY_INFO!J13<99,COUNTRY_INFO!J13<>4,COUNTRY_INFO!J13<>5), IF(AC13/P13*100<>0, IF(AC13/P13*100>100,100,AC13/P13*100), "-"),0) -> 65.21713308 | AE13: =COUNTRY_INFO!U13 -> 135684 | AH13: =MAX('T1'!K13,'T2'!R13) -> 0 | AI13: =IF(AND(COUNTRY_INFO!K13>1,COUNTRY_INFO!K13<99,COUNTRY_INFO!K13<>4,COUNTRY_INFO!K13<>5),IF(COUNTRY_INFO!R13>AH13,AH13,COUNTRY_INFO!R13),0) -> 0 | AJ13: =IF(AND(COUNTRY_INFO!K13>1,COUNTRY_INFO!K13<99,COUNTRY_INFO!K13<>4,COUNTRY_INFO!K13<>5), IF(AI13/COUNTRY_INFO!R13*100<>0, IF(AI13/COUNTRY_INFO!R13*100>100,100,AI13/COUNTRY_INFO!R13*100), "-"),0) -> 0 | AK13: =MAX('T1'!L13,'T2'!S13) -> 59603 | AL13: =IF(AND(COUNTRY_INFO!K13>1,COUNTRY_INFO!K13<99,COUNTRY_INFO!K13<>4,COUNTRY_INFO!K13<>5),IF(COUNTRY_INFO!S13>AK13,AK13,COUNTRY_INFO!S13),0) -> 0 | AM13: =IF(AND(COUNTRY_INFO!K13>1,COUNTRY_INFO!K13<99,COUNTRY_INFO!K13<>4,COUNTRY_INFO!K13<>5), IF(AL13/COUNTRY_INFO!S13*100<>0, IF(AL13/COUNTRY_INFO!S13*100>100,100,AL13/COUNTRY_INFO!S13*100), "-"),0) -> 0 | AN13: =MAX('T1'!M13,'T2'!T13) -> 0 | AO13: =IF(AND(COUNTRY_INFO!K13>1,COUNTRY_INFO!K13<99,COUNTRY_INFO!K13<>4,COUNTRY_INFO!K13<>5),IF(COUNTRY_INFO!T13>AN13,AN13,COUNTRY_INFO!T13),0) -> 0 | AP13: =IF(AND(COUNTRY_INFO!K13>1,COUNTRY_INFO!K13<99,COUNTRY_INFO!K13<>4,COUNTRY_INFO!K13<>5), IF(AO13/COUNTRY_INFO!T13*100<>0, IF(AO13/COUNTRY_INFO!T13*100>100,100,AO13/COUNTRY_INFO!T13*100), "-"),0) -> 0 | AQ13: 59603 | AR13: 59603 | AS13: 43.92780284 | AU13: =IF(AND(D13<>0, D13<>"Inconnu",D13<>"Interrompu",D13<>"Non requis"),D13/COUNTRY_INFO!D13, 0) -> 0 | AV13: =IF(AND(J13<>0,J13<>"Inconnu",J13<>"Interrompu",J13<>"Non requis"),J13/COUNTRY_INFO!D13, 0) -> 0.7088894411 | AW13: =IF(AND(P13<>0,P13<>"Inconnu",P13<>"Surveillance",P13<>"Non requis"),P13/COUNTRY_INFO!Q13, 0) -> 1 | AX13: =IF(AND(AE13<>0,AE13<>"Inconnu",AE13<>"Surveillance",AE13<>"Non requis"),AE13/COUNTRY_INFO!U13, 0) -> 1 | AY13: =IF(AU13>0,D13*PROFILE!$G$7,IF(AV13>0,J13*PROFILE!$G$7,0)) -> 5189.570192 | AZ13: =_xlfn.IFS(OR(AU13>0,AW13>0),COUNTRY_INFO!E13, AV13>0,J13*PROFILE!$G$8,AX13>0,COUNTRY_INFO!R13,COUNTIFS(AU13:AX13,">0")=0,0) -> 29283 | BA13: =_xlfn.IFS(OR(AU13>0,AW13>0),COUNTRY_INFO!F13, AV13>0,J13*PROFILE!$G$9,AX13>0,COUNTRY_INFO!S13,COUNTIFS(AU13:AX13,">0")=0,0) -> 54905 | BB13: =_xlfn.IFS(AU13>0,COUNTRY_INFO!G13, AND(AV13>0,AW13=0,AX13=0),J13*PROFILE!$G$10,AND(AV13>0,AW13>0,AX13=0), MAX(J13*PROFILE!$G$10,COUNTRY_INFO!P13),AND(AV13>0,AW13=0,AX13>0), MAX(J13*PROFILE!$G$10,COUNTRY_INFO!T13),AND(AV13=0,AW13>0,AX13>0), MAX(COUNTRY_INFO!P13,COUNTRY_INFO!T13),AND(AV13=0,AW13>0,AX13=0),COUNTRY_INFO!P13,AND(AV13=0,AW13=0,AX13>0),COUNTRY_INFO!T13,AND(AV13>0,AW13>0,AX13>0), MAX(J13*PROFILE!$G$10,COUNTRY_INFO!P13,COUNTRY_INFO!T13),COUNTIFS(AU13:AX13,">0")=0,0) -> 64869.48755 | BC13: 154247.0577 | BD13: Y | BE13: =MAX('MDA2'!J13,'MDA5'!J13,S13,AH13) -> 0 | BF13: =MAX('MDA1'!K13,'MDA2'!K13,'MDA3'!I13,'MDA3'!L13,'MDA5'!K13,V13,AK13) -> 59603 | BG13: =MAX('MDA1'!L13,'MDA2'!L13,'MDA3'!J13,'MDA3'!M13,'MDA5'!L13,Y13,AN13) -> 69878 | BH13: 129481 | BI13: =_xlfn.IFS(AND(AU13=0,AW13=0,AX13=0),0,AND(AU13=0,AW13=0,AX13>0),AI13,AND(AU13=0,AW13>0,AX13=0),T13,AND(AU13=0,AW13>0,AX13>0),MAX(T13,AI13),AND(AU13>0,AW13=0,AX13=0),MIN(MAX('MDA2'!J13,'MDA5'!J13),AZ13),AND(AU13>0,AW13=0,AX13>0),MIN(MAX('MDA2'!J13,'MDA5'!J13,AI13),AZ13),AND(AU13>0,AW13>0,AX13=0),MIN(MAX('MDA2'!J13,'MDA5'!J13,T13),AZ13),AND(AU13>0,AW13>0,AX13>0),MIN(MAX('MDA2'!J13,'MDA5'!J13,AI13,T13),AZ13)) -> 0 | BJ13: =_xlfn.IFS(AND(AU13=0,AV13=0,AW13=0,AX13=0),0,AND(AU13=0,AV13=0,AW13=0,AX13>0),AL13,AND(AU13=0,AV13=0,AW13>0,AX13=0),W13,AND(AU13=0,AV13=0,AW13>0,AX13>0),MAX(W13,AL13),AND(AU13=0,AV13>0,AW13=0,AX13=0),MIN(J13*PROFILE!$G$9,MAX('MDA3'!I13,'MDA3'!L13)),AND(AU13=0,AV13>0,AW13=0,AX13>0),MIN(J13*PROFILE!$G$9,MAX('MDA3'!I13,'MDA3'!L13,AL13)),AND(AU13=0,AV13>0,AW13>0,AX13=0),MIN(J13*PROFILE!$G$9,MAX('MDA3'!I13,'MDA3'!L13,W13)),AND(AU13=0,AV13>0,AW13>0,AX13>0),MIN(J13*PROFILE!$G$9,MAX('MDA3'!I13,'MDA3'!L13,W13,AL13)),AND(AU13>0,AV13=0,AW13=0,AX13=0), MIN(BA13,MAX('MDA1'!K13,'MDA2'!K13,'MDA5'!K13)),AND(AU13>0,AV13=0,AW13=0,AX13>0), MIN(BA13,MAX('MDA1'!K13,'MDA2'!K13,'MDA5'!K13,AL13)),AND(AU13>0,AV13=0,AW13>0,AX13=0),MIN(BA13,MAX('MDA1'!K13,'MDA2'!KL13,'MDA5'!K13,W13)),AND(AU13>0,AV13=0,AW13>0,AX13>0),MIN(BA13,MAX('MDA1'!K13,'MDA2'!K13,'MDA5'!K13,W13,AL13)),AND(AU13>0,AV13>0,AW13=0,AX13=0),MIN(BA13, MAX('MDA1'!K13,'MDA2'!K13, 'MDA5'!K13,MAX('MDA3'!I13,'MDA3'!L13))), AND(AU13>0,AV13>0,AW13=0,AX13>0),MIN(BA13, MAX('MDA1'!K13,'MDA2'!K13, 'MDA5'!K13,MAX('MDA3'!I13,'MDA3'!L13),AL13)), AND(AU13>0,AV13>0,AW13>0,AX13=0), MIN(BA13, MAX('MDA1'!K13,'MDA2'!K13, 'MDA5'!K13,MAX('MDA3'!I13,'MDA3'!L13),W13)), AND(AU13>0,AV13>0,AW13>0,AX13>0), MIN(BA13, MAX('MDA1'!K13,'MDA2'!K13, 'MDA5'!K13,MAX('MDA3'!I13,'MDA3'!L13),W13,AL13))) -> 38921.65437 | BK13: =_xlfn.IFS(AND(AU13=0,AV13=0,AW13=0,AX13=0),0,AND(AU13=0,AV13=0,AW13=0,AX13>0),AO13,AND(AU13=0,AV13=0,AW13>0,AX13=0),Z13,AND(AU13=0,AV13=0,AW13>0,AX13>0),MAX(Z13,AO13),AND(AU13=0,AV13>0,AW13=0,AX13=0),MIN(J13*PROFILE!$G$10,MAX('MDA3'!J13,'MDA3'!J13)),AND(AU13=0,AV13>0,AW13=0,AX13>0),MIN(J13*PROFILE!$G$10,MAX('MDA3'!J13,'MDA3'!M13,AO13)),AND(AU13=0,AV13>0,AW13>0,AX13=0),MIN(J13*PROFILE!$G$10,MAX('MDA3'!J13,'MDA3'!M13,Z13)),AND(AU13=0,AV13>0,AW13>0,AX13>0),MIN(J13*PROFILE!$G$10,MAX('MDA3'!J13,'MDA3'!M13,Z13,AO13)),AND(AU13>0,AV13=0,AW13=0,AX13=0), MIN(BB13,MAX('MDA1'!L13,'MDA2'!L13,'MDA5'!L13)),AND(AU13>0,AV13=0,AW13=0,AX13>0), MIN(BB13,MAX('MDA1'!L13,'MDA2'!L13,'MDA5'!L13,AO13)),AND(AU13>0,AV13=0,AW13>0,AX13=0),MIN(BB13,MAX('MDA1'!L13,'MDA2'!L13,'MDA5'!L13,Z13)),AND(AU13>0,AV13=0,AW13>0,AX13>0),MIN(BB13,MAX('MDA1'!L13,'MDA2'!L13,'MDA5'!L13,Z13,AO13)),AND(AU13>0,AV13>0,AW13=0,AX13=0),MIN(BB13, MAX('MDA1'!L13,'MDA2'!L13, 'MDA5'!L13,MAX('MDA3'!J13,'MDA3'!M13))), AND(AU13>0,AV13>0,AW13=0,AX13>0),MIN(BB13, MAX('MDA1'!L13,'MDA2'!L13, 'MDA5'!L13,MAX('MDA3'!J13,'MDA3'!M13),AO13)), AND(AU13>0,AV13>0,AW13>0,AX13=0), MIN(BB13, MAX('MDA1'!L13,'MDA2'!L13, 'MDA5'!L13,MAX('MDA3'!J13,'MDA3'!M13),Z13)), AND(AU13>0,AV13>0,AW13>0,AX13>0), MIN(BB13, MAX('MDA1'!L13,'MDA2'!L13, 'MDA5'!L13,MAX('MDA3'!J13,'MDA3'!M13),Z13,AO13))) -> 64869.48755 | BL13: 103791.1419 | BM13: 67.28889578
A14: =IF(COUNTRY_INFO!A14=0," ",COUNTRY_INFO!A14) -> Togo | B14: =IF(COUNTRY_INFO!B14=0," ",COUNTRY_INFO!B14) -> CENTRALE | C14: =IF(COUNTRY_INFO!C14=0," ",COUNTRY_INFO!C14) -> TCHAOUDJO | D14: =COUNTRY_INFO!L14 -> Non requis | G14: =MAX('MDA1'!M14,'MDA2'!M14,'MDA5'!M14) -> 0 | H14: =IF(AND(COUNTRY_INFO!H14>0,COUNTRY_INFO!H14<4),IF(D14>G14,G14,D14),0) -> 0 | I14: =IF(AND(COUNTRY_INFO!H14>0,COUNTRY_INFO!H14<4), IF(G14/D14*100<>0, IF(G14/D14*100>100,100,G14/D14*100), "-"),0) -> 0 | J14: =COUNTRY_INFO!M14 -> 123411.1176 | K14: 53098 | L14: 54139 | M14: =MAX('MDA1'!M14,MAX('MDA3'!I14,'MDA3'!L14)+MAX('MDA3'!J14,'MDA3'!M14)) -> 107237 | N14: =IF(AND(COUNTRY_INFO!I14>0,COUNTRY_INFO!I14<4),IF(J14>M14,M14,J14),0) -> 107237 | O14: =IF(AND(COUNTRY_INFO!I14>0,COUNTRY_INFO!I14<4), IF(M14/J14*100<>0, IF(M14/J14*100>100,100,M14/J14*100), "-"),0) -> 86.89411623 | P14: =COUNTRY_INFO!Q14 -> 107633 | Q14: 36275 | R14: 35754 | S14: =MAX('MDA2'!J14,'MDA5'!J14,'T1'!K14, MAX(T3_R1!J14,T3_R2!J14,T3_R3!J14)) -> 0 | T14: =IF(AND(COUNTRY_INFO!J14>1,COUNTRY_INFO!J14<99,COUNTRY_INFO!J14<>4,COUNTRY_INFO!J14<>5),IF(COUNTRY_INFO!N14>S14,S14,COUNTRY_INFO!N14),0) -> 0 | U14: =IF(AND(COUNTRY_INFO!J14>1,COUNTRY_INFO!J14<99,COUNTRY_INFO!J14<>4,COUNTRY_INFO!J14<>5), IF(T14/COUNTRY_INFO!N14*100<>0, IF(T14/COUNTRY_INFO!N14*100>100,100,T14/COUNTRY_INFO!N14*100), "-"),0) -> - | V14: =MAX('MDA1'!K14, 'MDA2'!K14, 'MDA5'!K14,'T1'!L14, MAX(T3_R1!K14,T3_R2!K14,T3_R3!K14)) -> 72029 | W14: =IF(AND(COUNTRY_INFO!J14>1,COUNTRY_INFO!J14<99,COUNTRY_INFO!J14<>4,COUNTRY_INFO!J14<>5),IF(COUNTRY_INFO!O14>V14,V14,COUNTRY_INFO!O14),0) -> 70195 | X14: =IF(AND(COUNTRY_INFO!J14>1,COUNTRY_INFO!J14<99,COUNTRY_INFO!J14<>4,COUNTRY_INFO!J14<>5), IF(W14/COUNTRY_INFO!O14*100<>0, IF(W14/COUNTRY_INFO!O14*100>100,100,W14/COUNTRY_INFO!O14*100), "-"),0) -> 100 | Y14: =MAX('MDA1'!L14, 'MDA2'!L14, 'MDA5'!L14,'T1'!M14, MAX(T3_R1!L14,T3_R2!L14,T3_R3!L14)) -> 0 | Z14: =IF(AND(COUNTRY_INFO!J14>1,COUNTRY_INFO!J14<99,COUNTRY_INFO!J14<>4,COUNTRY_INFO!J14<>5),IF(COUNTRY_INFO!P14>Y14,Y14,COUNTRY_INFO!P14),0) -> 0 | AA14: =IF(AND(COUNTRY_INFO!J14>1,COUNTRY_INFO!J14<99,COUNTRY_INFO!J14<>4,COUNTRY_INFO!J14<>5), IF(Z14/COUNTRY_INFO!P14*100<>0, IF(Z14/COUNTRY_INFO!P14*100>100,100,Z14/COUNTRY_INFO!P14*100), "-"),0) ->  | AB14: 72029 | AC14: 70195 | AD14: =IF(AND(COUNTRY_INFO!J14>1,COUNTRY_INFO!J14<99,COUNTRY_INFO!J14<>4,COUNTRY_INFO!J14<>5), IF(AC14/P14*100<>0, IF(AC14/P14*100>100,100,AC14/P14*100), "-"),0) -> 65.21698736 | AE14: =COUNTRY_INFO!U14 -> 158059 | AH14: =MAX('T1'!K14,'T2'!R14) -> 0 | AI14: =IF(AND(COUNTRY_INFO!K14>1,COUNTRY_INFO!K14<99,COUNTRY_INFO!K14<>4,COUNTRY_INFO!K14<>5),IF(COUNTRY_INFO!R14>AH14,AH14,COUNTRY_INFO!R14),0) -> 0 | AJ14: =IF(AND(COUNTRY_INFO!K14>1,COUNTRY_INFO!K14<99,COUNTRY_INFO!K14<>4,COUNTRY_INFO!K14<>5), IF(AI14/COUNTRY_INFO!R14*100<>0, IF(AI14/COUNTRY_INFO!R14*100>100,100,AI14/COUNTRY_INFO!R14*100), "-"),0) ->  | AK14: =MAX('T1'!L14,'T2'!S14) -> 71308 | AL14: =IF(AND(COUNTRY_INFO!K14>1,COUNTRY_INFO!K14<99,COUNTRY_INFO!K14<>4,COUNTRY_INFO!K14<>5),IF(COUNTRY_INFO!S14>AK14,AK14,COUNTRY_INFO!S14),0) -> 0 | AM14: =IF(AND(COUNTRY_INFO!K14>1,COUNTRY_INFO!K14<99,COUNTRY_INFO!K14<>4,COUNTRY_INFO!K14<>5), IF(AL14/COUNTRY_INFO!S14*100<>0, IF(AL14/COUNTRY_INFO!S14*100>100,100,AL14/COUNTRY_INFO!S14*100), "-"),0) ->  | AN14: =MAX('T1'!M14,'T2'!T14) -> 27669 | AO14: =IF(AND(COUNTRY_INFO!K14>1,COUNTRY_INFO!K14<99,COUNTRY_INFO!K14<>4,COUNTRY_INFO!K14<>5),IF(COUNTRY_INFO!T14>AN14,AN14,COUNTRY_INFO!T14),0) -> 0 | AP14: =IF(AND(COUNTRY_INFO!K14>1,COUNTRY_INFO!K14<99,COUNTRY_INFO!K14<>4,COUNTRY_INFO!K14<>5), IF(AO14/COUNTRY_INFO!T14*100<>0, IF(AO14/COUNTRY_INFO!T14*100>100,100,AO14/COUNTRY_INFO!T14*100), "-"),0) ->  | AQ14: 98977 | AR14: 98977 | AS14: 62.62028736 | AU14: =IF(AND(D14<>0, D14<>"Inconnu",D14<>"Interrompu",D14<>"Non requis"),D14/COUNTRY_INFO!D14, 0) -> 0 | AV14: =IF(AND(J14<>0,J14<>"Inconnu",J14<>"Interrompu",J14<>"Non requis"),J14/COUNTRY_INFO!D14, 0) -> 0.5274325301 | AW14: =IF(AND(P14<>0,P14<>"Inconnu",P14<>"Surveillance",P14<>"Non requis"),P14/COUNTRY_INFO!Q14, 0) -> 1 | AX14: =IF(AND(AE14<>0,AE14<>"Inconnu",AE14<>"Surveillance",AE14<>"Non requis"),AE14/COUNTRY_INFO!U14, 0) -> 1 | AY14: =IF(AU14>0,D14*PROFILE!$G$7,IF(AV14>0,J14*PROFILE!$G$7,0)) -> 4936.457269 | AZ14: =_xlfn.IFS(OR(AU14>0,AW14>0),COUNTRY_INFO!E14, AV14>0,J14*PROFILE!$G$8,AX14>0,COUNTRY_INFO!R14,COUNTIFS(AU14:AX14,">0")=0,0) -> 37438 | BA14: =_xlfn.IFS(OR(AU14>0,AW14>0),COUNTRY_INFO!F14, AV14>0,J14*PROFILE!$G$9,AX14>0,COUNTRY_INFO!S14,COUNTIFS(AU14:AX14,">0")=0,0) -> 70195 | BB14: =_xlfn.IFS(AU14>0,COUNTRY_INFO!G14, AND(AV14>0,AW14=0,AX14=0),J14*PROFILE!$G$10,AND(AV14>0,AW14>0,AX14=0), MAX(J14*PROFILE!$G$10,COUNTRY_INFO!P14),AND(AV14>0,AW14=0,AX14>0), MAX(J14*PROFILE!$G$10,COUNTRY_INFO!T14),AND(AV14=0,AW14>0,AX14>0), MAX(COUNTRY_INFO!P14,COUNTRY_INFO!T14),AND(AV14=0,AW14>0,AX14=0),COUNTRY_INFO!P14,AND(AV14=0,AW14=0,AX14>0),COUNTRY_INFO!T14,AND(AV14>0,AW14>0,AX14>0), MAX(J14*PROFILE!$G$10,COUNTRY_INFO!P14,COUNTRY_INFO!T14),COUNTIFS(AU14:AX14,">0")=0,0) -> 61705.58284 | BC14: 174275.0401 | BD14: Y | BE14: =MAX('MDA2'!J14,'MDA5'!J14,S14,AH14) -> 0 | BF14: =MAX('MDA1'!K14,'MDA2'!K14,'MDA3'!I14,'MDA3'!L14,'MDA5'!K14,V14,AK14) -> 72029 | BG14: =MAX('MDA1'!L14,'MDA2'!L14,'MDA3'!J14,'MDA3'!M14,'MDA5'!L14,Y14,AN14) -> 67583 | BH14: 139612 | BI14: =_xlfn.IFS(AND(AU14=0,AW14=0,AX14=0),0,AND(AU14=0,AW14=0,AX14>0),AI14,AND(AU14=0,AW14>0,AX14=0),T14,AND(AU14=0,AW14>0,AX14>0),MAX(T14,AI14),AND(AU14>0,AW14=0,AX14=0),MIN(MAX('MDA2'!J14,'MDA5'!J14),AZ14),AND(AU14>0,AW14=0,AX14>0),MIN(MAX('MDA2'!J14,'MDA5'!J14,AI14),AZ14),AND(AU14>0,AW14>0,AX14=0),MIN(MAX('MDA2'!J14,'MDA5'!J14,T14),AZ14),AND(AU14>0,AW14>0,AX14>0),MIN(MAX('MDA2'!J14,'MDA5'!J14,AI14,T14),AZ14)) -> 0 | BJ14: =_xlfn.IFS(AND(AU14=0,AV14=0,AW14=0,AX14=0),0,AND(AU14=0,AV14=0,AW14=0,AX14>0),AL14,AND(AU14=0,AV14=0,AW14>0,AX14=0),W14,AND(AU14=0,AV14=0,AW14>0,AX14>0),MAX(W14,AL14),AND(AU14=0,AV14>0,AW14=0,AX14=0),MIN(J14*PROFILE!$G$9,MAX('MDA3'!I14,'MDA3'!L14)),AND(AU14=0,AV14>0,AW14=0,AX14>0),MIN(J14*PROFILE!$G$9,MAX('MDA3'!I14,'MDA3'!L14,AL14)),AND(AU14=0,AV14>0,AW14>0,AX14=0),MIN(J14*PROFILE!$G$9,MAX('MDA3'!I14,'MDA3'!L14,W14)),AND(AU14=0,AV14>0,AW14>0,AX14>0),MIN(J14*PROFILE!$G$9,MAX('MDA3'!I14,'MDA3'!L14,W14,AL14)),AND(AU14>0,AV14=0,AW14=0,AX14=0), MIN(BA14,MAX('MDA1'!K14,'MDA2'!K14,'MDA5'!K14)),AND(AU14>0,AV14=0,AW14=0,AX14>0), MIN(BA14,MAX('MDA1'!K14,'MDA2'!K14,'MDA5'!K14,AL14)),AND(AU14>0,AV14=0,AW14>0,AX14=0),MIN(BA14,MAX('MDA1'!K14,'MDA2'!KL14,'MDA5'!K14,W14)),AND(AU14>0,AV14=0,AW14>0,AX14>0),MIN(BA14,MAX('MDA1'!K14,'MDA2'!K14,'MDA5'!K14,W14,AL14)),AND(AU14>0,AV14>0,AW14=0,AX14=0),MIN(BA14, MAX('MDA1'!K14,'MDA2'!K14, 'MDA5'!K14,MAX('MDA3'!I14,'MDA3'!L14))), AND(AU14>0,AV14>0,AW14=0,AX14>0),MIN(BA14, MAX('MDA1'!K14,'MDA2'!K14, 'MDA5'!K14,MAX('MDA3'!I14,'MDA3'!L14),AL14)), AND(AU14>0,AV14>0,AW14>0,AX14=0), MIN(BA14, MAX('MDA1'!K14,'MDA2'!K14, 'MDA5'!K14,MAX('MDA3'!I14,'MDA3'!L14),W14)), AND(AU14>0,AV14>0,AW14>0,AX14>0), MIN(BA14, MAX('MDA1'!K14,'MDA2'!K14, 'MDA5'!K14,MAX('MDA3'!I14,'MDA3'!L14),W14,AL14))) -> 37023.3134 | BK14: =_xlfn.IFS(AND(AU14=0,AV14=0,AW14=0,AX14=0),0,AND(AU14=0,AV14=0,AW14=0,AX14>0),AO14,AND(AU14=0,AV14=0,AW14>0,AX14=0),Z14,AND(AU14=0,AV14=0,AW14>0,AX14>0),MAX(Z14,AO14),AND(AU14=0,AV14>0,AW14=0,AX14=0),MIN(J14*PROFILE!$G$10,MAX('MDA3'!J14,'MDA3'!J14)),AND(AU14=0,AV14>0,AW14=0,AX14>0),MIN(J14*PROFILE!$G$10,MAX('MDA3'!J14,'MDA3'!M14,AO14)),AND(AU14=0,AV14>0,AW14>0,AX14=0),MIN(J14*PROFILE!$G$10,MAX('MDA3'!J14,'MDA3'!M14,Z14)),AND(AU14=0,AV14>0,AW14>0,AX14>0),MIN(J14*PROFILE!$G$10,MAX('MDA3'!J14,'MDA3'!M14,Z14,AO14)),AND(AU14>0,AV14=0,AW14=0,AX14=0), MIN(BB14,MAX('MDA1'!L14,'MDA2'!L14,'MDA5'!L14)),AND(AU14>0,AV14=0,AW14=0,AX14>0), MIN(BB14,MAX('MDA1'!L14,'MDA2'!L14,'MDA5'!L14,AO14)),AND(AU14>0,AV14=0,AW14>0,AX14=0),MIN(BB14,MAX('MDA1'!L14,'MDA2'!L14,'MDA5'!L14,Z14)),AND(AU14>0,AV14=0,AW14>0,AX14>0),MIN(BB14,MAX('MDA1'!L14,'MDA2'!L14,'MDA5'!L14,Z14,AO14)),AND(AU14>0,AV14>0,AW14=0,AX14=0),MIN(BB14, MAX('MDA1'!L14,'MDA2'!L14, 'MDA5'!L14,MAX('MDA3'!J14,'MDA3'!M14))), AND(AU14>0,AV14>0,AW14=0,AX14>0),MIN(BB14, MAX('MDA1'!L14,'MDA2'!L14, 'MDA5'!L14,MAX('MDA3'!J14,'MDA3'!M14),AO14)), AND(AU14>0,AV14>0,AW14>0,AX14=0), MIN(BB14, MAX('MDA1'!L14,'MDA2'!L14, 'MDA5'!L14,MAX('MDA3'!J14,'MDA3'!M14),Z14)), AND(AU14>0,AV14>0,AW14>0,AX14>0), MIN(BB14, MAX('MDA1'!L14,'MDA2'!L14, 'MDA5'!L14,MAX('MDA3'!J14,'MDA3'!M14),Z14,AO14))) -> 61705.58284 | BL14: 98728.89624 | BM14: 56.65119697
A15: =IF(COUNTRY_INFO!A15=0," ",COUNTRY_INFO!A15) -> Togo | B15: =IF(COUNTRY_INFO!B15=0," ",COUNTRY_INFO!B15) -> GRAND-LOME | C15: =IF(COUNTRY_INFO!C15=0," ",COUNTRY_INFO!C15) -> AGOE NYIVE | D15: =COUNTRY_INFO!L15 -> Non requis | G15: =MAX('MDA1'!M15,'MDA2'!M15,'MDA5'!M15) -> 0 | H15: =IF(AND(COUNTRY_INFO!H15>0,COUNTRY_INFO!H15<4),IF(D15>G15,G15,D15),0) -> 0 | I15: =IF(AND(COUNTRY_INFO!H15>0,COUNTRY_INFO!H15<4), IF(G15/D15*100<>0, IF(G15/D15*100>100,100,G15/D15*100), "-"),0) -> 0 | J15: =COUNTRY_INFO!M15 -> 8331 | K15: 5036 | L15: 5407 | M15: =MAX('MDA1'!M15,MAX('MDA3'!I15,'MDA3'!L15)+MAX('MDA3'!J15,'MDA3'!M15)) -> 10443 | N15: =IF(AND(COUNTRY_INFO!I15>0,COUNTRY_INFO!I15<4),IF(J15>M15,M15,J15),0) -> 8331 | O15: =IF(AND(COUNTRY_INFO!I15>0,COUNTRY_INFO!I15<4), IF(M15/J15*100<>0, IF(M15/J15*100>100,100,M15/J15*100), "-"),0) -> 100 | P15: =COUNTRY_INFO!Q15 -> 0 | Q15: 81216 | R15: 86303 | S15: =MAX('MDA2'!J15,'MDA5'!J15,'T1'!K15, MAX(T3_R1!J15,T3_R2!J15,T3_R3!J15)) -> 0 | T15: =IF(AND(COUNTRY_INFO!J15>1,COUNTRY_INFO!J15<99,COUNTRY_INFO!J15<>4,COUNTRY_INFO!J15<>5),IF(COUNTRY_INFO!N15>S15,S15,COUNTRY_INFO!N15),0) -> 0 | U15: =IF(AND(COUNTRY_INFO!J15>1,COUNTRY_INFO!J15<99,COUNTRY_INFO!J15<>4,COUNTRY_INFO!J15<>5), IF(T15/COUNTRY_INFO!N15*100<>0, IF(T15/COUNTRY_INFO!N15*100>100,100,T15/COUNTRY_INFO!N15*100), "-"),0) -> 0 | V15: =MAX('MDA1'!K15, 'MDA2'!K15, 'MDA5'!K15,'T1'!L15, MAX(T3_R1!K15,T3_R2!K15,T3_R3!K15)) -> 167519 | W15: =IF(AND(COUNTRY_INFO!J15>1,COUNTRY_INFO!J15<99,COUNTRY_INFO!J15<>4,COUNTRY_INFO!J15<>5),IF(COUNTRY_INFO!O15>V15,V15,COUNTRY_INFO!O15),0) -> 0 | X15: =IF(AND(COUNTRY_INFO!J15>1,COUNTRY_INFO!J15<99,COUNTRY_INFO!J15<>4,COUNTRY_INFO!J15<>5), IF(W15/COUNTRY_INFO!O15*100<>0, IF(W15/COUNTRY_INFO!O15*100>100,100,W15/COUNTRY_INFO!O15*100), "-"),0) -> 0 | Y15: =MAX('MDA1'!L15, 'MDA2'!L15, 'MDA5'!L15,'T1'!M15, MAX(T3_R1!L15,T3_R2!L15,T3_R3!L15)) -> 0 | Z15: =IF(AND(COUNTRY_INFO!J15>1,COUNTRY_INFO!J15<99,COUNTRY_INFO!J15<>4,COUNTRY_INFO!J15<>5),IF(COUNTRY_INFO!P15>Y15,Y15,COUNTRY_INFO!P15),0) -> 0 | AA15: =IF(AND(COUNTRY_INFO!J15>1,COUNTRY_INFO!J15<99,COUNTRY_INFO!J15<>4,COUNTRY_INFO!J15<>5), IF(Z15/COUNTRY_INFO!P15*100<>0, IF(Z15/COUNTRY_INFO!P15*100>100,100,Z15/COUNTRY_INFO!P15*100), "-"),0) -> 0 | AB15: 167519 | AC15: 0 | AD15: =IF(AND(COUNTRY_INFO!J15>1,COUNTRY_INFO!J15<99,COUNTRY_INFO!J15<>4,COUNTRY_INFO!J15<>5), IF(AC15/P15*100<>0, IF(AC15/P15*100>100,100,AC15/P15*100), "-"),0) -> 0 | AE15: =COUNTRY_INFO!U15 -> 117098 | AH15: =MAX('T1'!K15,'T2'!R15) -> 0 | AI15: =IF(AND(COUNTRY_INFO!K15>1,COUNTRY_INFO!K15<99,COUNTRY_INFO!K15<>4,COUNTRY_INFO!K15<>5),IF(COUNTRY_INFO!R15>AH15,AH15,COUNTRY_INFO!R15),0) -> 0 | AJ15: =IF(AND(COUNTRY_INFO!K15>1,COUNTRY_INFO!K15<99,COUNTRY_INFO!K15<>4,COUNTRY_INFO!K15<>5), IF(AI15/COUNTRY_INFO!R15*100<>0, IF(AI15/COUNTRY_INFO!R15*100>100,100,AI15/COUNTRY_INFO!R15*100), "-"),0) ->  | AK15: =MAX('T1'!L15,'T2'!S15) -> 140549 | AL15: =IF(AND(COUNTRY_INFO!K15>1,COUNTRY_INFO!K15<99,COUNTRY_INFO!K15<>4,COUNTRY_INFO!K15<>5),IF(COUNTRY_INFO!S15>AK15,AK15,COUNTRY_INFO!S15),0) -> 0 | AM15: =IF(AND(COUNTRY_INFO!K15>1,COUNTRY_INFO!K15<99,COUNTRY_INFO!K15<>4,COUNTRY_INFO!K15<>5), IF(AL15/COUNTRY_INFO!S15*100<>0, IF(AL15/COUNTRY_INFO!S15*100>100,100,AL15/COUNTRY_INFO!S15*100), "-"),0) ->  | AN15: =MAX('T1'!M15,'T2'!T15) -> 163685 | AO15: =IF(AND(COUNTRY_INFO!K15>1,COUNTRY_INFO!K15<99,COUNTRY_INFO!K15<>4,COUNTRY_INFO!K15<>5),IF(COUNTRY_INFO!T15>AN15,AN15,COUNTRY_INFO!T15),0) -> 0 | AP15: =IF(AND(COUNTRY_INFO!K15>1,COUNTRY_INFO!K15<99,COUNTRY_INFO!K15<>4,COUNTRY_INFO!K15<>5), IF(AO15/COUNTRY_INFO!T15*100<>0, IF(AO15/COUNTRY_INFO!T15*100>100,100,AO15/COUNTRY_INFO!T15*100), "-"),0) ->  | AQ15: 304234 | AR15: 304234 | AS15: 259.81144 | AU15: =IF(AND(D15<>0, D15<>"Inconnu",D15<>"Interrompu",D15<>"Non requis"),D15/COUNTRY_INFO!D15, 0) -> 0 | AV15: =IF(AND(J15<>0,J15<>"Inconnu",J15<>"Interrompu",J15<>"Non requis"),J15/COUNTRY_INFO!D15, 0) -> 0.01049744085 | AW15: =IF(AND(P15<>0,P15<>"Inconnu",P15<>"Surveillance",P15<>"Non requis"),P15/COUNTRY_INFO!Q15, 0) -> 0 | AX15: =IF(AND(AE15<>0,AE15<>"Inconnu",AE15<>"Surveillance",AE15<>"Non requis"),AE15/COUNTRY_INFO!U15, 0) -> 1 | AY15: =IF(AU15>0,D15*PROFILE!$G$7,IF(AV15>0,J15*PROFILE!$G$7,0)) -> 333.2408481 | AZ15: =_xlfn.IFS(OR(AU15>0,AW15>0),COUNTRY_INFO!E15, AV15>0,J15*PROFILE!$G$8,AX15>0,COUNTRY_INFO!R15,COUNTIFS(AU15:AX15,">0")=0,0) -> 1332.959008 | BA15: =_xlfn.IFS(OR(AU15>0,AW15>0),COUNTRY_INFO!F15, AV15>0,J15*PROFILE!$G$9,AX15>0,COUNTRY_INFO!S15,COUNTIFS(AU15:AX15,">0")=0,0) -> 2499.298522 | BB15: =_xlfn.IFS(AU15>0,COUNTRY_INFO!G15, AND(AV15>0,AW15=0,AX15=0),J15*PROFILE!$G$10,AND(AV15>0,AW15>0,AX15=0), MAX(J15*PROFILE!$G$10,COUNTRY_INFO!P15),AND(AV15>0,AW15=0,AX15>0), MAX(J15*PROFILE!$G$10,COUNTRY_INFO!T15),AND(AV15=0,AW15>0,AX15>0), MAX(COUNTRY_INFO!P15,COUNTRY_INFO!T15),AND(AV15=0,AW15>0,AX15=0),COUNTRY_INFO!P15,AND(AV15=0,AW15=0,AX15>0),COUNTRY_INFO!T15,AND(AV15>0,AW15>0,AX15>0), MAX(J15*PROFILE!$G$10,COUNTRY_INFO!P15,COUNTRY_INFO!T15),COUNTIFS(AU15:AX15,">0")=0,0) -> 4165.501622 | BC15: 8331 | BD15: Y | BE15: =MAX('MDA2'!J15,'MDA5'!J15,S15,AH15) -> 0 | BF15: =MAX('MDA1'!K15,'MDA2'!K15,'MDA3'!I15,'MDA3'!L15,'MDA5'!K15,V15,AK15) -> 167519 | BG15: =MAX('MDA1'!L15,'MDA2'!L15,'MDA3'!J15,'MDA3'!M15,'MDA5'!L15,Y15,AN15) -> 163685 | BH15: 331204 | BI15: =_xlfn.IFS(AND(AU15=0,AW15=0,AX15=0),0,AND(AU15=0,AW15=0,AX15>0),AI15,AND(AU15=0,AW15>0,AX15=0),T15,AND(AU15=0,AW15>0,AX15>0),MAX(T15,AI15),AND(AU15>0,AW15=0,AX15=0),MIN(MAX('MDA2'!J15,'MDA5'!J15),AZ15),AND(AU15>0,AW15=0,AX15>0),MIN(MAX('MDA2'!J15,'MDA5'!J15,AI15),AZ15),AND(AU15>0,AW15>0,AX15=0),MIN(MAX('MDA2'!J15,'MDA5'!J15,T15),AZ15),AND(AU15>0,AW15>0,AX15>0),MIN(MAX('MDA2'!J15,'MDA5'!J15,AI15,T15),AZ15)) -> 0 | BJ15: =_xlfn.IFS(AND(AU15=0,AV15=0,AW15=0,AX15=0),0,AND(AU15=0,AV15=0,AW15=0,AX15>0),AL15,AND(AU15=0,AV15=0,AW15>0,AX15=0),W15,AND(AU15=0,AV15=0,AW15>0,AX15>0),MAX(W15,AL15),AND(AU15=0,AV15>0,AW15=0,AX15=0),MIN(J15*PROFILE!$G$9,MAX('MDA3'!I15,'MDA3'!L15)),AND(AU15=0,AV15>0,AW15=0,AX15>0),MIN(J15*PROFILE!$G$9,MAX('MDA3'!I15,'MDA3'!L15,AL15)),AND(AU15=0,AV15>0,AW15>0,AX15=0),MIN(J15*PROFILE!$G$9,MAX('MDA3'!I15,'MDA3'!L15,W15)),AND(AU15=0,AV15>0,AW15>0,AX15>0),MIN(J15*PROFILE!$G$9,MAX('MDA3'!I15,'MDA3'!L15,W15,AL15)),AND(AU15>0,AV15=0,AW15=0,AX15=0), MIN(BA15,MAX('MDA1'!K15,'MDA2'!K15,'MDA5'!K15)),AND(AU15>0,AV15=0,AW15=0,AX15>0), MIN(BA15,MAX('MDA1'!K15,'MDA2'!K15,'MDA5'!K15,AL15)),AND(AU15>0,AV15=0,AW15>0,AX15=0),MIN(BA15,MAX('MDA1'!K15,'MDA2'!KL15,'MDA5'!K15,W15)),AND(AU15>0,AV15=0,AW15>0,AX15>0),MIN(BA15,MAX('MDA1'!K15,'MDA2'!K15,'MDA5'!K15,W15,AL15)),AND(AU15>0,AV15>0,AW15=0,AX15=0),MIN(BA15, MAX('MDA1'!K15,'MDA2'!K15, 'MDA5'!K15,MAX('MDA3'!I15,'MDA3'!L15))), AND(AU15>0,AV15>0,AW15=0,AX15>0),MIN(BA15, MAX('MDA1'!K15,'MDA2'!K15, 'MDA5'!K15,MAX('MDA3'!I15,'MDA3'!L15),AL15)), AND(AU15>0,AV15>0,AW15>0,AX15=0), MIN(BA15, MAX('MDA1'!K15,'MDA2'!K15, 'MDA5'!K15,MAX('MDA3'!I15,'MDA3'!L15),W15)), AND(AU15>0,AV15>0,AW15>0,AX15>0), MIN(BA15, MAX('MDA1'!K15,'MDA2'!K15, 'MDA5'!K15,MAX('MDA3'!I15,'MDA3'!L15),W15,AL15))) -> 2499.298522 | BK15: =_xlfn.IFS(AND(AU15=0,AV15=0,AW15=0,AX15=0),0,AND(AU15=0,AV15=0,AW15=0,AX15>0),AO15,AND(AU15=0,AV15=0,AW15>0,AX15=0),Z15,AND(AU15=0,AV15=0,AW15>0,AX15>0),MAX(Z15,AO15),AND(AU15=0,AV15>0,AW15=0,AX15=0),MIN(J15*PROFILE!$G$10,MAX('MDA3'!J15,'MDA3'!J15)),AND(AU15=0,AV15>0,AW15=0,AX15>0),MIN(J15*PROFILE!$G$10,MAX('MDA3'!J15,'MDA3'!M15,AO15)),AND(AU15=0,AV15>0,AW15>0,AX15=0),MIN(J15*PROFILE!$G$10,MAX('MDA3'!J15,'MDA3'!M15,Z15)),AND(AU15=0,AV15>0,AW15>0,AX15>0),MIN(J15*PROFILE!$G$10,MAX('MDA3'!J15,'MDA3'!M15,Z15,AO15)),AND(AU15>0,AV15=0,AW15=0,AX15=0), MIN(BB15,MAX('MDA1'!L15,'MDA2'!L15,'MDA5'!L15)),AND(AU15>0,AV15=0,AW15=0,AX15>0), MIN(BB15,MAX('MDA1'!L15,'MDA2'!L15,'MDA5'!L15,AO15)),AND(AU15>0,AV15=0,AW15>0,AX15=0),MIN(BB15,MAX('MDA1'!L15,'MDA2'!L15,'MDA5'!L15,Z15)),AND(AU15>0,AV15=0,AW15>0,AX15>0),MIN(BB15,MAX('MDA1'!L15,'MDA2'!L15,'MDA5'!L15,Z15,AO15)),AND(AU15>0,AV15>0,AW15=0,AX15=0),MIN(BB15, MAX('MDA1'!L15,'MDA2'!L15, 'MDA5'!L15,MAX('MDA3'!J15,'MDA3'!M15))), AND(AU15>0,AV15>0,AW15=0,AX15>0),MIN(BB15, MAX('MDA1'!L15,'MDA2'!L15, 'MDA5'!L15,MAX('MDA3'!J15,'MDA3'!M15),AO15)), AND(AU15>0,AV15>0,AW15>0,AX15=0), MIN(BB15, MAX('MDA1'!L15,'MDA2'!L15, 'MDA5'!L15,MAX('MDA3'!J15,'MDA3'!M15),Z15)), AND(AU15>0,AV15>0,AW15>0,AX15>0), MIN(BB15, MAX('MDA1'!L15,'MDA2'!L15, 'MDA5'!L15,MAX('MDA3'!J15,'MDA3'!M15),Z15,AO15))) -> 4165.501622 | BL15: 6664.800144 | BM15: 80.00000173
A16: =IF(COUNTRY_INFO!A16=0," ",COUNTRY_INFO!A16) -> Togo | B16: =IF(COUNTRY_INFO!B16=0," ",COUNTRY_INFO!B16) -> GRAND-LOME | C16: =IF(COUNTRY_INFO!C16=0," ",COUNTRY_INFO!C16) -> GOLFE | D16: =COUNTRY_INFO!L16 -> Non requis | G16: =MAX('MDA1'!M16,'MDA2'!M16,'MDA5'!M16) -> 0 | H16: =IF(AND(COUNTRY_INFO!H16>0,COUNTRY_INFO!H16<4),IF(D16>G16,G16,D16),0) -> 0 | I16: =IF(AND(COUNTRY_INFO!H16>0,COUNTRY_INFO!H16<4), IF(G16/D16*100<>0, IF(G16/D16*100>100,100,G16/D16*100), "-"),0) -> 0 | J16: =COUNTRY_INFO!M16 -> 0 | M16: =MAX('MDA1'!M16,MAX('MDA3'!I16,'MDA3'!L16)+MAX('MDA3'!J16,'MDA3'!M16)) -> 0 | N16: =IF(AND(COUNTRY_INFO!I16>0,COUNTRY_INFO!I16<4),IF(J16>M16,M16,J16),0) -> 0 | O16: =IF(AND(COUNTRY_INFO!I16>0,COUNTRY_INFO!I16<4), IF(M16/J16*100<>0, IF(M16/J16*100>100,100,M16/J16*100), "-"),0) -> 0 | P16: =COUNTRY_INFO!Q16 -> 0 | Q16: 33366 | R16: 35497 | S16: =MAX('MDA2'!J16,'MDA5'!J16,'T1'!K16, MAX(T3_R1!J16,T3_R2!J16,T3_R3!J16)) -> 0 | T16: =IF(AND(COUNTRY_INFO!J16>1,COUNTRY_INFO!J16<99,COUNTRY_INFO!J16<>4,COUNTRY_INFO!J16<>5),IF(COUNTRY_INFO!N16>S16,S16,COUNTRY_INFO!N16),0) -> 0 | U16: =IF(AND(COUNTRY_INFO!J16>1,COUNTRY_INFO!J16<99,COUNTRY_INFO!J16<>4,COUNTRY_INFO!J16<>5), IF(T16/COUNTRY_INFO!N16*100<>0, IF(T16/COUNTRY_INFO!N16*100>100,100,T16/COUNTRY_INFO!N16*100), "-"),0) -> 0 | V16: =MAX('MDA1'!K16, 'MDA2'!K16, 'MDA5'!K16,'T1'!L16, MAX(T3_R1!K16,T3_R2!K16,T3_R3!K16)) -> 68863 | W16: =IF(AND(COUNTRY_INFO!J16>1,COUNTRY_INFO!J16<99,COUNTRY_INFO!J16<>4,COUNTRY_INFO!J16<>5),IF(COUNTRY_INFO!O16>V16,V16,COUNTRY_INFO!O16),0) -> 0 | X16: =IF(AND(COUNTRY_INFO!J16>1,COUNTRY_INFO!J16<99,COUNTRY_INFO!J16<>4,COUNTRY_INFO!J16<>5), IF(W16/COUNTRY_INFO!O16*100<>0, IF(W16/COUNTRY_INFO!O16*100>100,100,W16/COUNTRY_INFO!O16*100), "-"),0) -> 0 | Y16: =MAX('MDA1'!L16, 'MDA2'!L16, 'MDA5'!L16,'T1'!M16, MAX(T3_R1!L16,T3_R2!L16,T3_R3!L16)) -> 0 | Z16: =IF(AND(COUNTRY_INFO!J16>1,COUNTRY_INFO!J16<99,COUNTRY_INFO!J16<>4,COUNTRY_INFO!J16<>5),IF(COUNTRY_INFO!P16>Y16,Y16,COUNTRY_INFO!P16),0) -> 0 | AA16: =IF(AND(COUNTRY_INFO!J16>1,COUNTRY_INFO!J16<99,COUNTRY_INFO!J16<>4,COUNTRY_INFO!J16<>5), IF(Z16/COUNTRY_INFO!P16*100<>0, IF(Z16/COUNTRY_INFO!P16*100>100,100,Z16/COUNTRY_INFO!P16*100), "-"),0) -> 0 | AB16: 68863 | AC16: 0 | AD16: =IF(AND(COUNTRY_INFO!J16>1,COUNTRY_INFO!J16<99,COUNTRY_INFO!J16<>4,COUNTRY_INFO!J16<>5), IF(AC16/P16*100<>0, IF(AC16/P16*100>100,100,AC16/P16*100), "-"),0) -> 0 | AE16: =COUNTRY_INFO!U16 -> 333609 | AH16: =MAX('T1'!K16,'T2'!R16) -> 0 | AI16: =IF(AND(COUNTRY_INFO!K16>1,COUNTRY_INFO!K16<99,COUNTRY_INFO!K16<>4,COUNTRY_INFO!K16<>5),IF(COUNTRY_INFO!R16>AH16,AH16,COUNTRY_INFO!R16),0) -> 0 | AJ16: =IF(AND(COUNTRY_INFO!K16>1,COUNTRY_INFO!K16<99,COUNTRY_INFO!K16<>4,COUNTRY_INFO!K16<>5), IF(AI16/COUNTRY_INFO!R16*100<>0, IF(AI16/COUNTRY_INFO!R16*100>100,100,AI16/COUNTRY_INFO!R16*100), "-"),0) ->  | AK16: =MAX('T1'!L16,'T2'!S16) -> 47879 | AL16: =IF(AND(COUNTRY_INFO!K16>1,COUNTRY_INFO!K16<99,COUNTRY_INFO!K16<>4,COUNTRY_INFO!K16<>5),IF(COUNTRY_INFO!S16>AK16,AK16,COUNTRY_INFO!S16),0) -> 0 | AM16: =IF(AND(COUNTRY_INFO!K16>1,COUNTRY_INFO!K16<99,COUNTRY_INFO!K16<>4,COUNTRY_INFO!K16<>5), IF(AL16/COUNTRY_INFO!S16*100<>0, IF(AL16/COUNTRY_INFO!S16*100>100,100,AL16/COUNTRY_INFO!S16*100), "-"),0) ->  | AN16: =MAX('T1'!M16,'T2'!T16) -> 0 | AO16: =IF(AND(COUNTRY_INFO!K16>1,COUNTRY_INFO!K16<99,COUNTRY_INFO!K16<>4,COUNTRY_INFO!K16<>5),IF(COUNTRY_INFO!T16>AN16,AN16,COUNTRY_INFO!T16),0) -> 0 | AP16: =IF(AND(COUNTRY_INFO!K16>1,COUNTRY_INFO!K16<99,COUNTRY_INFO!K16<>4,COUNTRY_INFO!K16<>5), IF(AO16/COUNTRY_INFO!T16*100<>0, IF(AO16/COUNTRY_INFO!T16*100>100,100,AO16/COUNTRY_INFO!T16*100), "-"),0) ->  | AQ16: 47879 | AR16: 47879 | AS16: 14.35183104 | AU16: =IF(AND(D16<>0, D16<>"Inconnu",D16<>"Interrompu",D16<>"Non requis"),D16/COUNTRY_INFO!D16, 0) -> 0 | AV16: =IF(AND(J16<>0,J16<>"Inconnu",J16<>"Interrompu",J16<>"Non requis"),J16/COUNTRY_INFO!D16, 0) -> 0 | AW16: =IF(AND(P16<>0,P16<>"Inconnu",P16<>"Surveillance",P16<>"Non requis"),P16/COUNTRY_INFO!Q16, 0) -> 0 | AX16: =IF(AND(AE16<>0,AE16<>"Inconnu",AE16<>"Surveillance",AE16<>"Non requis"),AE16/COUNTRY_INFO!U16, 0) -> 1 | AY16: =IF(AU16>0,D16*PROFILE!$G$7,IF(AV16>0,J16*PROFILE!$G$7,0)) -> 0 | AZ16: =_xlfn.IFS(OR(AU16>0,AW16>0),COUNTRY_INFO!E16, AV16>0,J16*PROFILE!$G$8,AX16>0,COUNTRY_INFO!R16,COUNTIFS(AU16:AX16,">0")=0,0) -> 0 | BA16: =_xlfn.IFS(OR(AU16>0,AW16>0),COUNTRY_INFO!F16, AV16>0,J16*PROFILE!$G$9,AX16>0,COUNTRY_INFO!S16,COUNTIFS(AU16:AX16,">0")=0,0) -> 0 | BB16: =_xlfn.IFS(AU16>0,COUNTRY_INFO!G16, AND(AV16>0,AW16=0,AX16=0),J16*PROFILE!$G$10,AND(AV16>0,AW16>0,AX16=0), MAX(J16*PROFILE!$G$10,COUNTRY_INFO!P16),AND(AV16>0,AW16=0,AX16>0), MAX(J16*PROFILE!$G$10,COUNTRY_INFO!T16),AND(AV16=0,AW16>0,AX16>0), MAX(COUNTRY_INFO!P16,COUNTRY_INFO!T16),AND(AV16=0,AW16>0,AX16=0),COUNTRY_INFO!P16,AND(AV16=0,AW16=0,AX16>0),COUNTRY_INFO!T16,AND(AV16>0,AW16>0,AX16>0), MAX(J16*PROFILE!$G$10,COUNTRY_INFO!P16,COUNTRY_INFO!T16),COUNTIFS(AU16:AX16,">0")=0,0) -> 0 | BC16: 0 | BD16: Y | BE16: =MAX('MDA2'!J16,'MDA5'!J16,S16,AH16) -> 0 | BF16: =MAX('MDA1'!K16,'MDA2'!K16,'MDA3'!I16,'MDA3'!L16,'MDA5'!K16,V16,AK16) -> 68863 | BG16: =MAX('MDA1'!L16,'MDA2'!L16,'MDA3'!J16,'MDA3'!M16,'MDA5'!L16,Y16,AN16) -> 0 | BH16: 68863 | BI16: =_xlfn.IFS(AND(AU16=0,AW16=0,AX16=0),0,AND(AU16=0,AW16=0,AX16>0),AI16,AND(AU16=0,AW16>0,AX16=0),T16,AND(AU16=0,AW16>0,AX16>0),MAX(T16,AI16),AND(AU16>0,AW16=0,AX16=0),MIN(MAX('MDA2'!J16,'MDA5'!J16),AZ16),AND(AU16>0,AW16=0,AX16>0),MIN(MAX('MDA2'!J16,'MDA5'!J16,AI16),AZ16),AND(AU16>0,AW16>0,AX16=0),MIN(MAX('MDA2'!J16,'MDA5'!J16,T16),AZ16),AND(AU16>0,AW16>0,AX16>0),MIN(MAX('MDA2'!J16,'MDA5'!J16,AI16,T16),AZ16)) -> 0 | BJ16: =_xlfn.IFS(AND(AU16=0,AV16=0,AW16=0,AX16=0),0,AND(AU16=0,AV16=0,AW16=0,AX16>0),AL16,AND(AU16=0,AV16=0,AW16>0,AX16=0),W16,AND(AU16=0,AV16=0,AW16>0,AX16>0),MAX(W16,AL16),AND(AU16=0,AV16>0,AW16=0,AX16=0),MIN(J16*PROFILE!$G$9,MAX('MDA3'!I16,'MDA3'!L16)),AND(AU16=0,AV16>0,AW16=0,AX16>0),MIN(J16*PROFILE!$G$9,MAX('MDA3'!I16,'MDA3'!L16,AL16)),AND(AU16=0,AV16>0,AW16>0,AX16=0),MIN(J16*PROFILE!$G$9,MAX('MDA3'!I16,'MDA3'!L16,W16)),AND(AU16=0,AV16>0,AW16>0,AX16>0),MIN(J16*PROFILE!$G$9,MAX('MDA3'!I16,'MDA3'!L16,W16,AL16)),AND(AU16>0,AV16=0,AW16=0,AX16=0), MIN(BA16,MAX('MDA1'!K16,'MDA2'!K16,'MDA5'!K16)),AND(AU16>0,AV16=0,AW16=0,AX16>0), MIN(BA16,MAX('MDA1'!K16,'MDA2'!K16,'MDA5'!K16,AL16)),AND(AU16>0,AV16=0,AW16>0,AX16=0),MIN(BA16,MAX('MDA1'!K16,'MDA2'!KL16,'MDA5'!K16,W16)),AND(AU16>0,AV16=0,AW16>0,AX16>0),MIN(BA16,MAX('MDA1'!K16,'MDA2'!K16,'MDA5'!K16,W16,AL16)),AND(AU16>0,AV16>0,AW16=0,AX16=0),MIN(BA16, MAX('MDA1'!K16,'MDA2'!K16, 'MDA5'!K16,MAX('MDA3'!I16,'MDA3'!L16))), AND(AU16>0,AV16>0,AW16=0,AX16>0),MIN(BA16, MAX('MDA1'!K16,'MDA2'!K16, 'MDA5'!K16,MAX('MDA3'!I16,'MDA3'!L16),AL16)), AND(AU16>0,AV16>0,AW16>0,AX16=0), MIN(BA16, MAX('MDA1'!K16,'MDA2'!K16, 'MDA5'!K16,MAX('MDA3'!I16,'MDA3'!L16),W16)), AND(AU16>0,AV16>0,AW16>0,AX16>0), MIN(BA16, MAX('MDA1'!K16,'MDA2'!K16, 'MDA5'!K16,MAX('MDA3'!I16,'MDA3'!L16),W16,AL16))) -> 0 | BK16: =_xlfn.IFS(AND(AU16=0,AV16=0,AW16=0,AX16=0),0,AND(AU16=0,AV16=0,AW16=0,AX16>0),AO16,AND(AU16=0,AV16=0,AW16>0,AX16=0),Z16,AND(AU16=0,AV16=0,AW16>0,AX16>0),MAX(Z16,AO16),AND(AU16=0,AV16>0,AW16=0,AX16=0),MIN(J16*PROFILE!$G$10,MAX('MDA3'!J16,'MDA3'!J16)),AND(AU16=0,AV16>0,AW16=0,AX16>0),MIN(J16*PROFILE!$G$10,MAX('MDA3'!J16,'MDA3'!M16,AO16)),AND(AU16=0,AV16>0,AW16>0,AX16=0),MIN(J16*PROFILE!$G$10,MAX('MDA3'!J16,'MDA3'!M16,Z16)),AND(AU16=0,AV16>0,AW16>0,AX16>0),MIN(J16*PROFILE!$G$10,MAX('MDA3'!J16,'MDA3'!M16,Z16,AO16)),AND(AU16>0,AV16=0,AW16=0,AX16=0), MIN(BB16,MAX('MDA1'!L16,'MDA2'!L16,'MDA5'!L16)),AND(AU16>0,AV16=0,AW16=0,AX16>0), MIN(BB16,MAX('MDA1'!L16,'MDA2'!L16,'MDA5'!L16,AO16)),AND(AU16>0,AV16=0,AW16>0,AX16=0),MIN(BB16,MAX('MDA1'!L16,'MDA2'!L16,'MDA5'!L16,Z16)),AND(AU16>0,AV16=0,AW16>0,AX16>0),MIN(BB16,MAX('MDA1'!L16,'MDA2'!L16,'MDA5'!L16,Z16,AO16)),AND(AU16>0,AV16>0,AW16=0,AX16=0),MIN(BB16, MAX('MDA1'!L16,'MDA2'!L16, 'MDA5'!L16,MAX('MDA3'!J16,'MDA3'!M16))), AND(AU16>0,AV16>0,AW16=0,AX16>0),MIN(BB16, MAX('MDA1'!L16,'MDA2'!L16, 'MDA5'!L16,MAX('MDA3'!J16,'MDA3'!M16),AO16)), AND(AU16>0,AV16>0,AW16>0,AX16=0), MIN(BB16, MAX('MDA1'!L16,'MDA2'!L16, 'MDA5'!L16,MAX('MDA3'!J16,'MDA3'!M16),Z16)), AND(AU16>0,AV16>0,AW16>0,AX16>0), MIN(BB16, MAX('MDA1'!L16,'MDA2'!L16, 'MDA5'!L16,MAX('MDA3'!J16,'MDA3'!M16),Z16,AO16))) -> 0 | BL16: 0 | BM16: 0
A17: =IF(COUNTRY_INFO!A17=0," ",COUNTRY_INFO!A17) -> Togo | B17: =IF(COUNTRY_INFO!B17=0," ",COUNTRY_INFO!B17) -> KARA | C17: =IF(COUNTRY_INFO!C17=0," ",COUNTRY_INFO!C17) -> ASSOLI | D17: =COUNTRY_INFO!L17 -> Non requis | G17: =MAX('MDA1'!M17,'MDA2'!M17,'MDA5'!M17) -> 0 | H17: =IF(AND(COUNTRY_INFO!H17>0,COUNTRY_INFO!H17<4),IF(D17>G17,G17,D17),0) -> 0 | I17: =IF(AND(COUNTRY_INFO!H17>0,COUNTRY_INFO!H17<4), IF(G17/D17*100<>0, IF(G17/D17*100>100,100,G17/D17*100), "-"),0) -> 0 | J17: =COUNTRY_INFO!M17 -> 47459.95044 | K17: 19666 | L17: 20039 | M17: =MAX('MDA1'!M17,MAX('MDA3'!I17,'MDA3'!L17)+MAX('MDA3'!J17,'MDA3'!M17)) -> 39705 | N17: =IF(AND(COUNTRY_INFO!I17>0,COUNTRY_INFO!I17<4),IF(J17>M17,M17,J17),0) -> 39705 | O17: =IF(AND(COUNTRY_INFO!I17>0,COUNTRY_INFO!I17<4), IF(M17/J17*100<>0, IF(M17/J17*100>100,100,M17/J17*100), "-"),0) -> 83.66001151 | P17: =COUNTRY_INFO!Q17 -> 0 | Q17: 10284 | R17: 9962 | S17: =MAX('MDA2'!J17,'MDA5'!J17,'T1'!K17, MAX(T3_R1!J17,T3_R2!J17,T3_R3!J17)) -> 0 | T17: =IF(AND(COUNTRY_INFO!J17>1,COUNTRY_INFO!J17<99,COUNTRY_INFO!J17<>4,COUNTRY_INFO!J17<>5),IF(COUNTRY_INFO!N17>S17,S17,COUNTRY_INFO!N17),0) -> 0 | U17: =IF(AND(COUNTRY_INFO!J17>1,COUNTRY_INFO!J17<99,COUNTRY_INFO!J17<>4,COUNTRY_INFO!J17<>5), IF(T17/COUNTRY_INFO!N17*100<>0, IF(T17/COUNTRY_INFO!N17*100>100,100,T17/COUNTRY_INFO!N17*100), "-"),0) -> 0 | V17: =MAX('MDA1'!K17, 'MDA2'!K17, 'MDA5'!K17,'T1'!L17, MAX(T3_R1!K17,T3_R2!K17,T3_R3!K17)) -> 20246 | W17: =IF(AND(COUNTRY_INFO!J17>1,COUNTRY_INFO!J17<99,COUNTRY_INFO!J17<>4,COUNTRY_INFO!J17<>5),IF(COUNTRY_INFO!O17>V17,V17,COUNTRY_INFO!O17),0) -> 0 | X17: =IF(AND(COUNTRY_INFO!J17>1,COUNTRY_INFO!J17<99,COUNTRY_INFO!J17<>4,COUNTRY_INFO!J17<>5), IF(W17/COUNTRY_INFO!O17*100<>0, IF(W17/COUNTRY_INFO!O17*100>100,100,W17/COUNTRY_INFO!O17*100), "-"),0) -> 0 | Y17: =MAX('MDA1'!L17, 'MDA2'!L17, 'MDA5'!L17,'T1'!M17, MAX(T3_R1!L17,T3_R2!L17,T3_R3!L17)) -> 0 | Z17: =IF(AND(COUNTRY_INFO!J17>1,COUNTRY_INFO!J17<99,COUNTRY_INFO!J17<>4,COUNTRY_INFO!J17<>5),IF(COUNTRY_INFO!P17>Y17,Y17,COUNTRY_INFO!P17),0) -> 0 | AA17: =IF(AND(COUNTRY_INFO!J17>1,COUNTRY_INFO!J17<99,COUNTRY_INFO!J17<>4,COUNTRY_INFO!J17<>5), IF(Z17/COUNTRY_INFO!P17*100<>0, IF(Z17/COUNTRY_INFO!P17*100>100,100,Z17/COUNTRY_INFO!P17*100), "-"),0) -> 0 | AB17: 20246 | AC17: 0 | AD17: =IF(AND(COUNTRY_INFO!J17>1,COUNTRY_INFO!J17<99,COUNTRY_INFO!J17<>4,COUNTRY_INFO!J17<>5), IF(AC17/P17*100<>0, IF(AC17/P17*100>100,100,AC17/P17*100), "-"),0) -> 0 | AE17: =COUNTRY_INFO!U17 -> 32047 | AH17: =MAX('T1'!K17,'T2'!R17) -> 0 | AI17: =IF(AND(COUNTRY_INFO!K17>1,COUNTRY_INFO!K17<99,COUNTRY_INFO!K17<>4,COUNTRY_INFO!K17<>5),IF(COUNTRY_INFO!R17>AH17,AH17,COUNTRY_INFO!R17),0) -> 0 | AJ17: =IF(AND(COUNTRY_INFO!K17>1,COUNTRY_INFO!K17<99,COUNTRY_INFO!K17<>4,COUNTRY_INFO!K17<>5), IF(AI17/COUNTRY_INFO!R17*100<>0, IF(AI17/COUNTRY_INFO!R17*100>100,100,AI17/COUNTRY_INFO!R17*100), "-"),0) -> 0 | AK17: =MAX('T1'!L17,'T2'!S17) -> 14216 | AL17: =IF(AND(COUNTRY_INFO!K17>1,COUNTRY_INFO!K17<99,COUNTRY_INFO!K17<>4,COUNTRY_INFO!K17<>5),IF(COUNTRY_INFO!S17>AK17,AK17,COUNTRY_INFO!S17),0) -> 0 | AM17: =IF(AND(COUNTRY_INFO!K17>1,COUNTRY_INFO!K17<99,COUNTRY_INFO!K17<>4,COUNTRY_INFO!K17<>5), IF(AL17/COUNTRY_INFO!S17*100<>0, IF(AL17/COUNTRY_INFO!S17*100>100,100,AL17/COUNTRY_INFO!S17*100), "-"),0) -> 0 | AN17: =MAX('T1'!M17,'T2'!T17) -> 4608 | AO17: =IF(AND(COUNTRY_INFO!K17>1,COUNTRY_INFO!K17<99,COUNTRY_INFO!K17<>4,COUNTRY_INFO!K17<>5),IF(COUNTRY_INFO!T17>AN17,AN17,COUNTRY_INFO!T17),0) -> 0 | AP17: =IF(AND(COUNTRY_INFO!K17>1,COUNTRY_INFO!K17<99,COUNTRY_INFO!K17<>4,COUNTRY_INFO!K17<>5), IF(AO17/COUNTRY_INFO!T17*100<>0, IF(AO17/COUNTRY_INFO!T17*100>100,100,AO17/COUNTRY_INFO!T17*100), "-"),0) -> 0 | AQ17: 18824 | AR17: 18824 | AS17: 58.73872749 | AU17: =IF(AND(D17<>0, D17<>"Inconnu",D17<>"Interrompu",D17<>"Non requis"),D17/COUNTRY_INFO!D17, 0) -> 0 | AV17: =IF(AND(J17<>0,J17<>"Inconnu",J17<>"Interrompu",J17<>"Non requis"),J17/COUNTRY_INFO!D17, 0) -> 0.7232640625 | AW17: =IF(AND(P17<>0,P17<>"Inconnu",P17<>"Surveillance",P17<>"Non requis"),P17/COUNTRY_INFO!Q17, 0) -> 0 | AX17: =IF(AND(AE17<>0,AE17<>"Inconnu",AE17<>"Surveillance",AE17<>"Non requis"),AE17/COUNTRY_INFO!U17, 0) -> 1 | AY17: =IF(AU17>0,D17*PROFILE!$G$7,IF(AV17>0,J17*PROFILE!$G$7,0)) -> 1898.402849 | AZ17: =_xlfn.IFS(OR(AU17>0,AW17>0),COUNTRY_INFO!E17, AV17>0,J17*PROFILE!$G$8,AX17>0,COUNTRY_INFO!R17,COUNTIFS(AU17:AX17,">0")=0,0) -> 7593.586418 | BA17: =_xlfn.IFS(OR(AU17>0,AW17>0),COUNTRY_INFO!F17, AV17>0,J17*PROFILE!$G$9,AX17>0,COUNTRY_INFO!S17,COUNTIFS(AU17:AX17,">0")=0,0) -> 14237.97671 | BB17: =_xlfn.IFS(AU17>0,COUNTRY_INFO!G17, AND(AV17>0,AW17=0,AX17=0),J17*PROFILE!$G$10,AND(AV17>0,AW17>0,AX17=0), MAX(J17*PROFILE!$G$10,COUNTRY_INFO!P17),AND(AV17>0,AW17=0,AX17>0), MAX(J17*PROFILE!$G$10,COUNTRY_INFO!T17),AND(AV17=0,AW17>0,AX17>0), MAX(COUNTRY_INFO!P17,COUNTRY_INFO!T17),AND(AV17=0,AW17>0,AX17=0),COUNTRY_INFO!P17,AND(AV17=0,AW17=0,AX17>0),COUNTRY_INFO!T17,AND(AV17>0,AW17>0,AX17>0), MAX(J17*PROFILE!$G$10,COUNTRY_INFO!P17,COUNTRY_INFO!T17),COUNTIFS(AU17:AX17,">0")=0,0) -> 23729.98446 | BC17: 47459.95044 | BD17: Y | BE17: =MAX('MDA2'!J17,'MDA5'!J17,S17,AH17) -> 0 | BF17: =MAX('MDA1'!K17,'MDA2'!K17,'MDA3'!I17,'MDA3'!L17,'MDA5'!K17,V17,AK17) -> 20246 | BG17: =MAX('MDA1'!L17,'MDA2'!L17,'MDA3'!J17,'MDA3'!M17,'MDA5'!L17,Y17,AN17) -> 24873 | BH17: 45119 | BI17: =_xlfn.IFS(AND(AU17=0,AW17=0,AX17=0),0,AND(AU17=0,AW17=0,AX17>0),AI17,AND(AU17=0,AW17>0,AX17=0),T17,AND(AU17=0,AW17>0,AX17>0),MAX(T17,AI17),AND(AU17>0,AW17=0,AX17=0),MIN(MAX('MDA2'!J17,'MDA5'!J17),AZ17),AND(AU17>0,AW17=0,AX17>0),MIN(MAX('MDA2'!J17,'MDA5'!J17,AI17),AZ17),AND(AU17>0,AW17>0,AX17=0),MIN(MAX('MDA2'!J17,'MDA5'!J17,T17),AZ17),AND(AU17>0,AW17>0,AX17>0),MIN(MAX('MDA2'!J17,'MDA5'!J17,AI17,T17),AZ17)) -> 0 | BJ17: =_xlfn.IFS(AND(AU17=0,AV17=0,AW17=0,AX17=0),0,AND(AU17=0,AV17=0,AW17=0,AX17>0),AL17,AND(AU17=0,AV17=0,AW17>0,AX17=0),W17,AND(AU17=0,AV17=0,AW17>0,AX17>0),MAX(W17,AL17),AND(AU17=0,AV17>0,AW17=0,AX17=0),MIN(J17*PROFILE!$G$9,MAX('MDA3'!I17,'MDA3'!L17)),AND(AU17=0,AV17>0,AW17=0,AX17>0),MIN(J17*PROFILE!$G$9,MAX('MDA3'!I17,'MDA3'!L17,AL17)),AND(AU17=0,AV17>0,AW17>0,AX17=0),MIN(J17*PROFILE!$G$9,MAX('MDA3'!I17,'MDA3'!L17,W17)),AND(AU17=0,AV17>0,AW17>0,AX17>0),MIN(J17*PROFILE!$G$9,MAX('MDA3'!I17,'MDA3'!L17,W17,AL17)),AND(AU17>0,AV17=0,AW17=0,AX17=0), MIN(BA17,MAX('MDA1'!K17,'MDA2'!K17,'MDA5'!K17)),AND(AU17>0,AV17=0,AW17=0,AX17>0), MIN(BA17,MAX('MDA1'!K17,'MDA2'!K17,'MDA5'!K17,AL17)),AND(AU17>0,AV17=0,AW17>0,AX17=0),MIN(BA17,MAX('MDA1'!K17,'MDA2'!KL17,'MDA5'!K17,W17)),AND(AU17>0,AV17=0,AW17>0,AX17>0),MIN(BA17,MAX('MDA1'!K17,'MDA2'!K17,'MDA5'!K17,W17,AL17)),AND(AU17>0,AV17>0,AW17=0,AX17=0),MIN(BA17, MAX('MDA1'!K17,'MDA2'!K17, 'MDA5'!K17,MAX('MDA3'!I17,'MDA3'!L17))), AND(AU17>0,AV17>0,AW17=0,AX17>0),MIN(BA17, MAX('MDA1'!K17,'MDA2'!K17, 'MDA5'!K17,MAX('MDA3'!I17,'MDA3'!L17),AL17)), AND(AU17>0,AV17>0,AW17>0,AX17=0), MIN(BA17, MAX('MDA1'!K17,'MDA2'!K17, 'MDA5'!K17,MAX('MDA3'!I17,'MDA3'!L17),W17)), AND(AU17>0,AV17>0,AW17>0,AX17>0), MIN(BA17, MAX('MDA1'!K17,'MDA2'!K17, 'MDA5'!K17,MAX('MDA3'!I17,'MDA3'!L17),W17,AL17))) -> 14237.97671 | BK17: =_xlfn.IFS(AND(AU17=0,AV17=0,AW17=0,AX17=0),0,AND(AU17=0,AV17=0,AW17=0,AX17>0),AO17,AND(AU17=0,AV17=0,AW17>0,AX17=0),Z17,AND(AU17=0,AV17=0,AW17>0,AX17>0),MAX(Z17,AO17),AND(AU17=0,AV17>0,AW17=0,AX17=0),MIN(J17*PROFILE!$G$10,MAX('MDA3'!J17,'MDA3'!J17)),AND(AU17=0,AV17>0,AW17=0,AX17>0),MIN(J17*PROFILE!$G$10,MAX('MDA3'!J17,'MDA3'!M17,AO17)),AND(AU17=0,AV17>0,AW17>0,AX17=0),MIN(J17*PROFILE!$G$10,MAX('MDA3'!J17,'MDA3'!M17,Z17)),AND(AU17=0,AV17>0,AW17>0,AX17>0),MIN(J17*PROFILE!$G$10,MAX('MDA3'!J17,'MDA3'!M17,Z17,AO17)),AND(AU17>0,AV17=0,AW17=0,AX17=0), MIN(BB17,MAX('MDA1'!L17,'MDA2'!L17,'MDA5'!L17)),AND(AU17>0,AV17=0,AW17=0,AX17>0), MIN(BB17,MAX('MDA1'!L17,'MDA2'!L17,'MDA5'!L17,AO17)),AND(AU17>0,AV17=0,AW17>0,AX17=0),MIN(BB17,MAX('MDA1'!L17,'MDA2'!L17,'MDA5'!L17,Z17)),AND(AU17>0,AV17=0,AW17>0,AX17>0),MIN(BB17,MAX('MDA1'!L17,'MDA2'!L17,'MDA5'!L17,Z17,AO17)),AND(AU17>0,AV17>0,AW17=0,AX17=0),MIN(BB17, MAX('MDA1'!L17,'MDA2'!L17, 'MDA5'!L17,MAX('MDA3'!J17,'MDA3'!M17))), AND(AU17>0,AV17>0,AW17=0,AX17>0),MIN(BB17, MAX('MDA1'!L17,'MDA2'!L17, 'MDA5'!L17,MAX('MDA3'!J17,'MDA3'!M17),AO17)), AND(AU17>0,AV17>0,AW17>0,AX17=0), MIN(BB17, MAX('MDA1'!L17,'MDA2'!L17, 'MDA5'!L17,MAX('MDA3'!J17,'MDA3'!M17),Z17)), AND(AU17>0,AV17>0,AW17>0,AX17>0), MIN(BB17, MAX('MDA1'!L17,'MDA2'!L17, 'MDA5'!L17,MAX('MDA3'!J17,'MDA3'!M17),Z17,AO17))) -> 23729.98446 | BL17: 37967.96117 | BM17: 80.00000173
A18: =IF(COUNTRY_INFO!A18=0," ",COUNTRY_INFO!A18) -> Togo | B18: =IF(COUNTRY_INFO!B18=0," ",COUNTRY_INFO!B18) -> KARA | C18: =IF(COUNTRY_INFO!C18=0," ",COUNTRY_INFO!C18) -> BASSAR | D18: =COUNTRY_INFO!L18 -> Non requis | G18: =MAX('MDA1'!M18,'MDA2'!M18,'MDA5'!M18) -> 0 | H18: =IF(AND(COUNTRY_INFO!H18>0,COUNTRY_INFO!H18<4),IF(D18>G18,G18,D18),0) -> 0 | I18: =IF(AND(COUNTRY_INFO!H18>0,COUNTRY_INFO!H18<4), IF(G18/D18*100<>0, IF(G18/D18*100>100,100,G18/D18*100), "-"),0) -> 0 | J18: =COUNTRY_INFO!M18 -> 110286.2159 | K18: 44118 | L18: 44830 | M18: =MAX('MDA1'!M18,MAX('MDA3'!I18,'MDA3'!L18)+MAX('MDA3'!J18,'MDA3'!M18)) -> 88948 | N18: =IF(AND(COUNTRY_INFO!I18>0,COUNTRY_INFO!I18<4),IF(J18>M18,M18,J18),0) -> 88948 | O18: =IF(AND(COUNTRY_INFO!I18>0,COUNTRY_INFO!I18<4), IF(M18/J18*100<>0, IF(M18/J18*100>100,100,M18/J18*100), "-"),0) -> 80.65196476 | P18: =COUNTRY_INFO!Q18 -> 72839 | Q18: 24206 | R18: 24089 | S18: =MAX('MDA2'!J18,'MDA5'!J18,'T1'!K18, MAX(T3_R1!J18,T3_R2!J18,T3_R3!J18)) -> 0 | T18: =IF(AND(COUNTRY_INFO!J18>1,COUNTRY_INFO!J18<99,COUNTRY_INFO!J18<>4,COUNTRY_INFO!J18<>5),IF(COUNTRY_INFO!N18>S18,S18,COUNTRY_INFO!N18),0) -> 0 | U18: =IF(AND(COUNTRY_INFO!J18>1,COUNTRY_INFO!J18<99,COUNTRY_INFO!J18<>4,COUNTRY_INFO!J18<>5), IF(T18/COUNTRY_INFO!N18*100<>0, IF(T18/COUNTRY_INFO!N18*100>100,100,T18/COUNTRY_INFO!N18*100), "-"),0) -> - | V18: =MAX('MDA1'!K18, 'MDA2'!K18, 'MDA5'!K18,'T1'!L18, MAX(T3_R1!K18,T3_R2!K18,T3_R3!K18)) -> 48295 | W18: =IF(AND(COUNTRY_INFO!J18>1,COUNTRY_INFO!J18<99,COUNTRY_INFO!J18<>4,COUNTRY_INFO!J18<>5),IF(COUNTRY_INFO!O18>V18,V18,COUNTRY_INFO!O18),0) -> 47504 | X18: =IF(AND(COUNTRY_INFO!J18>1,COUNTRY_INFO!J18<99,COUNTRY_INFO!J18<>4,COUNTRY_INFO!J18<>5), IF(W18/COUNTRY_INFO!O18*100<>0, IF(W18/COUNTRY_INFO!O18*100>100,100,W18/COUNTRY_INFO!O18*100), "-"),0) -> 100 | Y18: =MAX('MDA1'!L18, 'MDA2'!L18, 'MDA5'!L18,'T1'!M18, MAX(T3_R1!L18,T3_R2!L18,T3_R3!L18)) -> 0 | Z18: =IF(AND(COUNTRY_INFO!J18>1,COUNTRY_INFO!J18<99,COUNTRY_INFO!J18<>4,COUNTRY_INFO!J18<>5),IF(COUNTRY_INFO!P18>Y18,Y18,COUNTRY_INFO!P18),0) -> 0 | AA18: =IF(AND(COUNTRY_INFO!J18>1,COUNTRY_INFO!J18<99,COUNTRY_INFO!J18<>4,COUNTRY_INFO!J18<>5), IF(Z18/COUNTRY_INFO!P18*100<>0, IF(Z18/COUNTRY_INFO!P18*100>100,100,Z18/COUNTRY_INFO!P18*100), "-"),0) ->  | AB18: 48295 | AC18: 47504 | AD18: =IF(AND(COUNTRY_INFO!J18>1,COUNTRY_INFO!J18<99,COUNTRY_INFO!J18<>4,COUNTRY_INFO!J18<>5), IF(AC18/P18*100<>0, IF(AC18/P18*100>100,100,AC18/P18*100), "-"),0) -> 65.21780914 | AE18: =COUNTRY_INFO!U18 -> 91719 | AH18: =MAX('T1'!K18,'T2'!R18) -> 0 | AI18: =IF(AND(COUNTRY_INFO!K18>1,COUNTRY_INFO!K18<99,COUNTRY_INFO!K18<>4,COUNTRY_INFO!K18<>5),IF(COUNTRY_INFO!R18>AH18,AH18,COUNTRY_INFO!R18),0) -> 0 | AJ18: =IF(AND(COUNTRY_INFO!K18>1,COUNTRY_INFO!K18<99,COUNTRY_INFO!K18<>4,COUNTRY_INFO!K18<>5), IF(AI18/COUNTRY_INFO!R18*100<>0, IF(AI18/COUNTRY_INFO!R18*100>100,100,AI18/COUNTRY_INFO!R18*100), "-"),0) ->  | AK18: =MAX('T1'!L18,'T2'!S18) -> 38621 | AL18: =IF(AND(COUNTRY_INFO!K18>1,COUNTRY_INFO!K18<99,COUNTRY_INFO!K18<>4,COUNTRY_INFO!K18<>5),IF(COUNTRY_INFO!S18>AK18,AK18,COUNTRY_INFO!S18),0) -> 0 | AM18: =IF(AND(COUNTRY_INFO!K18>1,COUNTRY_INFO!K18<99,COUNTRY_INFO!K18<>4,COUNTRY_INFO!K18<>5), IF(AL18/COUNTRY_INFO!S18*100<>0, IF(AL18/COUNTRY_INFO!S18*100>100,100,AL18/COUNTRY_INFO!S18*100), "-"),0) ->  | AN18: =MAX('T1'!M18,'T2'!T18) -> 7505 | AO18: =IF(AND(COUNTRY_INFO!K18>1,COUNTRY_INFO!K18<99,COUNTRY_INFO!K18<>4,COUNTRY_INFO!K18<>5),IF(COUNTRY_INFO!T18>AN18,AN18,COUNTRY_INFO!T18),0) -> 0 | AP18: =IF(AND(COUNTRY_INFO!K18>1,COUNTRY_INFO!K18<99,COUNTRY_INFO!K18<>4,COUNTRY_INFO!K18<>5), IF(AO18/COUNTRY_INFO!T18*100<>0, IF(AO18/COUNTRY_INFO!T18*100>100,100,AO18/COUNTRY_INFO!T18*100), "-"),0) ->  | AQ18: 46126 | AR18: 46126 | AS18: 50.29056139 | AU18: =IF(AND(D18<>0, D18<>"Inconnu",D18<>"Interrompu",D18<>"Non requis"),D18/COUNTRY_INFO!D18, 0) -> 0 | AV18: =IF(AND(J18<>0,J18<>"Inconnu",J18<>"Interrompu",J18<>"Non requis"),J18/COUNTRY_INFO!D18, 0) -> 0.6964895362 | AW18: =IF(AND(P18<>0,P18<>"Inconnu",P18<>"Surveillance",P18<>"Non requis"),P18/COUNTRY_INFO!Q18, 0) -> 1 | AX18: =IF(AND(AE18<>0,AE18<>"Inconnu",AE18<>"Surveillance",AE18<>"Non requis"),AE18/COUNTRY_INFO!U18, 0) -> 1 | AY18: =IF(AU18>0,D18*PROFILE!$G$7,IF(AV18>0,J18*PROFILE!$G$7,0)) -> 4411.459865 | AZ18: =_xlfn.IFS(OR(AU18>0,AW18>0),COUNTRY_INFO!E18, AV18>0,J18*PROFILE!$G$8,AX18>0,COUNTRY_INFO!R18,COUNTIFS(AU18:AX18,">0")=0,0) -> 25335 | BA18: =_xlfn.IFS(OR(AU18>0,AW18>0),COUNTRY_INFO!F18, AV18>0,J18*PROFILE!$G$9,AX18>0,COUNTRY_INFO!S18,COUNTIFS(AU18:AX18,">0")=0,0) -> 47504 | BB18: =_xlfn.IFS(AU18>0,COUNTRY_INFO!G18, AND(AV18>0,AW18=0,AX18=0),J18*PROFILE!$G$10,AND(AV18>0,AW18>0,AX18=0), MAX(J18*PROFILE!$G$10,COUNTRY_INFO!P18),AND(AV18>0,AW18=0,AX18>0), MAX(J18*PROFILE!$G$10,COUNTRY_INFO!T18),AND(AV18=0,AW18>0,AX18>0), MAX(COUNTRY_INFO!P18,COUNTRY_INFO!T18),AND(AV18=0,AW18>0,AX18=0),COUNTRY_INFO!P18,AND(AV18=0,AW18=0,AX18>0),COUNTRY_INFO!T18,AND(AV18>0,AW18>0,AX18>0), MAX(J18*PROFILE!$G$10,COUNTRY_INFO!P18,COUNTRY_INFO!T18),COUNTIFS(AU18:AX18,">0")=0,0) -> 55143.12943 | BC18: 132393.5893 | BD18: Y | BE18: =MAX('MDA2'!J18,'MDA5'!J18,S18,AH18) -> 0 | BF18: =MAX('MDA1'!K18,'MDA2'!K18,'MDA3'!I18,'MDA3'!L18,'MDA5'!K18,V18,AK18) -> 48295 | BG18: =MAX('MDA1'!L18,'MDA2'!L18,'MDA3'!J18,'MDA3'!M18,'MDA5'!L18,Y18,AN18) -> 55742 | BH18: 104037 | BI18: =_xlfn.IFS(AND(AU18=0,AW18=0,AX18=0),0,AND(AU18=0,AW18=0,AX18>0),AI18,AND(AU18=0,AW18>0,AX18=0),T18,AND(AU18=0,AW18>0,AX18>0),MAX(T18,AI18),AND(AU18>0,AW18=0,AX18=0),MIN(MAX('MDA2'!J18,'MDA5'!J18),AZ18),AND(AU18>0,AW18=0,AX18>0),MIN(MAX('MDA2'!J18,'MDA5'!J18,AI18),AZ18),AND(AU18>0,AW18>0,AX18=0),MIN(MAX('MDA2'!J18,'MDA5'!J18,T18),AZ18),AND(AU18>0,AW18>0,AX18>0),MIN(MAX('MDA2'!J18,'MDA5'!J18,AI18,T18),AZ18)) -> 0 | BJ18: =_xlfn.IFS(AND(AU18=0,AV18=0,AW18=0,AX18=0),0,AND(AU18=0,AV18=0,AW18=0,AX18>0),AL18,AND(AU18=0,AV18=0,AW18>0,AX18=0),W18,AND(AU18=0,AV18=0,AW18>0,AX18>0),MAX(W18,AL18),AND(AU18=0,AV18>0,AW18=0,AX18=0),MIN(J18*PROFILE!$G$9,MAX('MDA3'!I18,'MDA3'!L18)),AND(AU18=0,AV18>0,AW18=0,AX18>0),MIN(J18*PROFILE!$G$9,MAX('MDA3'!I18,'MDA3'!L18,AL18)),AND(AU18=0,AV18>0,AW18>0,AX18=0),MIN(J18*PROFILE!$G$9,MAX('MDA3'!I18,'MDA3'!L18,W18)),AND(AU18=0,AV18>0,AW18>0,AX18>0),MIN(J18*PROFILE!$G$9,MAX('MDA3'!I18,'MDA3'!L18,W18,AL18)),AND(AU18>0,AV18=0,AW18=0,AX18=0), MIN(BA18,MAX('MDA1'!K18,'MDA2'!K18,'MDA5'!K18)),AND(AU18>0,AV18=0,AW18=0,AX18>0), MIN(BA18,MAX('MDA1'!K18,'MDA2'!K18,'MDA5'!K18,AL18)),AND(AU18>0,AV18=0,AW18>0,AX18=0),MIN(BA18,MAX('MDA1'!K18,'MDA2'!KL18,'MDA5'!K18,W18)),AND(AU18>0,AV18=0,AW18>0,AX18>0),MIN(BA18,MAX('MDA1'!K18,'MDA2'!K18,'MDA5'!K18,W18,AL18)),AND(AU18>0,AV18>0,AW18=0,AX18=0),MIN(BA18, MAX('MDA1'!K18,'MDA2'!K18, 'MDA5'!K18,MAX('MDA3'!I18,'MDA3'!L18))), AND(AU18>0,AV18>0,AW18=0,AX18>0),MIN(BA18, MAX('MDA1'!K18,'MDA2'!K18, 'MDA5'!K18,MAX('MDA3'!I18,'MDA3'!L18),AL18)), AND(AU18>0,AV18>0,AW18>0,AX18=0), MIN(BA18, MAX('MDA1'!K18,'MDA2'!K18, 'MDA5'!K18,MAX('MDA3'!I18,'MDA3'!L18),W18)), AND(AU18>0,AV18>0,AW18>0,AX18>0), MIN(BA18, MAX('MDA1'!K18,'MDA2'!K18, 'MDA5'!K18,MAX('MDA3'!I18,'MDA3'!L18),W18,AL18))) -> 33085.84522 | BK18: =_xlfn.IFS(AND(AU18=0,AV18=0,AW18=0,AX18=0),0,AND(AU18=0,AV18=0,AW18=0,AX18>0),AO18,AND(AU18=0,AV18=0,AW18>0,AX18=0),Z18,AND(AU18=0,AV18=0,AW18>0,AX18>0),MAX(Z18,AO18),AND(AU18=0,AV18>0,AW18=0,AX18=0),MIN(J18*PROFILE!$G$10,MAX('MDA3'!J18,'MDA3'!J18)),AND(AU18=0,AV18>0,AW18=0,AX18>0),MIN(J18*PROFILE!$G$10,MAX('MDA3'!J18,'MDA3'!M18,AO18)),AND(AU18=0,AV18>0,AW18>0,AX18=0),MIN(J18*PROFILE!$G$10,MAX('MDA3'!J18,'MDA3'!M18,Z18)),AND(AU18=0,AV18>0,AW18>0,AX18>0),MIN(J18*PROFILE!$G$10,MAX('MDA3'!J18,'MDA3'!M18,Z18,AO18)),AND(AU18>0,AV18=0,AW18=0,AX18=0), MIN(BB18,MAX('MDA1'!L18,'MDA2'!L18,'MDA5'!L18)),AND(AU18>0,AV18=0,AW18=0,AX18>0), MIN(BB18,MAX('MDA1'!L18,'MDA2'!L18,'MDA5'!L18,AO18)),AND(AU18>0,AV18=0,AW18>0,AX18=0),MIN(BB18,MAX('MDA1'!L18,'MDA2'!L18,'MDA5'!L18,Z18)),AND(AU18>0,AV18=0,AW18>0,AX18>0),MIN(BB18,MAX('MDA1'!L18,'MDA2'!L18,'MDA5'!L18,Z18,AO18)),AND(AU18>0,AV18>0,AW18=0,AX18=0),MIN(BB18, MAX('MDA1'!L18,'MDA2'!L18, 'MDA5'!L18,MAX('MDA3'!J18,'MDA3'!M18))), AND(AU18>0,AV18>0,AW18=0,AX18>0),MIN(BB18, MAX('MDA1'!L18,'MDA2'!L18, 'MDA5'!L18,MAX('MDA3'!J18,'MDA3'!M18),AO18)), AND(AU18>0,AV18>0,AW18>0,AX18=0), MIN(BB18, MAX('MDA1'!L18,'MDA2'!L18, 'MDA5'!L18,MAX('MDA3'!J18,'MDA3'!M18),Z18)), AND(AU18>0,AV18>0,AW18>0,AX18>0), MIN(BB18, MAX('MDA1'!L18,'MDA2'!L18, 'MDA5'!L18,MAX('MDA3'!J18,'MDA3'!M18),Z18,AO18))) -> 55143.12943 | BL18: 88228.97464 | BM18: 66.6414251
A19: =IF(COUNTRY_INFO!A19=0," ",COUNTRY_INFO!A19) -> Togo | B19: =IF(COUNTRY_INFO!B19=0," ",COUNTRY_INFO!B19) -> KARA | C19: =IF(COUNTRY_INFO!C19=0," ",COUNTRY_INFO!C19) -> BINAH | D19: =COUNTRY_INFO!L19 -> Non requis | G19: =MAX('MDA1'!M19,'MDA2'!M19,'MDA5'!M19) -> 0 | H19: =IF(AND(COUNTRY_INFO!H19>0,COUNTRY_INFO!H19<4),IF(D19>G19,G19,D19),0) -> 0 | I19: =IF(AND(COUNTRY_INFO!H19>0,COUNTRY_INFO!H19<4), IF(G19/D19*100<>0, IF(G19/D19*100>100,100,G19/D19*100), "-"),0) -> 0 | J19: =COUNTRY_INFO!M19 -> 53663.01553 | K19: 21269 | L19: 21205 | M19: =MAX('MDA1'!M19,MAX('MDA3'!I19,'MDA3'!L19)+MAX('MDA3'!J19,'MDA3'!M19)) -> 42474 | N19: =IF(AND(COUNTRY_INFO!I19>0,COUNTRY_INFO!I19<4),IF(J19>M19,M19,J19),0) -> 42474 | O19: =IF(AND(COUNTRY_INFO!I19>0,COUNTRY_INFO!I19<4), IF(M19/J19*100<>0, IF(M19/J19*100>100,100,M19/J19*100), "-"),0) -> 79.14948421 | P19: =COUNTRY_INFO!Q19 -> 36719 | Q19: 12109 | R19: 11178 | S19: =MAX('MDA2'!J19,'MDA5'!J19,'T1'!K19, MAX(T3_R1!J19,T3_R2!J19,T3_R3!J19)) -> 0 | T19: =IF(AND(COUNTRY_INFO!J19>1,COUNTRY_INFO!J19<99,COUNTRY_INFO!J19<>4,COUNTRY_INFO!J19<>5),IF(COUNTRY_INFO!N19>S19,S19,COUNTRY_INFO!N19),0) -> 0 | U19: =IF(AND(COUNTRY_INFO!J19>1,COUNTRY_INFO!J19<99,COUNTRY_INFO!J19<>4,COUNTRY_INFO!J19<>5), IF(T19/COUNTRY_INFO!N19*100<>0, IF(T19/COUNTRY_INFO!N19*100>100,100,T19/COUNTRY_INFO!N19*100), "-"),0) -> - | V19: =MAX('MDA1'!K19, 'MDA2'!K19, 'MDA5'!K19,'T1'!L19, MAX(T3_R1!K19,T3_R2!K19,T3_R3!K19)) -> 23287 | W19: =IF(AND(COUNTRY_INFO!J19>1,COUNTRY_INFO!J19<99,COUNTRY_INFO!J19<>4,COUNTRY_INFO!J19<>5),IF(COUNTRY_INFO!O19>V19,V19,COUNTRY_INFO!O19),0) -> 23287 | X19: =IF(AND(COUNTRY_INFO!J19>1,COUNTRY_INFO!J19<99,COUNTRY_INFO!J19<>4,COUNTRY_INFO!J19<>5), IF(W19/COUNTRY_INFO!O19*100<>0, IF(W19/COUNTRY_INFO!O19*100>100,100,W19/COUNTRY_INFO!O19*100), "-"),0) -> 97.24391364 | Y19: =MAX('MDA1'!L19, 'MDA2'!L19, 'MDA5'!L19,'T1'!M19, MAX(T3_R1!L19,T3_R2!L19,T3_R3!L19)) -> 0 | Z19: =IF(AND(COUNTRY_INFO!J19>1,COUNTRY_INFO!J19<99,COUNTRY_INFO!J19<>4,COUNTRY_INFO!J19<>5),IF(COUNTRY_INFO!P19>Y19,Y19,COUNTRY_INFO!P19),0) -> 0 | AA19: =IF(AND(COUNTRY_INFO!J19>1,COUNTRY_INFO!J19<99,COUNTRY_INFO!J19<>4,COUNTRY_INFO!J19<>5), IF(Z19/COUNTRY_INFO!P19*100<>0, IF(Z19/COUNTRY_INFO!P19*100>100,100,Z19/COUNTRY_INFO!P19*100), "-"),0) ->  | AB19: 23287 | AC19: 23287 | AD19: =IF(AND(COUNTRY_INFO!J19>1,COUNTRY_INFO!J19<99,COUNTRY_INFO!J19<>4,COUNTRY_INFO!J19<>5), IF(AC19/P19*100<>0, IF(AC19/P19*100>100,100,AC19/P19*100), "-"),0) -> 63.4194831 | AE19: =COUNTRY_INFO!U19 -> 52728 | AH19: =MAX('T1'!K19,'T2'!R19) -> 0 | AI19: =IF(AND(COUNTRY_INFO!K19>1,COUNTRY_INFO!K19<99,COUNTRY_INFO!K19<>4,COUNTRY_INFO!K19<>5),IF(COUNTRY_INFO!R19>AH19,AH19,COUNTRY_INFO!R19),0) -> 0 | AJ19: =IF(AND(COUNTRY_INFO!K19>1,COUNTRY_INFO!K19<99,COUNTRY_INFO!K19<>4,COUNTRY_INFO!K19<>5), IF(AI19/COUNTRY_INFO!R19*100<>0, IF(AI19/COUNTRY_INFO!R19*100>100,100,AI19/COUNTRY_INFO!R19*100), "-"),0) ->  | AK19: =MAX('T1'!L19,'T2'!S19) -> 23287 | AL19: =IF(AND(COUNTRY_INFO!K19>1,COUNTRY_INFO!K19<99,COUNTRY_INFO!K19<>4,COUNTRY_INFO!K19<>5),IF(COUNTRY_INFO!S19>AK19,AK19,COUNTRY_INFO!S19),0) -> 0 | AM19: =IF(AND(COUNTRY_INFO!K19>1,COUNTRY_INFO!K19<99,COUNTRY_INFO!K19<>4,COUNTRY_INFO!K19<>5), IF(AL19/COUNTRY_INFO!S19*100<>0, IF(AL19/COUNTRY_INFO!S19*100>100,100,AL19/COUNTRY_INFO!S19*100), "-"),0) ->  | AN19: =MAX('T1'!M19,'T2'!T19) -> 16045 | AO19: =IF(AND(COUNTRY_INFO!K19>1,COUNTRY_INFO!K19<99,COUNTRY_INFO!K19<>4,COUNTRY_INFO!K19<>5),IF(COUNTRY_INFO!T19>AN19,AN19,COUNTRY_INFO!T19),0) -> 0 | AP19: =IF(AND(COUNTRY_INFO!K19>1,COUNTRY_INFO!K19<99,COUNTRY_INFO!K19<>4,COUNTRY_INFO!K19<>5), IF(AO19/COUNTRY_INFO!T19*100<>0, IF(AO19/COUNTRY_INFO!T19*100>100,100,AO19/COUNTRY_INFO!T19*100), "-"),0) ->  | AQ19: 39332 | AR19: 39332 | AS19: 74.59414353 | AU19: =IF(AND(D19<>0, D19<>"Inconnu",D19<>"Interrompu",D19<>"Non requis"),D19/COUNTRY_INFO!D19, 0) -> 0 | AV19: =IF(AND(J19<>0,J19<>"Inconnu",J19<>"Interrompu",J19<>"Non requis"),J19/COUNTRY_INFO!D19, 0) -> 0.6722632447 | AW19: =IF(AND(P19<>0,P19<>"Inconnu",P19<>"Surveillance",P19<>"Non requis"),P19/COUNTRY_INFO!Q19, 0) -> 1 | AX19: =IF(AND(AE19<>0,AE19<>"Inconnu",AE19<>"Surveillance",AE19<>"Non requis"),AE19/COUNTRY_INFO!U19, 0) -> 1 | AY19: =IF(AU19>0,D19*PROFILE!$G$7,IF(AV19>0,J19*PROFILE!$G$7,0)) -> 2146.526084 | AZ19: =_xlfn.IFS(OR(AU19>0,AW19>0),COUNTRY_INFO!E19, AV19>0,J19*PROFILE!$G$8,AX19>0,COUNTRY_INFO!R19,COUNTIFS(AU19:AX19,">0")=0,0) -> 12772 | BA19: =_xlfn.IFS(OR(AU19>0,AW19>0),COUNTRY_INFO!F19, AV19>0,J19*PROFILE!$G$9,AX19>0,COUNTRY_INFO!S19,COUNTIFS(AU19:AX19,">0")=0,0) -> 23947 | BB19: =_xlfn.IFS(AU19>0,COUNTRY_INFO!G19, AND(AV19>0,AW19=0,AX19=0),J19*PROFILE!$G$10,AND(AV19>0,AW19>0,AX19=0), MAX(J19*PROFILE!$G$10,COUNTRY_INFO!P19),AND(AV19>0,AW19=0,AX19>0), MAX(J19*PROFILE!$G$10,COUNTRY_INFO!T19),AND(AV19=0,AW19>0,AX19>0), MAX(COUNTRY_INFO!P19,COUNTRY_INFO!T19),AND(AV19=0,AW19>0,AX19=0),COUNTRY_INFO!P19,AND(AV19=0,AW19=0,AX19>0),COUNTRY_INFO!T19,AND(AV19>0,AW19>0,AX19>0), MAX(J19*PROFILE!$G$10,COUNTRY_INFO!P19,COUNTRY_INFO!T19),COUNTIFS(AU19:AX19,">0")=0,0) -> 26831.51821 | BC19: 65697.04429 | BD19: Y | BE19: =MAX('MDA2'!J19,'MDA5'!J19,S19,AH19) -> 0 | BF19: =MAX('MDA1'!K19,'MDA2'!K19,'MDA3'!I19,'MDA3'!L19,'MDA5'!K19,V19,AK19) -> 23287 | BG19: =MAX('MDA1'!L19,'MDA2'!L19,'MDA3'!J19,'MDA3'!M19,'MDA5'!L19,Y19,AN19) -> 27068 | BH19: 50355 | BI19: =_xlfn.IFS(AND(AU19=0,AW19=0,AX19=0),0,AND(AU19=0,AW19=0,AX19>0),AI19,AND(AU19=0,AW19>0,AX19=0),T19,AND(AU19=0,AW19>0,AX19>0),MAX(T19,AI19),AND(AU19>0,AW19=0,AX19=0),MIN(MAX('MDA2'!J19,'MDA5'!J19),AZ19),AND(AU19>0,AW19=0,AX19>0),MIN(MAX('MDA2'!J19,'MDA5'!J19,AI19),AZ19),AND(AU19>0,AW19>0,AX19=0),MIN(MAX('MDA2'!J19,'MDA5'!J19,T19),AZ19),AND(AU19>0,AW19>0,AX19>0),MIN(MAX('MDA2'!J19,'MDA5'!J19,AI19,T19),AZ19)) -> 0 | BJ19: =_xlfn.IFS(AND(AU19=0,AV19=0,AW19=0,AX19=0),0,AND(AU19=0,AV19=0,AW19=0,AX19>0),AL19,AND(AU19=0,AV19=0,AW19>0,AX19=0),W19,AND(AU19=0,AV19=0,AW19>0,AX19>0),MAX(W19,AL19),AND(AU19=0,AV19>0,AW19=0,AX19=0),MIN(J19*PROFILE!$G$9,MAX('MDA3'!I19,'MDA3'!L19)),AND(AU19=0,AV19>0,AW19=0,AX19>0),MIN(J19*PROFILE!$G$9,MAX('MDA3'!I19,'MDA3'!L19,AL19)),AND(AU19=0,AV19>0,AW19>0,AX19=0),MIN(J19*PROFILE!$G$9,MAX('MDA3'!I19,'MDA3'!L19,W19)),AND(AU19=0,AV19>0,AW19>0,AX19>0),MIN(J19*PROFILE!$G$9,MAX('MDA3'!I19,'MDA3'!L19,W19,AL19)),AND(AU19>0,AV19=0,AW19=0,AX19=0), MIN(BA19,MAX('MDA1'!K19,'MDA2'!K19,'MDA5'!K19)),AND(AU19>0,AV19=0,AW19=0,AX19>0), MIN(BA19,MAX('MDA1'!K19,'MDA2'!K19,'MDA5'!K19,AL19)),AND(AU19>0,AV19=0,AW19>0,AX19=0),MIN(BA19,MAX('MDA1'!K19,'MDA2'!KL19,'MDA5'!K19,W19)),AND(AU19>0,AV19=0,AW19>0,AX19>0),MIN(BA19,MAX('MDA1'!K19,'MDA2'!K19,'MDA5'!K19,W19,AL19)),AND(AU19>0,AV19>0,AW19=0,AX19=0),MIN(BA19, MAX('MDA1'!K19,'MDA2'!K19, 'MDA5'!K19,MAX('MDA3'!I19,'MDA3'!L19))), AND(AU19>0,AV19>0,AW19=0,AX19>0),MIN(BA19, MAX('MDA1'!K19,'MDA2'!K19, 'MDA5'!K19,MAX('MDA3'!I19,'MDA3'!L19),AL19)), AND(AU19>0,AV19>0,AW19>0,AX19=0), MIN(BA19, MAX('MDA1'!K19,'MDA2'!K19, 'MDA5'!K19,MAX('MDA3'!I19,'MDA3'!L19),W19)), AND(AU19>0,AV19>0,AW19>0,AX19>0), MIN(BA19, MAX('MDA1'!K19,'MDA2'!K19, 'MDA5'!K19,MAX('MDA3'!I19,'MDA3'!L19),W19,AL19))) -> 16098.89514 | BK19: =_xlfn.IFS(AND(AU19=0,AV19=0,AW19=0,AX19=0),0,AND(AU19=0,AV19=0,AW19=0,AX19>0),AO19,AND(AU19=0,AV19=0,AW19>0,AX19=0),Z19,AND(AU19=0,AV19=0,AW19>0,AX19>0),MAX(Z19,AO19),AND(AU19=0,AV19>0,AW19=0,AX19=0),MIN(J19*PROFILE!$G$10,MAX('MDA3'!J19,'MDA3'!J19)),AND(AU19=0,AV19>0,AW19=0,AX19>0),MIN(J19*PROFILE!$G$10,MAX('MDA3'!J19,'MDA3'!M19,AO19)),AND(AU19=0,AV19>0,AW19>0,AX19=0),MIN(J19*PROFILE!$G$10,MAX('MDA3'!J19,'MDA3'!M19,Z19)),AND(AU19=0,AV19>0,AW19>0,AX19>0),MIN(J19*PROFILE!$G$10,MAX('MDA3'!J19,'MDA3'!M19,Z19,AO19)),AND(AU19>0,AV19=0,AW19=0,AX19=0), MIN(BB19,MAX('MDA1'!L19,'MDA2'!L19,'MDA5'!L19)),AND(AU19>0,AV19=0,AW19=0,AX19>0), MIN(BB19,MAX('MDA1'!L19,'MDA2'!L19,'MDA5'!L19,AO19)),AND(AU19>0,AV19=0,AW19>0,AX19=0),MIN(BB19,MAX('MDA1'!L19,'MDA2'!L19,'MDA5'!L19,Z19)),AND(AU19>0,AV19=0,AW19>0,AX19>0),MIN(BB19,MAX('MDA1'!L19,'MDA2'!L19,'MDA5'!L19,Z19,AO19)),AND(AU19>0,AV19>0,AW19=0,AX19=0),MIN(BB19, MAX('MDA1'!L19,'MDA2'!L19, 'MDA5'!L19,MAX('MDA3'!J19,'MDA3'!M19))), AND(AU19>0,AV19>0,AW19=0,AX19>0),MIN(BB19, MAX('MDA1'!L19,'MDA2'!L19, 'MDA5'!L19,MAX('MDA3'!J19,'MDA3'!M19),AO19)), AND(AU19>0,AV19>0,AW19>0,AX19=0), MIN(BB19, MAX('MDA1'!L19,'MDA2'!L19, 'MDA5'!L19,MAX('MDA3'!J19,'MDA3'!M19),Z19)), AND(AU19>0,AV19>0,AW19>0,AX19>0), MIN(BB19, MAX('MDA1'!L19,'MDA2'!L19, 'MDA5'!L19,MAX('MDA3'!J19,'MDA3'!M19),Z19,AO19))) -> 26831.51821 | BL19: 42930.41335 | BM19: 65.34603468
A20: =IF(COUNTRY_INFO!A20=0," ",COUNTRY_INFO!A20) -> Togo | B20: =IF(COUNTRY_INFO!B20=0," ",COUNTRY_INFO!B20) -> KARA | C20: =IF(COUNTRY_INFO!C20=0," ",COUNTRY_INFO!C20) -> DANKPEN | D20: =COUNTRY_INFO!L20 -> Non requis | G20: =MAX('MDA1'!M20,'MDA2'!M20,'MDA5'!M20) -> 0 | H20: =IF(AND(COUNTRY_INFO!H20>0,COUNTRY_INFO!H20<4),IF(D20>G20,G20,D20),0) -> 0 | I20: =IF(AND(COUNTRY_INFO!H20>0,COUNTRY_INFO!H20<4), IF(G20/D20*100<>0, IF(G20/D20*100>100,100,G20/D20*100), "-"),0) -> 0 | J20: =COUNTRY_INFO!M20 -> 159768.5815 | K20: 66010 | L20: 68361 | M20: =MAX('MDA1'!M20,MAX('MDA3'!I20,'MDA3'!L20)+MAX('MDA3'!J20,'MDA3'!M20)) -> 148093 | N20: =IF(AND(COUNTRY_INFO!I20>0,COUNTRY_INFO!I20<4),IF(J20>M20,M20,J20),0) -> 148093 | O20: =IF(AND(COUNTRY_INFO!I20>0,COUNTRY_INFO!I20<4), IF(M20/J20*100<>0, IF(M20/J20*100>100,100,M20/J20*100), "-"),0) -> 92.69219183 | P20: =COUNTRY_INFO!Q20 -> 78536 | Q20: 28861 | R20: 28282 | S20: =MAX('MDA2'!J20,'MDA5'!J20,'T1'!K20, MAX(T3_R1!J20,T3_R2!J20,T3_R3!J20)) -> 0 | T20: =IF(AND(COUNTRY_INFO!J20>1,COUNTRY_INFO!J20<99,COUNTRY_INFO!J20<>4,COUNTRY_INFO!J20<>5),IF(COUNTRY_INFO!N20>S20,S20,COUNTRY_INFO!N20),0) -> 0 | U20: =IF(AND(COUNTRY_INFO!J20>1,COUNTRY_INFO!J20<99,COUNTRY_INFO!J20<>4,COUNTRY_INFO!J20<>5), IF(T20/COUNTRY_INFO!N20*100<>0, IF(T20/COUNTRY_INFO!N20*100>100,100,T20/COUNTRY_INFO!N20*100), "-"),0) -> - | V20: =MAX('MDA1'!K20, 'MDA2'!K20, 'MDA5'!K20,'T1'!L20, MAX(T3_R1!K20,T3_R2!K20,T3_R3!K20)) -> 57143 | W20: =IF(AND(COUNTRY_INFO!J20>1,COUNTRY_INFO!J20<99,COUNTRY_INFO!J20<>4,COUNTRY_INFO!J20<>5),IF(COUNTRY_INFO!O20>V20,V20,COUNTRY_INFO!O20),0) -> 51219 | X20: =IF(AND(COUNTRY_INFO!J20>1,COUNTRY_INFO!J20<99,COUNTRY_INFO!J20<>4,COUNTRY_INFO!J20<>5), IF(W20/COUNTRY_INFO!O20*100<>0, IF(W20/COUNTRY_INFO!O20*100>100,100,W20/COUNTRY_INFO!O20*100), "-"),0) -> 100 | Y20: =MAX('MDA1'!L20, 'MDA2'!L20, 'MDA5'!L20,'T1'!M20, MAX(T3_R1!L20,T3_R2!L20,T3_R3!L20)) -> 0 | Z20: =IF(AND(COUNTRY_INFO!J20>1,COUNTRY_INFO!J20<99,COUNTRY_INFO!J20<>4,COUNTRY_INFO!J20<>5),IF(COUNTRY_INFO!P20>Y20,Y20,COUNTRY_INFO!P20),0) -> 0 | AA20: =IF(AND(COUNTRY_INFO!J20>1,COUNTRY_INFO!J20<99,COUNTRY_INFO!J20<>4,COUNTRY_INFO!J20<>5), IF(Z20/COUNTRY_INFO!P20*100<>0, IF(Z20/COUNTRY_INFO!P20*100>100,100,Z20/COUNTRY_INFO!P20*100), "-"),0) ->  | AB20: 57143 | AC20: 51219 | AD20: =IF(AND(COUNTRY_INFO!J20>1,COUNTRY_INFO!J20<99,COUNTRY_INFO!J20<>4,COUNTRY_INFO!J20<>5), IF(AC20/P20*100<>0, IF(AC20/P20*100>100,100,AC20/P20*100), "-"),0) -> 65.21722522 | AE20: =COUNTRY_INFO!U20 -> 44606 | AH20: =MAX('T1'!K20,'T2'!R20) -> 0 | AI20: =IF(AND(COUNTRY_INFO!K20>1,COUNTRY_INFO!K20<99,COUNTRY_INFO!K20<>4,COUNTRY_INFO!K20<>5),IF(COUNTRY_INFO!R20>AH20,AH20,COUNTRY_INFO!R20),0) -> 0 | AJ20: =IF(AND(COUNTRY_INFO!K20>1,COUNTRY_INFO!K20<99,COUNTRY_INFO!K20<>4,COUNTRY_INFO!K20<>5), IF(AI20/COUNTRY_INFO!R20*100<>0, IF(AI20/COUNTRY_INFO!R20*100>100,100,AI20/COUNTRY_INFO!R20*100), "-"),0) -> 0 | AK20: =MAX('T1'!L20,'T2'!S20) -> 20080 | AL20: =IF(AND(COUNTRY_INFO!K20>1,COUNTRY_INFO!K20<99,COUNTRY_INFO!K20<>4,COUNTRY_INFO!K20<>5),IF(COUNTRY_INFO!S20>AK20,AK20,COUNTRY_INFO!S20),0) -> 0 | AM20: =IF(AND(COUNTRY_INFO!K20>1,COUNTRY_INFO!K20<99,COUNTRY_INFO!K20<>4,COUNTRY_INFO!K20<>5), IF(AL20/COUNTRY_INFO!S20*100<>0, IF(AL20/COUNTRY_INFO!S20*100>100,100,AL20/COUNTRY_INFO!S20*100), "-"),0) -> 0 | AN20: =MAX('T1'!M20,'T2'!T20) -> 0 | AO20: =IF(AND(COUNTRY_INFO!K20>1,COUNTRY_INFO!K20<99,COUNTRY_INFO!K20<>4,COUNTRY_INFO!K20<>5),IF(COUNTRY_INFO!T20>AN20,AN20,COUNTRY_INFO!T20),0) -> 0 | AP20: =IF(AND(COUNTRY_INFO!K20>1,COUNTRY_INFO!K20<99,COUNTRY_INFO!K20<>4,COUNTRY_INFO!K20<>5), IF(AO20/COUNTRY_INFO!T20*100<>0, IF(AO20/COUNTRY_INFO!T20*100>100,100,AO20/COUNTRY_INFO!T20*100), "-"),0) -> 0 | AQ20: 20080 | AR20: 20080 | AS20: 45.01636551 | AU20: =IF(AND(D20<>0, D20<>"Inconnu",D20<>"Interrompu",D20<>"Non requis"),D20/COUNTRY_INFO!D20, 0) -> 0 | AV20: =IF(AND(J20<>0,J20<>"Inconnu",J20<>"Interrompu",J20<>"Non requis"),J20/COUNTRY_INFO!D20, 0) -> 0.9357977174 | AW20: =IF(AND(P20<>0,P20<>"Inconnu",P20<>"Surveillance",P20<>"Non requis"),P20/COUNTRY_INFO!Q20, 0) -> 1 | AX20: =IF(AND(AE20<>0,AE20<>"Inconnu",AE20<>"Surveillance",AE20<>"Non requis"),AE20/COUNTRY_INFO!U20, 0) -> 1 | AY20: =IF(AU20>0,D20*PROFILE!$G$7,IF(AV20>0,J20*PROFILE!$G$7,0)) -> 6390.759524 | AZ20: =_xlfn.IFS(OR(AU20>0,AW20>0),COUNTRY_INFO!E20, AV20>0,J20*PROFILE!$G$8,AX20>0,COUNTRY_INFO!R20,COUNTIFS(AU20:AX20,">0")=0,0) -> 27317 | BA20: =_xlfn.IFS(OR(AU20>0,AW20>0),COUNTRY_INFO!F20, AV20>0,J20*PROFILE!$G$9,AX20>0,COUNTRY_INFO!S20,COUNTIFS(AU20:AX20,">0")=0,0) -> 51219 | BB20: =_xlfn.IFS(AU20>0,COUNTRY_INFO!G20, AND(AV20>0,AW20=0,AX20=0),J20*PROFILE!$G$10,AND(AV20>0,AW20>0,AX20=0), MAX(J20*PROFILE!$G$10,COUNTRY_INFO!P20),AND(AV20>0,AW20=0,AX20>0), MAX(J20*PROFILE!$G$10,COUNTRY_INFO!T20),AND(AV20=0,AW20>0,AX20>0), MAX(COUNTRY_INFO!P20,COUNTRY_INFO!T20),AND(AV20=0,AW20>0,AX20=0),COUNTRY_INFO!P20,AND(AV20=0,AW20=0,AX20>0),COUNTRY_INFO!T20,AND(AV20>0,AW20>0,AX20>0), MAX(J20*PROFILE!$G$10,COUNTRY_INFO!P20,COUNTRY_INFO!T20),COUNTIFS(AU20:AX20,">0")=0,0) -> 79884.32183 | BC20: 164811.0814 | BD20: Y | BE20: =MAX('MDA2'!J20,'MDA5'!J20,S20,AH20) -> 0 | BF20: =MAX('MDA1'!K20,'MDA2'!K20,'MDA3'!I20,'MDA3'!L20,'MDA5'!K20,V20,AK20) -> 58722 | BG20: =MAX('MDA1'!L20,'MDA2'!L20,'MDA3'!J20,'MDA3'!M20,'MDA5'!L20,Y20,AN20) -> 89371 | BH20: 148093 | BI20: =_xlfn.IFS(AND(AU20=0,AW20=0,AX20=0),0,AND(AU20=0,AW20=0,AX20>0),AI20,AND(AU20=0,AW20>0,AX20=0),T20,AND(AU20=0,AW20>0,AX20>0),MAX(T20,AI20),AND(AU20>0,AW20=0,AX20=0),MIN(MAX('MDA2'!J20,'MDA5'!J20),AZ20),AND(AU20>0,AW20=0,AX20>0),MIN(MAX('MDA2'!J20,'MDA5'!J20,AI20),AZ20),AND(AU20>0,AW20>0,AX20=0),MIN(MAX('MDA2'!J20,'MDA5'!J20,T20),AZ20),AND(AU20>0,AW20>0,AX20>0),MIN(MAX('MDA2'!J20,'MDA5'!J20,AI20,T20),AZ20)) -> 0 | BJ20: =_xlfn.IFS(AND(AU20=0,AV20=0,AW20=0,AX20=0),0,AND(AU20=0,AV20=0,AW20=0,AX20>0),AL20,AND(AU20=0,AV20=0,AW20>0,AX20=0),W20,AND(AU20=0,AV20=0,AW20>0,AX20>0),MAX(W20,AL20),AND(AU20=0,AV20>0,AW20=0,AX20=0),MIN(J20*PROFILE!$G$9,MAX('MDA3'!I20,'MDA3'!L20)),AND(AU20=0,AV20>0,AW20=0,AX20>0),MIN(J20*PROFILE!$G$9,MAX('MDA3'!I20,'MDA3'!L20,AL20)),AND(AU20=0,AV20>0,AW20>0,AX20=0),MIN(J20*PROFILE!$G$9,MAX('MDA3'!I20,'MDA3'!L20,W20)),AND(AU20=0,AV20>0,AW20>0,AX20>0),MIN(J20*PROFILE!$G$9,MAX('MDA3'!I20,'MDA3'!L20,W20,AL20)),AND(AU20>0,AV20=0,AW20=0,AX20=0), MIN(BA20,MAX('MDA1'!K20,'MDA2'!K20,'MDA5'!K20)),AND(AU20>0,AV20=0,AW20=0,AX20>0), MIN(BA20,MAX('MDA1'!K20,'MDA2'!K20,'MDA5'!K20,AL20)),AND(AU20>0,AV20=0,AW20>0,AX20=0),MIN(BA20,MAX('MDA1'!K20,'MDA2'!KL20,'MDA5'!K20,W20)),AND(AU20>0,AV20=0,AW20>0,AX20>0),MIN(BA20,MAX('MDA1'!K20,'MDA2'!K20,'MDA5'!K20,W20,AL20)),AND(AU20>0,AV20>0,AW20=0,AX20=0),MIN(BA20, MAX('MDA1'!K20,'MDA2'!K20, 'MDA5'!K20,MAX('MDA3'!I20,'MDA3'!L20))), AND(AU20>0,AV20>0,AW20=0,AX20>0),MIN(BA20, MAX('MDA1'!K20,'MDA2'!K20, 'MDA5'!K20,MAX('MDA3'!I20,'MDA3'!L20),AL20)), AND(AU20>0,AV20>0,AW20>0,AX20=0), MIN(BA20, MAX('MDA1'!K20,'MDA2'!K20, 'MDA5'!K20,MAX('MDA3'!I20,'MDA3'!L20),W20)), AND(AU20>0,AV20>0,AW20>0,AX20>0), MIN(BA20, MAX('MDA1'!K20,'MDA2'!K20, 'MDA5'!K20,MAX('MDA3'!I20,'MDA3'!L20),W20,AL20))) -> 47930.5461 | BK20: =_xlfn.IFS(AND(AU20=0,AV20=0,AW20=0,AX20=0),0,AND(AU20=0,AV20=0,AW20=0,AX20>0),AO20,AND(AU20=0,AV20=0,AW20>0,AX20=0),Z20,AND(AU20=0,AV20=0,AW20>0,AX20>0),MAX(Z20,AO20),AND(AU20=0,AV20>0,AW20=0,AX20=0),MIN(J20*PROFILE!$G$10,MAX('MDA3'!J20,'MDA3'!J20)),AND(AU20=0,AV20>0,AW20=0,AX20>0),MIN(J20*PROFILE!$G$10,MAX('MDA3'!J20,'MDA3'!M20,AO20)),AND(AU20=0,AV20>0,AW20>0,AX20=0),MIN(J20*PROFILE!$G$10,MAX('MDA3'!J20,'MDA3'!M20,Z20)),AND(AU20=0,AV20>0,AW20>0,AX20>0),MIN(J20*PROFILE!$G$10,MAX('MDA3'!J20,'MDA3'!M20,Z20,AO20)),AND(AU20>0,AV20=0,AW20=0,AX20=0), MIN(BB20,MAX('MDA1'!L20,'MDA2'!L20,'MDA5'!L20)),AND(AU20>0,AV20=0,AW20=0,AX20>0), MIN(BB20,MAX('MDA1'!L20,'MDA2'!L20,'MDA5'!L20,AO20)),AND(AU20>0,AV20=0,AW20>0,AX20=0),MIN(BB20,MAX('MDA1'!L20,'MDA2'!L20,'MDA5'!L20,Z20)),AND(AU20>0,AV20=0,AW20>0,AX20>0),MIN(BB20,MAX('MDA1'!L20,'MDA2'!L20,'MDA5'!L20,Z20,AO20)),AND(AU20>0,AV20>0,AW20=0,AX20=0),MIN(BB20, MAX('MDA1'!L20,'MDA2'!L20, 'MDA5'!L20,MAX('MDA3'!J20,'MDA3'!M20))), AND(AU20>0,AV20>0,AW20=0,AX20>0),MIN(BB20, MAX('MDA1'!L20,'MDA2'!L20, 'MDA5'!L20,MAX('MDA3'!J20,'MDA3'!M20),AO20)), AND(AU20>0,AV20>0,AW20>0,AX20=0), MIN(BB20, MAX('MDA1'!L20,'MDA2'!L20, 'MDA5'!L20,MAX('MDA3'!J20,'MDA3'!M20),Z20)), AND(AU20>0,AV20>0,AW20>0,AX20>0), MIN(BB20, MAX('MDA1'!L20,'MDA2'!L20, 'MDA5'!L20,MAX('MDA3'!J20,'MDA3'!M20),Z20,AO20))) -> 79884.32183 | BL20: 127814.8679 | BM20: 77.55235078
A21: =IF(COUNTRY_INFO!A21=0," ",COUNTRY_INFO!A21) -> Togo | B21: =IF(COUNTRY_INFO!B21=0," ",COUNTRY_INFO!B21) -> KARA | C21: =IF(COUNTRY_INFO!C21=0," ",COUNTRY_INFO!C21) -> DOUFELGOU | D21: =COUNTRY_INFO!L21 -> Non requis | G21: =MAX('MDA1'!M21,'MDA2'!M21,'MDA5'!M21) -> 0 | H21: =IF(AND(COUNTRY_INFO!H21>0,COUNTRY_INFO!H21<4),IF(D21>G21,G21,D21),0) -> 0 | I21: =IF(AND(COUNTRY_INFO!H21>0,COUNTRY_INFO!H21<4), IF(G21/D21*100<>0, IF(G21/D21*100>100,100,G21/D21*100), "-"),0) -> 0 | J21: =COUNTRY_INFO!M21 -> 78155.9082 | K21: 35547 | L21: 38253 | M21: =MAX('MDA1'!M21,MAX('MDA3'!I21,'MDA3'!L21)+MAX('MDA3'!J21,'MDA3'!M21)) -> 73800 | N21: =IF(AND(COUNTRY_INFO!I21>0,COUNTRY_INFO!I21<4),IF(J21>M21,M21,J21),0) -> 73800 | O21: =IF(AND(COUNTRY_INFO!I21>0,COUNTRY_INFO!I21<4), IF(M21/J21*100<>0, IF(M21/J21*100>100,100,M21/J21*100), "-"),0) -> 94.42664247 | P21: =COUNTRY_INFO!Q21 -> 45023 | Q21: 14428 | R21: 14119 | S21: =MAX('MDA2'!J21,'MDA5'!J21,'T1'!K21, MAX(T3_R1!J21,T3_R2!J21,T3_R3!J21)) -> 0 | T21: =IF(AND(COUNTRY_INFO!J21>1,COUNTRY_INFO!J21<99,COUNTRY_INFO!J21<>4,COUNTRY_INFO!J21<>5),IF(COUNTRY_INFO!N21>S21,S21,COUNTRY_INFO!N21),0) -> 0 | U21: =IF(AND(COUNTRY_INFO!J21>1,COUNTRY_INFO!J21<99,COUNTRY_INFO!J21<>4,COUNTRY_INFO!J21<>5), IF(T21/COUNTRY_INFO!N21*100<>0, IF(T21/COUNTRY_INFO!N21*100>100,100,T21/COUNTRY_INFO!N21*100), "-"),0) -> - | V21: =MAX('MDA1'!K21, 'MDA2'!K21, 'MDA5'!K21,'T1'!L21, MAX(T3_R1!K21,T3_R2!K21,T3_R3!K21)) -> 28547 | W21: =IF(AND(COUNTRY_INFO!J21>1,COUNTRY_INFO!J21<99,COUNTRY_INFO!J21<>4,COUNTRY_INFO!J21<>5),IF(COUNTRY_INFO!O21>V21,V21,COUNTRY_INFO!O21),0) -> 28547 | X21: =IF(AND(COUNTRY_INFO!J21>1,COUNTRY_INFO!J21<99,COUNTRY_INFO!J21<>4,COUNTRY_INFO!J21<>5), IF(W21/COUNTRY_INFO!O21*100<>0, IF(W21/COUNTRY_INFO!O21*100>100,100,W21/COUNTRY_INFO!O21*100), "-"),0) -> 97.22099241 | Y21: =MAX('MDA1'!L21, 'MDA2'!L21, 'MDA5'!L21,'T1'!M21, MAX(T3_R1!L21,T3_R2!L21,T3_R3!L21)) -> 0 | Z21: =IF(AND(COUNTRY_INFO!J21>1,COUNTRY_INFO!J21<99,COUNTRY_INFO!J21<>4,COUNTRY_INFO!J21<>5),IF(COUNTRY_INFO!P21>Y21,Y21,COUNTRY_INFO!P21),0) -> 0 | AA21: =IF(AND(COUNTRY_INFO!J21>1,COUNTRY_INFO!J21<99,COUNTRY_INFO!J21<>4,COUNTRY_INFO!J21<>5), IF(Z21/COUNTRY_INFO!P21*100<>0, IF(Z21/COUNTRY_INFO!P21*100>100,100,Z21/COUNTRY_INFO!P21*100), "-"),0) ->  | AB21: 28547 | AC21: 28547 | AD21: =IF(AND(COUNTRY_INFO!J21>1,COUNTRY_INFO!J21<99,COUNTRY_INFO!J21<>4,COUNTRY_INFO!J21<>5), IF(AC21/P21*100<>0, IF(AC21/P21*100>100,100,AC21/P21*100), "-"),0) -> 63.40537059 | AE21: =COUNTRY_INFO!U21 -> 60287 | AH21: =MAX('T1'!K21,'T2'!R21) -> 0 | AI21: =IF(AND(COUNTRY_INFO!K21>1,COUNTRY_INFO!K21<99,COUNTRY_INFO!K21<>4,COUNTRY_INFO!K21<>5),IF(COUNTRY_INFO!R21>AH21,AH21,COUNTRY_INFO!R21),0) -> 0 | AJ21: =IF(AND(COUNTRY_INFO!K21>1,COUNTRY_INFO!K21<99,COUNTRY_INFO!K21<>4,COUNTRY_INFO!K21<>5), IF(AI21/COUNTRY_INFO!R21*100<>0, IF(AI21/COUNTRY_INFO!R21*100>100,100,AI21/COUNTRY_INFO!R21*100), "-"),0) ->  | AK21: =MAX('T1'!L21,'T2'!S21) -> 25457 | AL21: =IF(AND(COUNTRY_INFO!K21>1,COUNTRY_INFO!K21<99,COUNTRY_INFO!K21<>4,COUNTRY_INFO!K21<>5),IF(COUNTRY_INFO!S21>AK21,AK21,COUNTRY_INFO!S21),0) -> 0 | AM21: =IF(AND(COUNTRY_INFO!K21>1,COUNTRY_INFO!K21<99,COUNTRY_INFO!K21<>4,COUNTRY_INFO!K21<>5), IF(AL21/COUNTRY_INFO!S21*100<>0, IF(AL21/COUNTRY_INFO!S21*100>100,100,AL21/COUNTRY_INFO!S21*100), "-"),0) ->  | AN21: =MAX('T1'!M21,'T2'!T21) -> 14067 | AO21: =IF(AND(COUNTRY_INFO!K21>1,COUNTRY_INFO!K21<99,COUNTRY_INFO!K21<>4,COUNTRY_INFO!K21<>5),IF(COUNTRY_INFO!T21>AN21,AN21,COUNTRY_INFO!T21),0) -> 0 | AP21: =IF(AND(COUNTRY_INFO!K21>1,COUNTRY_INFO!K21<99,COUNTRY_INFO!K21<>4,COUNTRY_INFO!K21<>5), IF(AO21/COUNTRY_INFO!T21*100<>0, IF(AO21/COUNTRY_INFO!T21*100>100,100,AO21/COUNTRY_INFO!T21*100), "-"),0) ->  | AQ21: 39524 | AR21: 39524 | AS21: 65.55973925 | AU21: =IF(AND(D21<>0, D21<>"Inconnu",D21<>"Interrompu",D21<>"Non requis"),D21/COUNTRY_INFO!D21, 0) -> 0 | AV21: =IF(AND(J21<>0,J21<>"Inconnu",J21<>"Interrompu",J21<>"Non requis"),J21/COUNTRY_INFO!D21, 0) -> 0.7985203473 | AW21: =IF(AND(P21<>0,P21<>"Inconnu",P21<>"Surveillance",P21<>"Non requis"),P21/COUNTRY_INFO!Q21, 0) -> 1 | AX21: =IF(AND(AE21<>0,AE21<>"Inconnu",AE21<>"Surveillance",AE21<>"Non requis"),AE21/COUNTRY_INFO!U21, 0) -> 1 | AY21: =IF(AU21>0,D21*PROFILE!$G$7,IF(AV21>0,J21*PROFILE!$G$7,0)) -> 3126.244285 | AZ21: =_xlfn.IFS(OR(AU21>0,AW21>0),COUNTRY_INFO!E21, AV21>0,J21*PROFILE!$G$8,AX21>0,COUNTRY_INFO!R21,COUNTIFS(AU21:AX21,">0")=0,0) -> 15660 | BA21: =_xlfn.IFS(OR(AU21>0,AW21>0),COUNTRY_INFO!F21, AV21>0,J21*PROFILE!$G$9,AX21>0,COUNTRY_INFO!S21,COUNTIFS(AU21:AX21,">0")=0,0) -> 29363 | BB21: =_xlfn.IFS(AU21>0,COUNTRY_INFO!G21, AND(AV21>0,AW21=0,AX21=0),J21*PROFILE!$G$10,AND(AV21>0,AW21>0,AX21=0), MAX(J21*PROFILE!$G$10,COUNTRY_INFO!P21),AND(AV21>0,AW21=0,AX21>0), MAX(J21*PROFILE!$G$10,COUNTRY_INFO!T21),AND(AV21=0,AW21>0,AX21>0), MAX(COUNTRY_INFO!P21,COUNTRY_INFO!T21),AND(AV21=0,AW21>0,AX21=0),COUNTRY_INFO!P21,AND(AV21=0,AW21=0,AX21>0),COUNTRY_INFO!T21,AND(AV21>0,AW21>0,AX21>0), MAX(J21*PROFILE!$G$10,COUNTRY_INFO!P21,COUNTRY_INFO!T21),COUNTIFS(AU21:AX21,">0")=0,0) -> 39077.96931 | BC21: 87227.2136 | BD21: Y | BE21: =MAX('MDA2'!J21,'MDA5'!J21,S21,AH21) -> 0 | BF21: =MAX('MDA1'!K21,'MDA2'!K21,'MDA3'!I21,'MDA3'!L21,'MDA5'!K21,V21,AK21) -> 28547 | BG21: =MAX('MDA1'!L21,'MDA2'!L21,'MDA3'!J21,'MDA3'!M21,'MDA5'!L21,Y21,AN21) -> 48080 | BH21: 76627 | BI21: =_xlfn.IFS(AND(AU21=0,AW21=0,AX21=0),0,AND(AU21=0,AW21=0,AX21>0),AI21,AND(AU21=0,AW21>0,AX21=0),T21,AND(AU21=0,AW21>0,AX21>0),MAX(T21,AI21),AND(AU21>0,AW21=0,AX21=0),MIN(MAX('MDA2'!J21,'MDA5'!J21),AZ21),AND(AU21>0,AW21=0,AX21>0),MIN(MAX('MDA2'!J21,'MDA5'!J21,AI21),AZ21),AND(AU21>0,AW21>0,AX21=0),MIN(MAX('MDA2'!J21,'MDA5'!J21,T21),AZ21),AND(AU21>0,AW21>0,AX21>0),MIN(MAX('MDA2'!J21,'MDA5'!J21,AI21,T21),AZ21)) -> 0 | BJ21: =_xlfn.IFS(AND(AU21=0,AV21=0,AW21=0,AX21=0),0,AND(AU21=0,AV21=0,AW21=0,AX21>0),AL21,AND(AU21=0,AV21=0,AW21>0,AX21=0),W21,AND(AU21=0,AV21=0,AW21>0,AX21>0),MAX(W21,AL21),AND(AU21=0,AV21>0,AW21=0,AX21=0),MIN(J21*PROFILE!$G$9,MAX('MDA3'!I21,'MDA3'!L21)),AND(AU21=0,AV21>0,AW21=0,AX21>0),MIN(J21*PROFILE!$G$9,MAX('MDA3'!I21,'MDA3'!L21,AL21)),AND(AU21=0,AV21>0,AW21>0,AX21=0),MIN(J21*PROFILE!$G$9,MAX('MDA3'!I21,'MDA3'!L21,W21)),AND(AU21=0,AV21>0,AW21>0,AX21>0),MIN(J21*PROFILE!$G$9,MAX('MDA3'!I21,'MDA3'!L21,W21,AL21)),AND(AU21>0,AV21=0,AW21=0,AX21=0), MIN(BA21,MAX('MDA1'!K21,'MDA2'!K21,'MDA5'!K21)),AND(AU21>0,AV21=0,AW21=0,AX21>0), MIN(BA21,MAX('MDA1'!K21,'MDA2'!K21,'MDA5'!K21,AL21)),AND(AU21>0,AV21=0,AW21>0,AX21=0),MIN(BA21,MAX('MDA1'!K21,'MDA2'!KL21,'MDA5'!K21,W21)),AND(AU21>0,AV21=0,AW21>0,AX21>0),MIN(BA21,MAX('MDA1'!K21,'MDA2'!K21,'MDA5'!K21,W21,AL21)),AND(AU21>0,AV21>0,AW21=0,AX21=0),MIN(BA21, MAX('MDA1'!K21,'MDA2'!K21, 'MDA5'!K21,MAX('MDA3'!I21,'MDA3'!L21))), AND(AU21>0,AV21>0,AW21=0,AX21>0),MIN(BA21, MAX('MDA1'!K21,'MDA2'!K21, 'MDA5'!K21,MAX('MDA3'!I21,'MDA3'!L21),AL21)), AND(AU21>0,AV21>0,AW21>0,AX21=0), MIN(BA21, MAX('MDA1'!K21,'MDA2'!K21, 'MDA5'!K21,MAX('MDA3'!I21,'MDA3'!L21),W21)), AND(AU21>0,AV21>0,AW21>0,AX21>0), MIN(BA21, MAX('MDA1'!K21,'MDA2'!K21, 'MDA5'!K21,MAX('MDA3'!I21,'MDA3'!L21),W21,AL21))) -> 23446.7586 | BK21: =_xlfn.IFS(AND(AU21=0,AV21=0,AW21=0,AX21=0),0,AND(AU21=0,AV21=0,AW21=0,AX21>0),AO21,AND(AU21=0,AV21=0,AW21>0,AX21=0),Z21,AND(AU21=0,AV21=0,AW21>0,AX21>0),MAX(Z21,AO21),AND(AU21=0,AV21>0,AW21=0,AX21=0),MIN(J21*PROFILE!$G$10,MAX('MDA3'!J21,'MDA3'!J21)),AND(AU21=0,AV21>0,AW21=0,AX21>0),MIN(J21*PROFILE!$G$10,MAX('MDA3'!J21,'MDA3'!M21,AO21)),AND(AU21=0,AV21>0,AW21>0,AX21=0),MIN(J21*PROFILE!$G$10,MAX('MDA3'!J21,'MDA3'!M21,Z21)),AND(AU21=0,AV21>0,AW21>0,AX21>0),MIN(J21*PROFILE!$G$10,MAX('MDA3'!J21,'MDA3'!M21,Z21,AO21)),AND(AU21>0,AV21=0,AW21=0,AX21=0), MIN(BB21,MAX('MDA1'!L21,'MDA2'!L21,'MDA5'!L21)),AND(AU21>0,AV21=0,AW21=0,AX21>0), MIN(BB21,MAX('MDA1'!L21,'MDA2'!L21,'MDA5'!L21,AO21)),AND(AU21>0,AV21=0,AW21>0,AX21=0),MIN(BB21,MAX('MDA1'!L21,'MDA2'!L21,'MDA5'!L21,Z21)),AND(AU21>0,AV21=0,AW21>0,AX21>0),MIN(BB21,MAX('MDA1'!L21,'MDA2'!L21,'MDA5'!L21,Z21,AO21)),AND(AU21>0,AV21>0,AW21=0,AX21=0),MIN(BB21, MAX('MDA1'!L21,'MDA2'!L21, 'MDA5'!L21,MAX('MDA3'!J21,'MDA3'!M21))), AND(AU21>0,AV21>0,AW21=0,AX21>0),MIN(BB21, MAX('MDA1'!L21,'MDA2'!L21, 'MDA5'!L21,MAX('MDA3'!J21,'MDA3'!M21),AO21)), AND(AU21>0,AV21>0,AW21>0,AX21=0), MIN(BB21, MAX('MDA1'!L21,'MDA2'!L21, 'MDA5'!L21,MAX('MDA3'!J21,'MDA3'!M21),Z21)), AND(AU21>0,AV21>0,AW21>0,AX21>0), MIN(BB21, MAX('MDA1'!L21,'MDA2'!L21, 'MDA5'!L21,MAX('MDA3'!J21,'MDA3'!M21),Z21,AO21))) -> 39077.96931 | BL21: 62524.72791 | BM21: 71.68029945
A22: =IF(COUNTRY_INFO!A22=0," ",COUNTRY_INFO!A22) -> Togo | B22: =IF(COUNTRY_INFO!B22=0," ",COUNTRY_INFO!B22) -> KARA | C22: =IF(COUNTRY_INFO!C22=0," ",COUNTRY_INFO!C22) -> KERAN | D22: =COUNTRY_INFO!L22 -> Non requis | G22: =MAX('MDA1'!M22,'MDA2'!M22,'MDA5'!M22) -> 0 | H22: =IF(AND(COUNTRY_INFO!H22>0,COUNTRY_INFO!H22<4),IF(D22>G22,G22,D22),0) -> 0 | I22: =IF(AND(COUNTRY_INFO!H22>0,COUNTRY_INFO!H22<4), IF(G22/D22*100<>0, IF(G22/D22*100>100,100,G22/D22*100), "-"),0) -> 0 | J22: =COUNTRY_INFO!M22 -> 120413.6004 | K22: 48266 | L22: 49357 | M22: =MAX('MDA1'!M22,MAX('MDA3'!I22,'MDA3'!L22)+MAX('MDA3'!J22,'MDA3'!M22)) -> 97623 | N22: =IF(AND(COUNTRY_INFO!I22>0,COUNTRY_INFO!I22<4),IF(J22>M22,M22,J22),0) -> 97623 | O22: =IF(AND(COUNTRY_INFO!I22>0,COUNTRY_INFO!I22<4), IF(M22/J22*100<>0, IF(M22/J22*100>100,100,M22/J22*100), "-"),0) -> 81.0730679 | P22: =COUNTRY_INFO!Q22 -> 59725 | Q22: 21299 | R22: 20316 | S22: =MAX('MDA2'!J22,'MDA5'!J22,'T1'!K22, MAX(T3_R1!J22,T3_R2!J22,T3_R3!J22)) -> 0 | T22: =IF(AND(COUNTRY_INFO!J22>1,COUNTRY_INFO!J22<99,COUNTRY_INFO!J22<>4,COUNTRY_INFO!J22<>5),IF(COUNTRY_INFO!N22>S22,S22,COUNTRY_INFO!N22),0) -> 0 | U22: =IF(AND(COUNTRY_INFO!J22>1,COUNTRY_INFO!J22<99,COUNTRY_INFO!J22<>4,COUNTRY_INFO!J22<>5), IF(T22/COUNTRY_INFO!N22*100<>0, IF(T22/COUNTRY_INFO!N22*100>100,100,T22/COUNTRY_INFO!N22*100), "-"),0) -> - | V22: =MAX('MDA1'!K22, 'MDA2'!K22, 'MDA5'!K22,'T1'!L22, MAX(T3_R1!K22,T3_R2!K22,T3_R3!K22)) -> 41615 | W22: =IF(AND(COUNTRY_INFO!J22>1,COUNTRY_INFO!J22<99,COUNTRY_INFO!J22<>4,COUNTRY_INFO!J22<>5),IF(COUNTRY_INFO!O22>V22,V22,COUNTRY_INFO!O22),0) -> 38951 | X22: =IF(AND(COUNTRY_INFO!J22>1,COUNTRY_INFO!J22<99,COUNTRY_INFO!J22<>4,COUNTRY_INFO!J22<>5), IF(W22/COUNTRY_INFO!O22*100<>0, IF(W22/COUNTRY_INFO!O22*100>100,100,W22/COUNTRY_INFO!O22*100), "-"),0) -> 100 | Y22: =MAX('MDA1'!L22, 'MDA2'!L22, 'MDA5'!L22,'T1'!M22, MAX(T3_R1!L22,T3_R2!L22,T3_R3!L22)) -> 0 | Z22: =IF(AND(COUNTRY_INFO!J22>1,COUNTRY_INFO!J22<99,COUNTRY_INFO!J22<>4,COUNTRY_INFO!J22<>5),IF(COUNTRY_INFO!P22>Y22,Y22,COUNTRY_INFO!P22),0) -> 0 | AA22: =IF(AND(COUNTRY_INFO!J22>1,COUNTRY_INFO!J22<99,COUNTRY_INFO!J22<>4,COUNTRY_INFO!J22<>5), IF(Z22/COUNTRY_INFO!P22*100<>0, IF(Z22/COUNTRY_INFO!P22*100>100,100,Z22/COUNTRY_INFO!P22*100), "-"),0) ->  | AB22: 41615 | AC22: 38951 | AD22: =IF(AND(COUNTRY_INFO!J22>1,COUNTRY_INFO!J22<99,COUNTRY_INFO!J22<>4,COUNTRY_INFO!J22<>5), IF(AC22/P22*100<>0, IF(AC22/P22*100>100,100,AC22/P22*100), "-"),0) -> 65.21724571 | AE22: =COUNTRY_INFO!U22 -> 92879 | AH22: =MAX('T1'!K22,'T2'!R22) -> 0 | AI22: =IF(AND(COUNTRY_INFO!K22>1,COUNTRY_INFO!K22<99,COUNTRY_INFO!K22<>4,COUNTRY_INFO!K22<>5),IF(COUNTRY_INFO!R22>AH22,AH22,COUNTRY_INFO!R22),0) -> 0 | AJ22: =IF(AND(COUNTRY_INFO!K22>1,COUNTRY_INFO!K22<99,COUNTRY_INFO!K22<>4,COUNTRY_INFO!K22<>5), IF(AI22/COUNTRY_INFO!R22*100<>0, IF(AI22/COUNTRY_INFO!R22*100>100,100,AI22/COUNTRY_INFO!R22*100), "-"),0) ->  | AK22: =MAX('T1'!L22,'T2'!S22) -> 41615 | AL22: =IF(AND(COUNTRY_INFO!K22>1,COUNTRY_INFO!K22<99,COUNTRY_INFO!K22<>4,COUNTRY_INFO!K22<>5),IF(COUNTRY_INFO!S22>AK22,AK22,COUNTRY_INFO!S22),0) -> 0 | AM22: =IF(AND(COUNTRY_INFO!K22>1,COUNTRY_INFO!K22<99,COUNTRY_INFO!K22<>4,COUNTRY_INFO!K22<>5), IF(AL22/COUNTRY_INFO!S22*100<>0, IF(AL22/COUNTRY_INFO!S22*100>100,100,AL22/COUNTRY_INFO!S22*100), "-"),0) ->  | AN22: =MAX('T1'!M22,'T2'!T22) -> 17808 | AO22: =IF(AND(COUNTRY_INFO!K22>1,COUNTRY_INFO!K22<99,COUNTRY_INFO!K22<>4,COUNTRY_INFO!K22<>5),IF(COUNTRY_INFO!T22>AN22,AN22,COUNTRY_INFO!T22),0) -> 0 | AP22: =IF(AND(COUNTRY_INFO!K22>1,COUNTRY_INFO!K22<99,COUNTRY_INFO!K22<>4,COUNTRY_INFO!K22<>5), IF(AO22/COUNTRY_INFO!T22*100<>0, IF(AO22/COUNTRY_INFO!T22*100>100,100,AO22/COUNTRY_INFO!T22*100), "-"),0) ->  | AQ22: 59423 | AR22: 59423 | AS22: 63.97894034 | AU22: =IF(AND(D22<>0, D22<>"Inconnu",D22<>"Interrompu",D22<>"Non requis"),D22/COUNTRY_INFO!D22, 0) -> 0 | AV22: =IF(AND(J22<>0,J22<>"Inconnu",J22<>"Interrompu",J22<>"Non requis"),J22/COUNTRY_INFO!D22, 0) -> 0.927417331 | AW22: =IF(AND(P22<>0,P22<>"Inconnu",P22<>"Surveillance",P22<>"Non requis"),P22/COUNTRY_INFO!Q22, 0) -> 1 | AX22: =IF(AND(AE22<>0,AE22<>"Inconnu",AE22<>"Surveillance",AE22<>"Non requis"),AE22/COUNTRY_INFO!U22, 0) -> 1 | AY22: =IF(AU22>0,D22*PROFILE!$G$7,IF(AV22>0,J22*PROFILE!$G$7,0)) -> 4816.556275 | AZ22: =_xlfn.IFS(OR(AU22>0,AW22>0),COUNTRY_INFO!E22, AV22>0,J22*PROFILE!$G$8,AX22>0,COUNTRY_INFO!R22,COUNTIFS(AU22:AX22,">0")=0,0) -> 20774 | BA22: =_xlfn.IFS(OR(AU22>0,AW22>0),COUNTRY_INFO!F22, AV22>0,J22*PROFILE!$G$9,AX22>0,COUNTRY_INFO!S22,COUNTIFS(AU22:AX22,">0")=0,0) -> 38951 | BB22: =_xlfn.IFS(AU22>0,COUNTRY_INFO!G22, AND(AV22>0,AW22=0,AX22=0),J22*PROFILE!$G$10,AND(AV22>0,AW22>0,AX22=0), MAX(J22*PROFILE!$G$10,COUNTRY_INFO!P22),AND(AV22>0,AW22=0,AX22>0), MAX(J22*PROFILE!$G$10,COUNTRY_INFO!T22),AND(AV22=0,AW22>0,AX22>0), MAX(COUNTRY_INFO!P22,COUNTRY_INFO!T22),AND(AV22=0,AW22>0,AX22=0),COUNTRY_INFO!P22,AND(AV22=0,AW22=0,AX22>0),COUNTRY_INFO!T22,AND(AV22>0,AW22>0,AX22>0), MAX(J22*PROFILE!$G$10,COUNTRY_INFO!P22,COUNTRY_INFO!T22),COUNTIFS(AU22:AX22,">0")=0,0) -> 60206.82363 | BC22: 124748.3799 | BD22: Y | BE22: =MAX('MDA2'!J22,'MDA5'!J22,S22,AH22) -> 0 | BF22: =MAX('MDA1'!K22,'MDA2'!K22,'MDA3'!I22,'MDA3'!L22,'MDA5'!K22,V22,AK22) -> 41615 | BG22: =MAX('MDA1'!L22,'MDA2'!L22,'MDA3'!J22,'MDA3'!M22,'MDA5'!L22,Y22,AN22) -> 59556 | BH22: 101171 | BI22: =_xlfn.IFS(AND(AU22=0,AW22=0,AX22=0),0,AND(AU22=0,AW22=0,AX22>0),AI22,AND(AU22=0,AW22>0,AX22=0),T22,AND(AU22=0,AW22>0,AX22>0),MAX(T22,AI22),AND(AU22>0,AW22=0,AX22=0),MIN(MAX('MDA2'!J22,'MDA5'!J22),AZ22),AND(AU22>0,AW22=0,AX22>0),MIN(MAX('MDA2'!J22,'MDA5'!J22,AI22),AZ22),AND(AU22>0,AW22>0,AX22=0),MIN(MAX('MDA2'!J22,'MDA5'!J22,T22),AZ22),AND(AU22>0,AW22>0,AX22>0),MIN(MAX('MDA2'!J22,'MDA5'!J22,AI22,T22),AZ22)) -> 0 | BJ22: =_xlfn.IFS(AND(AU22=0,AV22=0,AW22=0,AX22=0),0,AND(AU22=0,AV22=0,AW22=0,AX22>0),AL22,AND(AU22=0,AV22=0,AW22>0,AX22=0),W22,AND(AU22=0,AV22=0,AW22>0,AX22>0),MAX(W22,AL22),AND(AU22=0,AV22>0,AW22=0,AX22=0),MIN(J22*PROFILE!$G$9,MAX('MDA3'!I22,'MDA3'!L22)),AND(AU22=0,AV22>0,AW22=0,AX22>0),MIN(J22*PROFILE!$G$9,MAX('MDA3'!I22,'MDA3'!L22,AL22)),AND(AU22=0,AV22>0,AW22>0,AX22=0),MIN(J22*PROFILE!$G$9,MAX('MDA3'!I22,'MDA3'!L22,W22)),AND(AU22=0,AV22>0,AW22>0,AX22>0),MIN(J22*PROFILE!$G$9,MAX('MDA3'!I22,'MDA3'!L22,W22,AL22)),AND(AU22>0,AV22=0,AW22=0,AX22=0), MIN(BA22,MAX('MDA1'!K22,'MDA2'!K22,'MDA5'!K22)),AND(AU22>0,AV22=0,AW22=0,AX22>0), MIN(BA22,MAX('MDA1'!K22,'MDA2'!K22,'MDA5'!K22,AL22)),AND(AU22>0,AV22=0,AW22>0,AX22=0),MIN(BA22,MAX('MDA1'!K22,'MDA2'!KL22,'MDA5'!K22,W22)),AND(AU22>0,AV22=0,AW22>0,AX22>0),MIN(BA22,MAX('MDA1'!K22,'MDA2'!K22,'MDA5'!K22,W22,AL22)),AND(AU22>0,AV22>0,AW22=0,AX22=0),MIN(BA22, MAX('MDA1'!K22,'MDA2'!K22, 'MDA5'!K22,MAX('MDA3'!I22,'MDA3'!L22))), AND(AU22>0,AV22>0,AW22=0,AX22>0),MIN(BA22, MAX('MDA1'!K22,'MDA2'!K22, 'MDA5'!K22,MAX('MDA3'!I22,'MDA3'!L22),AL22)), AND(AU22>0,AV22>0,AW22>0,AX22=0), MIN(BA22, MAX('MDA1'!K22,'MDA2'!K22, 'MDA5'!K22,MAX('MDA3'!I22,'MDA3'!L22),W22)), AND(AU22>0,AV22>0,AW22>0,AX22>0), MIN(BA22, MAX('MDA1'!K22,'MDA2'!K22, 'MDA5'!K22,MAX('MDA3'!I22,'MDA3'!L22),W22,AL22))) -> 36124.05876 | BK22: =_xlfn.IFS(AND(AU22=0,AV22=0,AW22=0,AX22=0),0,AND(AU22=0,AV22=0,AW22=0,AX22>0),AO22,AND(AU22=0,AV22=0,AW22>0,AX22=0),Z22,AND(AU22=0,AV22=0,AW22>0,AX22>0),MAX(Z22,AO22),AND(AU22=0,AV22>0,AW22=0,AX22=0),MIN(J22*PROFILE!$G$10,MAX('MDA3'!J22,'MDA3'!J22)),AND(AU22=0,AV22>0,AW22=0,AX22>0),MIN(J22*PROFILE!$G$10,MAX('MDA3'!J22,'MDA3'!M22,AO22)),AND(AU22=0,AV22>0,AW22>0,AX22=0),MIN(J22*PROFILE!$G$10,MAX('MDA3'!J22,'MDA3'!M22,Z22)),AND(AU22=0,AV22>0,AW22>0,AX22>0),MIN(J22*PROFILE!$G$10,MAX('MDA3'!J22,'MDA3'!M22,Z22,AO22)),AND(AU22>0,AV22=0,AW22=0,AX22=0), MIN(BB22,MAX('MDA1'!L22,'MDA2'!L22,'MDA5'!L22)),AND(AU22>0,AV22=0,AW22=0,AX22>0), MIN(BB22,MAX('MDA1'!L22,'MDA2'!L22,'MDA5'!L22,AO22)),AND(AU22>0,AV22=0,AW22>0,AX22=0),MIN(BB22,MAX('MDA1'!L22,'MDA2'!L22,'MDA5'!L22,Z22)),AND(AU22>0,AV22=0,AW22>0,AX22>0),MIN(BB22,MAX('MDA1'!L22,'MDA2'!L22,'MDA5'!L22,Z22,AO22)),AND(AU22>0,AV22>0,AW22=0,AX22=0),MIN(BB22, MAX('MDA1'!L22,'MDA2'!L22, 'MDA5'!L22,MAX('MDA3'!J22,'MDA3'!M22))), AND(AU22>0,AV22>0,AW22=0,AX22>0),MIN(BB22, MAX('MDA1'!L22,'MDA2'!L22, 'MDA5'!L22,MAX('MDA3'!J22,'MDA3'!M22),AO22)), AND(AU22>0,AV22>0,AW22>0,AX22=0), MIN(BB22, MAX('MDA1'!L22,'MDA2'!L22, 'MDA5'!L22,MAX('MDA3'!J22,'MDA3'!M22),Z22)), AND(AU22>0,AV22>0,AW22>0,AX22>0), MIN(BB22, MAX('MDA1'!L22,'MDA2'!L22, 'MDA5'!L22,MAX('MDA3'!J22,'MDA3'!M22),Z22,AO22))) -> 59556 | BL22: 95680.05876 | BM22: 76.69843795
